{"text_format":"1","workbook":"xlsx","n_sheets":11,"sheets":["Instructions","Introduction","Data Table","Planning","Reporting","Optional Reporting","Input","Plots","Consolidation","Program Period","Consolidation old"],"not_rendered":{"charts":3,"images":0,"macros":1,"external_links":0,"defined_names":15,"comments":3,"pivot_tables":0},"unopened":[],"bounds":{"document_bytes":16777216,"sheet_cells":100000,"rows_first":2000,"rows_last":500,"rows_between":2000,"halvings":0,"cell_chars":16384,"cell_head_chars":4096},"cells_cut":0,"cells_raw":0,"read":"whole","date_system":"1900"}

{"sheet":"Instructions","index":0,"n_rows":0,"n_cols":0,"rows_kept":0,"cut":false,"hidden":true,"merged":[]}

{"sheet":"Introduction","index":1,"n_rows":12,"n_cols":3,"rows_kept":12,"cut":false,"hidden":false,"merged":[[2,1,5,13],[11,2,13,12]]}
[]
[]
[null,"To get started, please enable macro and review the training brief attached below. The Data Table tab also provides important information on each required data element. After reviewing the material, please go to the Planning tab to get started. You will find Directions at the top of each tab that will be helpful in providing the required data.\n\nFor any questions on the content and submission of the reliability growth data, please contact Mr. Andrew Monje, OUSD(AT&L)/SE , at (703) 692-0841, Andrew.Monje@osd.mil or Mr. Alan Fu, OUSD(AT&L)/SE, at (703) 695-7793, Alan.Fu.ctr@osd.mil."]
[]
[]
[]
[]
[]
[]
[]
[]
[null,null,"To PRINT, please do so one tab at a time. In Scaling Options, select \"Print all rows on one page\" and only print the first page(s) of each tab. For graphs, click the graph you wish to print before going to File/Print. "]

{"sheet":"Data Table","index":2,"n_rows":19,"n_cols":7,"rows_kept":19,"cut":false,"hidden":false,"merged":[[1,0,7,0],[8,0,10,0],[11,0,13,0],[14,0,18,0]]}
[null,"RGC Data Element Number","Data Element Name","Input Frequency","Description","Examples (non-exhaustive)","Data Input Guidance"]
["Planning",1,"Reliability Metric","Once","The metric being used by the program to measure reliability.","MTBF, MTBOMF, MTBSA, Percentage, Mean Shots Between Failures, Mean Miles Between System Aborts","The reliability life unit should be traceable to the reliability requirement and what reliability metric the requirement is expressed in."]
[null,2,"Test Length Unit","Once","The metric being used by the program to measure time, distance, rounds, attempts, etc.; the x-axis unit when plotting reliability","Hours, Flight Hours, Miles, Shots","The test length unit should support and be consistent with the reliability life unit (e.g. if the reliability life unit is Mean Time Between Failures, the test length unit should be a unit of time"]
[null,3,"Reliability Threshold ","Once","The reliability threshold for the program, traceable to the program CDD/CPD","Positive integer or percentage","The reliability threshold must be the value defined in the approved CDD or CPD."]
[null,4,"Planned Initial Reliability","Once","The planned initial reliability value of the RGC; the planned reliability at time zero on the RGC","Positive integer or percentage","The planned initial reliability value should be extracted from the SEP and TEMP and should represent the planned reliability of the system when full-up system level DT commences."]
[null,5,"Fiscal Year/Quarter","Once","The beginning and end of the reliability growth program, expressed in fiscal year and quarter.","FY12Q4 to FY14Q1, FY13Q1 to FY17Q4","For both the start and end of the reliability test program, select the fiscal year and then the specific quarter for the start/end. A table will generate with the specified range, in quarterly increments. "]
[null,6,"Planned Cumulative Test Length ","Once","The cumulative amount (or length) of reliability testing planned for each quarter; i.e. how many cumulative hours, miles, rounds, etc. does the program plan to have tested at the end of each quarter. ","Positive integer","Express this as a cumulative value from quarter to quarter, e.g. 100 hours planned for both Q1 and Q2 means put in 100 for Q1, and 200 for Q2 since it's cumulative. \n\nBe sure to enter a planned value for each quarter for the duration of the reliability test program."]
[null,7,"Planned Cumulative Reliability ","Once","The planned cumulative reliability of the system, reported in quarterly increments. Cumulative is defined as throughout the entire reliability test program. ","Positive integer or percentage","Express this as a cumulative reliability value from quarter to quarter by dividing the total test length by the total number of failures; e.g. after 500 hours of testing, the program plans for a cumulative reliability of 50 hours between failure which equates to 10 failures for the system (500 hours/10 failures = 50 MTBF) \n\nBe sure to enter a planned value for each quarter for the duration of the reliability test program."]
["Reporting",8,"Actual Cumulative Test Length","Quarterly","The actual amount of reliability testing conducted, reported as a cumulative number at each quarter; i.e. how many cumulative hours, miles, rounds, etc. did the program actually test the system.","Positive integer","Express this as a cumulative value from quarter to quarter, e.g. 100 hours planned for both Q1 and Q2 means put in 100 for Q1, and 200 for Q2 since it's cumulative. \n\nOne value should be entered each quarter as the program progress through its reliability test program."]
[null,9,"Cumulative Demonstrated Reliability","Quarterly","The cumulative system reliability demonstrated. Cumulative is defined as thoughout the entire reliability test program. ","Positive integer or percentage","Express this as a cumulative reliability value from quarter to quarter by dividing the total test length by the total number of failures; e.g. after 500 hours of testing, the program plans for a cumulative reliability of 50 hours between failure which equates to 10 failures for the system (500 hours/10 failures = 50 MTBF) \n\nOne value should be entered each quarter as the program progress through its reliability test program."]
[null,10,"Projected Reliability for next Quarter","Quarterly","The program's projected reliability for the system corresponding to the next quarter.","Positive integer or percentage","The projected reliability value must be based on test data and engineering assessment of corrective action effectiveness. \n\nThe growth tracking and projection methodology used must be consistent with the methodology described in the SEP and TEMP. "]
["Optional Reporting",11,"Description of Current Test Phase","Optional","If the current configuration or test phase provides a better picture of the reliability growth status of the program, specific reliability data related to the current test phase may be provided by the program. This field provides an opportunity to describe the current test phase and why it is different the cumulative reliability reporting","\"DT2: Representative mission profile testing on three fully configured test assets\""]
[null,12,"Current Test Phase - Actual Cumulative Test Length","Optional","The actual amount of reliability testing conducted for the current test phase, reported as a cumulative number at each quarter; i.e. how many cumulative hours, miles, rounds, etc. did the program actually test the system under the current configuration/test phase.","Positive integer","Express this as a cumulative value from quarter to quarter, e.g. 100 hours planned for both Q1 and Q2 means put in 100 for Q1, and 200 for Q2 since it's cumulative. \n\nOne value should be entered each quarter as the program progress through its current test phase."]
[null,13,"Current Test Phase - Cumulative Demonstrated Reliability","Optional","The cumulative reliability of the system demonstrated by the system under the current test phase/configuration. Cumulative is defined as thoughout the current test phase","Positive integer or percentage","Express this as a cumulative reliability value from quarter to quarter by dividing the total test length by the total number of failures; e.g. after 500 hours of testing, the program plans for a cumulative reliability of 50 hours between failure which equates to 10 failures for the system (500 hours/10 failures = 50 MTBF) \n\nOne value should be entered each quarter as the program progress through its current test phase."]
["Explanations",14,"Explanation of change to Reliability Threshold","As required","If the reliability threshold value is changed after initial input, provide an explanation for why the change occurred.","\"The reliability threshold was changed because….\"","Changes to the reliability threshold must be explained and should be traceable to other acquisition documents such as the CDD/CPD, SEP, TEMP, etc."]
[null,15,"Explanation of change to Planned Test Length","As required","If the planned test length values are changed after initial input (e.g. the program originally planned for 100 hours of testing and changes the plan to only 50 hours), provide an explanation for why the change occurred.","\"The planned test hours for FY13Q4 decreased from 100 hours to 50 hours because…\"","Changes to the planned test lengths must be explained."]
[null,16,"Explanation of change to Planned Reliability","As required","If the planned reliability values are changed after initial input (e.g. the program originally planned a reliability of 100 hours MTBF and changes the planned value to 50 hours MTBF), provide an explanation for why the change occurred.","\"The planned reliability for FY12Q3 decreased from 100 hours MTBF to 50 hours MTBF because…\"","Changes to the planned reliability values must be explained."]
[null,17,"Explanation of Test Length Deviations","Optional","If the program deviates from the planned test length values, an explanation may be provided (e.g. the program planned for 100 hours of testing but only tested for 50 hours)","\"Due to …., program XYZ only tested for 50 hours as opposed to the 100 hours originally planned.\"","Deviations do not have to be explained but program may choose to do so."]
[null,18,"Explanation of Reliability Deviations","Optional","If the program deviates from the planned reliability, an explanation may be provided (e.g. the program planned for 100 hours MTBF but only demonstrated 50 hours MTBF)","\"Due to …., program XYZ only demonstrated a 50 hours MTBF as opposed to the 100 hours MTBF originally planned.\"","Deviations do not have to be explained but program may choose to do so."]

{"sheet":"Planning","index":3,"n_rows":25,"n_cols":10,"rows_kept":25,"cut":false,"hidden":false,"merged":[[42,4,42,5],[42,7,42,8],[43,4,43,5],[43,7,43,8],[44,4,44,5],[44,7,44,8],[39,4,39,5],[39,7,39,8],[40,4,40,5],[40,7,40,8],[41,4,41,5],[41,7,41,8],[36,4,36,5],[36,7,36,8],[37,4,37,5],[37,7,37,8],[38,4,38,5],[38,7,38,8],[33,4,33,5],[33,7,33,8],[34,4,34,5],[34,7,34,8],[35,4,35,5],[35,7,35,8],[30,4,30,5],[30,7,30,8],[31,4,31,5],[31,7,31,8],[32,4,32,5],[32,7,32,8],[27,4,27,5],[27,7,27,8],[28,4,28,5],[28,7,28,8],[29,4,29,5],[29,7,29,8],[42,1,42,2],[43,1,43,2],[44,1,44,2],[45,1,45,2],[24,4,24,5],[36,1,36,2],[37,1,37,2],[38,1,38,2],[39,1,39,2],[40,1,40,2],[41,1,41,2],[30,1,30,2],[31,1,31,2],[32,1,32,2],[33,1,33,2],[34,1,34,2],[24,7,24,8],[25,4,25,5],[25,7,25,8],[26,4,26,5],[26,7,26,8],[35,1,35,2],[24,1,24,2],[25,1,25,2],[26,1,26,2],[27,1,27,2],[28,1,28,2],[29,1,29,2],[6,9,8,11],[22,6,23,8],[21,0,21,7],[0,0,0,1],[19,0,20,2],[22,0,23,2],[22,3,23,5],[6,5,7,5],[8,5,9,5],[10,5,10,6],[2,0,2,7]]}
["Planning Section"]
[]
["Directions: The yellow highlighted boxes below will guide your data entry. Comments have been included for assistance. To begin, select the appropriate start and end dates (Fiscal year and quarter) for the system level testing on the right and hit \"Generate Table\". For the quarterly test length and cumulative reliability table, fill out as many quarters as necessary consistent with the documented planned values on the reliability growth curve in the Systems Engineering Plan (SEP) and Test & Evaluation Master Plan (TEMP)."]
[]
["Program Name:"]
["Service: ",null,{"$f":"IF(B6=\"Other\", \"Please Specify:\", \"\" )","v":""}]
[null,null,null,null,null,"Start","FY",13,null,"WARNING: Hitting \"Generate Table\" will clear existing data."]
["Reliability Metric:",null,{"$f":"IF(B8=\"Other\", \"Please Specify:\", \"\" )","v":""},null,null,null,"Q",1]
["Test Length Unit:",null,{"$f":"IF(B9=\"Other\", \"Please Specify:\", \"\" )","v":""},null,null,"End","FY",14]
[null,null,null,null,null,null,"Q",2]
["Reliability Threshold Value:",null,null,null,null,"# of Quarters",null,{"$f":"((H9-H7+1)*4)-(H8-1)-(4-H10)","v":6}]
[]
["Planned Initial Reliability:"]
[]
["Fiscal Year Quarter","FY13Q1","FY13Q2","FY13Q3","FY13Q4","FY14Q1","FY14Q2"]
["Planned Cumulative Test Length"]
["Planned Cumulative Reliability"]
[]
[]
["Changes to Planning Section"]
[]
["Direction: If changes are made to the planning values, a date and rationale MUST be provided."]
["Changes to Reliability Threshold",null,null,"Changes to Planned Cumulative Test Length",null,null,"Changes to Planned Cumulative Reliability"]
[]
["Date","Rationale",null,"Date","Rationale",null,"Date","Rationale"]

{"sheet":"Reporting","index":4,"n_rows":26,"n_cols":182,"rows_kept":26,"cut":false,"hidden":false,"merged":[[45,5,45,7],[3,0,3,5],[45,3,45,4],[25,5,25,7],[23,3,24,7],[26,5,26,7],[27,5,27,7],[28,5,28,7],[29,5,29,7],[30,5,30,7],[31,5,31,7],[32,5,32,7],[45,1,45,2],[25,3,25,4],[26,3,26,4],[27,3,27,4],[43,5,43,7],[44,5,44,7],[41,1,41,2],[42,1,42,2],[41,3,41,4],[42,3,42,4],[41,5,41,7],[42,5,42,7],[43,1,43,2],[44,1,44,2],[43,3,43,4],[44,3,44,4],[39,5,39,7],[40,5,40,7],[37,1,37,2],[38,1,38,2],[37,3,37,4],[38,3,38,4],[37,5,37,7],[38,5,38,7],[39,1,39,2],[40,1,40,2],[39,3,39,4],[40,3,40,4],[35,5,35,7],[36,5,36,7],[33,1,33,2],[34,1,34,2],[33,3,33,4],[34,3,34,4],[33,5,33,7],[34,5,34,7],[35,1,35,2],[36,1,36,2],[35,3,35,4],[36,3,36,4],[32,1,32,2],[31,3,31,4],[32,3,32,4],[29,1,29,2],[30,1,30,2],[29,3,29,4],[30,3,30,4],[31,1,31,2],[0,0,0,1],[2,0,2,6],[27,1,27,2],[28,1,28,2],[25,1,25,2],[26,1,26,2],[4,0,4,3],[20,0,21,2],[22,0,22,7],[23,0,24,2],[28,3,28,4]]}
["Reporting Section"]
[]
["Introduction: The planned values have been extracted from the \"Planning\" tab. If you do not see the planned values, please make sure the \"Planning\" tab has been filled in. This tab tracks the actuals for test length i.e. how many hours of testing actually occurred in the quarter as well as demonstrated cumulative reliability. Cumulative reliability here is defined as total test length divided by total number of failures."]
["Directions: Please fill out \"Actual Cumulative Test Length\", \"Cumulative Demonstrated Reliability\", and \"Projected Reliability for next quarter\". Keep in mind that the first two requested values are CUMULATIVE and not referring to the test time or reliability for the current quarter. Those values will be calculated automatically below. To explain any deviation from planned values, you may use the \"Deviation from planned values\" section below."]
["Optional Reporting: If the current test phase better reflects the reliability of the program, you may use the \"Optional Reporting\" tab to report those values. However, that is in addition to the three required values specified in the Directions above."]
[]
["Fiscal Year Quarter","FY13Q1","FY13Q2","FY13Q3","FY13Q4","FY14Q1","FY14Q2"]
["Planned Cumulative Test Length",{"$f":"IF(ISBLANK(Planning!B16),\"\",Planning!B16)","v":""},{"$f":"IF(ISBLANK(Planning!C16),\"\",Planning!C16)","v":""},{"$f":"IF(ISBLANK(Planning!D16),\"\",Planning!D16)","v":""},{"$f":"IF(ISBLANK(Planning!E16),\"\",Planning!E16)","v":""},{"$f":"IF(ISBLANK(Planning!F16),\"\",Planning!F16)","v":""},{"$f":"IF(ISBLANK(Planning!G16),\"\",Planning!G16)","v":""},{"$f":"IF(ISBLANK(Planning!H16),\"\",Planning!H16)","v":""},{"$f":"IF(ISBLANK(Planning!I16),\"\",Planning!I16)","v":""},{"$f":"IF(ISBLANK(Planning!J16),\"\",Planning!J16)","v":""},{"$f":"IF(ISBLANK(Planning!K16),\"\",Planning!K16)","v":""},{"$f":"IF(ISBLANK(Planning!L16),\"\",Planning!L16)","v":""},{"$f":"IF(ISBLANK(Planning!M16),\"\",Planning!M16)","v":""},{"$f":"IF(ISBLANK(Planning!N16),\"\",Planning!N16)","v":""},{"$f":"IF(ISBLANK(Planning!O16),\"\",Planning!O16)","v":""},{"$f":"IF(ISBLANK(Planning!P16),\"\",Planning!P16)","v":""},{"$f":"IF(ISBLANK(Planning!Q16),\"\",Planning!Q16)","v":""},{"$f":"IF(ISBLANK(Planning!R16),\"\",Planning!R16)","v":""},{"$f":"IF(ISBLANK(Planning!S16),\"\",Planning!S16)","v":""},{"$f":"IF(ISBLANK(Planning!T16),\"\",Planning!T16)","v":""},{"$f":"IF(ISBLANK(Planning!U16),\"\",Planning!U16)","v":""},{"$f":"IF(ISBLANK(Planning!V16),\"\",Planning!V16)","v":""},{"$f":"IF(ISBLANK(Planning!W16),\"\",Planning!W16)","v":""},{"$f":"IF(ISBLANK(Planning!X16),\"\",Planning!X16)","v":""},{"$f":"IF(ISBLANK(Planning!Y16),\"\",Planning!Y16)","v":""},{"$f":"IF(ISBLANK(Planning!Z16),\"\",Planning!Z16)","v":""},{"$f":"IF(ISBLANK(Planning!AA16),\"\",Planning!AA16)","v":""},{"$f":"IF(ISBLANK(Planning!AB16),\"\",Planning!AB16)","v":""},{"$f":"IF(ISBLANK(Planning!AC16),\"\",Planning!AC16)","v":""},{"$f":"IF(ISBLANK(Planning!AD16),\"\",Planning!AD16)","v":""},{"$f":"IF(ISBLANK(Planning!AE16),\"\",Planning!AE16)","v":""},{"$f":"IF(ISBLANK(Planning!AF16),\"\",Planning!AF16)","v":""},{"$f":"IF(ISBLANK(Planning!AG16),\"\",Planning!AG16)","v":""},{"$f":"IF(ISBLANK(Planning!AH16),\"\",Planning!AH16)","v":""},{"$f":"IF(ISBLANK(Planning!AI16),\"\",Planning!AI16)","v":""},{"$f":"IF(ISBLANK(Planning!AJ16),\"\",Planning!AJ16)","v":""},{"$f":"IF(ISBLANK(Planning!AK16),\"\",Planning!AK16)","v":""},{"$f":"IF(ISBLANK(Planning!AL16),\"\",Planning!AL16)","v":""},{"$f":"IF(ISBLANK(Planning!AM16),\"\",Planning!AM16)","v":""},{"$f":"IF(ISBLANK(Planning!AN16),\"\",Planning!AN16)","v":""},{"$f":"IF(ISBLANK(Planning!AO16),\"\",Planning!AO16)","v":""},{"$f":"IF(ISBLANK(Planning!AP16),\"\",Planning!AP16)","v":""},{"$f":"IF(ISBLANK(Planning!AQ16),\"\",Planning!AQ16)","v":""},{"$f":"IF(ISBLANK(Planning!AR16),\"\",Planning!AR16)","v":""},{"$f":"IF(ISBLANK(Planning!AS16),\"\",Planning!AS16)","v":""},{"$f":"IF(ISBLANK(Planning!AT16),\"\",Planning!AT16)","v":""},{"$f":"IF(ISBLANK(Planning!AU16),\"\",Planning!AU16)","v":""},{"$f":"IF(ISBLANK(Planning!AV16),\"\",Planning!AV16)","v":""},{"$f":"IF(ISBLANK(Planning!AW16),\"\",Planning!AW16)","v":""},{"$f":"IF(ISBLANK(Planning!AX16),\"\",Planning!AX16)","v":""},{"$f":"IF(ISBLANK(Planning!AY16),\"\",Planning!AY16)","v":""},{"$f":"IF(ISBLANK(Planning!AZ16),\"\",Planning!AZ16)","v":""},{"$f":"IF(ISBLANK(Planning!BA16),\"\",Planning!BA16)","v":""},{"$f":"IF(ISBLANK(Planning!BB16),\"\",Planning!BB16)","v":""},{"$f":"IF(ISBLANK(Planning!BC16),\"\",Planning!BC16)","v":""},{"$f":"IF(ISBLANK(Planning!BD16),\"\",Planning!BD16)","v":""},{"$f":"IF(ISBLANK(Planning!BE16),\"\",Planning!BE16)","v":""},{"$f":"IF(ISBLANK(Planning!BF16),\"\",Planning!BF16)","v":""},{"$f":"IF(ISBLANK(Planning!BG16),\"\",Planning!BG16)","v":""},{"$f":"IF(ISBLANK(Planning!BH16),\"\",Planning!BH16)","v":""},{"$f":"IF(ISBLANK(Planning!BI16),\"\",Planning!BI16)","v":""},{"$f":"IF(ISBLANK(Planning!BJ16),\"\",Planning!BJ16)","v":""},{"$f":"IF(ISBLANK(Planning!BK16),\"\",Planning!BK16)","v":""},{"$f":"IF(ISBLANK(Planning!BL16),\"\",Planning!BL16)","v":""},{"$f":"IF(ISBLANK(Planning!BM16),\"\",Planning!BM16)","v":""},{"$f":"IF(ISBLANK(Planning!BN16),\"\",Planning!BN16)","v":""},{"$f":"IF(ISBLANK(Planning!BO16),\"\",Planning!BO16)","v":""},{"$f":"IF(ISBLANK(Planning!BP16),\"\",Planning!BP16)","v":""},{"$f":"IF(ISBLANK(Planning!BQ16),\"\",Planning!BQ16)","v":""},{"$f":"IF(ISBLANK(Planning!BR16),\"\",Planning!BR16)","v":""},{"$f":"IF(ISBLANK(Planning!BS16),\"\",Planning!BS16)","v":""},{"$f":"IF(ISBLANK(Planning!BT16),\"\",Planning!BT16)","v":""},{"$f":"IF(ISBLANK(Planning!BU16),\"\",Planning!BU16)","v":""},{"$f":"IF(ISBLANK(Planning!BV16),\"\",Planning!BV16)","v":""},{"$f":"IF(ISBLANK(Planning!BW16),\"\",Planning!BW16)","v":""},{"$f":"IF(ISBLANK(Planning!BX16),\"\",Planning!BX16)","v":""},{"$f":"IF(ISBLANK(Planning!BY16),\"\",Planning!BY16)","v":""},{"$f":"IF(ISBLANK(Planning!BZ16),\"\",Planning!BZ16)","v":""},{"$f":"IF(ISBLANK(Planning!CA16),\"\",Planning!CA16)","v":""},{"$f":"IF(ISBLANK(Planning!CB16),\"\",Planning!CB16)","v":""},{"$f":"IF(ISBLANK(Planning!CC16),\"\",Planning!CC16)","v":""},{"$f":"IF(ISBLANK(Planning!CD16),\"\",Planning!CD16)","v":""},{"$f":"IF(ISBLANK(Planning!CE16),\"\",Planning!CE16)","v":""},{"$f":"IF(ISBLANK(Planning!CF16),\"\",Planning!CF16)","v":""},{"$f":"IF(ISBLANK(Planning!CG16),\"\",Planning!CG16)","v":""},{"$f":"IF(ISBLANK(Planning!CH16),\"\",Planning!CH16)","v":""},{"$f":"IF(ISBLANK(Planning!CI16),\"\",Planning!CI16)","v":""},{"$f":"IF(ISBLANK(Planning!CJ16),\"\",Planning!CJ16)","v":""},{"$f":"IF(ISBLANK(Planning!CK16),\"\",Planning!CK16)","v":""},{"$f":"IF(ISBLANK(Planning!CL16),\"\",Planning!CL16)","v":""},{"$f":"IF(ISBLANK(Planning!CM16),\"\",Planning!CM16)","v":""},{"$f":"IF(ISBLANK(Planning!CN16),\"\",Planning!CN16)","v":""},{"$f":"IF(ISBLANK(Planning!CO16),\"\",Planning!CO16)","v":""},{"$f":"IF(ISBLANK(Planning!CP16),\"\",Planning!CP16)","v":""},{"$f":"IF(ISBLANK(Planning!CQ16),\"\",Planning!CQ16)","v":""},{"$f":"IF(ISBLANK(Planning!CR16),\"\",Planning!CR16)","v":""},{"$f":"IF(ISBLANK(Planning!CS16),\"\",Planning!CS16)","v":""},{"$f":"IF(ISBLANK(Planning!CT16),\"\",Planning!CT16)","v":""},{"$f":"IF(ISBLANK(Planning!CU16),\"\",Planning!CU16)","v":""},{"$f":"IF(ISBLANK(Planning!CV16),\"\",Planning!CV16)","v":""},{"$f":"IF(ISBLANK(Planning!CW16),\"\",Planning!CW16)","v":""},{"$f":"IF(ISBLANK(Planning!CX16),\"\",Planning!CX16)","v":""},{"$f":"IF(ISBLANK(Planning!CY16),\"\",Planning!CY16)","v":""},{"$f":"IF(ISBLANK(Planning!CZ16),\"\",Planning!CZ16)","v":""},{"$f":"IF(ISBLANK(Planning!DA16),\"\",Planning!DA16)","v":""},{"$f":"IF(ISBLANK(Planning!DB16),\"\",Planning!DB16)","v":""},{"$f":"IF(ISBLANK(Planning!DC16),\"\",Planning!DC16)","v":""},{"$f":"IF(ISBLANK(Planning!DD16),\"\",Planning!DD16)","v":""},{"$f":"IF(ISBLANK(Planning!DE16),\"\",Planning!DE16)","v":""},{"$f":"IF(ISBLANK(Planning!DF16),\"\",Planning!DF16)","v":""},{"$f":"IF(ISBLANK(Planning!DG16),\"\",Planning!DG16)","v":""},{"$f":"IF(ISBLANK(Planning!DH16),\"\",Planning!DH16)","v":""},{"$f":"IF(ISBLANK(Planning!DI16),\"\",Planning!DI16)","v":""},{"$f":"IF(ISBLANK(Planning!DJ16),\"\",Planning!DJ16)","v":""},{"$f":"IF(ISBLANK(Planning!DK16),\"\",Planning!DK16)","v":""},{"$f":"IF(ISBLANK(Planning!DL16),\"\",Planning!DL16)","v":""},{"$f":"IF(ISBLANK(Planning!DM16),\"\",Planning!DM16)","v":""},{"$f":"IF(ISBLANK(Planning!DN16),\"\",Planning!DN16)","v":""},{"$f":"IF(ISBLANK(Planning!DO16),\"\",Planning!DO16)","v":""},{"$f":"IF(ISBLANK(Planning!DP16),\"\",Planning!DP16)","v":""},{"$f":"IF(ISBLANK(Planning!DQ16),\"\",Planning!DQ16)","v":""},{"$f":"IF(ISBLANK(Planning!DR16),\"\",Planning!DR16)","v":""},{"$f":"IF(ISBLANK(Planning!DS16),\"\",Planning!DS16)","v":""},{"$f":"IF(ISBLANK(Planning!DT16),\"\",Planning!DT16)","v":""},{"$f":"IF(ISBLANK(Planning!DU16),\"\",Planning!DU16)","v":""},{"$f":"IF(ISBLANK(Planning!DV16),\"\",Planning!DV16)","v":""},{"$f":"IF(ISBLANK(Planning!DW16),\"\",Planning!DW16)","v":""},{"$f":"IF(ISBLANK(Planning!DX16),\"\",Planning!DX16)","v":""},{"$f":"IF(ISBLANK(Planning!DY16),\"\",Planning!DY16)","v":""},{"$f":"IF(ISBLANK(Planning!DZ16),\"\",Planning!DZ16)","v":""},{"$f":"IF(ISBLANK(Planning!EA16),\"\",Planning!EA16)","v":""},{"$f":"IF(ISBLANK(Planning!EB16),\"\",Planning!EB16)","v":""},{"$f":"IF(ISBLANK(Planning!EC16),\"\",Planning!EC16)","v":""},{"$f":"IF(ISBLANK(Planning!ED16),\"\",Planning!ED16)","v":""},{"$f":"IF(ISBLANK(Planning!EE16),\"\",Planning!EE16)","v":""},{"$f":"IF(ISBLANK(Planning!EF16),\"\",Planning!EF16)","v":""},{"$f":"IF(ISBLANK(Planning!EG16),\"\",Planning!EG16)","v":""},{"$f":"IF(ISBLANK(Planning!EH16),\"\",Planning!EH16)","v":""},{"$f":"IF(ISBLANK(Planning!EI16),\"\",Planning!EI16)","v":""},{"$f":"IF(ISBLANK(Planning!EJ16),\"\",Planning!EJ16)","v":""},{"$f":"IF(ISBLANK(Planning!EK16),\"\",Planning!EK16)","v":""},{"$f":"IF(ISBLANK(Planning!EL16),\"\",Planning!EL16)","v":""},{"$f":"IF(ISBLANK(Planning!EM16),\"\",Planning!EM16)","v":""},{"$f":"IF(ISBLANK(Planning!EN16),\"\",Planning!EN16)","v":""},{"$f":"IF(ISBLANK(Planning!EO16),\"\",Planning!EO16)","v":""},{"$f":"IF(ISBLANK(Planning!EP16),\"\",Planning!EP16)","v":""},{"$f":"IF(ISBLANK(Planning!EQ16),\"\",Planning!EQ16)","v":""},{"$f":"IF(ISBLANK(Planning!ER16),\"\",Planning!ER16)","v":""},{"$f":"IF(ISBLANK(Planning!ES16),\"\",Planning!ES16)","v":""},{"$f":"IF(ISBLANK(Planning!ET16),\"\",Planning!ET16)","v":""},{"$f":"IF(ISBLANK(Planning!EU16),\"\",Planning!EU16)","v":""},{"$f":"IF(ISBLANK(Planning!EV16),\"\",Planning!EV16)","v":""},{"$f":"IF(ISBLANK(Planning!EW16),\"\",Planning!EW16)","v":""},{"$f":"IF(ISBLANK(Planning!EX16),\"\",Planning!EX16)","v":""},{"$f":"IF(ISBLANK(Planning!EY16),\"\",Planning!EY16)","v":""},{"$f":"IF(ISBLANK(Planning!EZ16),\"\",Planning!EZ16)","v":""},{"$f":"IF(ISBLANK(Planning!FA16),\"\",Planning!FA16)","v":""},{"$f":"IF(ISBLANK(Planning!FB16),\"\",Planning!FB16)","v":""},{"$f":"IF(ISBLANK(Planning!FC16),\"\",Planning!FC16)","v":""},{"$f":"IF(ISBLANK(Planning!FD16),\"\",Planning!FD16)","v":""},{"$f":"IF(ISBLANK(Planning!FE16),\"\",Planning!FE16)","v":""},{"$f":"IF(ISBLANK(Planning!FF16),\"\",Planning!FF16)","v":""},{"$f":"IF(ISBLANK(Planning!FG16),\"\",Planning!FG16)","v":""},{"$f":"IF(ISBLANK(Planning!FH16),\"\",Planning!FH16)","v":""},{"$f":"IF(ISBLANK(Planning!FI16),\"\",Planning!FI16)","v":""},{"$f":"IF(ISBLANK(Planning!FJ16),\"\",Planning!FJ16)","v":""},{"$f":"IF(ISBLANK(Planning!FK16),\"\",Planning!FK16)","v":""},{"$f":"IF(ISBLANK(Planning!FL16),\"\",Planning!FL16)","v":""},{"$f":"IF(ISBLANK(Planning!FM16),\"\",Planning!FM16)","v":""},{"$f":"IF(ISBLANK(Planning!FN16),\"\",Planning!FN16)","v":""},{"$f":"IF(ISBLANK(Planning!FO16),\"\",Planning!FO16)","v":""},{"$f":"IF(ISBLANK(Planning!FP16),\"\",Planning!FP16)","v":""},{"$f":"IF(ISBLANK(Planning!FQ16),\"\",Planning!FQ16)","v":""},{"$f":"IF(ISBLANK(Planning!FR16),\"\",Planning!FR16)","v":""},{"$f":"IF(ISBLANK(Planning!FS16),\"\",Planning!FS16)","v":""},{"$f":"IF(ISBLANK(Planning!FT16),\"\",Planning!FT16)","v":""},{"$f":"IF(ISBLANK(Planning!FU16),\"\",Planning!FU16)","v":""},{"$f":"IF(ISBLANK(Planning!FV16),\"\",Planning!FV16)","v":""},{"$f":"IF(ISBLANK(Planning!FW16),\"\",Planning!FW16)","v":""},{"$f":"IF(ISBLANK(Planning!FX16),\"\",Planning!FX16)","v":""},{"$f":"IF(ISBLANK(Planning!FY16),\"\",Planning!FY16)","v":""},{"$f":"IF(ISBLANK(Planning!FZ16),\"\",Planning!FZ16)","v":""}]
["Actual Cumulative Test Length"]
["Planned Cumulative Reliability",{"$f":"IF(ISBLANK(Planning!B17),\"\",Planning!B17)","v":""},{"$f":"IF(ISBLANK(Planning!C17),\"\",Planning!C17)","v":""},{"$f":"IF(ISBLANK(Planning!D17),\"\",Planning!D17)","v":""},{"$f":"IF(ISBLANK(Planning!E17),\"\",Planning!E17)","v":""},{"$f":"IF(ISBLANK(Planning!F17),\"\",Planning!F17)","v":""},{"$f":"IF(ISBLANK(Planning!G17),\"\",Planning!G17)","v":""},{"$f":"IF(ISBLANK(Planning!H17),\"\",Planning!H17)","v":""},{"$f":"IF(ISBLANK(Planning!I17),\"\",Planning!I17)","v":""},{"$f":"IF(ISBLANK(Planning!J17),\"\",Planning!J17)","v":""},{"$f":"IF(ISBLANK(Planning!K17),\"\",Planning!K17)","v":""},{"$f":"IF(ISBLANK(Planning!L17),\"\",Planning!L17)","v":""},{"$f":"IF(ISBLANK(Planning!M17),\"\",Planning!M17)","v":""},{"$f":"IF(ISBLANK(Planning!N17),\"\",Planning!N17)","v":""},{"$f":"IF(ISBLANK(Planning!O17),\"\",Planning!O17)","v":""},{"$f":"IF(ISBLANK(Planning!P17),\"\",Planning!P17)","v":""},{"$f":"IF(ISBLANK(Planning!Q17),\"\",Planning!Q17)","v":""},{"$f":"IF(ISBLANK(Planning!R17),\"\",Planning!R17)","v":""},{"$f":"IF(ISBLANK(Planning!S17),\"\",Planning!S17)","v":""},{"$f":"IF(ISBLANK(Planning!T17),\"\",Planning!T17)","v":""},{"$f":"IF(ISBLANK(Planning!U17),\"\",Planning!U17)","v":""},{"$f":"IF(ISBLANK(Planning!V17),\"\",Planning!V17)","v":""},{"$f":"IF(ISBLANK(Planning!W17),\"\",Planning!W17)","v":""},{"$f":"IF(ISBLANK(Planning!X17),\"\",Planning!X17)","v":""},{"$f":"IF(ISBLANK(Planning!Y17),\"\",Planning!Y17)","v":""},{"$f":"IF(ISBLANK(Planning!Z17),\"\",Planning!Z17)","v":""},{"$f":"IF(ISBLANK(Planning!AA17),\"\",Planning!AA17)","v":""},{"$f":"IF(ISBLANK(Planning!AB17),\"\",Planning!AB17)","v":""},{"$f":"IF(ISBLANK(Planning!AC17),\"\",Planning!AC17)","v":""},{"$f":"IF(ISBLANK(Planning!AD17),\"\",Planning!AD17)","v":""},{"$f":"IF(ISBLANK(Planning!AE17),\"\",Planning!AE17)","v":""},{"$f":"IF(ISBLANK(Planning!AF17),\"\",Planning!AF17)","v":""},{"$f":"IF(ISBLANK(Planning!AG17),\"\",Planning!AG17)","v":""},{"$f":"IF(ISBLANK(Planning!AH17),\"\",Planning!AH17)","v":""},{"$f":"IF(ISBLANK(Planning!AI17),\"\",Planning!AI17)","v":""},{"$f":"IF(ISBLANK(Planning!AJ17),\"\",Planning!AJ17)","v":""},{"$f":"IF(ISBLANK(Planning!AK17),\"\",Planning!AK17)","v":""},{"$f":"IF(ISBLANK(Planning!AL17),\"\",Planning!AL17)","v":""},{"$f":"IF(ISBLANK(Planning!AM17),\"\",Planning!AM17)","v":""},{"$f":"IF(ISBLANK(Planning!AN17),\"\",Planning!AN17)","v":""},{"$f":"IF(ISBLANK(Planning!AO17),\"\",Planning!AO17)","v":""},{"$f":"IF(ISBLANK(Planning!AP17),\"\",Planning!AP17)","v":""},{"$f":"IF(ISBLANK(Planning!AQ17),\"\",Planning!AQ17)","v":""},{"$f":"IF(ISBLANK(Planning!AR17),\"\",Planning!AR17)","v":""},{"$f":"IF(ISBLANK(Planning!AS17),\"\",Planning!AS17)","v":""},{"$f":"IF(ISBLANK(Planning!AT17),\"\",Planning!AT17)","v":""},{"$f":"IF(ISBLANK(Planning!AU17),\"\",Planning!AU17)","v":""},{"$f":"IF(ISBLANK(Planning!AV17),\"\",Planning!AV17)","v":""},{"$f":"IF(ISBLANK(Planning!AW17),\"\",Planning!AW17)","v":""},{"$f":"IF(ISBLANK(Planning!AX17),\"\",Planning!AX17)","v":""},{"$f":"IF(ISBLANK(Planning!AY17),\"\",Planning!AY17)","v":""},{"$f":"IF(ISBLANK(Planning!AZ17),\"\",Planning!AZ17)","v":""},{"$f":"IF(ISBLANK(Planning!BA17),\"\",Planning!BA17)","v":""},{"$f":"IF(ISBLANK(Planning!BB17),\"\",Planning!BB17)","v":""},{"$f":"IF(ISBLANK(Planning!BC17),\"\",Planning!BC17)","v":""},{"$f":"IF(ISBLANK(Planning!BD17),\"\",Planning!BD17)","v":""},{"$f":"IF(ISBLANK(Planning!BE17),\"\",Planning!BE17)","v":""},{"$f":"IF(ISBLANK(Planning!BF17),\"\",Planning!BF17)","v":""},{"$f":"IF(ISBLANK(Planning!BG17),\"\",Planning!BG17)","v":""},{"$f":"IF(ISBLANK(Planning!BH17),\"\",Planning!BH17)","v":""},{"$f":"IF(ISBLANK(Planning!BI17),\"\",Planning!BI17)","v":""},{"$f":"IF(ISBLANK(Planning!BJ17),\"\",Planning!BJ17)","v":""},{"$f":"IF(ISBLANK(Planning!BK17),\"\",Planning!BK17)","v":""},{"$f":"IF(ISBLANK(Planning!BL17),\"\",Planning!BL17)","v":""},{"$f":"IF(ISBLANK(Planning!BM17),\"\",Planning!BM17)","v":""},{"$f":"IF(ISBLANK(Planning!BN17),\"\",Planning!BN17)","v":""},{"$f":"IF(ISBLANK(Planning!BO17),\"\",Planning!BO17)","v":""},{"$f":"IF(ISBLANK(Planning!BP17),\"\",Planning!BP17)","v":""},{"$f":"IF(ISBLANK(Planning!BQ17),\"\",Planning!BQ17)","v":""},{"$f":"IF(ISBLANK(Planning!BR17),\"\",Planning!BR17)","v":""},{"$f":"IF(ISBLANK(Planning!BS17),\"\",Planning!BS17)","v":""},{"$f":"IF(ISBLANK(Planning!BT17),\"\",Planning!BT17)","v":""},{"$f":"IF(ISBLANK(Planning!BU17),\"\",Planning!BU17)","v":""},{"$f":"IF(ISBLANK(Planning!BV17),\"\",Planning!BV17)","v":""},{"$f":"IF(ISBLANK(Planning!BW17),\"\",Planning!BW17)","v":""},{"$f":"IF(ISBLANK(Planning!BX17),\"\",Planning!BX17)","v":""},{"$f":"IF(ISBLANK(Planning!BY17),\"\",Planning!BY17)","v":""},{"$f":"IF(ISBLANK(Planning!BZ17),\"\",Planning!BZ17)","v":""},{"$f":"IF(ISBLANK(Planning!CA17),\"\",Planning!CA17)","v":""},{"$f":"IF(ISBLANK(Planning!CB17),\"\",Planning!CB17)","v":""},{"$f":"IF(ISBLANK(Planning!CC17),\"\",Planning!CC17)","v":""},{"$f":"IF(ISBLANK(Planning!CD17),\"\",Planning!CD17)","v":""},{"$f":"IF(ISBLANK(Planning!CE17),\"\",Planning!CE17)","v":""},{"$f":"IF(ISBLANK(Planning!CF17),\"\",Planning!CF17)","v":""},{"$f":"IF(ISBLANK(Planning!CG17),\"\",Planning!CG17)","v":""},{"$f":"IF(ISBLANK(Planning!CH17),\"\",Planning!CH17)","v":""},{"$f":"IF(ISBLANK(Planning!CI17),\"\",Planning!CI17)","v":""},{"$f":"IF(ISBLANK(Planning!CJ17),\"\",Planning!CJ17)","v":""},{"$f":"IF(ISBLANK(Planning!CK17),\"\",Planning!CK17)","v":""},{"$f":"IF(ISBLANK(Planning!CL17),\"\",Planning!CL17)","v":""},{"$f":"IF(ISBLANK(Planning!CM17),\"\",Planning!CM17)","v":""},{"$f":"IF(ISBLANK(Planning!CN17),\"\",Planning!CN17)","v":""},{"$f":"IF(ISBLANK(Planning!CO17),\"\",Planning!CO17)","v":""},{"$f":"IF(ISBLANK(Planning!CP17),\"\",Planning!CP17)","v":""},{"$f":"IF(ISBLANK(Planning!CQ17),\"\",Planning!CQ17)","v":""},{"$f":"IF(ISBLANK(Planning!CR17),\"\",Planning!CR17)","v":""},{"$f":"IF(ISBLANK(Planning!CS17),\"\",Planning!CS17)","v":""},{"$f":"IF(ISBLANK(Planning!CT17),\"\",Planning!CT17)","v":""},{"$f":"IF(ISBLANK(Planning!CU17),\"\",Planning!CU17)","v":""},{"$f":"IF(ISBLANK(Planning!CV17),\"\",Planning!CV17)","v":""},{"$f":"IF(ISBLANK(Planning!CW17),\"\",Planning!CW17)","v":""},{"$f":"IF(ISBLANK(Planning!CX17),\"\",Planning!CX17)","v":""},{"$f":"IF(ISBLANK(Planning!CY17),\"\",Planning!CY17)","v":""},{"$f":"IF(ISBLANK(Planning!CZ17),\"\",Planning!CZ17)","v":""},{"$f":"IF(ISBLANK(Planning!DA17),\"\",Planning!DA17)","v":""},{"$f":"IF(ISBLANK(Planning!DB17),\"\",Planning!DB17)","v":""},{"$f":"IF(ISBLANK(Planning!DC17),\"\",Planning!DC17)","v":""},{"$f":"IF(ISBLANK(Planning!DD17),\"\",Planning!DD17)","v":""},{"$f":"IF(ISBLANK(Planning!DE17),\"\",Planning!DE17)","v":""},{"$f":"IF(ISBLANK(Planning!DF17),\"\",Planning!DF17)","v":""},{"$f":"IF(ISBLANK(Planning!DG17),\"\",Planning!DG17)","v":""},{"$f":"IF(ISBLANK(Planning!DH17),\"\",Planning!DH17)","v":""},{"$f":"IF(ISBLANK(Planning!DI17),\"\",Planning!DI17)","v":""},{"$f":"IF(ISBLANK(Planning!DJ17),\"\",Planning!DJ17)","v":""},{"$f":"IF(ISBLANK(Planning!DK17),\"\",Planning!DK17)","v":""},{"$f":"IF(ISBLANK(Planning!DL17),\"\",Planning!DL17)","v":""},{"$f":"IF(ISBLANK(Planning!DM17),\"\",Planning!DM17)","v":""},{"$f":"IF(ISBLANK(Planning!DN17),\"\",Planning!DN17)","v":""},{"$f":"IF(ISBLANK(Planning!DO17),\"\",Planning!DO17)","v":""},{"$f":"IF(ISBLANK(Planning!DP17),\"\",Planning!DP17)","v":""},{"$f":"IF(ISBLANK(Planning!DQ17),\"\",Planning!DQ17)","v":""},{"$f":"IF(ISBLANK(Planning!DR17),\"\",Planning!DR17)","v":""},{"$f":"IF(ISBLANK(Planning!DS17),\"\",Planning!DS17)","v":""},{"$f":"IF(ISBLANK(Planning!DT17),\"\",Planning!DT17)","v":""},{"$f":"IF(ISBLANK(Planning!DU17),\"\",Planning!DU17)","v":""},{"$f":"IF(ISBLANK(Planning!DV17),\"\",Planning!DV17)","v":""},{"$f":"IF(ISBLANK(Planning!DW17),\"\",Planning!DW17)","v":""},{"$f":"IF(ISBLANK(Planning!DX17),\"\",Planning!DX17)","v":""},{"$f":"IF(ISBLANK(Planning!DY17),\"\",Planning!DY17)","v":""},{"$f":"IF(ISBLANK(Planning!DZ17),\"\",Planning!DZ17)","v":""},{"$f":"IF(ISBLANK(Planning!EA17),\"\",Planning!EA17)","v":""},{"$f":"IF(ISBLANK(Planning!EB17),\"\",Planning!EB17)","v":""},{"$f":"IF(ISBLANK(Planning!EC17),\"\",Planning!EC17)","v":""},{"$f":"IF(ISBLANK(Planning!ED17),\"\",Planning!ED17)","v":""},{"$f":"IF(ISBLANK(Planning!EE17),\"\",Planning!EE17)","v":""},{"$f":"IF(ISBLANK(Planning!EF17),\"\",Planning!EF17)","v":""},{"$f":"IF(ISBLANK(Planning!EG17),\"\",Planning!EG17)","v":""},{"$f":"IF(ISBLANK(Planning!EH17),\"\",Planning!EH17)","v":""},{"$f":"IF(ISBLANK(Planning!EI17),\"\",Planning!EI17)","v":""},{"$f":"IF(ISBLANK(Planning!EJ17),\"\",Planning!EJ17)","v":""},{"$f":"IF(ISBLANK(Planning!EK17),\"\",Planning!EK17)","v":""},{"$f":"IF(ISBLANK(Planning!EL17),\"\",Planning!EL17)","v":""},{"$f":"IF(ISBLANK(Planning!EM17),\"\",Planning!EM17)","v":""},{"$f":"IF(ISBLANK(Planning!EN17),\"\",Planning!EN17)","v":""},{"$f":"IF(ISBLANK(Planning!EO17),\"\",Planning!EO17)","v":""},{"$f":"IF(ISBLANK(Planning!EP17),\"\",Planning!EP17)","v":""},{"$f":"IF(ISBLANK(Planning!EQ17),\"\",Planning!EQ17)","v":""},{"$f":"IF(ISBLANK(Planning!ER17),\"\",Planning!ER17)","v":""},{"$f":"IF(ISBLANK(Planning!ES17),\"\",Planning!ES17)","v":""},{"$f":"IF(ISBLANK(Planning!ET17),\"\",Planning!ET17)","v":""},{"$f":"IF(ISBLANK(Planning!EU17),\"\",Planning!EU17)","v":""},{"$f":"IF(ISBLANK(Planning!EV17),\"\",Planning!EV17)","v":""},{"$f":"IF(ISBLANK(Planning!EW17),\"\",Planning!EW17)","v":""},{"$f":"IF(ISBLANK(Planning!EX17),\"\",Planning!EX17)","v":""},{"$f":"IF(ISBLANK(Planning!EY17),\"\",Planning!EY17)","v":""},{"$f":"IF(ISBLANK(Planning!EZ17),\"\",Planning!EZ17)","v":""},{"$f":"IF(ISBLANK(Planning!FA17),\"\",Planning!FA17)","v":""},{"$f":"IF(ISBLANK(Planning!FB17),\"\",Planning!FB17)","v":""},{"$f":"IF(ISBLANK(Planning!FC17),\"\",Planning!FC17)","v":""},{"$f":"IF(ISBLANK(Planning!FD17),\"\",Planning!FD17)","v":""},{"$f":"IF(ISBLANK(Planning!FE17),\"\",Planning!FE17)","v":""},{"$f":"IF(ISBLANK(Planning!FF17),\"\",Planning!FF17)","v":""},{"$f":"IF(ISBLANK(Planning!FG17),\"\",Planning!FG17)","v":""},{"$f":"IF(ISBLANK(Planning!FH17),\"\",Planning!FH17)","v":""},{"$f":"IF(ISBLANK(Planning!FI17),\"\",Planning!FI17)","v":""},{"$f":"IF(ISBLANK(Planning!FJ17),\"\",Planning!FJ17)","v":""},{"$f":"IF(ISBLANK(Planning!FK17),\"\",Planning!FK17)","v":""},{"$f":"IF(ISBLANK(Planning!FL17),\"\",Planning!FL17)","v":""},{"$f":"IF(ISBLANK(Planning!FM17),\"\",Planning!FM17)","v":""},{"$f":"IF(ISBLANK(Planning!FN17),\"\",Planning!FN17)","v":""},{"$f":"IF(ISBLANK(Planning!FO17),\"\",Planning!FO17)","v":""},{"$f":"IF(ISBLANK(Planning!FP17),\"\",Planning!FP17)","v":""},{"$f":"IF(ISBLANK(Planning!FQ17),\"\",Planning!FQ17)","v":""},{"$f":"IF(ISBLANK(Planning!FR17),\"\",Planning!FR17)","v":""},{"$f":"IF(ISBLANK(Planning!FS17),\"\",Planning!FS17)","v":""},{"$f":"IF(ISBLANK(Planning!FT17),\"\",Planning!FT17)","v":""},{"$f":"IF(ISBLANK(Planning!FU17),\"\",Planning!FU17)","v":""},{"$f":"IF(ISBLANK(Planning!FV17),\"\",Planning!FV17)","v":""},{"$f":"IF(ISBLANK(Planning!FW17),\"\",Planning!FW17)","v":""},{"$f":"IF(ISBLANK(Planning!FX17),\"\",Planning!FX17)","v":""},{"$f":"IF(ISBLANK(Planning!FY17),\"\",Planning!FY17)","v":""},{"$f":"IF(ISBLANK(Planning!FZ17),\"\",Planning!FZ17)","v":""}]
["Cumulative Demonstrated Reliability Value"]
["Projected Reliability for next quarter"]
[]
["Calculated Values","FY13Q1","FY13Q2","FY13Q3","FY13Q4","FY14Q1","FY14Q2"]
["Cumulative Failures",{"$f":"IF(AND(ISNUMBER(B9),ISNUMBER(B11)), IF(B11<=1, B9*(1-B11),B9/B11),\"\")","v":""},{"$f":"IF(AND(ISNUMBER(C9),ISNUMBER(C11)), IF(C11<=1, C9*(1-C11),C9/C11),\"\")","v":""},"","","","","","","","","","","","","","","","","","","","","","","","","","","","","","","","","","","","","","","","","","","","","","","","","","","","","","","","","","","","","","","",{"$f":"IF(AND(ISNUMBER(BO9),ISNUMBER(BO11)), IF(BO11<=1, BO9*(1-BO11),BO9/BO11),\"\")","v":""},"","","","","","","","","","","","","","","","","","","","","","","","","","","","","","","","","","","","","","","","","","","","","","","","","","","","","","","","","","","","","","","",{"$f":"IF(AND(ISNUMBER(EA9),ISNUMBER(EA11)), IF(EA11<=1, EA9*(1-EA11),EA9/EA11),\"\")","v":""},"","","","","","","","","","","","","","","","","","","","","","","","","","","","","","","","","","","","","","","","","","","","","","","","","","",""]
["Quarterly Failures",{"$f":"B15","v":""},{"$f":"IF(AND(ISNUMBER(C15),ISNUMBER(B15)), C15-B15,\"\")","v":""},"","","","","","","","","","","","","","","","","","","","","","","","","","","","","","","",{"$f":"IF(AND(ISNUMBER(AI15),ISNUMBER(AH15)), AI15-AH15,\"\")","v":""},"","","","","","","","","","","","","","","","","","","","","","","","","","","","","","","",{"$f":"IF(AND(ISNUMBER(BO15),ISNUMBER(BN15)), BO15-BN15,\"\")","v":""},"","","","","","","","","","","","","","","","","","","","","","","","","","","","","","","",{"$f":"IF(AND(ISNUMBER(CU15),ISNUMBER(CT15)), CU15-CT15,\"\")","v":""},"","","","","","","","","","","","","","","","","","","","","","","","","","","","","","","",{"$f":"IF(AND(ISNUMBER(EA15),ISNUMBER(DZ15)), EA15-DZ15,\"\")","v":""},"","","","","","","","","","","","","","","","","","","","","","","","","","","","","","","",{"$f":"IF(AND(ISNUMBER(FG15),ISNUMBER(FF15)), FG15-FF15,\"\")","v":""},"","","","","","","","","","","","","","","","","","",""]
["Quarterly Test Length",{"$f":"IF(ISNUMBER(B9),B9,\"\")","v":""},{"$f":"IF(AND(ISNUMBER(C9),ISNUMBER(B9)), C9-B9,\"\")","v":""},{"$f":"IF(AND(ISNUMBER(D9),ISNUMBER(C9)), D9-C9,\"\")","v":""},"","","","","","","","","","","","","","","","","","","","","","","","","","","","","","","","","","","","","","","","","","","","","","","","","","","","","","","","","","","","","","","",{"$f":"IF(AND(ISNUMBER(BP9),ISNUMBER(BO9)), BP9-BO9,\"\")","v":""},"","","","","","","","","","","","","","","","","","","","","","","","","","","","","","","","","","","","","","","","","","","","","","","","","","","","","","","","","","","","","","","",{"$f":"IF(AND(ISNUMBER(EB9),ISNUMBER(EA9)), EB9-EA9,\"\")","v":""},"","","","","","","","","","","","","","","","","","","","","","","","","","","","","","","","","","","","","","","","","","","","","","","","","",""]
["Quarterly Demonstrated Reliabilty",{"$f":"IF(AND(ISNUMBER(B16),ISNUMBER(B17)), IF(B11<=1, IF(B16=0, 1, (B17-B16)/B17), IF(B16=0, \"No Failures Observed\", B17/B16)),\"\")","v":""},{"$f":"IF(AND(ISNUMBER(C16),ISNUMBER(C17)), IF(C11<=1, IF(C16=0, 1, (C17-C16)/C17), IF(C16=0, \"No Failures Observed\", C17/C16)),\"\")","v":""},"","","","","","","","","","","","","","","","","","","","","","","","","","","","","","","","","","","","","","","","","","","","","","","","","","","","","","","","","","","","","","","",{"$f":"IF(AND(ISNUMBER(BO16),ISNUMBER(BO17)), IF(BO11<=1, IF(BO16=0, 1, (BO17-BO16)/BO17), IF(BO16=0, \"No Failures Observed\", BO17/BO16)),\"\")","v":""},"","","","","","","","","","","","","","","","","","","","","","","","","","","","","","","","","","","","","","","","","","","","","","","","","","","","","","","","","","","","","","","",{"$f":"IF(AND(ISNUMBER(EA16),ISNUMBER(EA17)), IF(EA11<=1, IF(EA16=0, 1, (EA17-EA16)/EA17), IF(EA16=0, \"No Failures Observed\", EA17/EA16)),\"\")","v":""},"","","","","","","","","","","","","","","","","","","","","","","","","","","","","","","","","","","","","","","","","","","","","","","","","","",""]
["Difference between planned and demonstrated reliability",{"$f":"IF(AND(ISNUMBER(B10),ISNUMBER(B11)),((B11-B10)/B10),\"\")","v":""},{"$f":"IF(AND(ISNUMBER(C10),ISNUMBER(C11)),((C11-C10)/C10),\"\")","v":""},"","","","","","","","","","","","","","","","","","","","","","","","","","","","","","","","","","","","","","","","","","","","","","","","","","","","","","","","","","","","","","","",{"$f":"IF(AND(ISNUMBER(BO10),ISNUMBER(BO11)),((BO11-BO10)/BO10),\"\")","v":""},"","","","","","","","","","","","","","","","","","","","","","","","","","","","","","","","","","","","","","","","","","","","","","","","","","","","","","","","","","","","","","","",{"$f":"IF(AND(ISNUMBER(EA10),ISNUMBER(EA11)),((EA11-EA10)/EA10),\"\")","v":""},"","","","","","","","","","","","","","","","","","","","","","","","","","","","","","","","","","","","","","","","","","","","","","","","","","",""]
[]
["Deviations from planned values"]
[]
["Directions: If there are deviations between the planned cumulative test length and actual cumulative test length or between planned cumulative reliability and cumulative demonstrated reliability, you may explain the difference below. This is not required for all deviations. Please use your discretion in determining which deviations should be explained further."]
["Planned Test Length Deviations",null,null,"Planned Reliability Deviations"]
[]
["Fiscal Year Quarter","Rationale",null,"Fiscal Year Quarter",null,"Rationale"]

{"sheet":"Optional Reporting","index":5,"n_rows":17,"n_cols":182,"rows_kept":17,"cut":false,"hidden":false,"merged":[[2,0,2,6],[3,0,3,3],[4,0,4,3],[0,0,0,2],[6,1,6,4]]}
["Optional Reporting Section"]
[]
["Introduction: If the current test phase better reflects the reliability of the program, you may use this tab to report those values. However, that is in addition to the three required values specified in the \"Reporting\" tab."]
["Directions: Please fill out \"Current Test Phase - Actual Cumulative Test Length\" and \" Current Test Phase - Cumulative Demonstrated Reliability\". Keep in mind that these values are CUMULATIVE and not referring to the test time or reliability for the current quarter. Those values will be calculated automatically below. "]
["IMPORTANT: This is an optional reporting requirement so not all quarters have to be filled out. If you do choose to enter the current test phase data, you are required to continue entering this data until at least the end of the current test phase."]
[]
["Description of Current Test Phase:"]
[]
["Fiscal Year Quarter","FY13Q1","FY13Q2","FY13Q3","FY13Q4","FY14Q1","FY14Q2"]
["Current Test Phase - Actual Cumulative Test Length"]
["Current Test Phase - Cumulative Demonstrated Reliability Value"]
[]
["Calculated Values","FY13Q1","FY13Q2","FY13Q3","FY13Q4","FY14Q1","FY14Q2"]
["Current Test Phase - Cumulative Failures",{"$f":"IF(AND(ISNUMBER(B10),ISNUMBER(B11)), IF(B11<=1, B10*(1-B11),B10/B11),\"\")","v":""},{"$f":"IF(AND(ISNUMBER(C10),ISNUMBER(C11)), IF(C11<=1, C10*(1-C11),C10/C11),\"\")","v":""},"","","","","","","","","","","","","","","","","","","","","","","","","","","","","","","","","","","","","","","","","","","","","","","","","","","","","","","","","","","","","","","",{"$f":"IF(AND(ISNUMBER(BO10),ISNUMBER(BO11)), IF(BO11<=1, BO10*(1-BO11),BO10/BO11),\"\")","v":""},"","","","","","","","","","","","","","","","","","","","","","","","","","","","","","","","","","","","","","","","","","","","","","","","","","","","","","","","","","","","","","","",{"$f":"IF(AND(ISNUMBER(EA10),ISNUMBER(EA11)), IF(EA11<=1, EA10*(1-EA11),EA10/EA11),\"\")","v":""},"","","","","","","","","","","","","","","","","","","","","","","","","","","","","","","","","","","","","","","","","","","","","","","","","","",""]
["Current Test Phase - Quarterly Failures",{"$f":"IF(ISBLANK(B14),\"\",B14)","v":""},{"$f":"IF(OR(ISBLANK(B14),B14=\"\"),IF(ISBLANK(C14),\"\",C14),IF(AND(ISNUMBER(C14),ISNUMBER(B14)), C14-B14,\"\"))","v":""},{"$f":"IF(OR(ISBLANK(C14),C14=\"\"),IF(ISBLANK(D14),\"\",D14),IF(AND(ISNUMBER(D14),ISNUMBER(C14)), D14-C14,\"\"))","v":""},"","","","","","","","","","","","","","","","","","","","","","","","","","","","","","","","","","","","","","","","","","","","","","","","","","","","","","","","","","","","","","","",{"$f":"IF(OR(ISBLANK(BO14),BO14=\"\"),IF(ISBLANK(BP14),\"\",BP14),IF(AND(ISNUMBER(BP14),ISNUMBER(BO14)), BP14-BO14,\"\"))","v":""},"","","","","","","","","","","","","","","","","","","","","","","","","","","","","","","","","","","","","","","","","","","","","","","","","","","","","","","","","","","","","","","",{"$f":"IF(OR(ISBLANK(EA14),EA14=\"\"),IF(ISBLANK(EB14),\"\",EB14),IF(AND(ISNUMBER(EB14),ISNUMBER(EA14)), EB14-EA14,\"\"))","v":""},"","","","","","","","","","","","","","","","","","","","","","","","","","","","","","","","","","","","","","","","","","","","","","","","","",""]
["Current Test Phase - Quarterly Test Length",{"$f":"IF(ISNUMBER(B10),B10,\"\")","v":""},{"$f":"IF(ISBLANK(B10),IF(ISBLANK(C10),\"\",C10),IF(AND(ISNUMBER(C10),ISNUMBER(B10)), C10-B10,\"\"))","v":""},{"$f":"IF(ISBLANK(C10),IF(ISBLANK(D10),\"\",D10),IF(AND(ISNUMBER(D10),ISNUMBER(C10)), D10-C10,\"\"))","v":""},"","","","","","","","","","","","","","","","","","","","","","","","","","","","","","","","","","","","","","","","","","","","","","","","","","","","","","","","","","","","","","","",{"$f":"IF(ISBLANK(BO10),IF(ISBLANK(BP10),\"\",BP10),IF(AND(ISNUMBER(BP10),ISNUMBER(BO10)), BP10-BO10,\"\"))","v":""},"","","","","","","","","","","","","","","","","","","","","","","","","","","","","","","","","","","","","","","","","","","","","","","","","","","","","","","","","","","","","","","",{"$f":"IF(ISBLANK(EA10),IF(ISBLANK(EB10),\"\",EB10),IF(AND(ISNUMBER(EB10),ISNUMBER(EA10)), EB10-EA10,\"\"))","v":""},"","","","","","","","","","","","","","","","","","","","","","","","","","","","","","","","","","","","","","","","","","","","","","","","","",""]
["Current Test Phase - Quarterly Demonstrated Reliabilty",{"$f":"IF(AND(ISNUMBER(B15),ISNUMBER(B16)), IF(B11<=1, IF(B15=0, 1, (B16-B15)/B16), IF(B15=0, \"No Failures Observed\", B16/B15)),\"\")","v":""},{"$f":"IF(AND(ISNUMBER(C15),ISNUMBER(C16)), IF(C11<=1, IF(C15=0, 1, (C16-C15)/C16), IF(C15=0, \"No Failures Observed\", C16/C15)),\"\")","v":""},"","","","","","","","","","","","","","","","","","","","","","","","","","","","","","","","","","","","","","","","","","","","","","","","","","","","","","","","","","","","","","","",{"$f":"IF(AND(ISNUMBER(BO15),ISNUMBER(BO16)), IF(BO11<=1, IF(BO15=0, 1, (BO16-BO15)/BO16), IF(BO15=0, \"No Failures Observed\", BO16/BO15)),\"\")","v":""},"","","","","","","","","","","","","","","","","","","","","","","","","","","","","","","","","","","","","","","","","","","","","","","","","","","","","","","","","","","","","","","",{"$f":"IF(AND(ISNUMBER(EA15),ISNUMBER(EA16)), IF(EA11<=1, IF(EA15=0, 1, (EA16-EA15)/EA16), IF(EA15=0, \"No Failures Observed\", EA16/EA15)),\"\")","v":""},"","","","","","","","","","","","","","","","","","","","","","","","","","","","","","","","","","","","","","","","","","","","","","","","","","",""]

{"sheet":"Input","index":6,"n_rows":7,"n_cols":8,"rows_kept":7,"cut":false,"hidden":true,"merged":[]}
["Army",null,"MTBF",null,null,null,null,"Hours"]
["Navy",null,"MTBOMF",null,null,null,null,"Flight Hours"]
["Air Force",null,"MTBSA",null,null,null,null,"Cycles"]
["Other",null,"Percent Reliability",null,null,null,null,"Miles"]
[null,null,"Probability",null,null,null,null,"Rounds"]
[null,null,"Other",null,null,null,null,"Shots"]
[null,null,null,null,null,null,null,"Other"]

{"sheet":"Plots","index":7,"n_rows":0,"n_cols":0,"rows_kept":0,"cut":false,"hidden":false,"merged":[]}

{"sheet":"Consolidation","index":8,"n_rows":199,"n_cols":14,"rows_kept":199,"cut":false,"hidden":true,"merged":[]}
["Fiscal Year Quarter","FY2","Planned Time 2","Actual Time 2","Reliability Threshold Value","Planned Initial Reliability:","Planned Cumulative Test Length","Planned Cumulative Reliability","Actual Cumulative Test Length","Cumulative Demonstrated Reliability Value","Quarterly Demonstrated Reliabilty","Current Test Phase - Cumulative Demonstrated Reliability Value","Current Test Phase - Quarterly Demonstrated Reliabilty","Projected Reliability for next quarter"]
["Planned","FY13Q1",{"$f":"IF(ISBLANK(INDEX(Planning!$B$16:$FZ$16,ROW(A1))),\"\",INDEX(Planning!$B$16:$FZ$16,ROW(A1)))","v":""},{"$f":"IF(ISBLANK(INDEX(Reporting!$B$9:$FZ$9,ROW(A1))),\"\",INDEX(Reporting!$B$9:$FZ$9,ROW(A1)))","v":""},{"$f":"IF(OR(IF(ISBLANK(A2),TRUE,FALSE),ISBLANK(Planning!$B$11)),\"\",Planning!$B$11)","v":""},{"$f":"IF(ISBLANK(Planning!B13),\"\",Planning!B13)","v":""},null,{"$f":"F2","v":""},null,{"$f":"F2","v":""},{"$f":"F2","v":""}]
["FY13Q1","FY13Q2",{"$f":"IF(ISBLANK(INDEX(Planning!$B$16:$FZ$16,ROW(A2))),\"\",INDEX(Planning!$B$16:$FZ$16,ROW(A2)))","v":""},{"$f":"IF(ISBLANK(INDEX(Reporting!$B$9:$FZ$9,ROW(A2))),\"\",INDEX(Reporting!$B$9:$FZ$9,ROW(A2)))","v":""},{"$f":"IF(OR(IF(ISBLANK(A3),TRUE,FALSE),ISBLANK(Planning!$B$11)),\"\",Planning!$B$11)","v":""},null,{"$f":"IF(ISBLANK(INDEX(Planning!$B$16:$FZ$16,ROW(A1))),\"\",INDEX(Planning!$B$16:$FZ$16,ROW(A1)))","v":""},{"$f":"IF(ISBLANK(INDEX(Planning!$B$17:$FZ$17,ROW(A1))),\"\",INDEX(Planning!$B$17:$FZ$17,ROW(A1)))","v":""},{"$f":"IF(ISBLANK(INDEX(Reporting!$B$9:$FZ$9,ROW(A1))),\"\",INDEX(Reporting!$B$9:$FZ$9,ROW(A1)))","v":""},{"$f":"IF(ISBLANK(INDEX(Reporting!$B$11:$FZ$11,ROW(A1))),\"\",INDEX(Reporting!$B$11:$FZ$11,ROW(A1)))","v":""},{"$f":"IF(ISBLANK(INDEX(Reporting!$B$18:$FZ$18,ROW(A1))),\"\",IF(INDEX(Reporting!$B$18:$FZ$18,ROW(A1))=\"No Failures Observed\",NA(),INDEX(Reporting!$B$18:$FZ$18,ROW(A1))))","v":""},{"$f":"IF(ISBLANK(INDEX('Optional Reporting'!$B$11:$FZ$11,ROW(A1))),NA(),INDEX('Optional Reporting'!$B$11:$FZ$11,ROW(A1)))","v":{"$error":"#N/A"}},{"$f":"IF((INDEX('Optional Reporting'!$B$17:$FZ$17,ROW(A1)))=\"\",NA(),INDEX('Optional Reporting'!$B$17:$FZ$17,ROW(A1)))","v":{"$error":"#N/A"}},{"$f":"NA()","v":{"$error":"#N/A"}}]
["FY13Q2","FY13Q3",{"$f":"IF(ISBLANK(INDEX(Planning!$B$16:$FZ$16,ROW(A3))),\"\",INDEX(Planning!$B$16:$FZ$16,ROW(A3)))","v":""},{"$f":"IF(ISBLANK(INDEX(Reporting!$B$9:$FZ$9,ROW(A3))),\"\",INDEX(Reporting!$B$9:$FZ$9,ROW(A3)))","v":""},{"$f":"IF(OR(IF(ISBLANK(A4),TRUE,FALSE),ISBLANK(Planning!$B$11)),\"\",Planning!$B$11)","v":""},null,{"$f":"IF(ISBLANK(INDEX(Planning!$B$16:$FZ$16,ROW(A2))),\"\",INDEX(Planning!$B$16:$FZ$16,ROW(A2)))","v":""},{"$f":"IF(ISBLANK(INDEX(Planning!$B$17:$FZ$17,ROW(A2))),\"\",INDEX(Planning!$B$17:$FZ$17,ROW(A2)))","v":""},{"$f":"IF(ISBLANK(INDEX(Reporting!$B$9:$FZ$9,ROW(A2))),\"\",INDEX(Reporting!$B$9:$FZ$9,ROW(A2)))","v":""},{"$f":"IF(ISBLANK(INDEX(Reporting!$B$11:$FZ$11,ROW(A2))),\"\",INDEX(Reporting!$B$11:$FZ$11,ROW(A2)))","v":""},{"$f":"IF(ISBLANK(INDEX(Reporting!$B$18:$FZ$18,ROW(A2))),\"\",IF(INDEX(Reporting!$B$18:$FZ$18,ROW(A2))=\"No Failures Observed\",NA(),INDEX(Reporting!$B$18:$FZ$18,ROW(A2))))","v":""},{"$f":"IF(ISBLANK(INDEX('Optional Reporting'!$B$11:$FZ$11,ROW(A2))),NA(),INDEX('Optional Reporting'!$B$11:$FZ$11,ROW(A2)))","v":{"$error":"#N/A"}},{"$f":"IF((INDEX('Optional Reporting'!$B$17:$FZ$17,ROW(A2)))=\"\",NA(),INDEX('Optional Reporting'!$B$17:$FZ$17,ROW(A2)))","v":{"$error":"#N/A"}},{"$f":"IF(ISBLANK(INDEX(Reporting!$B$12:$FZ$12,ROW(A1))),\"\",INDEX(Reporting!$B$12:$FZ$12,ROW(A1)))","v":""}]
["FY13Q3","FY13Q4",{"$f":"IF(ISBLANK(INDEX(Planning!$B$16:$FZ$16,ROW(A4))),\"\",INDEX(Planning!$B$16:$FZ$16,ROW(A4)))","v":""},{"$f":"IF(ISBLANK(INDEX(Reporting!$B$9:$FZ$9,ROW(A4))),\"\",INDEX(Reporting!$B$9:$FZ$9,ROW(A4)))","v":""},{"$f":"IF(OR(IF(ISBLANK(A5),TRUE,FALSE),ISBLANK(Planning!$B$11)),\"\",Planning!$B$11)","v":""},null,{"$f":"IF(ISBLANK(INDEX(Planning!$B$16:$FZ$16,ROW(A3))),\"\",INDEX(Planning!$B$16:$FZ$16,ROW(A3)))","v":""},{"$f":"IF(ISBLANK(INDEX(Planning!$B$17:$FZ$17,ROW(A3))),\"\",INDEX(Planning!$B$17:$FZ$17,ROW(A3)))","v":""},{"$f":"IF(ISBLANK(INDEX(Reporting!$B$9:$FZ$9,ROW(A3))),\"\",INDEX(Reporting!$B$9:$FZ$9,ROW(A3)))","v":""},{"$f":"IF(ISBLANK(INDEX(Reporting!$B$11:$FZ$11,ROW(A3))),\"\",INDEX(Reporting!$B$11:$FZ$11,ROW(A3)))","v":""},{"$f":"IF(ISBLANK(INDEX(Reporting!$B$18:$FZ$18,ROW(A3))),\"\",IF(INDEX(Reporting!$B$18:$FZ$18,ROW(A3))=\"No Failures Observed\",NA(),INDEX(Reporting!$B$18:$FZ$18,ROW(A3))))","v":""},{"$f":"IF(ISBLANK(INDEX('Optional Reporting'!$B$11:$FZ$11,ROW(A3))),NA(),INDEX('Optional Reporting'!$B$11:$FZ$11,ROW(A3)))","v":{"$error":"#N/A"}},{"$f":"IF((INDEX('Optional Reporting'!$B$17:$FZ$17,ROW(A3)))=\"\",NA(),INDEX('Optional Reporting'!$B$17:$FZ$17,ROW(A3)))","v":{"$error":"#N/A"}},{"$f":"IF(ISBLANK(INDEX(Reporting!$B$12:$FZ$12,ROW(A2))),\"\",INDEX(Reporting!$B$12:$FZ$12,ROW(A2)))","v":""}]
["FY13Q4","FY14Q1",{"$f":"IF(ISBLANK(INDEX(Planning!$B$16:$FZ$16,ROW(A5))),\"\",INDEX(Planning!$B$16:$FZ$16,ROW(A5)))","v":""},{"$f":"IF(ISBLANK(INDEX(Reporting!$B$9:$FZ$9,ROW(A5))),\"\",INDEX(Reporting!$B$9:$FZ$9,ROW(A5)))","v":""},{"$f":"IF(OR(IF(ISBLANK(A6),TRUE,FALSE),ISBLANK(Planning!$B$11)),\"\",Planning!$B$11)","v":""},null,{"$f":"IF(ISBLANK(INDEX(Planning!$B$16:$FZ$16,ROW(A4))),\"\",INDEX(Planning!$B$16:$FZ$16,ROW(A4)))","v":""},{"$f":"IF(ISBLANK(INDEX(Planning!$B$17:$FZ$17,ROW(A4))),\"\",INDEX(Planning!$B$17:$FZ$17,ROW(A4)))","v":""},{"$f":"IF(ISBLANK(INDEX(Reporting!$B$9:$FZ$9,ROW(A4))),\"\",INDEX(Reporting!$B$9:$FZ$9,ROW(A4)))","v":""},{"$f":"IF(ISBLANK(INDEX(Reporting!$B$11:$FZ$11,ROW(A4))),\"\",INDEX(Reporting!$B$11:$FZ$11,ROW(A4)))","v":""},{"$f":"IF(ISBLANK(INDEX(Reporting!$B$18:$FZ$18,ROW(A4))),\"\",IF(INDEX(Reporting!$B$18:$FZ$18,ROW(A4))=\"No Failures Observed\",NA(),INDEX(Reporting!$B$18:$FZ$18,ROW(A4))))","v":""},{"$f":"IF(ISBLANK(INDEX('Optional Reporting'!$B$11:$FZ$11,ROW(A4))),NA(),INDEX('Optional Reporting'!$B$11:$FZ$11,ROW(A4)))","v":{"$error":"#N/A"}},{"$f":"IF((INDEX('Optional Reporting'!$B$17:$FZ$17,ROW(A4)))=\"\",NA(),INDEX('Optional Reporting'!$B$17:$FZ$17,ROW(A4)))","v":{"$error":"#N/A"}},{"$f":"IF(ISBLANK(INDEX(Reporting!$B$12:$FZ$12,ROW(A3))),\"\",INDEX(Reporting!$B$12:$FZ$12,ROW(A3)))","v":""}]
["FY14Q1","FY14Q2",{"$f":"IF(ISBLANK(INDEX(Planning!$B$16:$FZ$16,ROW(A6))),\"\",INDEX(Planning!$B$16:$FZ$16,ROW(A6)))","v":""},{"$f":"IF(ISBLANK(INDEX(Reporting!$B$9:$FZ$9,ROW(A6))),\"\",INDEX(Reporting!$B$9:$FZ$9,ROW(A6)))","v":""},{"$f":"IF(OR(IF(ISBLANK(A7),TRUE,FALSE),ISBLANK(Planning!$B$11)),\"\",Planning!$B$11)","v":""},null,{"$f":"IF(ISBLANK(INDEX(Planning!$B$16:$FZ$16,ROW(A5))),\"\",INDEX(Planning!$B$16:$FZ$16,ROW(A5)))","v":""},{"$f":"IF(ISBLANK(INDEX(Planning!$B$17:$FZ$17,ROW(A5))),\"\",INDEX(Planning!$B$17:$FZ$17,ROW(A5)))","v":""},{"$f":"IF(ISBLANK(INDEX(Reporting!$B$9:$FZ$9,ROW(A5))),\"\",INDEX(Reporting!$B$9:$FZ$9,ROW(A5)))","v":""},{"$f":"IF(ISBLANK(INDEX(Reporting!$B$11:$FZ$11,ROW(A5))),\"\",INDEX(Reporting!$B$11:$FZ$11,ROW(A5)))","v":""},{"$f":"IF(ISBLANK(INDEX(Reporting!$B$18:$FZ$18,ROW(A5))),\"\",IF(INDEX(Reporting!$B$18:$FZ$18,ROW(A5))=\"No Failures Observed\",NA(),INDEX(Reporting!$B$18:$FZ$18,ROW(A5))))","v":""},{"$f":"IF(ISBLANK(INDEX('Optional Reporting'!$B$11:$FZ$11,ROW(A5))),NA(),INDEX('Optional Reporting'!$B$11:$FZ$11,ROW(A5)))","v":{"$error":"#N/A"}},{"$f":"IF((INDEX('Optional Reporting'!$B$17:$FZ$17,ROW(A5)))=\"\",NA(),INDEX('Optional Reporting'!$B$17:$FZ$17,ROW(A5)))","v":{"$error":"#N/A"}},{"$f":"IF(ISBLANK(INDEX(Reporting!$B$12:$FZ$12,ROW(A4))),\"\",INDEX(Reporting!$B$12:$FZ$12,ROW(A4)))","v":""}]
["FY14Q2",null,{"$f":"IF(ISBLANK(INDEX(Planning!$B$16:$FZ$16,ROW(A7))),\"\",INDEX(Planning!$B$16:$FZ$16,ROW(A7)))","v":""},{"$f":"IF(ISBLANK(INDEX(Reporting!$B$9:$FZ$9,ROW(A7))),\"\",INDEX(Reporting!$B$9:$FZ$9,ROW(A7)))","v":""},{"$f":"IF(OR(IF(ISBLANK(A8),TRUE,FALSE),ISBLANK(Planning!$B$11)),\"\",Planning!$B$11)","v":""},null,{"$f":"IF(ISBLANK(INDEX(Planning!$B$16:$FZ$16,ROW(A6))),\"\",INDEX(Planning!$B$16:$FZ$16,ROW(A6)))","v":""},{"$f":"IF(ISBLANK(INDEX(Planning!$B$17:$FZ$17,ROW(A6))),\"\",INDEX(Planning!$B$17:$FZ$17,ROW(A6)))","v":""},{"$f":"IF(ISBLANK(INDEX(Reporting!$B$9:$FZ$9,ROW(A6))),\"\",INDEX(Reporting!$B$9:$FZ$9,ROW(A6)))","v":""},{"$f":"IF(ISBLANK(INDEX(Reporting!$B$11:$FZ$11,ROW(A6))),\"\",INDEX(Reporting!$B$11:$FZ$11,ROW(A6)))","v":""},{"$f":"IF(ISBLANK(INDEX(Reporting!$B$18:$FZ$18,ROW(A6))),\"\",IF(INDEX(Reporting!$B$18:$FZ$18,ROW(A6))=\"No Failures Observed\",NA(),INDEX(Reporting!$B$18:$FZ$18,ROW(A6))))","v":""},{"$f":"IF(ISBLANK(INDEX('Optional Reporting'!$B$11:$FZ$11,ROW(A6))),NA(),INDEX('Optional Reporting'!$B$11:$FZ$11,ROW(A6)))","v":{"$error":"#N/A"}},{"$f":"IF((INDEX('Optional Reporting'!$B$17:$FZ$17,ROW(A6)))=\"\",NA(),INDEX('Optional Reporting'!$B$17:$FZ$17,ROW(A6)))","v":{"$error":"#N/A"}},{"$f":"IF(ISBLANK(INDEX(Reporting!$B$12:$FZ$12,ROW(A5))),\"\",INDEX(Reporting!$B$12:$FZ$12,ROW(A5)))","v":""}]
[null,null,{"$f":"IF(ISBLANK(INDEX(Planning!$B$16:$FZ$16,ROW(A8))),\"\",INDEX(Planning!$B$16:$FZ$16,ROW(A8)))","v":""},{"$f":"IF(ISBLANK(INDEX(Reporting!$B$9:$FZ$9,ROW(A8))),\"\",INDEX(Reporting!$B$9:$FZ$9,ROW(A8)))","v":""},{"$f":"IF(OR(IF(ISBLANK(A9),TRUE,FALSE),ISBLANK(Planning!$B$11)),\"\",Planning!$B$11)","v":""},null,{"$f":"IF(ISBLANK(INDEX(Planning!$B$16:$FZ$16,ROW(A7))),\"\",INDEX(Planning!$B$16:$FZ$16,ROW(A7)))","v":""},{"$f":"IF(ISBLANK(INDEX(Planning!$B$17:$FZ$17,ROW(A7))),\"\",INDEX(Planning!$B$17:$FZ$17,ROW(A7)))","v":""},{"$f":"IF(ISBLANK(INDEX(Reporting!$B$9:$FZ$9,ROW(A7))),\"\",INDEX(Reporting!$B$9:$FZ$9,ROW(A7)))","v":""},{"$f":"IF(ISBLANK(INDEX(Reporting!$B$11:$FZ$11,ROW(A7))),\"\",INDEX(Reporting!$B$11:$FZ$11,ROW(A7)))","v":""},{"$f":"IF(ISBLANK(INDEX(Reporting!$B$18:$FZ$18,ROW(A7))),\"\",IF(INDEX(Reporting!$B$18:$FZ$18,ROW(A7))=\"No Failures Observed\",NA(),INDEX(Reporting!$B$18:$FZ$18,ROW(A7))))","v":""},{"$f":"IF(ISBLANK(INDEX('Optional Reporting'!$B$11:$FZ$11,ROW(A7))),NA(),INDEX('Optional Reporting'!$B$11:$FZ$11,ROW(A7)))","v":{"$error":"#N/A"}},{"$f":"IF((INDEX('Optional Reporting'!$B$17:$FZ$17,ROW(A7)))=\"\",NA(),INDEX('Optional Reporting'!$B$17:$FZ$17,ROW(A7)))","v":{"$error":"#N/A"}},{"$f":"IF(ISBLANK(INDEX(Reporting!$B$12:$FZ$12,ROW(A6))),\"\",INDEX(Reporting!$B$12:$FZ$12,ROW(A6)))","v":""}]
[null,null,{"$f":"IF(ISBLANK(INDEX(Planning!$B$16:$FZ$16,ROW(A9))),\"\",INDEX(Planning!$B$16:$FZ$16,ROW(A9)))","v":""},{"$f":"IF(ISBLANK(INDEX(Reporting!$B$9:$FZ$9,ROW(A9))),\"\",INDEX(Reporting!$B$9:$FZ$9,ROW(A9)))","v":""},{"$f":"IF(OR(IF(ISBLANK(A10),TRUE,FALSE),ISBLANK(Planning!$B$11)),\"\",Planning!$B$11)","v":""},null,{"$f":"IF(ISBLANK(INDEX(Planning!$B$16:$FZ$16,ROW(A8))),\"\",INDEX(Planning!$B$16:$FZ$16,ROW(A8)))","v":""},{"$f":"IF(ISBLANK(INDEX(Planning!$B$17:$FZ$17,ROW(A8))),\"\",INDEX(Planning!$B$17:$FZ$17,ROW(A8)))","v":""},{"$f":"IF(ISBLANK(INDEX(Reporting!$B$9:$FZ$9,ROW(A8))),\"\",INDEX(Reporting!$B$9:$FZ$9,ROW(A8)))","v":""},{"$f":"IF(ISBLANK(INDEX(Reporting!$B$11:$FZ$11,ROW(A8))),\"\",INDEX(Reporting!$B$11:$FZ$11,ROW(A8)))","v":""},{"$f":"IF(ISBLANK(INDEX(Reporting!$B$18:$FZ$18,ROW(A8))),\"\",IF(INDEX(Reporting!$B$18:$FZ$18,ROW(A8))=\"No Failures Observed\",NA(),INDEX(Reporting!$B$18:$FZ$18,ROW(A8))))","v":""},{"$f":"IF(ISBLANK(INDEX('Optional Reporting'!$B$11:$FZ$11,ROW(A8))),NA(),INDEX('Optional Reporting'!$B$11:$FZ$11,ROW(A8)))","v":{"$error":"#N/A"}},{"$f":"IF((INDEX('Optional Reporting'!$B$17:$FZ$17,ROW(A8)))=\"\",NA(),INDEX('Optional Reporting'!$B$17:$FZ$17,ROW(A8)))","v":{"$error":"#N/A"}},{"$f":"IF(ISBLANK(INDEX(Reporting!$B$12:$FZ$12,ROW(A7))),\"\",INDEX(Reporting!$B$12:$FZ$12,ROW(A7)))","v":""}]
[null,null,{"$f":"IF(ISBLANK(INDEX(Planning!$B$16:$FZ$16,ROW(A10))),\"\",INDEX(Planning!$B$16:$FZ$16,ROW(A10)))","v":""},{"$f":"IF(ISBLANK(INDEX(Reporting!$B$9:$FZ$9,ROW(A10))),\"\",INDEX(Reporting!$B$9:$FZ$9,ROW(A10)))","v":""},{"$f":"IF(OR(IF(ISBLANK(A11),TRUE,FALSE),ISBLANK(Planning!$B$11)),\"\",Planning!$B$11)","v":""},null,{"$f":"IF(ISBLANK(INDEX(Planning!$B$16:$FZ$16,ROW(A9))),\"\",INDEX(Planning!$B$16:$FZ$16,ROW(A9)))","v":""},{"$f":"IF(ISBLANK(INDEX(Planning!$B$17:$FZ$17,ROW(A9))),\"\",INDEX(Planning!$B$17:$FZ$17,ROW(A9)))","v":""},{"$f":"IF(ISBLANK(INDEX(Reporting!$B$9:$FZ$9,ROW(A9))),\"\",INDEX(Reporting!$B$9:$FZ$9,ROW(A9)))","v":""},{"$f":"IF(ISBLANK(INDEX(Reporting!$B$11:$FZ$11,ROW(A9))),\"\",INDEX(Reporting!$B$11:$FZ$11,ROW(A9)))","v":""},{"$f":"IF(ISBLANK(INDEX(Reporting!$B$18:$FZ$18,ROW(A9))),\"\",IF(INDEX(Reporting!$B$18:$FZ$18,ROW(A9))=\"No Failures Observed\",NA(),INDEX(Reporting!$B$18:$FZ$18,ROW(A9))))","v":""},{"$f":"IF(ISBLANK(INDEX('Optional Reporting'!$B$11:$FZ$11,ROW(A9))),NA(),INDEX('Optional Reporting'!$B$11:$FZ$11,ROW(A9)))","v":{"$error":"#N/A"}},{"$f":"IF((INDEX('Optional Reporting'!$B$17:$FZ$17,ROW(A9)))=\"\",NA(),INDEX('Optional Reporting'!$B$17:$FZ$17,ROW(A9)))","v":{"$error":"#N/A"}},{"$f":"IF(ISBLANK(INDEX(Reporting!$B$12:$FZ$12,ROW(A8))),\"\",INDEX(Reporting!$B$12:$FZ$12,ROW(A8)))","v":""}]
[null,null,{"$f":"IF(ISBLANK(INDEX(Planning!$B$16:$FZ$16,ROW(A11))),\"\",INDEX(Planning!$B$16:$FZ$16,ROW(A11)))","v":""},{"$f":"IF(ISBLANK(INDEX(Reporting!$B$9:$FZ$9,ROW(A11))),\"\",INDEX(Reporting!$B$9:$FZ$9,ROW(A11)))","v":""},{"$f":"IF(OR(IF(ISBLANK(A12),TRUE,FALSE),ISBLANK(Planning!$B$11)),\"\",Planning!$B$11)","v":""},null,{"$f":"IF(ISBLANK(INDEX(Planning!$B$16:$FZ$16,ROW(A10))),\"\",INDEX(Planning!$B$16:$FZ$16,ROW(A10)))","v":""},{"$f":"IF(ISBLANK(INDEX(Planning!$B$17:$FZ$17,ROW(A10))),\"\",INDEX(Planning!$B$17:$FZ$17,ROW(A10)))","v":""},{"$f":"IF(ISBLANK(INDEX(Reporting!$B$9:$FZ$9,ROW(A10))),\"\",INDEX(Reporting!$B$9:$FZ$9,ROW(A10)))","v":""},{"$f":"IF(ISBLANK(INDEX(Reporting!$B$11:$FZ$11,ROW(A10))),\"\",INDEX(Reporting!$B$11:$FZ$11,ROW(A10)))","v":""},{"$f":"IF(ISBLANK(INDEX(Reporting!$B$18:$FZ$18,ROW(A10))),\"\",IF(INDEX(Reporting!$B$18:$FZ$18,ROW(A10))=\"No Failures Observed\",NA(),INDEX(Reporting!$B$18:$FZ$18,ROW(A10))))","v":""},{"$f":"IF(ISBLANK(INDEX('Optional Reporting'!$B$11:$FZ$11,ROW(A10))),NA(),INDEX('Optional Reporting'!$B$11:$FZ$11,ROW(A10)))","v":{"$error":"#N/A"}},{"$f":"IF((INDEX('Optional Reporting'!$B$17:$FZ$17,ROW(A10)))=\"\",NA(),INDEX('Optional Reporting'!$B$17:$FZ$17,ROW(A10)))","v":{"$error":"#N/A"}},{"$f":"IF(ISBLANK(INDEX(Reporting!$B$12:$FZ$12,ROW(A9))),\"\",INDEX(Reporting!$B$12:$FZ$12,ROW(A9)))","v":""}]
[null,null,{"$f":"IF(ISBLANK(INDEX(Planning!$B$16:$FZ$16,ROW(A12))),\"\",INDEX(Planning!$B$16:$FZ$16,ROW(A12)))","v":""},{"$f":"IF(ISBLANK(INDEX(Reporting!$B$9:$FZ$9,ROW(A12))),\"\",INDEX(Reporting!$B$9:$FZ$9,ROW(A12)))","v":""},{"$f":"IF(OR(IF(ISBLANK(A13),TRUE,FALSE),ISBLANK(Planning!$B$11)),\"\",Planning!$B$11)","v":""},null,{"$f":"IF(ISBLANK(INDEX(Planning!$B$16:$FZ$16,ROW(A11))),\"\",INDEX(Planning!$B$16:$FZ$16,ROW(A11)))","v":""},{"$f":"IF(ISBLANK(INDEX(Planning!$B$17:$FZ$17,ROW(A11))),\"\",INDEX(Planning!$B$17:$FZ$17,ROW(A11)))","v":""},{"$f":"IF(ISBLANK(INDEX(Reporting!$B$9:$FZ$9,ROW(A11))),\"\",INDEX(Reporting!$B$9:$FZ$9,ROW(A11)))","v":""},{"$f":"IF(ISBLANK(INDEX(Reporting!$B$11:$FZ$11,ROW(A11))),\"\",INDEX(Reporting!$B$11:$FZ$11,ROW(A11)))","v":""},{"$f":"IF(ISBLANK(INDEX(Reporting!$B$18:$FZ$18,ROW(A11))),\"\",IF(INDEX(Reporting!$B$18:$FZ$18,ROW(A11))=\"No Failures Observed\",NA(),INDEX(Reporting!$B$18:$FZ$18,ROW(A11))))","v":""},{"$f":"IF(ISBLANK(INDEX('Optional Reporting'!$B$11:$FZ$11,ROW(A11))),NA(),INDEX('Optional Reporting'!$B$11:$FZ$11,ROW(A11)))","v":{"$error":"#N/A"}},{"$f":"IF((INDEX('Optional Reporting'!$B$17:$FZ$17,ROW(A11)))=\"\",NA(),INDEX('Optional Reporting'!$B$17:$FZ$17,ROW(A11)))","v":{"$error":"#N/A"}},{"$f":"IF(ISBLANK(INDEX(Reporting!$B$12:$FZ$12,ROW(A10))),\"\",INDEX(Reporting!$B$12:$FZ$12,ROW(A10)))","v":""}]
[null,null,{"$f":"IF(ISBLANK(INDEX(Planning!$B$16:$FZ$16,ROW(A13))),\"\",INDEX(Planning!$B$16:$FZ$16,ROW(A13)))","v":""},{"$f":"IF(ISBLANK(INDEX(Reporting!$B$9:$FZ$9,ROW(A13))),\"\",INDEX(Reporting!$B$9:$FZ$9,ROW(A13)))","v":""},{"$f":"IF(OR(IF(ISBLANK(A14),TRUE,FALSE),ISBLANK(Planning!$B$11)),\"\",Planning!$B$11)","v":""},null,{"$f":"IF(ISBLANK(INDEX(Planning!$B$16:$FZ$16,ROW(A12))),\"\",INDEX(Planning!$B$16:$FZ$16,ROW(A12)))","v":""},{"$f":"IF(ISBLANK(INDEX(Planning!$B$17:$FZ$17,ROW(A12))),\"\",INDEX(Planning!$B$17:$FZ$17,ROW(A12)))","v":""},{"$f":"IF(ISBLANK(INDEX(Reporting!$B$9:$FZ$9,ROW(A12))),\"\",INDEX(Reporting!$B$9:$FZ$9,ROW(A12)))","v":""},{"$f":"IF(ISBLANK(INDEX(Reporting!$B$11:$FZ$11,ROW(A12))),\"\",INDEX(Reporting!$B$11:$FZ$11,ROW(A12)))","v":""},{"$f":"IF(ISBLANK(INDEX(Reporting!$B$18:$FZ$18,ROW(A12))),\"\",IF(INDEX(Reporting!$B$18:$FZ$18,ROW(A12))=\"No Failures Observed\",NA(),INDEX(Reporting!$B$18:$FZ$18,ROW(A12))))","v":""},{"$f":"IF(ISBLANK(INDEX('Optional Reporting'!$B$11:$FZ$11,ROW(A12))),NA(),INDEX('Optional Reporting'!$B$11:$FZ$11,ROW(A12)))","v":{"$error":"#N/A"}},{"$f":"IF((INDEX('Optional Reporting'!$B$17:$FZ$17,ROW(A12)))=\"\",NA(),INDEX('Optional Reporting'!$B$17:$FZ$17,ROW(A12)))","v":{"$error":"#N/A"}},{"$f":"IF(ISBLANK(INDEX(Reporting!$B$12:$FZ$12,ROW(A11))),\"\",INDEX(Reporting!$B$12:$FZ$12,ROW(A11)))","v":""}]
[null,null,{"$f":"IF(ISBLANK(INDEX(Planning!$B$16:$FZ$16,ROW(A14))),\"\",INDEX(Planning!$B$16:$FZ$16,ROW(A14)))","v":""},{"$f":"IF(ISBLANK(INDEX(Reporting!$B$9:$FZ$9,ROW(A14))),\"\",INDEX(Reporting!$B$9:$FZ$9,ROW(A14)))","v":""},{"$f":"IF(OR(IF(ISBLANK(A15),TRUE,FALSE),ISBLANK(Planning!$B$11)),\"\",Planning!$B$11)","v":""},null,{"$f":"IF(ISBLANK(INDEX(Planning!$B$16:$FZ$16,ROW(A13))),\"\",INDEX(Planning!$B$16:$FZ$16,ROW(A13)))","v":""},{"$f":"IF(ISBLANK(INDEX(Planning!$B$17:$FZ$17,ROW(A13))),\"\",INDEX(Planning!$B$17:$FZ$17,ROW(A13)))","v":""},{"$f":"IF(ISBLANK(INDEX(Reporting!$B$9:$FZ$9,ROW(A13))),\"\",INDEX(Reporting!$B$9:$FZ$9,ROW(A13)))","v":""},{"$f":"IF(ISBLANK(INDEX(Reporting!$B$11:$FZ$11,ROW(A13))),\"\",INDEX(Reporting!$B$11:$FZ$11,ROW(A13)))","v":""},{"$f":"IF(ISBLANK(INDEX(Reporting!$B$18:$FZ$18,ROW(A13))),\"\",IF(INDEX(Reporting!$B$18:$FZ$18,ROW(A13))=\"No Failures Observed\",NA(),INDEX(Reporting!$B$18:$FZ$18,ROW(A13))))","v":""},{"$f":"IF(ISBLANK(INDEX('Optional Reporting'!$B$11:$FZ$11,ROW(A13))),NA(),INDEX('Optional Reporting'!$B$11:$FZ$11,ROW(A13)))","v":{"$error":"#N/A"}},{"$f":"IF((INDEX('Optional Reporting'!$B$17:$FZ$17,ROW(A13)))=\"\",NA(),INDEX('Optional Reporting'!$B$17:$FZ$17,ROW(A13)))","v":{"$error":"#N/A"}},{"$f":"IF(ISBLANK(INDEX(Reporting!$B$12:$FZ$12,ROW(A12))),\"\",INDEX(Reporting!$B$12:$FZ$12,ROW(A12)))","v":""}]
[null,null,{"$f":"IF(ISBLANK(INDEX(Planning!$B$16:$FZ$16,ROW(A15))),\"\",INDEX(Planning!$B$16:$FZ$16,ROW(A15)))","v":""},{"$f":"IF(ISBLANK(INDEX(Reporting!$B$9:$FZ$9,ROW(A15))),\"\",INDEX(Reporting!$B$9:$FZ$9,ROW(A15)))","v":""},{"$f":"IF(OR(IF(ISBLANK(A16),TRUE,FALSE),ISBLANK(Planning!$B$11)),\"\",Planning!$B$11)","v":""},null,{"$f":"IF(ISBLANK(INDEX(Planning!$B$16:$FZ$16,ROW(A14))),\"\",INDEX(Planning!$B$16:$FZ$16,ROW(A14)))","v":""},{"$f":"IF(ISBLANK(INDEX(Planning!$B$17:$FZ$17,ROW(A14))),\"\",INDEX(Planning!$B$17:$FZ$17,ROW(A14)))","v":""},{"$f":"IF(ISBLANK(INDEX(Reporting!$B$9:$FZ$9,ROW(A14))),\"\",INDEX(Reporting!$B$9:$FZ$9,ROW(A14)))","v":""},{"$f":"IF(ISBLANK(INDEX(Reporting!$B$11:$FZ$11,ROW(A14))),\"\",INDEX(Reporting!$B$11:$FZ$11,ROW(A14)))","v":""},{"$f":"IF(ISBLANK(INDEX(Reporting!$B$18:$FZ$18,ROW(A14))),\"\",IF(INDEX(Reporting!$B$18:$FZ$18,ROW(A14))=\"No Failures Observed\",NA(),INDEX(Reporting!$B$18:$FZ$18,ROW(A14))))","v":""},{"$f":"IF(ISBLANK(INDEX('Optional Reporting'!$B$11:$FZ$11,ROW(A14))),NA(),INDEX('Optional Reporting'!$B$11:$FZ$11,ROW(A14)))","v":{"$error":"#N/A"}},{"$f":"IF((INDEX('Optional Reporting'!$B$17:$FZ$17,ROW(A14)))=\"\",NA(),INDEX('Optional Reporting'!$B$17:$FZ$17,ROW(A14)))","v":{"$error":"#N/A"}},{"$f":"IF(ISBLANK(INDEX(Reporting!$B$12:$FZ$12,ROW(A13))),\"\",INDEX(Reporting!$B$12:$FZ$12,ROW(A13)))","v":""}]
[null,null,{"$f":"IF(ISBLANK(INDEX(Planning!$B$16:$FZ$16,ROW(A16))),\"\",INDEX(Planning!$B$16:$FZ$16,ROW(A16)))","v":""},{"$f":"IF(ISBLANK(INDEX(Reporting!$B$9:$FZ$9,ROW(A16))),\"\",INDEX(Reporting!$B$9:$FZ$9,ROW(A16)))","v":""},{"$f":"IF(OR(IF(ISBLANK(A17),TRUE,FALSE),ISBLANK(Planning!$B$11)),\"\",Planning!$B$11)","v":""},null,{"$f":"IF(ISBLANK(INDEX(Planning!$B$16:$FZ$16,ROW(A15))),\"\",INDEX(Planning!$B$16:$FZ$16,ROW(A15)))","v":""},{"$f":"IF(ISBLANK(INDEX(Planning!$B$17:$FZ$17,ROW(A15))),\"\",INDEX(Planning!$B$17:$FZ$17,ROW(A15)))","v":""},{"$f":"IF(ISBLANK(INDEX(Reporting!$B$9:$FZ$9,ROW(A15))),\"\",INDEX(Reporting!$B$9:$FZ$9,ROW(A15)))","v":""},{"$f":"IF(ISBLANK(INDEX(Reporting!$B$11:$FZ$11,ROW(A15))),\"\",INDEX(Reporting!$B$11:$FZ$11,ROW(A15)))","v":""},{"$f":"IF(ISBLANK(INDEX(Reporting!$B$18:$FZ$18,ROW(A15))),\"\",IF(INDEX(Reporting!$B$18:$FZ$18,ROW(A15))=\"No Failures Observed\",NA(),INDEX(Reporting!$B$18:$FZ$18,ROW(A15))))","v":""},{"$f":"IF(ISBLANK(INDEX('Optional Reporting'!$B$11:$FZ$11,ROW(A15))),NA(),INDEX('Optional Reporting'!$B$11:$FZ$11,ROW(A15)))","v":{"$error":"#N/A"}},{"$f":"IF((INDEX('Optional Reporting'!$B$17:$FZ$17,ROW(A15)))=\"\",NA(),INDEX('Optional Reporting'!$B$17:$FZ$17,ROW(A15)))","v":{"$error":"#N/A"}},{"$f":"IF(ISBLANK(INDEX(Reporting!$B$12:$FZ$12,ROW(A14))),\"\",INDEX(Reporting!$B$12:$FZ$12,ROW(A14)))","v":""}]
[null,null,{"$f":"IF(ISBLANK(INDEX(Planning!$B$16:$FZ$16,ROW(A17))),\"\",INDEX(Planning!$B$16:$FZ$16,ROW(A17)))","v":""},{"$f":"IF(ISBLANK(INDEX(Reporting!$B$9:$FZ$9,ROW(A17))),\"\",INDEX(Reporting!$B$9:$FZ$9,ROW(A17)))","v":""},{"$f":"IF(OR(IF(ISBLANK(A18),TRUE,FALSE),ISBLANK(Planning!$B$11)),\"\",Planning!$B$11)","v":""},null,{"$f":"IF(ISBLANK(INDEX(Planning!$B$16:$FZ$16,ROW(A16))),\"\",INDEX(Planning!$B$16:$FZ$16,ROW(A16)))","v":""},{"$f":"IF(ISBLANK(INDEX(Planning!$B$17:$FZ$17,ROW(A16))),\"\",INDEX(Planning!$B$17:$FZ$17,ROW(A16)))","v":""},{"$f":"IF(ISBLANK(INDEX(Reporting!$B$9:$FZ$9,ROW(A16))),\"\",INDEX(Reporting!$B$9:$FZ$9,ROW(A16)))","v":""},{"$f":"IF(ISBLANK(INDEX(Reporting!$B$11:$FZ$11,ROW(A16))),\"\",INDEX(Reporting!$B$11:$FZ$11,ROW(A16)))","v":""},{"$f":"IF(ISBLANK(INDEX(Reporting!$B$18:$FZ$18,ROW(A16))),\"\",IF(INDEX(Reporting!$B$18:$FZ$18,ROW(A16))=\"No Failures Observed\",NA(),INDEX(Reporting!$B$18:$FZ$18,ROW(A16))))","v":""},{"$f":"IF(ISBLANK(INDEX('Optional Reporting'!$B$11:$FZ$11,ROW(A16))),NA(),INDEX('Optional Reporting'!$B$11:$FZ$11,ROW(A16)))","v":{"$error":"#N/A"}},{"$f":"IF((INDEX('Optional Reporting'!$B$17:$FZ$17,ROW(A16)))=\"\",NA(),INDEX('Optional Reporting'!$B$17:$FZ$17,ROW(A16)))","v":{"$error":"#N/A"}},{"$f":"IF(ISBLANK(INDEX(Reporting!$B$12:$FZ$12,ROW(A15))),\"\",INDEX(Reporting!$B$12:$FZ$12,ROW(A15)))","v":""}]
[null,null,{"$f":"IF(ISBLANK(INDEX(Planning!$B$16:$FZ$16,ROW(A18))),\"\",INDEX(Planning!$B$16:$FZ$16,ROW(A18)))","v":""},{"$f":"IF(ISBLANK(INDEX(Reporting!$B$9:$FZ$9,ROW(A18))),\"\",INDEX(Reporting!$B$9:$FZ$9,ROW(A18)))","v":""},{"$f":"IF(OR(IF(ISBLANK(A19),TRUE,FALSE),ISBLANK(Planning!$B$11)),\"\",Planning!$B$11)","v":""},null,{"$f":"IF(ISBLANK(INDEX(Planning!$B$16:$FZ$16,ROW(A17))),\"\",INDEX(Planning!$B$16:$FZ$16,ROW(A17)))","v":""},{"$f":"IF(ISBLANK(INDEX(Planning!$B$17:$FZ$17,ROW(A17))),\"\",INDEX(Planning!$B$17:$FZ$17,ROW(A17)))","v":""},{"$f":"IF(ISBLANK(INDEX(Reporting!$B$9:$FZ$9,ROW(A17))),\"\",INDEX(Reporting!$B$9:$FZ$9,ROW(A17)))","v":""},{"$f":"IF(ISBLANK(INDEX(Reporting!$B$11:$FZ$11,ROW(A17))),\"\",INDEX(Reporting!$B$11:$FZ$11,ROW(A17)))","v":""},{"$f":"IF(ISBLANK(INDEX(Reporting!$B$18:$FZ$18,ROW(A17))),\"\",IF(INDEX(Reporting!$B$18:$FZ$18,ROW(A17))=\"No Failures Observed\",NA(),INDEX(Reporting!$B$18:$FZ$18,ROW(A17))))","v":""},{"$f":"IF(ISBLANK(INDEX('Optional Reporting'!$B$11:$FZ$11,ROW(A17))),NA(),INDEX('Optional Reporting'!$B$11:$FZ$11,ROW(A17)))","v":{"$error":"#N/A"}},{"$f":"IF((INDEX('Optional Reporting'!$B$17:$FZ$17,ROW(A17)))=\"\",NA(),INDEX('Optional Reporting'!$B$17:$FZ$17,ROW(A17)))","v":{"$error":"#N/A"}},{"$f":"IF(ISBLANK(INDEX(Reporting!$B$12:$FZ$12,ROW(A16))),\"\",INDEX(Reporting!$B$12:$FZ$12,ROW(A16)))","v":""}]
[null,null,{"$f":"IF(ISBLANK(INDEX(Planning!$B$16:$FZ$16,ROW(A19))),\"\",INDEX(Planning!$B$16:$FZ$16,ROW(A19)))","v":""},{"$f":"IF(ISBLANK(INDEX(Reporting!$B$9:$FZ$9,ROW(A19))),\"\",INDEX(Reporting!$B$9:$FZ$9,ROW(A19)))","v":""},{"$f":"IF(OR(IF(ISBLANK(A20),TRUE,FALSE),ISBLANK(Planning!$B$11)),\"\",Planning!$B$11)","v":""},null,{"$f":"IF(ISBLANK(INDEX(Planning!$B$16:$FZ$16,ROW(A18))),\"\",INDEX(Planning!$B$16:$FZ$16,ROW(A18)))","v":""},{"$f":"IF(ISBLANK(INDEX(Planning!$B$17:$FZ$17,ROW(A18))),\"\",INDEX(Planning!$B$17:$FZ$17,ROW(A18)))","v":""},{"$f":"IF(ISBLANK(INDEX(Reporting!$B$9:$FZ$9,ROW(A18))),\"\",INDEX(Reporting!$B$9:$FZ$9,ROW(A18)))","v":""},{"$f":"IF(ISBLANK(INDEX(Reporting!$B$11:$FZ$11,ROW(A18))),\"\",INDEX(Reporting!$B$11:$FZ$11,ROW(A18)))","v":""},{"$f":"IF(ISBLANK(INDEX(Reporting!$B$18:$FZ$18,ROW(A18))),\"\",IF(INDEX(Reporting!$B$18:$FZ$18,ROW(A18))=\"No Failures Observed\",NA(),INDEX(Reporting!$B$18:$FZ$18,ROW(A18))))","v":""},{"$f":"IF(ISBLANK(INDEX('Optional Reporting'!$B$11:$FZ$11,ROW(A18))),NA(),INDEX('Optional Reporting'!$B$11:$FZ$11,ROW(A18)))","v":{"$error":"#N/A"}},{"$f":"IF((INDEX('Optional Reporting'!$B$17:$FZ$17,ROW(A18)))=\"\",NA(),INDEX('Optional Reporting'!$B$17:$FZ$17,ROW(A18)))","v":{"$error":"#N/A"}},{"$f":"IF(ISBLANK(INDEX(Reporting!$B$12:$FZ$12,ROW(A17))),\"\",INDEX(Reporting!$B$12:$FZ$12,ROW(A17)))","v":""}]
[null,null,{"$f":"IF(ISBLANK(INDEX(Planning!$B$16:$FZ$16,ROW(A20))),\"\",INDEX(Planning!$B$16:$FZ$16,ROW(A20)))","v":""},{"$f":"IF(ISBLANK(INDEX(Reporting!$B$9:$FZ$9,ROW(A20))),\"\",INDEX(Reporting!$B$9:$FZ$9,ROW(A20)))","v":""},{"$f":"IF(OR(IF(ISBLANK(A21),TRUE,FALSE),ISBLANK(Planning!$B$11)),\"\",Planning!$B$11)","v":""},null,{"$f":"IF(ISBLANK(INDEX(Planning!$B$16:$FZ$16,ROW(A19))),\"\",INDEX(Planning!$B$16:$FZ$16,ROW(A19)))","v":""},{"$f":"IF(ISBLANK(INDEX(Planning!$B$17:$FZ$17,ROW(A19))),\"\",INDEX(Planning!$B$17:$FZ$17,ROW(A19)))","v":""},{"$f":"IF(ISBLANK(INDEX(Reporting!$B$9:$FZ$9,ROW(A19))),\"\",INDEX(Reporting!$B$9:$FZ$9,ROW(A19)))","v":""},{"$f":"IF(ISBLANK(INDEX(Reporting!$B$11:$FZ$11,ROW(A19))),\"\",INDEX(Reporting!$B$11:$FZ$11,ROW(A19)))","v":""},{"$f":"IF(ISBLANK(INDEX(Reporting!$B$18:$FZ$18,ROW(A19))),\"\",IF(INDEX(Reporting!$B$18:$FZ$18,ROW(A19))=\"No Failures Observed\",NA(),INDEX(Reporting!$B$18:$FZ$18,ROW(A19))))","v":""},{"$f":"IF(ISBLANK(INDEX('Optional Reporting'!$B$11:$FZ$11,ROW(A19))),NA(),INDEX('Optional Reporting'!$B$11:$FZ$11,ROW(A19)))","v":{"$error":"#N/A"}},{"$f":"IF((INDEX('Optional Reporting'!$B$17:$FZ$17,ROW(A19)))=\"\",NA(),INDEX('Optional Reporting'!$B$17:$FZ$17,ROW(A19)))","v":{"$error":"#N/A"}},{"$f":"IF(ISBLANK(INDEX(Reporting!$B$12:$FZ$12,ROW(A18))),\"\",INDEX(Reporting!$B$12:$FZ$12,ROW(A18)))","v":""}]
[null,null,{"$f":"IF(ISBLANK(INDEX(Planning!$B$16:$FZ$16,ROW(A21))),\"\",INDEX(Planning!$B$16:$FZ$16,ROW(A21)))","v":""},{"$f":"IF(ISBLANK(INDEX(Reporting!$B$9:$FZ$9,ROW(A21))),\"\",INDEX(Reporting!$B$9:$FZ$9,ROW(A21)))","v":""},{"$f":"IF(OR(IF(ISBLANK(A22),TRUE,FALSE),ISBLANK(Planning!$B$11)),\"\",Planning!$B$11)","v":""},null,{"$f":"IF(ISBLANK(INDEX(Planning!$B$16:$FZ$16,ROW(A20))),\"\",INDEX(Planning!$B$16:$FZ$16,ROW(A20)))","v":""},{"$f":"IF(ISBLANK(INDEX(Planning!$B$17:$FZ$17,ROW(A20))),\"\",INDEX(Planning!$B$17:$FZ$17,ROW(A20)))","v":""},{"$f":"IF(ISBLANK(INDEX(Reporting!$B$9:$FZ$9,ROW(A20))),\"\",INDEX(Reporting!$B$9:$FZ$9,ROW(A20)))","v":""},{"$f":"IF(ISBLANK(INDEX(Reporting!$B$11:$FZ$11,ROW(A20))),\"\",INDEX(Reporting!$B$11:$FZ$11,ROW(A20)))","v":""},{"$f":"IF(ISBLANK(INDEX(Reporting!$B$18:$FZ$18,ROW(A20))),\"\",IF(INDEX(Reporting!$B$18:$FZ$18,ROW(A20))=\"No Failures Observed\",NA(),INDEX(Reporting!$B$18:$FZ$18,ROW(A20))))","v":""},{"$f":"IF(ISBLANK(INDEX('Optional Reporting'!$B$11:$FZ$11,ROW(A20))),NA(),INDEX('Optional Reporting'!$B$11:$FZ$11,ROW(A20)))","v":{"$error":"#N/A"}},{"$f":"IF((INDEX('Optional Reporting'!$B$17:$FZ$17,ROW(A20)))=\"\",NA(),INDEX('Optional Reporting'!$B$17:$FZ$17,ROW(A20)))","v":{"$error":"#N/A"}},{"$f":"IF(ISBLANK(INDEX(Reporting!$B$12:$FZ$12,ROW(A19))),\"\",INDEX(Reporting!$B$12:$FZ$12,ROW(A19)))","v":""}]
[null,null,{"$f":"IF(ISBLANK(INDEX(Planning!$B$16:$FZ$16,ROW(A22))),\"\",INDEX(Planning!$B$16:$FZ$16,ROW(A22)))","v":""},{"$f":"IF(ISBLANK(INDEX(Reporting!$B$9:$FZ$9,ROW(A22))),\"\",INDEX(Reporting!$B$9:$FZ$9,ROW(A22)))","v":""},{"$f":"IF(OR(IF(ISBLANK(A23),TRUE,FALSE),ISBLANK(Planning!$B$11)),\"\",Planning!$B$11)","v":""},null,{"$f":"IF(ISBLANK(INDEX(Planning!$B$16:$FZ$16,ROW(A21))),\"\",INDEX(Planning!$B$16:$FZ$16,ROW(A21)))","v":""},{"$f":"IF(ISBLANK(INDEX(Planning!$B$17:$FZ$17,ROW(A21))),\"\",INDEX(Planning!$B$17:$FZ$17,ROW(A21)))","v":""},{"$f":"IF(ISBLANK(INDEX(Reporting!$B$9:$FZ$9,ROW(A21))),\"\",INDEX(Reporting!$B$9:$FZ$9,ROW(A21)))","v":""},{"$f":"IF(ISBLANK(INDEX(Reporting!$B$11:$FZ$11,ROW(A21))),\"\",INDEX(Reporting!$B$11:$FZ$11,ROW(A21)))","v":""},{"$f":"IF(ISBLANK(INDEX(Reporting!$B$18:$FZ$18,ROW(A21))),\"\",IF(INDEX(Reporting!$B$18:$FZ$18,ROW(A21))=\"No Failures Observed\",NA(),INDEX(Reporting!$B$18:$FZ$18,ROW(A21))))","v":""},{"$f":"IF(ISBLANK(INDEX('Optional Reporting'!$B$11:$FZ$11,ROW(A21))),NA(),INDEX('Optional Reporting'!$B$11:$FZ$11,ROW(A21)))","v":{"$error":"#N/A"}},{"$f":"IF((INDEX('Optional Reporting'!$B$17:$FZ$17,ROW(A21)))=\"\",NA(),INDEX('Optional Reporting'!$B$17:$FZ$17,ROW(A21)))","v":{"$error":"#N/A"}},{"$f":"IF(ISBLANK(INDEX(Reporting!$B$12:$FZ$12,ROW(A20))),\"\",INDEX(Reporting!$B$12:$FZ$12,ROW(A20)))","v":""}]
[null,null,{"$f":"IF(ISBLANK(INDEX(Planning!$B$16:$FZ$16,ROW(A23))),\"\",INDEX(Planning!$B$16:$FZ$16,ROW(A23)))","v":""},{"$f":"IF(ISBLANK(INDEX(Reporting!$B$9:$FZ$9,ROW(A23))),\"\",INDEX(Reporting!$B$9:$FZ$9,ROW(A23)))","v":""},{"$f":"IF(OR(IF(ISBLANK(A24),TRUE,FALSE),ISBLANK(Planning!$B$11)),\"\",Planning!$B$11)","v":""},null,{"$f":"IF(ISBLANK(INDEX(Planning!$B$16:$FZ$16,ROW(A22))),\"\",INDEX(Planning!$B$16:$FZ$16,ROW(A22)))","v":""},{"$f":"IF(ISBLANK(INDEX(Planning!$B$17:$FZ$17,ROW(A22))),\"\",INDEX(Planning!$B$17:$FZ$17,ROW(A22)))","v":""},{"$f":"IF(ISBLANK(INDEX(Reporting!$B$9:$FZ$9,ROW(A22))),\"\",INDEX(Reporting!$B$9:$FZ$9,ROW(A22)))","v":""},{"$f":"IF(ISBLANK(INDEX(Reporting!$B$11:$FZ$11,ROW(A22))),\"\",INDEX(Reporting!$B$11:$FZ$11,ROW(A22)))","v":""},{"$f":"IF(ISBLANK(INDEX(Reporting!$B$18:$FZ$18,ROW(A22))),\"\",IF(INDEX(Reporting!$B$18:$FZ$18,ROW(A22))=\"No Failures Observed\",NA(),INDEX(Reporting!$B$18:$FZ$18,ROW(A22))))","v":""},{"$f":"IF(ISBLANK(INDEX('Optional Reporting'!$B$11:$FZ$11,ROW(A22))),NA(),INDEX('Optional Reporting'!$B$11:$FZ$11,ROW(A22)))","v":{"$error":"#N/A"}},{"$f":"IF((INDEX('Optional Reporting'!$B$17:$FZ$17,ROW(A22)))=\"\",NA(),INDEX('Optional Reporting'!$B$17:$FZ$17,ROW(A22)))","v":{"$error":"#N/A"}},{"$f":"IF(ISBLANK(INDEX(Reporting!$B$12:$FZ$12,ROW(A21))),\"\",INDEX(Reporting!$B$12:$FZ$12,ROW(A21)))","v":""}]
[null,null,{"$f":"IF(ISBLANK(INDEX(Planning!$B$16:$FZ$16,ROW(A24))),\"\",INDEX(Planning!$B$16:$FZ$16,ROW(A24)))","v":""},{"$f":"IF(ISBLANK(INDEX(Reporting!$B$9:$FZ$9,ROW(A24))),\"\",INDEX(Reporting!$B$9:$FZ$9,ROW(A24)))","v":""},{"$f":"IF(OR(IF(ISBLANK(A25),TRUE,FALSE),ISBLANK(Planning!$B$11)),\"\",Planning!$B$11)","v":""},null,{"$f":"IF(ISBLANK(INDEX(Planning!$B$16:$FZ$16,ROW(A23))),\"\",INDEX(Planning!$B$16:$FZ$16,ROW(A23)))","v":""},{"$f":"IF(ISBLANK(INDEX(Planning!$B$17:$FZ$17,ROW(A23))),\"\",INDEX(Planning!$B$17:$FZ$17,ROW(A23)))","v":""},{"$f":"IF(ISBLANK(INDEX(Reporting!$B$9:$FZ$9,ROW(A23))),\"\",INDEX(Reporting!$B$9:$FZ$9,ROW(A23)))","v":""},{"$f":"IF(ISBLANK(INDEX(Reporting!$B$11:$FZ$11,ROW(A23))),\"\",INDEX(Reporting!$B$11:$FZ$11,ROW(A23)))","v":""},{"$f":"IF(ISBLANK(INDEX(Reporting!$B$18:$FZ$18,ROW(A23))),\"\",IF(INDEX(Reporting!$B$18:$FZ$18,ROW(A23))=\"No Failures Observed\",NA(),INDEX(Reporting!$B$18:$FZ$18,ROW(A23))))","v":""},{"$f":"IF(ISBLANK(INDEX('Optional Reporting'!$B$11:$FZ$11,ROW(A23))),NA(),INDEX('Optional Reporting'!$B$11:$FZ$11,ROW(A23)))","v":{"$error":"#N/A"}},{"$f":"IF((INDEX('Optional Reporting'!$B$17:$FZ$17,ROW(A23)))=\"\",NA(),INDEX('Optional Reporting'!$B$17:$FZ$17,ROW(A23)))","v":{"$error":"#N/A"}},{"$f":"IF(ISBLANK(INDEX(Reporting!$B$12:$FZ$12,ROW(A22))),\"\",INDEX(Reporting!$B$12:$FZ$12,ROW(A22)))","v":""}]
[null,null,{"$f":"IF(ISBLANK(INDEX(Planning!$B$16:$FZ$16,ROW(A25))),\"\",INDEX(Planning!$B$16:$FZ$16,ROW(A25)))","v":""},{"$f":"IF(ISBLANK(INDEX(Reporting!$B$9:$FZ$9,ROW(A25))),\"\",INDEX(Reporting!$B$9:$FZ$9,ROW(A25)))","v":""},{"$f":"IF(OR(IF(ISBLANK(A26),TRUE,FALSE),ISBLANK(Planning!$B$11)),\"\",Planning!$B$11)","v":""},null,{"$f":"IF(ISBLANK(INDEX(Planning!$B$16:$FZ$16,ROW(A24))),\"\",INDEX(Planning!$B$16:$FZ$16,ROW(A24)))","v":""},{"$f":"IF(ISBLANK(INDEX(Planning!$B$17:$FZ$17,ROW(A24))),\"\",INDEX(Planning!$B$17:$FZ$17,ROW(A24)))","v":""},{"$f":"IF(ISBLANK(INDEX(Reporting!$B$9:$FZ$9,ROW(A24))),\"\",INDEX(Reporting!$B$9:$FZ$9,ROW(A24)))","v":""},{"$f":"IF(ISBLANK(INDEX(Reporting!$B$11:$FZ$11,ROW(A24))),\"\",INDEX(Reporting!$B$11:$FZ$11,ROW(A24)))","v":""},{"$f":"IF(ISBLANK(INDEX(Reporting!$B$18:$FZ$18,ROW(A24))),\"\",IF(INDEX(Reporting!$B$18:$FZ$18,ROW(A24))=\"No Failures Observed\",NA(),INDEX(Reporting!$B$18:$FZ$18,ROW(A24))))","v":""},{"$f":"IF(ISBLANK(INDEX('Optional Reporting'!$B$11:$FZ$11,ROW(A24))),NA(),INDEX('Optional Reporting'!$B$11:$FZ$11,ROW(A24)))","v":{"$error":"#N/A"}},{"$f":"IF((INDEX('Optional Reporting'!$B$17:$FZ$17,ROW(A24)))=\"\",NA(),INDEX('Optional Reporting'!$B$17:$FZ$17,ROW(A24)))","v":{"$error":"#N/A"}},{"$f":"IF(ISBLANK(INDEX(Reporting!$B$12:$FZ$12,ROW(A23))),\"\",INDEX(Reporting!$B$12:$FZ$12,ROW(A23)))","v":""}]
[null,null,{"$f":"IF(ISBLANK(INDEX(Planning!$B$16:$FZ$16,ROW(A26))),\"\",INDEX(Planning!$B$16:$FZ$16,ROW(A26)))","v":""},{"$f":"IF(ISBLANK(INDEX(Reporting!$B$9:$FZ$9,ROW(A26))),\"\",INDEX(Reporting!$B$9:$FZ$9,ROW(A26)))","v":""},{"$f":"IF(OR(IF(ISBLANK(A27),TRUE,FALSE),ISBLANK(Planning!$B$11)),\"\",Planning!$B$11)","v":""},null,{"$f":"IF(ISBLANK(INDEX(Planning!$B$16:$FZ$16,ROW(A25))),\"\",INDEX(Planning!$B$16:$FZ$16,ROW(A25)))","v":""},{"$f":"IF(ISBLANK(INDEX(Planning!$B$17:$FZ$17,ROW(A25))),\"\",INDEX(Planning!$B$17:$FZ$17,ROW(A25)))","v":""},{"$f":"IF(ISBLANK(INDEX(Reporting!$B$9:$FZ$9,ROW(A25))),\"\",INDEX(Reporting!$B$9:$FZ$9,ROW(A25)))","v":""},{"$f":"IF(ISBLANK(INDEX(Reporting!$B$11:$FZ$11,ROW(A25))),\"\",INDEX(Reporting!$B$11:$FZ$11,ROW(A25)))","v":""},{"$f":"IF(ISBLANK(INDEX(Reporting!$B$18:$FZ$18,ROW(A25))),\"\",IF(INDEX(Reporting!$B$18:$FZ$18,ROW(A25))=\"No Failures Observed\",NA(),INDEX(Reporting!$B$18:$FZ$18,ROW(A25))))","v":""},{"$f":"IF(ISBLANK(INDEX('Optional Reporting'!$B$11:$FZ$11,ROW(A25))),NA(),INDEX('Optional Reporting'!$B$11:$FZ$11,ROW(A25)))","v":{"$error":"#N/A"}},{"$f":"IF((INDEX('Optional Reporting'!$B$17:$FZ$17,ROW(A25)))=\"\",NA(),INDEX('Optional Reporting'!$B$17:$FZ$17,ROW(A25)))","v":{"$error":"#N/A"}},{"$f":"IF(ISBLANK(INDEX(Reporting!$B$12:$FZ$12,ROW(A24))),\"\",INDEX(Reporting!$B$12:$FZ$12,ROW(A24)))","v":""}]
[null,null,{"$f":"IF(ISBLANK(INDEX(Planning!$B$16:$FZ$16,ROW(A27))),\"\",INDEX(Planning!$B$16:$FZ$16,ROW(A27)))","v":""},{"$f":"IF(ISBLANK(INDEX(Reporting!$B$9:$FZ$9,ROW(A27))),\"\",INDEX(Reporting!$B$9:$FZ$9,ROW(A27)))","v":""},{"$f":"IF(OR(IF(ISBLANK(A28),TRUE,FALSE),ISBLANK(Planning!$B$11)),\"\",Planning!$B$11)","v":""},null,{"$f":"IF(ISBLANK(INDEX(Planning!$B$16:$FZ$16,ROW(A26))),\"\",INDEX(Planning!$B$16:$FZ$16,ROW(A26)))","v":""},{"$f":"IF(ISBLANK(INDEX(Planning!$B$17:$FZ$17,ROW(A26))),\"\",INDEX(Planning!$B$17:$FZ$17,ROW(A26)))","v":""},{"$f":"IF(ISBLANK(INDEX(Reporting!$B$9:$FZ$9,ROW(A26))),\"\",INDEX(Reporting!$B$9:$FZ$9,ROW(A26)))","v":""},{"$f":"IF(ISBLANK(INDEX(Reporting!$B$11:$FZ$11,ROW(A26))),\"\",INDEX(Reporting!$B$11:$FZ$11,ROW(A26)))","v":""},{"$f":"IF(ISBLANK(INDEX(Reporting!$B$18:$FZ$18,ROW(A26))),\"\",IF(INDEX(Reporting!$B$18:$FZ$18,ROW(A26))=\"No Failures Observed\",NA(),INDEX(Reporting!$B$18:$FZ$18,ROW(A26))))","v":""},{"$f":"IF(ISBLANK(INDEX('Optional Reporting'!$B$11:$FZ$11,ROW(A26))),NA(),INDEX('Optional Reporting'!$B$11:$FZ$11,ROW(A26)))","v":{"$error":"#N/A"}},{"$f":"IF((INDEX('Optional Reporting'!$B$17:$FZ$17,ROW(A26)))=\"\",NA(),INDEX('Optional Reporting'!$B$17:$FZ$17,ROW(A26)))","v":{"$error":"#N/A"}},{"$f":"IF(ISBLANK(INDEX(Reporting!$B$12:$FZ$12,ROW(A25))),\"\",INDEX(Reporting!$B$12:$FZ$12,ROW(A25)))","v":""}]
[null,null,{"$f":"IF(ISBLANK(INDEX(Planning!$B$16:$FZ$16,ROW(A28))),\"\",INDEX(Planning!$B$16:$FZ$16,ROW(A28)))","v":""},{"$f":"IF(ISBLANK(INDEX(Reporting!$B$9:$FZ$9,ROW(A28))),\"\",INDEX(Reporting!$B$9:$FZ$9,ROW(A28)))","v":""},{"$f":"IF(OR(IF(ISBLANK(A29),TRUE,FALSE),ISBLANK(Planning!$B$11)),\"\",Planning!$B$11)","v":""},null,{"$f":"IF(ISBLANK(INDEX(Planning!$B$16:$FZ$16,ROW(A27))),\"\",INDEX(Planning!$B$16:$FZ$16,ROW(A27)))","v":""},{"$f":"IF(ISBLANK(INDEX(Planning!$B$17:$FZ$17,ROW(A27))),\"\",INDEX(Planning!$B$17:$FZ$17,ROW(A27)))","v":""},{"$f":"IF(ISBLANK(INDEX(Reporting!$B$9:$FZ$9,ROW(A27))),\"\",INDEX(Reporting!$B$9:$FZ$9,ROW(A27)))","v":""},{"$f":"IF(ISBLANK(INDEX(Reporting!$B$11:$FZ$11,ROW(A27))),\"\",INDEX(Reporting!$B$11:$FZ$11,ROW(A27)))","v":""},{"$f":"IF(ISBLANK(INDEX(Reporting!$B$18:$FZ$18,ROW(A27))),\"\",IF(INDEX(Reporting!$B$18:$FZ$18,ROW(A27))=\"No Failures Observed\",NA(),INDEX(Reporting!$B$18:$FZ$18,ROW(A27))))","v":""},{"$f":"IF(ISBLANK(INDEX('Optional Reporting'!$B$11:$FZ$11,ROW(A27))),NA(),INDEX('Optional Reporting'!$B$11:$FZ$11,ROW(A27)))","v":{"$error":"#N/A"}},{"$f":"IF((INDEX('Optional Reporting'!$B$17:$FZ$17,ROW(A27)))=\"\",NA(),INDEX('Optional Reporting'!$B$17:$FZ$17,ROW(A27)))","v":{"$error":"#N/A"}},{"$f":"IF(ISBLANK(INDEX(Reporting!$B$12:$FZ$12,ROW(A26))),\"\",INDEX(Reporting!$B$12:$FZ$12,ROW(A26)))","v":""}]
[null,null,{"$f":"IF(ISBLANK(INDEX(Planning!$B$16:$FZ$16,ROW(A29))),\"\",INDEX(Planning!$B$16:$FZ$16,ROW(A29)))","v":""},{"$f":"IF(ISBLANK(INDEX(Reporting!$B$9:$FZ$9,ROW(A29))),\"\",INDEX(Reporting!$B$9:$FZ$9,ROW(A29)))","v":""},{"$f":"IF(OR(IF(ISBLANK(A30),TRUE,FALSE),ISBLANK(Planning!$B$11)),\"\",Planning!$B$11)","v":""},null,{"$f":"IF(ISBLANK(INDEX(Planning!$B$16:$FZ$16,ROW(A28))),\"\",INDEX(Planning!$B$16:$FZ$16,ROW(A28)))","v":""},{"$f":"IF(ISBLANK(INDEX(Planning!$B$17:$FZ$17,ROW(A28))),\"\",INDEX(Planning!$B$17:$FZ$17,ROW(A28)))","v":""},{"$f":"IF(ISBLANK(INDEX(Reporting!$B$9:$FZ$9,ROW(A28))),\"\",INDEX(Reporting!$B$9:$FZ$9,ROW(A28)))","v":""},{"$f":"IF(ISBLANK(INDEX(Reporting!$B$11:$FZ$11,ROW(A28))),\"\",INDEX(Reporting!$B$11:$FZ$11,ROW(A28)))","v":""},{"$f":"IF(ISBLANK(INDEX(Reporting!$B$18:$FZ$18,ROW(A28))),\"\",IF(INDEX(Reporting!$B$18:$FZ$18,ROW(A28))=\"No Failures Observed\",NA(),INDEX(Reporting!$B$18:$FZ$18,ROW(A28))))","v":""},{"$f":"IF(ISBLANK(INDEX('Optional Reporting'!$B$11:$FZ$11,ROW(A28))),NA(),INDEX('Optional Reporting'!$B$11:$FZ$11,ROW(A28)))","v":{"$error":"#N/A"}},{"$f":"IF((INDEX('Optional Reporting'!$B$17:$FZ$17,ROW(A28)))=\"\",NA(),INDEX('Optional Reporting'!$B$17:$FZ$17,ROW(A28)))","v":{"$error":"#N/A"}},{"$f":"IF(ISBLANK(INDEX(Reporting!$B$12:$FZ$12,ROW(A27))),\"\",INDEX(Reporting!$B$12:$FZ$12,ROW(A27)))","v":""}]
[null,null,{"$f":"IF(ISBLANK(INDEX(Planning!$B$16:$FZ$16,ROW(A30))),\"\",INDEX(Planning!$B$16:$FZ$16,ROW(A30)))","v":""},{"$f":"IF(ISBLANK(INDEX(Reporting!$B$9:$FZ$9,ROW(A30))),\"\",INDEX(Reporting!$B$9:$FZ$9,ROW(A30)))","v":""},{"$f":"IF(OR(IF(ISBLANK(A31),TRUE,FALSE),ISBLANK(Planning!$B$11)),\"\",Planning!$B$11)","v":""},null,{"$f":"IF(ISBLANK(INDEX(Planning!$B$16:$FZ$16,ROW(A29))),\"\",INDEX(Planning!$B$16:$FZ$16,ROW(A29)))","v":""},{"$f":"IF(ISBLANK(INDEX(Planning!$B$17:$FZ$17,ROW(A29))),\"\",INDEX(Planning!$B$17:$FZ$17,ROW(A29)))","v":""},{"$f":"IF(ISBLANK(INDEX(Reporting!$B$9:$FZ$9,ROW(A29))),\"\",INDEX(Reporting!$B$9:$FZ$9,ROW(A29)))","v":""},{"$f":"IF(ISBLANK(INDEX(Reporting!$B$11:$FZ$11,ROW(A29))),\"\",INDEX(Reporting!$B$11:$FZ$11,ROW(A29)))","v":""},{"$f":"IF(ISBLANK(INDEX(Reporting!$B$18:$FZ$18,ROW(A29))),\"\",IF(INDEX(Reporting!$B$18:$FZ$18,ROW(A29))=\"No Failures Observed\",NA(),INDEX(Reporting!$B$18:$FZ$18,ROW(A29))))","v":""},{"$f":"IF(ISBLANK(INDEX('Optional Reporting'!$B$11:$FZ$11,ROW(A29))),NA(),INDEX('Optional Reporting'!$B$11:$FZ$11,ROW(A29)))","v":{"$error":"#N/A"}},{"$f":"IF((INDEX('Optional Reporting'!$B$17:$FZ$17,ROW(A29)))=\"\",NA(),INDEX('Optional Reporting'!$B$17:$FZ$17,ROW(A29)))","v":{"$error":"#N/A"}},{"$f":"IF(ISBLANK(INDEX(Reporting!$B$12:$FZ$12,ROW(A28))),\"\",INDEX(Reporting!$B$12:$FZ$12,ROW(A28)))","v":""}]
[null,null,{"$f":"IF(ISBLANK(INDEX(Planning!$B$16:$FZ$16,ROW(A31))),\"\",INDEX(Planning!$B$16:$FZ$16,ROW(A31)))","v":""},{"$f":"IF(ISBLANK(INDEX(Reporting!$B$9:$FZ$9,ROW(A31))),\"\",INDEX(Reporting!$B$9:$FZ$9,ROW(A31)))","v":""},{"$f":"IF(OR(IF(ISBLANK(A32),TRUE,FALSE),ISBLANK(Planning!$B$11)),\"\",Planning!$B$11)","v":""},null,{"$f":"IF(ISBLANK(INDEX(Planning!$B$16:$FZ$16,ROW(A30))),\"\",INDEX(Planning!$B$16:$FZ$16,ROW(A30)))","v":""},{"$f":"IF(ISBLANK(INDEX(Planning!$B$17:$FZ$17,ROW(A30))),\"\",INDEX(Planning!$B$17:$FZ$17,ROW(A30)))","v":""},{"$f":"IF(ISBLANK(INDEX(Reporting!$B$9:$FZ$9,ROW(A30))),\"\",INDEX(Reporting!$B$9:$FZ$9,ROW(A30)))","v":""},{"$f":"IF(ISBLANK(INDEX(Reporting!$B$11:$FZ$11,ROW(A30))),\"\",INDEX(Reporting!$B$11:$FZ$11,ROW(A30)))","v":""},{"$f":"IF(ISBLANK(INDEX(Reporting!$B$18:$FZ$18,ROW(A30))),\"\",IF(INDEX(Reporting!$B$18:$FZ$18,ROW(A30))=\"No Failures Observed\",NA(),INDEX(Reporting!$B$18:$FZ$18,ROW(A30))))","v":""},{"$f":"IF(ISBLANK(INDEX('Optional Reporting'!$B$11:$FZ$11,ROW(A30))),NA(),INDEX('Optional Reporting'!$B$11:$FZ$11,ROW(A30)))","v":{"$error":"#N/A"}},{"$f":"IF((INDEX('Optional Reporting'!$B$17:$FZ$17,ROW(A30)))=\"\",NA(),INDEX('Optional Reporting'!$B$17:$FZ$17,ROW(A30)))","v":{"$error":"#N/A"}},{"$f":"IF(ISBLANK(INDEX(Reporting!$B$12:$FZ$12,ROW(A29))),\"\",INDEX(Reporting!$B$12:$FZ$12,ROW(A29)))","v":""}]
[null,null,{"$f":"IF(ISBLANK(INDEX(Planning!$B$16:$FZ$16,ROW(A32))),\"\",INDEX(Planning!$B$16:$FZ$16,ROW(A32)))","v":""},{"$f":"IF(ISBLANK(INDEX(Reporting!$B$9:$FZ$9,ROW(A32))),\"\",INDEX(Reporting!$B$9:$FZ$9,ROW(A32)))","v":""},{"$f":"IF(OR(IF(ISBLANK(A33),TRUE,FALSE),ISBLANK(Planning!$B$11)),\"\",Planning!$B$11)","v":""},null,{"$f":"IF(ISBLANK(INDEX(Planning!$B$16:$FZ$16,ROW(A31))),\"\",INDEX(Planning!$B$16:$FZ$16,ROW(A31)))","v":""},{"$f":"IF(ISBLANK(INDEX(Planning!$B$17:$FZ$17,ROW(A31))),\"\",INDEX(Planning!$B$17:$FZ$17,ROW(A31)))","v":""},{"$f":"IF(ISBLANK(INDEX(Reporting!$B$9:$FZ$9,ROW(A31))),\"\",INDEX(Reporting!$B$9:$FZ$9,ROW(A31)))","v":""},{"$f":"IF(ISBLANK(INDEX(Reporting!$B$11:$FZ$11,ROW(A31))),\"\",INDEX(Reporting!$B$11:$FZ$11,ROW(A31)))","v":""},{"$f":"IF(ISBLANK(INDEX(Reporting!$B$18:$FZ$18,ROW(A31))),\"\",IF(INDEX(Reporting!$B$18:$FZ$18,ROW(A31))=\"No Failures Observed\",NA(),INDEX(Reporting!$B$18:$FZ$18,ROW(A31))))","v":""},{"$f":"IF(ISBLANK(INDEX('Optional Reporting'!$B$11:$FZ$11,ROW(A31))),NA(),INDEX('Optional Reporting'!$B$11:$FZ$11,ROW(A31)))","v":{"$error":"#N/A"}},{"$f":"IF((INDEX('Optional Reporting'!$B$17:$FZ$17,ROW(A31)))=\"\",NA(),INDEX('Optional Reporting'!$B$17:$FZ$17,ROW(A31)))","v":{"$error":"#N/A"}},{"$f":"IF(ISBLANK(INDEX(Reporting!$B$12:$FZ$12,ROW(A30))),\"\",INDEX(Reporting!$B$12:$FZ$12,ROW(A30)))","v":""}]
[null,null,{"$f":"IF(ISBLANK(INDEX(Planning!$B$16:$FZ$16,ROW(A33))),\"\",INDEX(Planning!$B$16:$FZ$16,ROW(A33)))","v":""},{"$f":"IF(ISBLANK(INDEX(Reporting!$B$9:$FZ$9,ROW(A33))),\"\",INDEX(Reporting!$B$9:$FZ$9,ROW(A33)))","v":""},{"$f":"IF(OR(IF(ISBLANK(A34),TRUE,FALSE),ISBLANK(Planning!$B$11)),\"\",Planning!$B$11)","v":""},null,{"$f":"IF(ISBLANK(INDEX(Planning!$B$16:$FZ$16,ROW(A32))),\"\",INDEX(Planning!$B$16:$FZ$16,ROW(A32)))","v":""},{"$f":"IF(ISBLANK(INDEX(Planning!$B$17:$FZ$17,ROW(A32))),\"\",INDEX(Planning!$B$17:$FZ$17,ROW(A32)))","v":""},{"$f":"IF(ISBLANK(INDEX(Reporting!$B$9:$FZ$9,ROW(A32))),\"\",INDEX(Reporting!$B$9:$FZ$9,ROW(A32)))","v":""},{"$f":"IF(ISBLANK(INDEX(Reporting!$B$11:$FZ$11,ROW(A32))),\"\",INDEX(Reporting!$B$11:$FZ$11,ROW(A32)))","v":""},{"$f":"IF(ISBLANK(INDEX(Reporting!$B$18:$FZ$18,ROW(A32))),\"\",IF(INDEX(Reporting!$B$18:$FZ$18,ROW(A32))=\"No Failures Observed\",NA(),INDEX(Reporting!$B$18:$FZ$18,ROW(A32))))","v":""},{"$f":"IF(ISBLANK(INDEX('Optional Reporting'!$B$11:$FZ$11,ROW(A32))),NA(),INDEX('Optional Reporting'!$B$11:$FZ$11,ROW(A32)))","v":{"$error":"#N/A"}},{"$f":"IF((INDEX('Optional Reporting'!$B$17:$FZ$17,ROW(A32)))=\"\",NA(),INDEX('Optional Reporting'!$B$17:$FZ$17,ROW(A32)))","v":{"$error":"#N/A"}},{"$f":"IF(ISBLANK(INDEX(Reporting!$B$12:$FZ$12,ROW(A31))),\"\",INDEX(Reporting!$B$12:$FZ$12,ROW(A31)))","v":""}]
[null,null,{"$f":"IF(ISBLANK(INDEX(Planning!$B$16:$FZ$16,ROW(A34))),\"\",INDEX(Planning!$B$16:$FZ$16,ROW(A34)))","v":""},{"$f":"IF(ISBLANK(INDEX(Reporting!$B$9:$FZ$9,ROW(A34))),\"\",INDEX(Reporting!$B$9:$FZ$9,ROW(A34)))","v":""},{"$f":"IF(OR(IF(ISBLANK(A35),TRUE,FALSE),ISBLANK(Planning!$B$11)),\"\",Planning!$B$11)","v":""},null,{"$f":"IF(ISBLANK(INDEX(Planning!$B$16:$FZ$16,ROW(A33))),\"\",INDEX(Planning!$B$16:$FZ$16,ROW(A33)))","v":""},{"$f":"IF(ISBLANK(INDEX(Planning!$B$17:$FZ$17,ROW(A33))),\"\",INDEX(Planning!$B$17:$FZ$17,ROW(A33)))","v":""},{"$f":"IF(ISBLANK(INDEX(Reporting!$B$9:$FZ$9,ROW(A33))),\"\",INDEX(Reporting!$B$9:$FZ$9,ROW(A33)))","v":""},{"$f":"IF(ISBLANK(INDEX(Reporting!$B$11:$FZ$11,ROW(A33))),\"\",INDEX(Reporting!$B$11:$FZ$11,ROW(A33)))","v":""},{"$f":"IF(ISBLANK(INDEX(Reporting!$B$18:$FZ$18,ROW(A33))),\"\",IF(INDEX(Reporting!$B$18:$FZ$18,ROW(A33))=\"No Failures Observed\",NA(),INDEX(Reporting!$B$18:$FZ$18,ROW(A33))))","v":""},{"$f":"IF(ISBLANK(INDEX('Optional Reporting'!$B$11:$FZ$11,ROW(A33))),NA(),INDEX('Optional Reporting'!$B$11:$FZ$11,ROW(A33)))","v":{"$error":"#N/A"}},{"$f":"IF((INDEX('Optional Reporting'!$B$17:$FZ$17,ROW(A33)))=\"\",NA(),INDEX('Optional Reporting'!$B$17:$FZ$17,ROW(A33)))","v":{"$error":"#N/A"}},{"$f":"IF(ISBLANK(INDEX(Reporting!$B$12:$FZ$12,ROW(A32))),\"\",INDEX(Reporting!$B$12:$FZ$12,ROW(A32)))","v":""}]
[null,null,{"$f":"IF(ISBLANK(INDEX(Planning!$B$16:$FZ$16,ROW(A35))),\"\",INDEX(Planning!$B$16:$FZ$16,ROW(A35)))","v":""},{"$f":"IF(ISBLANK(INDEX(Reporting!$B$9:$FZ$9,ROW(A35))),\"\",INDEX(Reporting!$B$9:$FZ$9,ROW(A35)))","v":""},{"$f":"IF(OR(IF(ISBLANK(A36),TRUE,FALSE),ISBLANK(Planning!$B$11)),\"\",Planning!$B$11)","v":""},null,{"$f":"IF(ISBLANK(INDEX(Planning!$B$16:$FZ$16,ROW(A34))),\"\",INDEX(Planning!$B$16:$FZ$16,ROW(A34)))","v":""},{"$f":"IF(ISBLANK(INDEX(Planning!$B$17:$FZ$17,ROW(A34))),\"\",INDEX(Planning!$B$17:$FZ$17,ROW(A34)))","v":""},{"$f":"IF(ISBLANK(INDEX(Reporting!$B$9:$FZ$9,ROW(A34))),\"\",INDEX(Reporting!$B$9:$FZ$9,ROW(A34)))","v":""},{"$f":"IF(ISBLANK(INDEX(Reporting!$B$11:$FZ$11,ROW(A34))),\"\",INDEX(Reporting!$B$11:$FZ$11,ROW(A34)))","v":""},{"$f":"IF(ISBLANK(INDEX(Reporting!$B$18:$FZ$18,ROW(A34))),\"\",IF(INDEX(Reporting!$B$18:$FZ$18,ROW(A34))=\"No Failures Observed\",NA(),INDEX(Reporting!$B$18:$FZ$18,ROW(A34))))","v":""},{"$f":"IF(ISBLANK(INDEX('Optional Reporting'!$B$11:$FZ$11,ROW(A34))),NA(),INDEX('Optional Reporting'!$B$11:$FZ$11,ROW(A34)))","v":{"$error":"#N/A"}},{"$f":"IF((INDEX('Optional Reporting'!$B$17:$FZ$17,ROW(A34)))=\"\",NA(),INDEX('Optional Reporting'!$B$17:$FZ$17,ROW(A34)))","v":{"$error":"#N/A"}},{"$f":"IF(ISBLANK(INDEX(Reporting!$B$12:$FZ$12,ROW(A33))),\"\",INDEX(Reporting!$B$12:$FZ$12,ROW(A33)))","v":""}]
[null,null,{"$f":"IF(ISBLANK(INDEX(Planning!$B$16:$FZ$16,ROW(A36))),\"\",INDEX(Planning!$B$16:$FZ$16,ROW(A36)))","v":""},{"$f":"IF(ISBLANK(INDEX(Reporting!$B$9:$FZ$9,ROW(A36))),\"\",INDEX(Reporting!$B$9:$FZ$9,ROW(A36)))","v":""},{"$f":"IF(OR(IF(ISBLANK(A37),TRUE,FALSE),ISBLANK(Planning!$B$11)),\"\",Planning!$B$11)","v":""},null,{"$f":"IF(ISBLANK(INDEX(Planning!$B$16:$FZ$16,ROW(A35))),\"\",INDEX(Planning!$B$16:$FZ$16,ROW(A35)))","v":""},{"$f":"IF(ISBLANK(INDEX(Planning!$B$17:$FZ$17,ROW(A35))),\"\",INDEX(Planning!$B$17:$FZ$17,ROW(A35)))","v":""},{"$f":"IF(ISBLANK(INDEX(Reporting!$B$9:$FZ$9,ROW(A35))),\"\",INDEX(Reporting!$B$9:$FZ$9,ROW(A35)))","v":""},{"$f":"IF(ISBLANK(INDEX(Reporting!$B$11:$FZ$11,ROW(A35))),\"\",INDEX(Reporting!$B$11:$FZ$11,ROW(A35)))","v":""},{"$f":"IF(ISBLANK(INDEX(Reporting!$B$18:$FZ$18,ROW(A35))),\"\",IF(INDEX(Reporting!$B$18:$FZ$18,ROW(A35))=\"No Failures Observed\",NA(),INDEX(Reporting!$B$18:$FZ$18,ROW(A35))))","v":""},{"$f":"IF(ISBLANK(INDEX('Optional Reporting'!$B$11:$FZ$11,ROW(A35))),NA(),INDEX('Optional Reporting'!$B$11:$FZ$11,ROW(A35)))","v":{"$error":"#N/A"}},{"$f":"IF((INDEX('Optional Reporting'!$B$17:$FZ$17,ROW(A35)))=\"\",NA(),INDEX('Optional Reporting'!$B$17:$FZ$17,ROW(A35)))","v":{"$error":"#N/A"}},{"$f":"IF(ISBLANK(INDEX(Reporting!$B$12:$FZ$12,ROW(A34))),\"\",INDEX(Reporting!$B$12:$FZ$12,ROW(A34)))","v":""}]
[null,null,{"$f":"IF(ISBLANK(INDEX(Planning!$B$16:$FZ$16,ROW(A37))),\"\",INDEX(Planning!$B$16:$FZ$16,ROW(A37)))","v":""},{"$f":"IF(ISBLANK(INDEX(Reporting!$B$9:$FZ$9,ROW(A37))),\"\",INDEX(Reporting!$B$9:$FZ$9,ROW(A37)))","v":""},{"$f":"IF(OR(IF(ISBLANK(A38),TRUE,FALSE),ISBLANK(Planning!$B$11)),\"\",Planning!$B$11)","v":""},null,{"$f":"IF(ISBLANK(INDEX(Planning!$B$16:$FZ$16,ROW(A36))),\"\",INDEX(Planning!$B$16:$FZ$16,ROW(A36)))","v":""},{"$f":"IF(ISBLANK(INDEX(Planning!$B$17:$FZ$17,ROW(A36))),\"\",INDEX(Planning!$B$17:$FZ$17,ROW(A36)))","v":""},{"$f":"IF(ISBLANK(INDEX(Reporting!$B$9:$FZ$9,ROW(A36))),\"\",INDEX(Reporting!$B$9:$FZ$9,ROW(A36)))","v":""},{"$f":"IF(ISBLANK(INDEX(Reporting!$B$11:$FZ$11,ROW(A36))),\"\",INDEX(Reporting!$B$11:$FZ$11,ROW(A36)))","v":""},{"$f":"IF(ISBLANK(INDEX(Reporting!$B$18:$FZ$18,ROW(A36))),\"\",IF(INDEX(Reporting!$B$18:$FZ$18,ROW(A36))=\"No Failures Observed\",NA(),INDEX(Reporting!$B$18:$FZ$18,ROW(A36))))","v":""},{"$f":"IF(ISBLANK(INDEX('Optional Reporting'!$B$11:$FZ$11,ROW(A36))),NA(),INDEX('Optional Reporting'!$B$11:$FZ$11,ROW(A36)))","v":{"$error":"#N/A"}},{"$f":"IF((INDEX('Optional Reporting'!$B$17:$FZ$17,ROW(A36)))=\"\",NA(),INDEX('Optional Reporting'!$B$17:$FZ$17,ROW(A36)))","v":{"$error":"#N/A"}},{"$f":"IF(ISBLANK(INDEX(Reporting!$B$12:$FZ$12,ROW(A35))),\"\",INDEX(Reporting!$B$12:$FZ$12,ROW(A35)))","v":""}]
[null,null,{"$f":"IF(ISBLANK(INDEX(Planning!$B$16:$FZ$16,ROW(A38))),\"\",INDEX(Planning!$B$16:$FZ$16,ROW(A38)))","v":""},{"$f":"IF(ISBLANK(INDEX(Reporting!$B$9:$FZ$9,ROW(A38))),\"\",INDEX(Reporting!$B$9:$FZ$9,ROW(A38)))","v":""},{"$f":"IF(OR(IF(ISBLANK(A39),TRUE,FALSE),ISBLANK(Planning!$B$11)),\"\",Planning!$B$11)","v":""},null,{"$f":"IF(ISBLANK(INDEX(Planning!$B$16:$FZ$16,ROW(A37))),\"\",INDEX(Planning!$B$16:$FZ$16,ROW(A37)))","v":""},{"$f":"IF(ISBLANK(INDEX(Planning!$B$17:$FZ$17,ROW(A37))),\"\",INDEX(Planning!$B$17:$FZ$17,ROW(A37)))","v":""},{"$f":"IF(ISBLANK(INDEX(Reporting!$B$9:$FZ$9,ROW(A37))),\"\",INDEX(Reporting!$B$9:$FZ$9,ROW(A37)))","v":""},{"$f":"IF(ISBLANK(INDEX(Reporting!$B$11:$FZ$11,ROW(A37))),\"\",INDEX(Reporting!$B$11:$FZ$11,ROW(A37)))","v":""},{"$f":"IF(ISBLANK(INDEX(Reporting!$B$18:$FZ$18,ROW(A37))),\"\",IF(INDEX(Reporting!$B$18:$FZ$18,ROW(A37))=\"No Failures Observed\",NA(),INDEX(Reporting!$B$18:$FZ$18,ROW(A37))))","v":""},{"$f":"IF(ISBLANK(INDEX('Optional Reporting'!$B$11:$FZ$11,ROW(A37))),NA(),INDEX('Optional Reporting'!$B$11:$FZ$11,ROW(A37)))","v":{"$error":"#N/A"}},{"$f":"IF((INDEX('Optional Reporting'!$B$17:$FZ$17,ROW(A37)))=\"\",NA(),INDEX('Optional Reporting'!$B$17:$FZ$17,ROW(A37)))","v":{"$error":"#N/A"}},{"$f":"IF(ISBLANK(INDEX(Reporting!$B$12:$FZ$12,ROW(A36))),\"\",INDEX(Reporting!$B$12:$FZ$12,ROW(A36)))","v":""}]
[null,null,{"$f":"IF(ISBLANK(INDEX(Planning!$B$16:$FZ$16,ROW(A39))),\"\",INDEX(Planning!$B$16:$FZ$16,ROW(A39)))","v":""},{"$f":"IF(ISBLANK(INDEX(Reporting!$B$9:$FZ$9,ROW(A39))),\"\",INDEX(Reporting!$B$9:$FZ$9,ROW(A39)))","v":""},{"$f":"IF(OR(IF(ISBLANK(A40),TRUE,FALSE),ISBLANK(Planning!$B$11)),\"\",Planning!$B$11)","v":""},null,{"$f":"IF(ISBLANK(INDEX(Planning!$B$16:$FZ$16,ROW(A38))),\"\",INDEX(Planning!$B$16:$FZ$16,ROW(A38)))","v":""},{"$f":"IF(ISBLANK(INDEX(Planning!$B$17:$FZ$17,ROW(A38))),\"\",INDEX(Planning!$B$17:$FZ$17,ROW(A38)))","v":""},{"$f":"IF(ISBLANK(INDEX(Reporting!$B$9:$FZ$9,ROW(A38))),\"\",INDEX(Reporting!$B$9:$FZ$9,ROW(A38)))","v":""},{"$f":"IF(ISBLANK(INDEX(Reporting!$B$11:$FZ$11,ROW(A38))),\"\",INDEX(Reporting!$B$11:$FZ$11,ROW(A38)))","v":""},{"$f":"IF(ISBLANK(INDEX(Reporting!$B$18:$FZ$18,ROW(A38))),\"\",IF(INDEX(Reporting!$B$18:$FZ$18,ROW(A38))=\"No Failures Observed\",NA(),INDEX(Reporting!$B$18:$FZ$18,ROW(A38))))","v":""},{"$f":"IF(ISBLANK(INDEX('Optional Reporting'!$B$11:$FZ$11,ROW(A38))),NA(),INDEX('Optional Reporting'!$B$11:$FZ$11,ROW(A38)))","v":{"$error":"#N/A"}},{"$f":"IF((INDEX('Optional Reporting'!$B$17:$FZ$17,ROW(A38)))=\"\",NA(),INDEX('Optional Reporting'!$B$17:$FZ$17,ROW(A38)))","v":{"$error":"#N/A"}},{"$f":"IF(ISBLANK(INDEX(Reporting!$B$12:$FZ$12,ROW(A37))),\"\",INDEX(Reporting!$B$12:$FZ$12,ROW(A37)))","v":""}]
[null,null,{"$f":"IF(ISBLANK(INDEX(Planning!$B$16:$FZ$16,ROW(A40))),\"\",INDEX(Planning!$B$16:$FZ$16,ROW(A40)))","v":""},{"$f":"IF(ISBLANK(INDEX(Reporting!$B$9:$FZ$9,ROW(A40))),\"\",INDEX(Reporting!$B$9:$FZ$9,ROW(A40)))","v":""},{"$f":"IF(OR(IF(ISBLANK(A41),TRUE,FALSE),ISBLANK(Planning!$B$11)),\"\",Planning!$B$11)","v":""},null,{"$f":"IF(ISBLANK(INDEX(Planning!$B$16:$FZ$16,ROW(A39))),\"\",INDEX(Planning!$B$16:$FZ$16,ROW(A39)))","v":""},{"$f":"IF(ISBLANK(INDEX(Planning!$B$17:$FZ$17,ROW(A39))),\"\",INDEX(Planning!$B$17:$FZ$17,ROW(A39)))","v":""},{"$f":"IF(ISBLANK(INDEX(Reporting!$B$9:$FZ$9,ROW(A39))),\"\",INDEX(Reporting!$B$9:$FZ$9,ROW(A39)))","v":""},{"$f":"IF(ISBLANK(INDEX(Reporting!$B$11:$FZ$11,ROW(A39))),\"\",INDEX(Reporting!$B$11:$FZ$11,ROW(A39)))","v":""},{"$f":"IF(ISBLANK(INDEX(Reporting!$B$18:$FZ$18,ROW(A39))),\"\",IF(INDEX(Reporting!$B$18:$FZ$18,ROW(A39))=\"No Failures Observed\",NA(),INDEX(Reporting!$B$18:$FZ$18,ROW(A39))))","v":""},{"$f":"IF(ISBLANK(INDEX('Optional Reporting'!$B$11:$FZ$11,ROW(A39))),NA(),INDEX('Optional Reporting'!$B$11:$FZ$11,ROW(A39)))","v":{"$error":"#N/A"}},{"$f":"IF((INDEX('Optional Reporting'!$B$17:$FZ$17,ROW(A39)))=\"\",NA(),INDEX('Optional Reporting'!$B$17:$FZ$17,ROW(A39)))","v":{"$error":"#N/A"}},{"$f":"IF(ISBLANK(INDEX(Reporting!$B$12:$FZ$12,ROW(A38))),\"\",INDEX(Reporting!$B$12:$FZ$12,ROW(A38)))","v":""}]
[null,null,{"$f":"IF(ISBLANK(INDEX(Planning!$B$16:$FZ$16,ROW(A41))),\"\",INDEX(Planning!$B$16:$FZ$16,ROW(A41)))","v":""},{"$f":"IF(ISBLANK(INDEX(Reporting!$B$9:$FZ$9,ROW(A41))),\"\",INDEX(Reporting!$B$9:$FZ$9,ROW(A41)))","v":""},{"$f":"IF(OR(IF(ISBLANK(A42),TRUE,FALSE),ISBLANK(Planning!$B$11)),\"\",Planning!$B$11)","v":""},null,{"$f":"IF(ISBLANK(INDEX(Planning!$B$16:$FZ$16,ROW(A40))),\"\",INDEX(Planning!$B$16:$FZ$16,ROW(A40)))","v":""},{"$f":"IF(ISBLANK(INDEX(Planning!$B$17:$FZ$17,ROW(A40))),\"\",INDEX(Planning!$B$17:$FZ$17,ROW(A40)))","v":""},{"$f":"IF(ISBLANK(INDEX(Reporting!$B$9:$FZ$9,ROW(A40))),\"\",INDEX(Reporting!$B$9:$FZ$9,ROW(A40)))","v":""},{"$f":"IF(ISBLANK(INDEX(Reporting!$B$11:$FZ$11,ROW(A40))),\"\",INDEX(Reporting!$B$11:$FZ$11,ROW(A40)))","v":""},{"$f":"IF(ISBLANK(INDEX(Reporting!$B$18:$FZ$18,ROW(A40))),\"\",IF(INDEX(Reporting!$B$18:$FZ$18,ROW(A40))=\"No Failures Observed\",NA(),INDEX(Reporting!$B$18:$FZ$18,ROW(A40))))","v":""},{"$f":"IF(ISBLANK(INDEX('Optional Reporting'!$B$11:$FZ$11,ROW(A40))),NA(),INDEX('Optional Reporting'!$B$11:$FZ$11,ROW(A40)))","v":{"$error":"#N/A"}},{"$f":"IF((INDEX('Optional Reporting'!$B$17:$FZ$17,ROW(A40)))=\"\",NA(),INDEX('Optional Reporting'!$B$17:$FZ$17,ROW(A40)))","v":{"$error":"#N/A"}},{"$f":"IF(ISBLANK(INDEX(Reporting!$B$12:$FZ$12,ROW(A39))),\"\",INDEX(Reporting!$B$12:$FZ$12,ROW(A39)))","v":""}]
[null,null,{"$f":"IF(ISBLANK(INDEX(Planning!$B$16:$FZ$16,ROW(A42))),\"\",INDEX(Planning!$B$16:$FZ$16,ROW(A42)))","v":""},{"$f":"IF(ISBLANK(INDEX(Reporting!$B$9:$FZ$9,ROW(A42))),\"\",INDEX(Reporting!$B$9:$FZ$9,ROW(A42)))","v":""},{"$f":"IF(OR(IF(ISBLANK(A43),TRUE,FALSE),ISBLANK(Planning!$B$11)),\"\",Planning!$B$11)","v":""},null,{"$f":"IF(ISBLANK(INDEX(Planning!$B$16:$FZ$16,ROW(A41))),\"\",INDEX(Planning!$B$16:$FZ$16,ROW(A41)))","v":""},{"$f":"IF(ISBLANK(INDEX(Planning!$B$17:$FZ$17,ROW(A41))),\"\",INDEX(Planning!$B$17:$FZ$17,ROW(A41)))","v":""},{"$f":"IF(ISBLANK(INDEX(Reporting!$B$9:$FZ$9,ROW(A41))),\"\",INDEX(Reporting!$B$9:$FZ$9,ROW(A41)))","v":""},{"$f":"IF(ISBLANK(INDEX(Reporting!$B$11:$FZ$11,ROW(A41))),\"\",INDEX(Reporting!$B$11:$FZ$11,ROW(A41)))","v":""},{"$f":"IF(ISBLANK(INDEX(Reporting!$B$18:$FZ$18,ROW(A41))),\"\",IF(INDEX(Reporting!$B$18:$FZ$18,ROW(A41))=\"No Failures Observed\",NA(),INDEX(Reporting!$B$18:$FZ$18,ROW(A41))))","v":""},{"$f":"IF(ISBLANK(INDEX('Optional Reporting'!$B$11:$FZ$11,ROW(A41))),NA(),INDEX('Optional Reporting'!$B$11:$FZ$11,ROW(A41)))","v":{"$error":"#N/A"}},{"$f":"IF((INDEX('Optional Reporting'!$B$17:$FZ$17,ROW(A41)))=\"\",NA(),INDEX('Optional Reporting'!$B$17:$FZ$17,ROW(A41)))","v":{"$error":"#N/A"}},{"$f":"IF(ISBLANK(INDEX(Reporting!$B$12:$FZ$12,ROW(A40))),\"\",INDEX(Reporting!$B$12:$FZ$12,ROW(A40)))","v":""}]
[null,null,{"$f":"IF(ISBLANK(INDEX(Planning!$B$16:$FZ$16,ROW(A43))),\"\",INDEX(Planning!$B$16:$FZ$16,ROW(A43)))","v":""},{"$f":"IF(ISBLANK(INDEX(Reporting!$B$9:$FZ$9,ROW(A43))),\"\",INDEX(Reporting!$B$9:$FZ$9,ROW(A43)))","v":""},{"$f":"IF(OR(IF(ISBLANK(A44),TRUE,FALSE),ISBLANK(Planning!$B$11)),\"\",Planning!$B$11)","v":""},null,{"$f":"IF(ISBLANK(INDEX(Planning!$B$16:$FZ$16,ROW(A42))),\"\",INDEX(Planning!$B$16:$FZ$16,ROW(A42)))","v":""},{"$f":"IF(ISBLANK(INDEX(Planning!$B$17:$FZ$17,ROW(A42))),\"\",INDEX(Planning!$B$17:$FZ$17,ROW(A42)))","v":""},{"$f":"IF(ISBLANK(INDEX(Reporting!$B$9:$FZ$9,ROW(A42))),\"\",INDEX(Reporting!$B$9:$FZ$9,ROW(A42)))","v":""},{"$f":"IF(ISBLANK(INDEX(Reporting!$B$11:$FZ$11,ROW(A42))),\"\",INDEX(Reporting!$B$11:$FZ$11,ROW(A42)))","v":""},{"$f":"IF(ISBLANK(INDEX(Reporting!$B$18:$FZ$18,ROW(A42))),\"\",IF(INDEX(Reporting!$B$18:$FZ$18,ROW(A42))=\"No Failures Observed\",NA(),INDEX(Reporting!$B$18:$FZ$18,ROW(A42))))","v":""},{"$f":"IF(ISBLANK(INDEX('Optional Reporting'!$B$11:$FZ$11,ROW(A42))),NA(),INDEX('Optional Reporting'!$B$11:$FZ$11,ROW(A42)))","v":{"$error":"#N/A"}},{"$f":"IF((INDEX('Optional Reporting'!$B$17:$FZ$17,ROW(A42)))=\"\",NA(),INDEX('Optional Reporting'!$B$17:$FZ$17,ROW(A42)))","v":{"$error":"#N/A"}},{"$f":"IF(ISBLANK(INDEX(Reporting!$B$12:$FZ$12,ROW(A41))),\"\",INDEX(Reporting!$B$12:$FZ$12,ROW(A41)))","v":""}]
[null,null,{"$f":"IF(ISBLANK(INDEX(Planning!$B$16:$FZ$16,ROW(A44))),\"\",INDEX(Planning!$B$16:$FZ$16,ROW(A44)))","v":""},{"$f":"IF(ISBLANK(INDEX(Reporting!$B$9:$FZ$9,ROW(A44))),\"\",INDEX(Reporting!$B$9:$FZ$9,ROW(A44)))","v":""},{"$f":"IF(OR(IF(ISBLANK(A45),TRUE,FALSE),ISBLANK(Planning!$B$11)),\"\",Planning!$B$11)","v":""},null,{"$f":"IF(ISBLANK(INDEX(Planning!$B$16:$FZ$16,ROW(A43))),\"\",INDEX(Planning!$B$16:$FZ$16,ROW(A43)))","v":""},{"$f":"IF(ISBLANK(INDEX(Planning!$B$17:$FZ$17,ROW(A43))),\"\",INDEX(Planning!$B$17:$FZ$17,ROW(A43)))","v":""},{"$f":"IF(ISBLANK(INDEX(Reporting!$B$9:$FZ$9,ROW(A43))),\"\",INDEX(Reporting!$B$9:$FZ$9,ROW(A43)))","v":""},{"$f":"IF(ISBLANK(INDEX(Reporting!$B$11:$FZ$11,ROW(A43))),\"\",INDEX(Reporting!$B$11:$FZ$11,ROW(A43)))","v":""},{"$f":"IF(ISBLANK(INDEX(Reporting!$B$18:$FZ$18,ROW(A43))),\"\",IF(INDEX(Reporting!$B$18:$FZ$18,ROW(A43))=\"No Failures Observed\",NA(),INDEX(Reporting!$B$18:$FZ$18,ROW(A43))))","v":""},{"$f":"IF(ISBLANK(INDEX('Optional Reporting'!$B$11:$FZ$11,ROW(A43))),NA(),INDEX('Optional Reporting'!$B$11:$FZ$11,ROW(A43)))","v":{"$error":"#N/A"}},{"$f":"IF((INDEX('Optional Reporting'!$B$17:$FZ$17,ROW(A43)))=\"\",NA(),INDEX('Optional Reporting'!$B$17:$FZ$17,ROW(A43)))","v":{"$error":"#N/A"}},{"$f":"IF(ISBLANK(INDEX(Reporting!$B$12:$FZ$12,ROW(A42))),\"\",INDEX(Reporting!$B$12:$FZ$12,ROW(A42)))","v":""}]
[null,null,{"$f":"IF(ISBLANK(INDEX(Planning!$B$16:$FZ$16,ROW(A45))),\"\",INDEX(Planning!$B$16:$FZ$16,ROW(A45)))","v":""},{"$f":"IF(ISBLANK(INDEX(Reporting!$B$9:$FZ$9,ROW(A45))),\"\",INDEX(Reporting!$B$9:$FZ$9,ROW(A45)))","v":""},{"$f":"IF(OR(IF(ISBLANK(A46),TRUE,FALSE),ISBLANK(Planning!$B$11)),\"\",Planning!$B$11)","v":""},null,{"$f":"IF(ISBLANK(INDEX(Planning!$B$16:$FZ$16,ROW(A44))),\"\",INDEX(Planning!$B$16:$FZ$16,ROW(A44)))","v":""},{"$f":"IF(ISBLANK(INDEX(Planning!$B$17:$FZ$17,ROW(A44))),\"\",INDEX(Planning!$B$17:$FZ$17,ROW(A44)))","v":""},{"$f":"IF(ISBLANK(INDEX(Reporting!$B$9:$FZ$9,ROW(A44))),\"\",INDEX(Reporting!$B$9:$FZ$9,ROW(A44)))","v":""},{"$f":"IF(ISBLANK(INDEX(Reporting!$B$11:$FZ$11,ROW(A44))),\"\",INDEX(Reporting!$B$11:$FZ$11,ROW(A44)))","v":""},{"$f":"IF(ISBLANK(INDEX(Reporting!$B$18:$FZ$18,ROW(A44))),\"\",IF(INDEX(Reporting!$B$18:$FZ$18,ROW(A44))=\"No Failures Observed\",NA(),INDEX(Reporting!$B$18:$FZ$18,ROW(A44))))","v":""},{"$f":"IF(ISBLANK(INDEX('Optional Reporting'!$B$11:$FZ$11,ROW(A44))),NA(),INDEX('Optional Reporting'!$B$11:$FZ$11,ROW(A44)))","v":{"$error":"#N/A"}},{"$f":"IF((INDEX('Optional Reporting'!$B$17:$FZ$17,ROW(A44)))=\"\",NA(),INDEX('Optional Reporting'!$B$17:$FZ$17,ROW(A44)))","v":{"$error":"#N/A"}},{"$f":"IF(ISBLANK(INDEX(Reporting!$B$12:$FZ$12,ROW(A43))),\"\",INDEX(Reporting!$B$12:$FZ$12,ROW(A43)))","v":""}]
[null,null,{"$f":"IF(ISBLANK(INDEX(Planning!$B$16:$FZ$16,ROW(A46))),\"\",INDEX(Planning!$B$16:$FZ$16,ROW(A46)))","v":""},{"$f":"IF(ISBLANK(INDEX(Reporting!$B$9:$FZ$9,ROW(A46))),\"\",INDEX(Reporting!$B$9:$FZ$9,ROW(A46)))","v":""},{"$f":"IF(OR(IF(ISBLANK(A47),TRUE,FALSE),ISBLANK(Planning!$B$11)),\"\",Planning!$B$11)","v":""},null,{"$f":"IF(ISBLANK(INDEX(Planning!$B$16:$FZ$16,ROW(A45))),\"\",INDEX(Planning!$B$16:$FZ$16,ROW(A45)))","v":""},{"$f":"IF(ISBLANK(INDEX(Planning!$B$17:$FZ$17,ROW(A45))),\"\",INDEX(Planning!$B$17:$FZ$17,ROW(A45)))","v":""},{"$f":"IF(ISBLANK(INDEX(Reporting!$B$9:$FZ$9,ROW(A45))),\"\",INDEX(Reporting!$B$9:$FZ$9,ROW(A45)))","v":""},{"$f":"IF(ISBLANK(INDEX(Reporting!$B$11:$FZ$11,ROW(A45))),\"\",INDEX(Reporting!$B$11:$FZ$11,ROW(A45)))","v":""},{"$f":"IF(ISBLANK(INDEX(Reporting!$B$18:$FZ$18,ROW(A45))),\"\",IF(INDEX(Reporting!$B$18:$FZ$18,ROW(A45))=\"No Failures Observed\",NA(),INDEX(Reporting!$B$18:$FZ$18,ROW(A45))))","v":""},{"$f":"IF(ISBLANK(INDEX('Optional Reporting'!$B$11:$FZ$11,ROW(A45))),NA(),INDEX('Optional Reporting'!$B$11:$FZ$11,ROW(A45)))","v":{"$error":"#N/A"}},{"$f":"IF((INDEX('Optional Reporting'!$B$17:$FZ$17,ROW(A45)))=\"\",NA(),INDEX('Optional Reporting'!$B$17:$FZ$17,ROW(A45)))","v":{"$error":"#N/A"}},{"$f":"IF(ISBLANK(INDEX(Reporting!$B$12:$FZ$12,ROW(A44))),\"\",INDEX(Reporting!$B$12:$FZ$12,ROW(A44)))","v":""}]
[null,null,{"$f":"IF(ISBLANK(INDEX(Planning!$B$16:$FZ$16,ROW(A47))),\"\",INDEX(Planning!$B$16:$FZ$16,ROW(A47)))","v":""},{"$f":"IF(ISBLANK(INDEX(Reporting!$B$9:$FZ$9,ROW(A47))),\"\",INDEX(Reporting!$B$9:$FZ$9,ROW(A47)))","v":""},{"$f":"IF(OR(IF(ISBLANK(A48),TRUE,FALSE),ISBLANK(Planning!$B$11)),\"\",Planning!$B$11)","v":""},null,{"$f":"IF(ISBLANK(INDEX(Planning!$B$16:$FZ$16,ROW(A46))),\"\",INDEX(Planning!$B$16:$FZ$16,ROW(A46)))","v":""},{"$f":"IF(ISBLANK(INDEX(Planning!$B$17:$FZ$17,ROW(A46))),\"\",INDEX(Planning!$B$17:$FZ$17,ROW(A46)))","v":""},{"$f":"IF(ISBLANK(INDEX(Reporting!$B$9:$FZ$9,ROW(A46))),\"\",INDEX(Reporting!$B$9:$FZ$9,ROW(A46)))","v":""},{"$f":"IF(ISBLANK(INDEX(Reporting!$B$11:$FZ$11,ROW(A46))),\"\",INDEX(Reporting!$B$11:$FZ$11,ROW(A46)))","v":""},{"$f":"IF(ISBLANK(INDEX(Reporting!$B$18:$FZ$18,ROW(A46))),\"\",IF(INDEX(Reporting!$B$18:$FZ$18,ROW(A46))=\"No Failures Observed\",NA(),INDEX(Reporting!$B$18:$FZ$18,ROW(A46))))","v":""},{"$f":"IF(ISBLANK(INDEX('Optional Reporting'!$B$11:$FZ$11,ROW(A46))),NA(),INDEX('Optional Reporting'!$B$11:$FZ$11,ROW(A46)))","v":{"$error":"#N/A"}},{"$f":"IF((INDEX('Optional Reporting'!$B$17:$FZ$17,ROW(A46)))=\"\",NA(),INDEX('Optional Reporting'!$B$17:$FZ$17,ROW(A46)))","v":{"$error":"#N/A"}},{"$f":"IF(ISBLANK(INDEX(Reporting!$B$12:$FZ$12,ROW(A45))),\"\",INDEX(Reporting!$B$12:$FZ$12,ROW(A45)))","v":""}]
[null,null,{"$f":"IF(ISBLANK(INDEX(Planning!$B$16:$FZ$16,ROW(A48))),\"\",INDEX(Planning!$B$16:$FZ$16,ROW(A48)))","v":""},{"$f":"IF(ISBLANK(INDEX(Reporting!$B$9:$FZ$9,ROW(A48))),\"\",INDEX(Reporting!$B$9:$FZ$9,ROW(A48)))","v":""},{"$f":"IF(OR(IF(ISBLANK(A49),TRUE,FALSE),ISBLANK(Planning!$B$11)),\"\",Planning!$B$11)","v":""},null,{"$f":"IF(ISBLANK(INDEX(Planning!$B$16:$FZ$16,ROW(A47))),\"\",INDEX(Planning!$B$16:$FZ$16,ROW(A47)))","v":""},{"$f":"IF(ISBLANK(INDEX(Planning!$B$17:$FZ$17,ROW(A47))),\"\",INDEX(Planning!$B$17:$FZ$17,ROW(A47)))","v":""},{"$f":"IF(ISBLANK(INDEX(Reporting!$B$9:$FZ$9,ROW(A47))),\"\",INDEX(Reporting!$B$9:$FZ$9,ROW(A47)))","v":""},{"$f":"IF(ISBLANK(INDEX(Reporting!$B$11:$FZ$11,ROW(A47))),\"\",INDEX(Reporting!$B$11:$FZ$11,ROW(A47)))","v":""},{"$f":"IF(ISBLANK(INDEX(Reporting!$B$18:$FZ$18,ROW(A47))),\"\",IF(INDEX(Reporting!$B$18:$FZ$18,ROW(A47))=\"No Failures Observed\",NA(),INDEX(Reporting!$B$18:$FZ$18,ROW(A47))))","v":""},{"$f":"IF(ISBLANK(INDEX('Optional Reporting'!$B$11:$FZ$11,ROW(A47))),NA(),INDEX('Optional Reporting'!$B$11:$FZ$11,ROW(A47)))","v":{"$error":"#N/A"}},{"$f":"IF((INDEX('Optional Reporting'!$B$17:$FZ$17,ROW(A47)))=\"\",NA(),INDEX('Optional Reporting'!$B$17:$FZ$17,ROW(A47)))","v":{"$error":"#N/A"}},{"$f":"IF(ISBLANK(INDEX(Reporting!$B$12:$FZ$12,ROW(A46))),\"\",INDEX(Reporting!$B$12:$FZ$12,ROW(A46)))","v":""}]
[null,null,{"$f":"IF(ISBLANK(INDEX(Planning!$B$16:$FZ$16,ROW(A49))),\"\",INDEX(Planning!$B$16:$FZ$16,ROW(A49)))","v":""},{"$f":"IF(ISBLANK(INDEX(Reporting!$B$9:$FZ$9,ROW(A49))),\"\",INDEX(Reporting!$B$9:$FZ$9,ROW(A49)))","v":""},{"$f":"IF(OR(IF(ISBLANK(A50),TRUE,FALSE),ISBLANK(Planning!$B$11)),\"\",Planning!$B$11)","v":""},null,{"$f":"IF(ISBLANK(INDEX(Planning!$B$16:$FZ$16,ROW(A48))),\"\",INDEX(Planning!$B$16:$FZ$16,ROW(A48)))","v":""},{"$f":"IF(ISBLANK(INDEX(Planning!$B$17:$FZ$17,ROW(A48))),\"\",INDEX(Planning!$B$17:$FZ$17,ROW(A48)))","v":""},{"$f":"IF(ISBLANK(INDEX(Reporting!$B$9:$FZ$9,ROW(A48))),\"\",INDEX(Reporting!$B$9:$FZ$9,ROW(A48)))","v":""},{"$f":"IF(ISBLANK(INDEX(Reporting!$B$11:$FZ$11,ROW(A48))),\"\",INDEX(Reporting!$B$11:$FZ$11,ROW(A48)))","v":""},{"$f":"IF(ISBLANK(INDEX(Reporting!$B$18:$FZ$18,ROW(A48))),\"\",IF(INDEX(Reporting!$B$18:$FZ$18,ROW(A48))=\"No Failures Observed\",NA(),INDEX(Reporting!$B$18:$FZ$18,ROW(A48))))","v":""},{"$f":"IF(ISBLANK(INDEX('Optional Reporting'!$B$11:$FZ$11,ROW(A48))),NA(),INDEX('Optional Reporting'!$B$11:$FZ$11,ROW(A48)))","v":{"$error":"#N/A"}},{"$f":"IF((INDEX('Optional Reporting'!$B$17:$FZ$17,ROW(A48)))=\"\",NA(),INDEX('Optional Reporting'!$B$17:$FZ$17,ROW(A48)))","v":{"$error":"#N/A"}},{"$f":"IF(ISBLANK(INDEX(Reporting!$B$12:$FZ$12,ROW(A47))),\"\",INDEX(Reporting!$B$12:$FZ$12,ROW(A47)))","v":""}]
[null,null,{"$f":"IF(ISBLANK(INDEX(Planning!$B$16:$FZ$16,ROW(A50))),\"\",INDEX(Planning!$B$16:$FZ$16,ROW(A50)))","v":""},{"$f":"IF(ISBLANK(INDEX(Reporting!$B$9:$FZ$9,ROW(A50))),\"\",INDEX(Reporting!$B$9:$FZ$9,ROW(A50)))","v":""},{"$f":"IF(OR(IF(ISBLANK(A51),TRUE,FALSE),ISBLANK(Planning!$B$11)),\"\",Planning!$B$11)","v":""},null,{"$f":"IF(ISBLANK(INDEX(Planning!$B$16:$FZ$16,ROW(A49))),\"\",INDEX(Planning!$B$16:$FZ$16,ROW(A49)))","v":""},{"$f":"IF(ISBLANK(INDEX(Planning!$B$17:$FZ$17,ROW(A49))),\"\",INDEX(Planning!$B$17:$FZ$17,ROW(A49)))","v":""},{"$f":"IF(ISBLANK(INDEX(Reporting!$B$9:$FZ$9,ROW(A49))),\"\",INDEX(Reporting!$B$9:$FZ$9,ROW(A49)))","v":""},{"$f":"IF(ISBLANK(INDEX(Reporting!$B$11:$FZ$11,ROW(A49))),\"\",INDEX(Reporting!$B$11:$FZ$11,ROW(A49)))","v":""},{"$f":"IF(ISBLANK(INDEX(Reporting!$B$18:$FZ$18,ROW(A49))),\"\",IF(INDEX(Reporting!$B$18:$FZ$18,ROW(A49))=\"No Failures Observed\",NA(),INDEX(Reporting!$B$18:$FZ$18,ROW(A49))))","v":""},{"$f":"IF(ISBLANK(INDEX('Optional Reporting'!$B$11:$FZ$11,ROW(A49))),NA(),INDEX('Optional Reporting'!$B$11:$FZ$11,ROW(A49)))","v":{"$error":"#N/A"}},{"$f":"IF((INDEX('Optional Reporting'!$B$17:$FZ$17,ROW(A49)))=\"\",NA(),INDEX('Optional Reporting'!$B$17:$FZ$17,ROW(A49)))","v":{"$error":"#N/A"}},{"$f":"IF(ISBLANK(INDEX(Reporting!$B$12:$FZ$12,ROW(A48))),\"\",INDEX(Reporting!$B$12:$FZ$12,ROW(A48)))","v":""}]
[null,null,{"$f":"IF(ISBLANK(INDEX(Planning!$B$16:$FZ$16,ROW(A51))),\"\",INDEX(Planning!$B$16:$FZ$16,ROW(A51)))","v":""},{"$f":"IF(ISBLANK(INDEX(Reporting!$B$9:$FZ$9,ROW(A51))),\"\",INDEX(Reporting!$B$9:$FZ$9,ROW(A51)))","v":""},{"$f":"IF(OR(IF(ISBLANK(A52),TRUE,FALSE),ISBLANK(Planning!$B$11)),\"\",Planning!$B$11)","v":""},null,{"$f":"IF(ISBLANK(INDEX(Planning!$B$16:$FZ$16,ROW(A50))),\"\",INDEX(Planning!$B$16:$FZ$16,ROW(A50)))","v":""},{"$f":"IF(ISBLANK(INDEX(Planning!$B$17:$FZ$17,ROW(A50))),\"\",INDEX(Planning!$B$17:$FZ$17,ROW(A50)))","v":""},{"$f":"IF(ISBLANK(INDEX(Reporting!$B$9:$FZ$9,ROW(A50))),\"\",INDEX(Reporting!$B$9:$FZ$9,ROW(A50)))","v":""},{"$f":"IF(ISBLANK(INDEX(Reporting!$B$11:$FZ$11,ROW(A50))),\"\",INDEX(Reporting!$B$11:$FZ$11,ROW(A50)))","v":""},{"$f":"IF(ISBLANK(INDEX(Reporting!$B$18:$FZ$18,ROW(A50))),\"\",IF(INDEX(Reporting!$B$18:$FZ$18,ROW(A50))=\"No Failures Observed\",NA(),INDEX(Reporting!$B$18:$FZ$18,ROW(A50))))","v":""},{"$f":"IF(ISBLANK(INDEX('Optional Reporting'!$B$11:$FZ$11,ROW(A50))),NA(),INDEX('Optional Reporting'!$B$11:$FZ$11,ROW(A50)))","v":{"$error":"#N/A"}},{"$f":"IF((INDEX('Optional Reporting'!$B$17:$FZ$17,ROW(A50)))=\"\",NA(),INDEX('Optional Reporting'!$B$17:$FZ$17,ROW(A50)))","v":{"$error":"#N/A"}},{"$f":"IF(ISBLANK(INDEX(Reporting!$B$12:$FZ$12,ROW(A49))),\"\",INDEX(Reporting!$B$12:$FZ$12,ROW(A49)))","v":""}]
[null,null,{"$f":"IF(ISBLANK(INDEX(Planning!$B$16:$FZ$16,ROW(A52))),\"\",INDEX(Planning!$B$16:$FZ$16,ROW(A52)))","v":""},{"$f":"IF(ISBLANK(INDEX(Reporting!$B$9:$FZ$9,ROW(A52))),\"\",INDEX(Reporting!$B$9:$FZ$9,ROW(A52)))","v":""},{"$f":"IF(OR(IF(ISBLANK(A53),TRUE,FALSE),ISBLANK(Planning!$B$11)),\"\",Planning!$B$11)","v":""},null,{"$f":"IF(ISBLANK(INDEX(Planning!$B$16:$FZ$16,ROW(A51))),\"\",INDEX(Planning!$B$16:$FZ$16,ROW(A51)))","v":""},{"$f":"IF(ISBLANK(INDEX(Planning!$B$17:$FZ$17,ROW(A51))),\"\",INDEX(Planning!$B$17:$FZ$17,ROW(A51)))","v":""},{"$f":"IF(ISBLANK(INDEX(Reporting!$B$9:$FZ$9,ROW(A51))),\"\",INDEX(Reporting!$B$9:$FZ$9,ROW(A51)))","v":""},{"$f":"IF(ISBLANK(INDEX(Reporting!$B$11:$FZ$11,ROW(A51))),\"\",INDEX(Reporting!$B$11:$FZ$11,ROW(A51)))","v":""},{"$f":"IF(ISBLANK(INDEX(Reporting!$B$18:$FZ$18,ROW(A51))),\"\",IF(INDEX(Reporting!$B$18:$FZ$18,ROW(A51))=\"No Failures Observed\",NA(),INDEX(Reporting!$B$18:$FZ$18,ROW(A51))))","v":""},{"$f":"IF(ISBLANK(INDEX('Optional Reporting'!$B$11:$FZ$11,ROW(A51))),NA(),INDEX('Optional Reporting'!$B$11:$FZ$11,ROW(A51)))","v":{"$error":"#N/A"}},{"$f":"IF((INDEX('Optional Reporting'!$B$17:$FZ$17,ROW(A51)))=\"\",NA(),INDEX('Optional Reporting'!$B$17:$FZ$17,ROW(A51)))","v":{"$error":"#N/A"}},{"$f":"IF(ISBLANK(INDEX(Reporting!$B$12:$FZ$12,ROW(A50))),\"\",INDEX(Reporting!$B$12:$FZ$12,ROW(A50)))","v":""}]
[null,null,{"$f":"IF(ISBLANK(INDEX(Planning!$B$16:$FZ$16,ROW(A53))),\"\",INDEX(Planning!$B$16:$FZ$16,ROW(A53)))","v":""},{"$f":"IF(ISBLANK(INDEX(Reporting!$B$9:$FZ$9,ROW(A53))),\"\",INDEX(Reporting!$B$9:$FZ$9,ROW(A53)))","v":""},{"$f":"IF(OR(IF(ISBLANK(A54),TRUE,FALSE),ISBLANK(Planning!$B$11)),\"\",Planning!$B$11)","v":""},null,{"$f":"IF(ISBLANK(INDEX(Planning!$B$16:$FZ$16,ROW(A52))),\"\",INDEX(Planning!$B$16:$FZ$16,ROW(A52)))","v":""},{"$f":"IF(ISBLANK(INDEX(Planning!$B$17:$FZ$17,ROW(A52))),\"\",INDEX(Planning!$B$17:$FZ$17,ROW(A52)))","v":""},{"$f":"IF(ISBLANK(INDEX(Reporting!$B$9:$FZ$9,ROW(A52))),\"\",INDEX(Reporting!$B$9:$FZ$9,ROW(A52)))","v":""},{"$f":"IF(ISBLANK(INDEX(Reporting!$B$11:$FZ$11,ROW(A52))),\"\",INDEX(Reporting!$B$11:$FZ$11,ROW(A52)))","v":""},{"$f":"IF(ISBLANK(INDEX(Reporting!$B$18:$FZ$18,ROW(A52))),\"\",IF(INDEX(Reporting!$B$18:$FZ$18,ROW(A52))=\"No Failures Observed\",NA(),INDEX(Reporting!$B$18:$FZ$18,ROW(A52))))","v":""},{"$f":"IF(ISBLANK(INDEX('Optional Reporting'!$B$11:$FZ$11,ROW(A52))),NA(),INDEX('Optional Reporting'!$B$11:$FZ$11,ROW(A52)))","v":{"$error":"#N/A"}},{"$f":"IF((INDEX('Optional Reporting'!$B$17:$FZ$17,ROW(A52)))=\"\",NA(),INDEX('Optional Reporting'!$B$17:$FZ$17,ROW(A52)))","v":{"$error":"#N/A"}},{"$f":"IF(ISBLANK(INDEX(Reporting!$B$12:$FZ$12,ROW(A51))),\"\",INDEX(Reporting!$B$12:$FZ$12,ROW(A51)))","v":""}]
[null,null,{"$f":"IF(ISBLANK(INDEX(Planning!$B$16:$FZ$16,ROW(A54))),\"\",INDEX(Planning!$B$16:$FZ$16,ROW(A54)))","v":""},{"$f":"IF(ISBLANK(INDEX(Reporting!$B$9:$FZ$9,ROW(A54))),\"\",INDEX(Reporting!$B$9:$FZ$9,ROW(A54)))","v":""},{"$f":"IF(OR(IF(ISBLANK(A55),TRUE,FALSE),ISBLANK(Planning!$B$11)),\"\",Planning!$B$11)","v":""},null,{"$f":"IF(ISBLANK(INDEX(Planning!$B$16:$FZ$16,ROW(A53))),\"\",INDEX(Planning!$B$16:$FZ$16,ROW(A53)))","v":""},{"$f":"IF(ISBLANK(INDEX(Planning!$B$17:$FZ$17,ROW(A53))),\"\",INDEX(Planning!$B$17:$FZ$17,ROW(A53)))","v":""},{"$f":"IF(ISBLANK(INDEX(Reporting!$B$9:$FZ$9,ROW(A53))),\"\",INDEX(Reporting!$B$9:$FZ$9,ROW(A53)))","v":""},{"$f":"IF(ISBLANK(INDEX(Reporting!$B$11:$FZ$11,ROW(A53))),\"\",INDEX(Reporting!$B$11:$FZ$11,ROW(A53)))","v":""},{"$f":"IF(ISBLANK(INDEX(Reporting!$B$18:$FZ$18,ROW(A53))),\"\",IF(INDEX(Reporting!$B$18:$FZ$18,ROW(A53))=\"No Failures Observed\",NA(),INDEX(Reporting!$B$18:$FZ$18,ROW(A53))))","v":""},{"$f":"IF(ISBLANK(INDEX('Optional Reporting'!$B$11:$FZ$11,ROW(A53))),NA(),INDEX('Optional Reporting'!$B$11:$FZ$11,ROW(A53)))","v":{"$error":"#N/A"}},{"$f":"IF((INDEX('Optional Reporting'!$B$17:$FZ$17,ROW(A53)))=\"\",NA(),INDEX('Optional Reporting'!$B$17:$FZ$17,ROW(A53)))","v":{"$error":"#N/A"}},{"$f":"IF(ISBLANK(INDEX(Reporting!$B$12:$FZ$12,ROW(A52))),\"\",INDEX(Reporting!$B$12:$FZ$12,ROW(A52)))","v":""}]
[null,null,{"$f":"IF(ISBLANK(INDEX(Planning!$B$16:$FZ$16,ROW(A55))),\"\",INDEX(Planning!$B$16:$FZ$16,ROW(A55)))","v":""},{"$f":"IF(ISBLANK(INDEX(Reporting!$B$9:$FZ$9,ROW(A55))),\"\",INDEX(Reporting!$B$9:$FZ$9,ROW(A55)))","v":""},{"$f":"IF(OR(IF(ISBLANK(A56),TRUE,FALSE),ISBLANK(Planning!$B$11)),\"\",Planning!$B$11)","v":""},null,{"$f":"IF(ISBLANK(INDEX(Planning!$B$16:$FZ$16,ROW(A54))),\"\",INDEX(Planning!$B$16:$FZ$16,ROW(A54)))","v":""},{"$f":"IF(ISBLANK(INDEX(Planning!$B$17:$FZ$17,ROW(A54))),\"\",INDEX(Planning!$B$17:$FZ$17,ROW(A54)))","v":""},{"$f":"IF(ISBLANK(INDEX(Reporting!$B$9:$FZ$9,ROW(A54))),\"\",INDEX(Reporting!$B$9:$FZ$9,ROW(A54)))","v":""},{"$f":"IF(ISBLANK(INDEX(Reporting!$B$11:$FZ$11,ROW(A54))),\"\",INDEX(Reporting!$B$11:$FZ$11,ROW(A54)))","v":""},{"$f":"IF(ISBLANK(INDEX(Reporting!$B$18:$FZ$18,ROW(A54))),\"\",IF(INDEX(Reporting!$B$18:$FZ$18,ROW(A54))=\"No Failures Observed\",NA(),INDEX(Reporting!$B$18:$FZ$18,ROW(A54))))","v":""},{"$f":"IF(ISBLANK(INDEX('Optional Reporting'!$B$11:$FZ$11,ROW(A54))),NA(),INDEX('Optional Reporting'!$B$11:$FZ$11,ROW(A54)))","v":{"$error":"#N/A"}},{"$f":"IF((INDEX('Optional Reporting'!$B$17:$FZ$17,ROW(A54)))=\"\",NA(),INDEX('Optional Reporting'!$B$17:$FZ$17,ROW(A54)))","v":{"$error":"#N/A"}},{"$f":"IF(ISBLANK(INDEX(Reporting!$B$12:$FZ$12,ROW(A53))),\"\",INDEX(Reporting!$B$12:$FZ$12,ROW(A53)))","v":""}]
[null,null,{"$f":"IF(ISBLANK(INDEX(Planning!$B$16:$FZ$16,ROW(A56))),\"\",INDEX(Planning!$B$16:$FZ$16,ROW(A56)))","v":""},{"$f":"IF(ISBLANK(INDEX(Reporting!$B$9:$FZ$9,ROW(A56))),\"\",INDEX(Reporting!$B$9:$FZ$9,ROW(A56)))","v":""},{"$f":"IF(OR(IF(ISBLANK(A57),TRUE,FALSE),ISBLANK(Planning!$B$11)),\"\",Planning!$B$11)","v":""},null,{"$f":"IF(ISBLANK(INDEX(Planning!$B$16:$FZ$16,ROW(A55))),\"\",INDEX(Planning!$B$16:$FZ$16,ROW(A55)))","v":""},{"$f":"IF(ISBLANK(INDEX(Planning!$B$17:$FZ$17,ROW(A55))),\"\",INDEX(Planning!$B$17:$FZ$17,ROW(A55)))","v":""},{"$f":"IF(ISBLANK(INDEX(Reporting!$B$9:$FZ$9,ROW(A55))),\"\",INDEX(Reporting!$B$9:$FZ$9,ROW(A55)))","v":""},{"$f":"IF(ISBLANK(INDEX(Reporting!$B$11:$FZ$11,ROW(A55))),\"\",INDEX(Reporting!$B$11:$FZ$11,ROW(A55)))","v":""},{"$f":"IF(ISBLANK(INDEX(Reporting!$B$18:$FZ$18,ROW(A55))),\"\",IF(INDEX(Reporting!$B$18:$FZ$18,ROW(A55))=\"No Failures Observed\",NA(),INDEX(Reporting!$B$18:$FZ$18,ROW(A55))))","v":""},{"$f":"IF(ISBLANK(INDEX('Optional Reporting'!$B$11:$FZ$11,ROW(A55))),NA(),INDEX('Optional Reporting'!$B$11:$FZ$11,ROW(A55)))","v":{"$error":"#N/A"}},{"$f":"IF((INDEX('Optional Reporting'!$B$17:$FZ$17,ROW(A55)))=\"\",NA(),INDEX('Optional Reporting'!$B$17:$FZ$17,ROW(A55)))","v":{"$error":"#N/A"}},{"$f":"IF(ISBLANK(INDEX(Reporting!$B$12:$FZ$12,ROW(A54))),\"\",INDEX(Reporting!$B$12:$FZ$12,ROW(A54)))","v":""}]
[null,null,{"$f":"IF(ISBLANK(INDEX(Planning!$B$16:$FZ$16,ROW(A57))),\"\",INDEX(Planning!$B$16:$FZ$16,ROW(A57)))","v":""},{"$f":"IF(ISBLANK(INDEX(Reporting!$B$9:$FZ$9,ROW(A57))),\"\",INDEX(Reporting!$B$9:$FZ$9,ROW(A57)))","v":""},{"$f":"IF(OR(IF(ISBLANK(A58),TRUE,FALSE),ISBLANK(Planning!$B$11)),\"\",Planning!$B$11)","v":""},null,{"$f":"IF(ISBLANK(INDEX(Planning!$B$16:$FZ$16,ROW(A56))),\"\",INDEX(Planning!$B$16:$FZ$16,ROW(A56)))","v":""},{"$f":"IF(ISBLANK(INDEX(Planning!$B$17:$FZ$17,ROW(A56))),\"\",INDEX(Planning!$B$17:$FZ$17,ROW(A56)))","v":""},{"$f":"IF(ISBLANK(INDEX(Reporting!$B$9:$FZ$9,ROW(A56))),\"\",INDEX(Reporting!$B$9:$FZ$9,ROW(A56)))","v":""},{"$f":"IF(ISBLANK(INDEX(Reporting!$B$11:$FZ$11,ROW(A56))),\"\",INDEX(Reporting!$B$11:$FZ$11,ROW(A56)))","v":""},{"$f":"IF(ISBLANK(INDEX(Reporting!$B$18:$FZ$18,ROW(A56))),\"\",IF(INDEX(Reporting!$B$18:$FZ$18,ROW(A56))=\"No Failures Observed\",NA(),INDEX(Reporting!$B$18:$FZ$18,ROW(A56))))","v":""},{"$f":"IF(ISBLANK(INDEX('Optional Reporting'!$B$11:$FZ$11,ROW(A56))),NA(),INDEX('Optional Reporting'!$B$11:$FZ$11,ROW(A56)))","v":{"$error":"#N/A"}},{"$f":"IF((INDEX('Optional Reporting'!$B$17:$FZ$17,ROW(A56)))=\"\",NA(),INDEX('Optional Reporting'!$B$17:$FZ$17,ROW(A56)))","v":{"$error":"#N/A"}},{"$f":"IF(ISBLANK(INDEX(Reporting!$B$12:$FZ$12,ROW(A55))),\"\",INDEX(Reporting!$B$12:$FZ$12,ROW(A55)))","v":""}]
[null,null,{"$f":"IF(ISBLANK(INDEX(Planning!$B$16:$FZ$16,ROW(A58))),\"\",INDEX(Planning!$B$16:$FZ$16,ROW(A58)))","v":""},{"$f":"IF(ISBLANK(INDEX(Reporting!$B$9:$FZ$9,ROW(A58))),\"\",INDEX(Reporting!$B$9:$FZ$9,ROW(A58)))","v":""},{"$f":"IF(OR(IF(ISBLANK(A59),TRUE,FALSE),ISBLANK(Planning!$B$11)),\"\",Planning!$B$11)","v":""},null,{"$f":"IF(ISBLANK(INDEX(Planning!$B$16:$FZ$16,ROW(A57))),\"\",INDEX(Planning!$B$16:$FZ$16,ROW(A57)))","v":""},{"$f":"IF(ISBLANK(INDEX(Planning!$B$17:$FZ$17,ROW(A57))),\"\",INDEX(Planning!$B$17:$FZ$17,ROW(A57)))","v":""},{"$f":"IF(ISBLANK(INDEX(Reporting!$B$9:$FZ$9,ROW(A57))),\"\",INDEX(Reporting!$B$9:$FZ$9,ROW(A57)))","v":""},{"$f":"IF(ISBLANK(INDEX(Reporting!$B$11:$FZ$11,ROW(A57))),\"\",INDEX(Reporting!$B$11:$FZ$11,ROW(A57)))","v":""},{"$f":"IF(ISBLANK(INDEX(Reporting!$B$18:$FZ$18,ROW(A57))),\"\",IF(INDEX(Reporting!$B$18:$FZ$18,ROW(A57))=\"No Failures Observed\",NA(),INDEX(Reporting!$B$18:$FZ$18,ROW(A57))))","v":""},{"$f":"IF(ISBLANK(INDEX('Optional Reporting'!$B$11:$FZ$11,ROW(A57))),NA(),INDEX('Optional Reporting'!$B$11:$FZ$11,ROW(A57)))","v":{"$error":"#N/A"}},{"$f":"IF((INDEX('Optional Reporting'!$B$17:$FZ$17,ROW(A57)))=\"\",NA(),INDEX('Optional Reporting'!$B$17:$FZ$17,ROW(A57)))","v":{"$error":"#N/A"}},{"$f":"IF(ISBLANK(INDEX(Reporting!$B$12:$FZ$12,ROW(A56))),\"\",INDEX(Reporting!$B$12:$FZ$12,ROW(A56)))","v":""}]
[null,null,{"$f":"IF(ISBLANK(INDEX(Planning!$B$16:$FZ$16,ROW(A59))),\"\",INDEX(Planning!$B$16:$FZ$16,ROW(A59)))","v":""},{"$f":"IF(ISBLANK(INDEX(Reporting!$B$9:$FZ$9,ROW(A59))),\"\",INDEX(Reporting!$B$9:$FZ$9,ROW(A59)))","v":""},{"$f":"IF(OR(IF(ISBLANK(A60),TRUE,FALSE),ISBLANK(Planning!$B$11)),\"\",Planning!$B$11)","v":""},null,{"$f":"IF(ISBLANK(INDEX(Planning!$B$16:$FZ$16,ROW(A58))),\"\",INDEX(Planning!$B$16:$FZ$16,ROW(A58)))","v":""},{"$f":"IF(ISBLANK(INDEX(Planning!$B$17:$FZ$17,ROW(A58))),\"\",INDEX(Planning!$B$17:$FZ$17,ROW(A58)))","v":""},{"$f":"IF(ISBLANK(INDEX(Reporting!$B$9:$FZ$9,ROW(A58))),\"\",INDEX(Reporting!$B$9:$FZ$9,ROW(A58)))","v":""},{"$f":"IF(ISBLANK(INDEX(Reporting!$B$11:$FZ$11,ROW(A58))),\"\",INDEX(Reporting!$B$11:$FZ$11,ROW(A58)))","v":""},{"$f":"IF(ISBLANK(INDEX(Reporting!$B$18:$FZ$18,ROW(A58))),\"\",IF(INDEX(Reporting!$B$18:$FZ$18,ROW(A58))=\"No Failures Observed\",NA(),INDEX(Reporting!$B$18:$FZ$18,ROW(A58))))","v":""},{"$f":"IF(ISBLANK(INDEX('Optional Reporting'!$B$11:$FZ$11,ROW(A58))),NA(),INDEX('Optional Reporting'!$B$11:$FZ$11,ROW(A58)))","v":{"$error":"#N/A"}},{"$f":"IF((INDEX('Optional Reporting'!$B$17:$FZ$17,ROW(A58)))=\"\",NA(),INDEX('Optional Reporting'!$B$17:$FZ$17,ROW(A58)))","v":{"$error":"#N/A"}},{"$f":"IF(ISBLANK(INDEX(Reporting!$B$12:$FZ$12,ROW(A57))),\"\",INDEX(Reporting!$B$12:$FZ$12,ROW(A57)))","v":""}]
[null,null,{"$f":"IF(ISBLANK(INDEX(Planning!$B$16:$FZ$16,ROW(A60))),\"\",INDEX(Planning!$B$16:$FZ$16,ROW(A60)))","v":""},{"$f":"IF(ISBLANK(INDEX(Reporting!$B$9:$FZ$9,ROW(A60))),\"\",INDEX(Reporting!$B$9:$FZ$9,ROW(A60)))","v":""},{"$f":"IF(OR(IF(ISBLANK(A61),TRUE,FALSE),ISBLANK(Planning!$B$11)),\"\",Planning!$B$11)","v":""},null,{"$f":"IF(ISBLANK(INDEX(Planning!$B$16:$FZ$16,ROW(A59))),\"\",INDEX(Planning!$B$16:$FZ$16,ROW(A59)))","v":""},{"$f":"IF(ISBLANK(INDEX(Planning!$B$17:$FZ$17,ROW(A59))),\"\",INDEX(Planning!$B$17:$FZ$17,ROW(A59)))","v":""},{"$f":"IF(ISBLANK(INDEX(Reporting!$B$9:$FZ$9,ROW(A59))),\"\",INDEX(Reporting!$B$9:$FZ$9,ROW(A59)))","v":""},{"$f":"IF(ISBLANK(INDEX(Reporting!$B$11:$FZ$11,ROW(A59))),\"\",INDEX(Reporting!$B$11:$FZ$11,ROW(A59)))","v":""},{"$f":"IF(ISBLANK(INDEX(Reporting!$B$18:$FZ$18,ROW(A59))),\"\",IF(INDEX(Reporting!$B$18:$FZ$18,ROW(A59))=\"No Failures Observed\",NA(),INDEX(Reporting!$B$18:$FZ$18,ROW(A59))))","v":""},{"$f":"IF(ISBLANK(INDEX('Optional Reporting'!$B$11:$FZ$11,ROW(A59))),NA(),INDEX('Optional Reporting'!$B$11:$FZ$11,ROW(A59)))","v":{"$error":"#N/A"}},{"$f":"IF((INDEX('Optional Reporting'!$B$17:$FZ$17,ROW(A59)))=\"\",NA(),INDEX('Optional Reporting'!$B$17:$FZ$17,ROW(A59)))","v":{"$error":"#N/A"}},{"$f":"IF(ISBLANK(INDEX(Reporting!$B$12:$FZ$12,ROW(A58))),\"\",INDEX(Reporting!$B$12:$FZ$12,ROW(A58)))","v":""}]
[null,null,{"$f":"IF(ISBLANK(INDEX(Planning!$B$16:$FZ$16,ROW(A61))),\"\",INDEX(Planning!$B$16:$FZ$16,ROW(A61)))","v":""},{"$f":"IF(ISBLANK(INDEX(Reporting!$B$9:$FZ$9,ROW(A61))),\"\",INDEX(Reporting!$B$9:$FZ$9,ROW(A61)))","v":""},{"$f":"IF(OR(IF(ISBLANK(A62),TRUE,FALSE),ISBLANK(Planning!$B$11)),\"\",Planning!$B$11)","v":""},null,{"$f":"IF(ISBLANK(INDEX(Planning!$B$16:$FZ$16,ROW(A60))),\"\",INDEX(Planning!$B$16:$FZ$16,ROW(A60)))","v":""},{"$f":"IF(ISBLANK(INDEX(Planning!$B$17:$FZ$17,ROW(A60))),\"\",INDEX(Planning!$B$17:$FZ$17,ROW(A60)))","v":""},{"$f":"IF(ISBLANK(INDEX(Reporting!$B$9:$FZ$9,ROW(A60))),\"\",INDEX(Reporting!$B$9:$FZ$9,ROW(A60)))","v":""},{"$f":"IF(ISBLANK(INDEX(Reporting!$B$11:$FZ$11,ROW(A60))),\"\",INDEX(Reporting!$B$11:$FZ$11,ROW(A60)))","v":""},{"$f":"IF(ISBLANK(INDEX(Reporting!$B$18:$FZ$18,ROW(A60))),\"\",IF(INDEX(Reporting!$B$18:$FZ$18,ROW(A60))=\"No Failures Observed\",NA(),INDEX(Reporting!$B$18:$FZ$18,ROW(A60))))","v":""},{"$f":"IF(ISBLANK(INDEX('Optional Reporting'!$B$11:$FZ$11,ROW(A60))),NA(),INDEX('Optional Reporting'!$B$11:$FZ$11,ROW(A60)))","v":{"$error":"#N/A"}},{"$f":"IF((INDEX('Optional Reporting'!$B$17:$FZ$17,ROW(A60)))=\"\",NA(),INDEX('Optional Reporting'!$B$17:$FZ$17,ROW(A60)))","v":{"$error":"#N/A"}},{"$f":"IF(ISBLANK(INDEX(Reporting!$B$12:$FZ$12,ROW(A59))),\"\",INDEX(Reporting!$B$12:$FZ$12,ROW(A59)))","v":""}]
[null,null,{"$f":"IF(ISBLANK(INDEX(Planning!$B$16:$FZ$16,ROW(A62))),\"\",INDEX(Planning!$B$16:$FZ$16,ROW(A62)))","v":""},{"$f":"IF(ISBLANK(INDEX(Reporting!$B$9:$FZ$9,ROW(A62))),\"\",INDEX(Reporting!$B$9:$FZ$9,ROW(A62)))","v":""},{"$f":"IF(OR(IF(ISBLANK(A63),TRUE,FALSE),ISBLANK(Planning!$B$11)),\"\",Planning!$B$11)","v":""},null,{"$f":"IF(ISBLANK(INDEX(Planning!$B$16:$FZ$16,ROW(A61))),\"\",INDEX(Planning!$B$16:$FZ$16,ROW(A61)))","v":""},{"$f":"IF(ISBLANK(INDEX(Planning!$B$17:$FZ$17,ROW(A61))),\"\",INDEX(Planning!$B$17:$FZ$17,ROW(A61)))","v":""},{"$f":"IF(ISBLANK(INDEX(Reporting!$B$9:$FZ$9,ROW(A61))),\"\",INDEX(Reporting!$B$9:$FZ$9,ROW(A61)))","v":""},{"$f":"IF(ISBLANK(INDEX(Reporting!$B$11:$FZ$11,ROW(A61))),\"\",INDEX(Reporting!$B$11:$FZ$11,ROW(A61)))","v":""},{"$f":"IF(ISBLANK(INDEX(Reporting!$B$18:$FZ$18,ROW(A61))),\"\",IF(INDEX(Reporting!$B$18:$FZ$18,ROW(A61))=\"No Failures Observed\",NA(),INDEX(Reporting!$B$18:$FZ$18,ROW(A61))))","v":""},{"$f":"IF(ISBLANK(INDEX('Optional Reporting'!$B$11:$FZ$11,ROW(A61))),NA(),INDEX('Optional Reporting'!$B$11:$FZ$11,ROW(A61)))","v":{"$error":"#N/A"}},{"$f":"IF((INDEX('Optional Reporting'!$B$17:$FZ$17,ROW(A61)))=\"\",NA(),INDEX('Optional Reporting'!$B$17:$FZ$17,ROW(A61)))","v":{"$error":"#N/A"}},{"$f":"IF(ISBLANK(INDEX(Reporting!$B$12:$FZ$12,ROW(A60))),\"\",INDEX(Reporting!$B$12:$FZ$12,ROW(A60)))","v":""}]
[null,null,{"$f":"IF(ISBLANK(INDEX(Planning!$B$16:$FZ$16,ROW(A63))),\"\",INDEX(Planning!$B$16:$FZ$16,ROW(A63)))","v":""},{"$f":"IF(ISBLANK(INDEX(Reporting!$B$9:$FZ$9,ROW(A63))),\"\",INDEX(Reporting!$B$9:$FZ$9,ROW(A63)))","v":""},{"$f":"IF(OR(IF(ISBLANK(A64),TRUE,FALSE),ISBLANK(Planning!$B$11)),\"\",Planning!$B$11)","v":""},null,{"$f":"IF(ISBLANK(INDEX(Planning!$B$16:$FZ$16,ROW(A62))),\"\",INDEX(Planning!$B$16:$FZ$16,ROW(A62)))","v":""},{"$f":"IF(ISBLANK(INDEX(Planning!$B$17:$FZ$17,ROW(A62))),\"\",INDEX(Planning!$B$17:$FZ$17,ROW(A62)))","v":""},{"$f":"IF(ISBLANK(INDEX(Reporting!$B$9:$FZ$9,ROW(A62))),\"\",INDEX(Reporting!$B$9:$FZ$9,ROW(A62)))","v":""},{"$f":"IF(ISBLANK(INDEX(Reporting!$B$11:$FZ$11,ROW(A62))),\"\",INDEX(Reporting!$B$11:$FZ$11,ROW(A62)))","v":""},{"$f":"IF(ISBLANK(INDEX(Reporting!$B$18:$FZ$18,ROW(A62))),\"\",IF(INDEX(Reporting!$B$18:$FZ$18,ROW(A62))=\"No Failures Observed\",NA(),INDEX(Reporting!$B$18:$FZ$18,ROW(A62))))","v":""},{"$f":"IF(ISBLANK(INDEX('Optional Reporting'!$B$11:$FZ$11,ROW(A62))),NA(),INDEX('Optional Reporting'!$B$11:$FZ$11,ROW(A62)))","v":{"$error":"#N/A"}},{"$f":"IF((INDEX('Optional Reporting'!$B$17:$FZ$17,ROW(A62)))=\"\",NA(),INDEX('Optional Reporting'!$B$17:$FZ$17,ROW(A62)))","v":{"$error":"#N/A"}},{"$f":"IF(ISBLANK(INDEX(Reporting!$B$12:$FZ$12,ROW(A61))),\"\",INDEX(Reporting!$B$12:$FZ$12,ROW(A61)))","v":""}]
[null,null,{"$f":"IF(ISBLANK(INDEX(Planning!$B$16:$FZ$16,ROW(A64))),\"\",INDEX(Planning!$B$16:$FZ$16,ROW(A64)))","v":""},{"$f":"IF(ISBLANK(INDEX(Reporting!$B$9:$FZ$9,ROW(A64))),\"\",INDEX(Reporting!$B$9:$FZ$9,ROW(A64)))","v":""},{"$f":"IF(OR(IF(ISBLANK(A65),TRUE,FALSE),ISBLANK(Planning!$B$11)),\"\",Planning!$B$11)","v":""},null,{"$f":"IF(ISBLANK(INDEX(Planning!$B$16:$FZ$16,ROW(A63))),\"\",INDEX(Planning!$B$16:$FZ$16,ROW(A63)))","v":""},{"$f":"IF(ISBLANK(INDEX(Planning!$B$17:$FZ$17,ROW(A63))),\"\",INDEX(Planning!$B$17:$FZ$17,ROW(A63)))","v":""},{"$f":"IF(ISBLANK(INDEX(Reporting!$B$9:$FZ$9,ROW(A63))),\"\",INDEX(Reporting!$B$9:$FZ$9,ROW(A63)))","v":""},{"$f":"IF(ISBLANK(INDEX(Reporting!$B$11:$FZ$11,ROW(A63))),\"\",INDEX(Reporting!$B$11:$FZ$11,ROW(A63)))","v":""},{"$f":"IF(ISBLANK(INDEX(Reporting!$B$18:$FZ$18,ROW(A63))),\"\",IF(INDEX(Reporting!$B$18:$FZ$18,ROW(A63))=\"No Failures Observed\",NA(),INDEX(Reporting!$B$18:$FZ$18,ROW(A63))))","v":""},{"$f":"IF(ISBLANK(INDEX('Optional Reporting'!$B$11:$FZ$11,ROW(A63))),NA(),INDEX('Optional Reporting'!$B$11:$FZ$11,ROW(A63)))","v":{"$error":"#N/A"}},{"$f":"IF((INDEX('Optional Reporting'!$B$17:$FZ$17,ROW(A63)))=\"\",NA(),INDEX('Optional Reporting'!$B$17:$FZ$17,ROW(A63)))","v":{"$error":"#N/A"}},{"$f":"IF(ISBLANK(INDEX(Reporting!$B$12:$FZ$12,ROW(A62))),\"\",INDEX(Reporting!$B$12:$FZ$12,ROW(A62)))","v":""}]
[null,null,{"$f":"IF(ISBLANK(INDEX(Planning!$B$16:$FZ$16,ROW(A65))),\"\",INDEX(Planning!$B$16:$FZ$16,ROW(A65)))","v":""},{"$f":"IF(ISBLANK(INDEX(Reporting!$B$9:$FZ$9,ROW(A65))),\"\",INDEX(Reporting!$B$9:$FZ$9,ROW(A65)))","v":""},{"$f":"IF(OR(IF(ISBLANK(A66),TRUE,FALSE),ISBLANK(Planning!$B$11)),\"\",Planning!$B$11)","v":""},null,{"$f":"IF(ISBLANK(INDEX(Planning!$B$16:$FZ$16,ROW(A64))),\"\",INDEX(Planning!$B$16:$FZ$16,ROW(A64)))","v":""},{"$f":"IF(ISBLANK(INDEX(Planning!$B$17:$FZ$17,ROW(A64))),\"\",INDEX(Planning!$B$17:$FZ$17,ROW(A64)))","v":""},{"$f":"IF(ISBLANK(INDEX(Reporting!$B$9:$FZ$9,ROW(A64))),\"\",INDEX(Reporting!$B$9:$FZ$9,ROW(A64)))","v":""},{"$f":"IF(ISBLANK(INDEX(Reporting!$B$11:$FZ$11,ROW(A64))),\"\",INDEX(Reporting!$B$11:$FZ$11,ROW(A64)))","v":""},{"$f":"IF(ISBLANK(INDEX(Reporting!$B$18:$FZ$18,ROW(A64))),\"\",IF(INDEX(Reporting!$B$18:$FZ$18,ROW(A64))=\"No Failures Observed\",NA(),INDEX(Reporting!$B$18:$FZ$18,ROW(A64))))","v":""},{"$f":"IF(ISBLANK(INDEX('Optional Reporting'!$B$11:$FZ$11,ROW(A64))),NA(),INDEX('Optional Reporting'!$B$11:$FZ$11,ROW(A64)))","v":{"$error":"#N/A"}},{"$f":"IF((INDEX('Optional Reporting'!$B$17:$FZ$17,ROW(A64)))=\"\",NA(),INDEX('Optional Reporting'!$B$17:$FZ$17,ROW(A64)))","v":{"$error":"#N/A"}},{"$f":"IF(ISBLANK(INDEX(Reporting!$B$12:$FZ$12,ROW(A63))),\"\",INDEX(Reporting!$B$12:$FZ$12,ROW(A63)))","v":""}]
[null,null,{"$f":"IF(ISBLANK(INDEX(Planning!$B$16:$FZ$16,ROW(A66))),\"\",INDEX(Planning!$B$16:$FZ$16,ROW(A66)))","v":""},{"$f":"IF(ISBLANK(INDEX(Reporting!$B$9:$FZ$9,ROW(A66))),\"\",INDEX(Reporting!$B$9:$FZ$9,ROW(A66)))","v":""},{"$f":"IF(OR(IF(ISBLANK(A67),TRUE,FALSE),ISBLANK(Planning!$B$11)),\"\",Planning!$B$11)","v":""},null,{"$f":"IF(ISBLANK(INDEX(Planning!$B$16:$FZ$16,ROW(A65))),\"\",INDEX(Planning!$B$16:$FZ$16,ROW(A65)))","v":""},{"$f":"IF(ISBLANK(INDEX(Planning!$B$17:$FZ$17,ROW(A65))),\"\",INDEX(Planning!$B$17:$FZ$17,ROW(A65)))","v":""},{"$f":"IF(ISBLANK(INDEX(Reporting!$B$9:$FZ$9,ROW(A65))),\"\",INDEX(Reporting!$B$9:$FZ$9,ROW(A65)))","v":""},{"$f":"IF(ISBLANK(INDEX(Reporting!$B$11:$FZ$11,ROW(A65))),\"\",INDEX(Reporting!$B$11:$FZ$11,ROW(A65)))","v":""},{"$f":"IF(ISBLANK(INDEX(Reporting!$B$18:$FZ$18,ROW(A65))),\"\",IF(INDEX(Reporting!$B$18:$FZ$18,ROW(A65))=\"No Failures Observed\",NA(),INDEX(Reporting!$B$18:$FZ$18,ROW(A65))))","v":""},{"$f":"IF(ISBLANK(INDEX('Optional Reporting'!$B$11:$FZ$11,ROW(A65))),NA(),INDEX('Optional Reporting'!$B$11:$FZ$11,ROW(A65)))","v":{"$error":"#N/A"}},{"$f":"IF((INDEX('Optional Reporting'!$B$17:$FZ$17,ROW(A65)))=\"\",NA(),INDEX('Optional Reporting'!$B$17:$FZ$17,ROW(A65)))","v":{"$error":"#N/A"}},{"$f":"IF(ISBLANK(INDEX(Reporting!$B$12:$FZ$12,ROW(A64))),\"\",INDEX(Reporting!$B$12:$FZ$12,ROW(A64)))","v":""}]
[null,null,{"$f":"IF(ISBLANK(INDEX(Planning!$B$16:$FZ$16,ROW(A67))),\"\",INDEX(Planning!$B$16:$FZ$16,ROW(A67)))","v":""},{"$f":"IF(ISBLANK(INDEX(Reporting!$B$9:$FZ$9,ROW(A67))),\"\",INDEX(Reporting!$B$9:$FZ$9,ROW(A67)))","v":""},{"$f":"IF(OR(IF(ISBLANK(A68),TRUE,FALSE),ISBLANK(Planning!$B$11)),\"\",Planning!$B$11)","v":""},null,{"$f":"IF(ISBLANK(INDEX(Planning!$B$16:$FZ$16,ROW(A66))),\"\",INDEX(Planning!$B$16:$FZ$16,ROW(A66)))","v":""},{"$f":"IF(ISBLANK(INDEX(Planning!$B$17:$FZ$17,ROW(A66))),\"\",INDEX(Planning!$B$17:$FZ$17,ROW(A66)))","v":""},{"$f":"IF(ISBLANK(INDEX(Reporting!$B$9:$FZ$9,ROW(A66))),\"\",INDEX(Reporting!$B$9:$FZ$9,ROW(A66)))","v":""},{"$f":"IF(ISBLANK(INDEX(Reporting!$B$11:$FZ$11,ROW(A66))),\"\",INDEX(Reporting!$B$11:$FZ$11,ROW(A66)))","v":""},{"$f":"IF(ISBLANK(INDEX(Reporting!$B$18:$FZ$18,ROW(A66))),\"\",IF(INDEX(Reporting!$B$18:$FZ$18,ROW(A66))=\"No Failures Observed\",NA(),INDEX(Reporting!$B$18:$FZ$18,ROW(A66))))","v":""},{"$f":"IF(ISBLANK(INDEX('Optional Reporting'!$B$11:$FZ$11,ROW(A66))),NA(),INDEX('Optional Reporting'!$B$11:$FZ$11,ROW(A66)))","v":{"$error":"#N/A"}},{"$f":"IF((INDEX('Optional Reporting'!$B$17:$FZ$17,ROW(A66)))=\"\",NA(),INDEX('Optional Reporting'!$B$17:$FZ$17,ROW(A66)))","v":{"$error":"#N/A"}},{"$f":"IF(ISBLANK(INDEX(Reporting!$B$12:$FZ$12,ROW(A65))),\"\",INDEX(Reporting!$B$12:$FZ$12,ROW(A65)))","v":""}]
[null,null,{"$f":"IF(ISBLANK(INDEX(Planning!$B$16:$FZ$16,ROW(A68))),\"\",INDEX(Planning!$B$16:$FZ$16,ROW(A68)))","v":""},{"$f":"IF(ISBLANK(INDEX(Reporting!$B$9:$FZ$9,ROW(A68))),\"\",INDEX(Reporting!$B$9:$FZ$9,ROW(A68)))","v":""},{"$f":"IF(OR(IF(ISBLANK(A69),TRUE,FALSE),ISBLANK(Planning!$B$11)),\"\",Planning!$B$11)","v":""},null,{"$f":"IF(ISBLANK(INDEX(Planning!$B$16:$FZ$16,ROW(A67))),\"\",INDEX(Planning!$B$16:$FZ$16,ROW(A67)))","v":""},{"$f":"IF(ISBLANK(INDEX(Planning!$B$17:$FZ$17,ROW(A67))),\"\",INDEX(Planning!$B$17:$FZ$17,ROW(A67)))","v":""},{"$f":"IF(ISBLANK(INDEX(Reporting!$B$9:$FZ$9,ROW(A67))),\"\",INDEX(Reporting!$B$9:$FZ$9,ROW(A67)))","v":""},{"$f":"IF(ISBLANK(INDEX(Reporting!$B$11:$FZ$11,ROW(A67))),\"\",INDEX(Reporting!$B$11:$FZ$11,ROW(A67)))","v":""},{"$f":"IF(ISBLANK(INDEX(Reporting!$B$18:$FZ$18,ROW(A67))),\"\",IF(INDEX(Reporting!$B$18:$FZ$18,ROW(A67))=\"No Failures Observed\",NA(),INDEX(Reporting!$B$18:$FZ$18,ROW(A67))))","v":""},{"$f":"IF(ISBLANK(INDEX('Optional Reporting'!$B$11:$FZ$11,ROW(A67))),NA(),INDEX('Optional Reporting'!$B$11:$FZ$11,ROW(A67)))","v":{"$error":"#N/A"}},{"$f":"IF((INDEX('Optional Reporting'!$B$17:$FZ$17,ROW(A67)))=\"\",NA(),INDEX('Optional Reporting'!$B$17:$FZ$17,ROW(A67)))","v":{"$error":"#N/A"}},{"$f":"IF(ISBLANK(INDEX(Reporting!$B$12:$FZ$12,ROW(A66))),\"\",INDEX(Reporting!$B$12:$FZ$12,ROW(A66)))","v":""}]
[null,null,{"$f":"IF(ISBLANK(INDEX(Planning!$B$16:$FZ$16,ROW(A69))),\"\",INDEX(Planning!$B$16:$FZ$16,ROW(A69)))","v":""},{"$f":"IF(ISBLANK(INDEX(Reporting!$B$9:$FZ$9,ROW(A69))),\"\",INDEX(Reporting!$B$9:$FZ$9,ROW(A69)))","v":""},{"$f":"IF(OR(IF(ISBLANK(A70),TRUE,FALSE),ISBLANK(Planning!$B$11)),\"\",Planning!$B$11)","v":""},null,{"$f":"IF(ISBLANK(INDEX(Planning!$B$16:$FZ$16,ROW(A68))),\"\",INDEX(Planning!$B$16:$FZ$16,ROW(A68)))","v":""},{"$f":"IF(ISBLANK(INDEX(Planning!$B$17:$FZ$17,ROW(A68))),\"\",INDEX(Planning!$B$17:$FZ$17,ROW(A68)))","v":""},{"$f":"IF(ISBLANK(INDEX(Reporting!$B$9:$FZ$9,ROW(A68))),\"\",INDEX(Reporting!$B$9:$FZ$9,ROW(A68)))","v":""},{"$f":"IF(ISBLANK(INDEX(Reporting!$B$11:$FZ$11,ROW(A68))),\"\",INDEX(Reporting!$B$11:$FZ$11,ROW(A68)))","v":""},{"$f":"IF(ISBLANK(INDEX(Reporting!$B$18:$FZ$18,ROW(A68))),\"\",IF(INDEX(Reporting!$B$18:$FZ$18,ROW(A68))=\"No Failures Observed\",NA(),INDEX(Reporting!$B$18:$FZ$18,ROW(A68))))","v":""},{"$f":"IF(ISBLANK(INDEX('Optional Reporting'!$B$11:$FZ$11,ROW(A68))),NA(),INDEX('Optional Reporting'!$B$11:$FZ$11,ROW(A68)))","v":{"$error":"#N/A"}},{"$f":"IF((INDEX('Optional Reporting'!$B$17:$FZ$17,ROW(A68)))=\"\",NA(),INDEX('Optional Reporting'!$B$17:$FZ$17,ROW(A68)))","v":{"$error":"#N/A"}},{"$f":"IF(ISBLANK(INDEX(Reporting!$B$12:$FZ$12,ROW(A67))),\"\",INDEX(Reporting!$B$12:$FZ$12,ROW(A67)))","v":""}]
[null,null,{"$f":"IF(ISBLANK(INDEX(Planning!$B$16:$FZ$16,ROW(A70))),\"\",INDEX(Planning!$B$16:$FZ$16,ROW(A70)))","v":""},{"$f":"IF(ISBLANK(INDEX(Reporting!$B$9:$FZ$9,ROW(A70))),\"\",INDEX(Reporting!$B$9:$FZ$9,ROW(A70)))","v":""},{"$f":"IF(OR(IF(ISBLANK(A71),TRUE,FALSE),ISBLANK(Planning!$B$11)),\"\",Planning!$B$11)","v":""},null,{"$f":"IF(ISBLANK(INDEX(Planning!$B$16:$FZ$16,ROW(A69))),\"\",INDEX(Planning!$B$16:$FZ$16,ROW(A69)))","v":""},{"$f":"IF(ISBLANK(INDEX(Planning!$B$17:$FZ$17,ROW(A69))),\"\",INDEX(Planning!$B$17:$FZ$17,ROW(A69)))","v":""},{"$f":"IF(ISBLANK(INDEX(Reporting!$B$9:$FZ$9,ROW(A69))),\"\",INDEX(Reporting!$B$9:$FZ$9,ROW(A69)))","v":""},{"$f":"IF(ISBLANK(INDEX(Reporting!$B$11:$FZ$11,ROW(A69))),\"\",INDEX(Reporting!$B$11:$FZ$11,ROW(A69)))","v":""},{"$f":"IF(ISBLANK(INDEX(Reporting!$B$18:$FZ$18,ROW(A69))),\"\",IF(INDEX(Reporting!$B$18:$FZ$18,ROW(A69))=\"No Failures Observed\",NA(),INDEX(Reporting!$B$18:$FZ$18,ROW(A69))))","v":""},{"$f":"IF(ISBLANK(INDEX('Optional Reporting'!$B$11:$FZ$11,ROW(A69))),NA(),INDEX('Optional Reporting'!$B$11:$FZ$11,ROW(A69)))","v":{"$error":"#N/A"}},{"$f":"IF((INDEX('Optional Reporting'!$B$17:$FZ$17,ROW(A69)))=\"\",NA(),INDEX('Optional Reporting'!$B$17:$FZ$17,ROW(A69)))","v":{"$error":"#N/A"}},{"$f":"IF(ISBLANK(INDEX(Reporting!$B$12:$FZ$12,ROW(A68))),\"\",INDEX(Reporting!$B$12:$FZ$12,ROW(A68)))","v":""}]
[null,null,{"$f":"IF(ISBLANK(INDEX(Planning!$B$16:$FZ$16,ROW(A71))),\"\",INDEX(Planning!$B$16:$FZ$16,ROW(A71)))","v":""},{"$f":"IF(ISBLANK(INDEX(Reporting!$B$9:$FZ$9,ROW(A71))),\"\",INDEX(Reporting!$B$9:$FZ$9,ROW(A71)))","v":""},{"$f":"IF(OR(IF(ISBLANK(A72),TRUE,FALSE),ISBLANK(Planning!$B$11)),\"\",Planning!$B$11)","v":""},null,{"$f":"IF(ISBLANK(INDEX(Planning!$B$16:$FZ$16,ROW(A70))),\"\",INDEX(Planning!$B$16:$FZ$16,ROW(A70)))","v":""},{"$f":"IF(ISBLANK(INDEX(Planning!$B$17:$FZ$17,ROW(A70))),\"\",INDEX(Planning!$B$17:$FZ$17,ROW(A70)))","v":""},{"$f":"IF(ISBLANK(INDEX(Reporting!$B$9:$FZ$9,ROW(A70))),\"\",INDEX(Reporting!$B$9:$FZ$9,ROW(A70)))","v":""},{"$f":"IF(ISBLANK(INDEX(Reporting!$B$11:$FZ$11,ROW(A70))),\"\",INDEX(Reporting!$B$11:$FZ$11,ROW(A70)))","v":""},{"$f":"IF(ISBLANK(INDEX(Reporting!$B$18:$FZ$18,ROW(A70))),\"\",IF(INDEX(Reporting!$B$18:$FZ$18,ROW(A70))=\"No Failures Observed\",NA(),INDEX(Reporting!$B$18:$FZ$18,ROW(A70))))","v":""},{"$f":"IF(ISBLANK(INDEX('Optional Reporting'!$B$11:$FZ$11,ROW(A70))),NA(),INDEX('Optional Reporting'!$B$11:$FZ$11,ROW(A70)))","v":{"$error":"#N/A"}},{"$f":"IF((INDEX('Optional Reporting'!$B$17:$FZ$17,ROW(A70)))=\"\",NA(),INDEX('Optional Reporting'!$B$17:$FZ$17,ROW(A70)))","v":{"$error":"#N/A"}},{"$f":"IF(ISBLANK(INDEX(Reporting!$B$12:$FZ$12,ROW(A69))),\"\",INDEX(Reporting!$B$12:$FZ$12,ROW(A69)))","v":""}]
[null,null,{"$f":"IF(ISBLANK(INDEX(Planning!$B$16:$FZ$16,ROW(A72))),\"\",INDEX(Planning!$B$16:$FZ$16,ROW(A72)))","v":""},{"$f":"IF(ISBLANK(INDEX(Reporting!$B$9:$FZ$9,ROW(A72))),\"\",INDEX(Reporting!$B$9:$FZ$9,ROW(A72)))","v":""},{"$f":"IF(OR(IF(ISBLANK(A73),TRUE,FALSE),ISBLANK(Planning!$B$11)),\"\",Planning!$B$11)","v":""},null,{"$f":"IF(ISBLANK(INDEX(Planning!$B$16:$FZ$16,ROW(A71))),\"\",INDEX(Planning!$B$16:$FZ$16,ROW(A71)))","v":""},{"$f":"IF(ISBLANK(INDEX(Planning!$B$17:$FZ$17,ROW(A71))),\"\",INDEX(Planning!$B$17:$FZ$17,ROW(A71)))","v":""},{"$f":"IF(ISBLANK(INDEX(Reporting!$B$9:$FZ$9,ROW(A71))),\"\",INDEX(Reporting!$B$9:$FZ$9,ROW(A71)))","v":""},{"$f":"IF(ISBLANK(INDEX(Reporting!$B$11:$FZ$11,ROW(A71))),\"\",INDEX(Reporting!$B$11:$FZ$11,ROW(A71)))","v":""},{"$f":"IF(ISBLANK(INDEX(Reporting!$B$18:$FZ$18,ROW(A71))),\"\",IF(INDEX(Reporting!$B$18:$FZ$18,ROW(A71))=\"No Failures Observed\",NA(),INDEX(Reporting!$B$18:$FZ$18,ROW(A71))))","v":""},{"$f":"IF(ISBLANK(INDEX('Optional Reporting'!$B$11:$FZ$11,ROW(A71))),NA(),INDEX('Optional Reporting'!$B$11:$FZ$11,ROW(A71)))","v":{"$error":"#N/A"}},{"$f":"IF((INDEX('Optional Reporting'!$B$17:$FZ$17,ROW(A71)))=\"\",NA(),INDEX('Optional Reporting'!$B$17:$FZ$17,ROW(A71)))","v":{"$error":"#N/A"}},{"$f":"IF(ISBLANK(INDEX(Reporting!$B$12:$FZ$12,ROW(A70))),\"\",INDEX(Reporting!$B$12:$FZ$12,ROW(A70)))","v":""}]
[null,null,{"$f":"IF(ISBLANK(INDEX(Planning!$B$16:$FZ$16,ROW(A73))),\"\",INDEX(Planning!$B$16:$FZ$16,ROW(A73)))","v":""},{"$f":"IF(ISBLANK(INDEX(Reporting!$B$9:$FZ$9,ROW(A73))),\"\",INDEX(Reporting!$B$9:$FZ$9,ROW(A73)))","v":""},{"$f":"IF(OR(IF(ISBLANK(A74),TRUE,FALSE),ISBLANK(Planning!$B$11)),\"\",Planning!$B$11)","v":""},null,{"$f":"IF(ISBLANK(INDEX(Planning!$B$16:$FZ$16,ROW(A72))),\"\",INDEX(Planning!$B$16:$FZ$16,ROW(A72)))","v":""},{"$f":"IF(ISBLANK(INDEX(Planning!$B$17:$FZ$17,ROW(A72))),\"\",INDEX(Planning!$B$17:$FZ$17,ROW(A72)))","v":""},{"$f":"IF(ISBLANK(INDEX(Reporting!$B$9:$FZ$9,ROW(A72))),\"\",INDEX(Reporting!$B$9:$FZ$9,ROW(A72)))","v":""},{"$f":"IF(ISBLANK(INDEX(Reporting!$B$11:$FZ$11,ROW(A72))),\"\",INDEX(Reporting!$B$11:$FZ$11,ROW(A72)))","v":""},{"$f":"IF(ISBLANK(INDEX(Reporting!$B$18:$FZ$18,ROW(A72))),\"\",IF(INDEX(Reporting!$B$18:$FZ$18,ROW(A72))=\"No Failures Observed\",NA(),INDEX(Reporting!$B$18:$FZ$18,ROW(A72))))","v":""},{"$f":"IF(ISBLANK(INDEX('Optional Reporting'!$B$11:$FZ$11,ROW(A72))),NA(),INDEX('Optional Reporting'!$B$11:$FZ$11,ROW(A72)))","v":{"$error":"#N/A"}},{"$f":"IF((INDEX('Optional Reporting'!$B$17:$FZ$17,ROW(A72)))=\"\",NA(),INDEX('Optional Reporting'!$B$17:$FZ$17,ROW(A72)))","v":{"$error":"#N/A"}},{"$f":"IF(ISBLANK(INDEX(Reporting!$B$12:$FZ$12,ROW(A71))),\"\",INDEX(Reporting!$B$12:$FZ$12,ROW(A71)))","v":""}]
[null,null,{"$f":"IF(ISBLANK(INDEX(Planning!$B$16:$FZ$16,ROW(A74))),\"\",INDEX(Planning!$B$16:$FZ$16,ROW(A74)))","v":""},{"$f":"IF(ISBLANK(INDEX(Reporting!$B$9:$FZ$9,ROW(A74))),\"\",INDEX(Reporting!$B$9:$FZ$9,ROW(A74)))","v":""},{"$f":"IF(OR(IF(ISBLANK(A75),TRUE,FALSE),ISBLANK(Planning!$B$11)),\"\",Planning!$B$11)","v":""},null,{"$f":"IF(ISBLANK(INDEX(Planning!$B$16:$FZ$16,ROW(A73))),\"\",INDEX(Planning!$B$16:$FZ$16,ROW(A73)))","v":""},{"$f":"IF(ISBLANK(INDEX(Planning!$B$17:$FZ$17,ROW(A73))),\"\",INDEX(Planning!$B$17:$FZ$17,ROW(A73)))","v":""},{"$f":"IF(ISBLANK(INDEX(Reporting!$B$9:$FZ$9,ROW(A73))),\"\",INDEX(Reporting!$B$9:$FZ$9,ROW(A73)))","v":""},{"$f":"IF(ISBLANK(INDEX(Reporting!$B$11:$FZ$11,ROW(A73))),\"\",INDEX(Reporting!$B$11:$FZ$11,ROW(A73)))","v":""},{"$f":"IF(ISBLANK(INDEX(Reporting!$B$18:$FZ$18,ROW(A73))),\"\",IF(INDEX(Reporting!$B$18:$FZ$18,ROW(A73))=\"No Failures Observed\",NA(),INDEX(Reporting!$B$18:$FZ$18,ROW(A73))))","v":""},{"$f":"IF(ISBLANK(INDEX('Optional Reporting'!$B$11:$FZ$11,ROW(A73))),NA(),INDEX('Optional Reporting'!$B$11:$FZ$11,ROW(A73)))","v":{"$error":"#N/A"}},{"$f":"IF((INDEX('Optional Reporting'!$B$17:$FZ$17,ROW(A73)))=\"\",NA(),INDEX('Optional Reporting'!$B$17:$FZ$17,ROW(A73)))","v":{"$error":"#N/A"}},{"$f":"IF(ISBLANK(INDEX(Reporting!$B$12:$FZ$12,ROW(A72))),\"\",INDEX(Reporting!$B$12:$FZ$12,ROW(A72)))","v":""}]
[null,null,{"$f":"IF(ISBLANK(INDEX(Planning!$B$16:$FZ$16,ROW(A75))),\"\",INDEX(Planning!$B$16:$FZ$16,ROW(A75)))","v":""},{"$f":"IF(ISBLANK(INDEX(Reporting!$B$9:$FZ$9,ROW(A75))),\"\",INDEX(Reporting!$B$9:$FZ$9,ROW(A75)))","v":""},{"$f":"IF(OR(IF(ISBLANK(A76),TRUE,FALSE),ISBLANK(Planning!$B$11)),\"\",Planning!$B$11)","v":""},null,{"$f":"IF(ISBLANK(INDEX(Planning!$B$16:$FZ$16,ROW(A74))),\"\",INDEX(Planning!$B$16:$FZ$16,ROW(A74)))","v":""},{"$f":"IF(ISBLANK(INDEX(Planning!$B$17:$FZ$17,ROW(A74))),\"\",INDEX(Planning!$B$17:$FZ$17,ROW(A74)))","v":""},{"$f":"IF(ISBLANK(INDEX(Reporting!$B$9:$FZ$9,ROW(A74))),\"\",INDEX(Reporting!$B$9:$FZ$9,ROW(A74)))","v":""},{"$f":"IF(ISBLANK(INDEX(Reporting!$B$11:$FZ$11,ROW(A74))),\"\",INDEX(Reporting!$B$11:$FZ$11,ROW(A74)))","v":""},{"$f":"IF(ISBLANK(INDEX(Reporting!$B$18:$FZ$18,ROW(A74))),\"\",IF(INDEX(Reporting!$B$18:$FZ$18,ROW(A74))=\"No Failures Observed\",NA(),INDEX(Reporting!$B$18:$FZ$18,ROW(A74))))","v":""},{"$f":"IF(ISBLANK(INDEX('Optional Reporting'!$B$11:$FZ$11,ROW(A74))),NA(),INDEX('Optional Reporting'!$B$11:$FZ$11,ROW(A74)))","v":{"$error":"#N/A"}},{"$f":"IF((INDEX('Optional Reporting'!$B$17:$FZ$17,ROW(A74)))=\"\",NA(),INDEX('Optional Reporting'!$B$17:$FZ$17,ROW(A74)))","v":{"$error":"#N/A"}},{"$f":"IF(ISBLANK(INDEX(Reporting!$B$12:$FZ$12,ROW(A73))),\"\",INDEX(Reporting!$B$12:$FZ$12,ROW(A73)))","v":""}]
[null,null,{"$f":"IF(ISBLANK(INDEX(Planning!$B$16:$FZ$16,ROW(A76))),\"\",INDEX(Planning!$B$16:$FZ$16,ROW(A76)))","v":""},{"$f":"IF(ISBLANK(INDEX(Reporting!$B$9:$FZ$9,ROW(A76))),\"\",INDEX(Reporting!$B$9:$FZ$9,ROW(A76)))","v":""},{"$f":"IF(OR(IF(ISBLANK(A77),TRUE,FALSE),ISBLANK(Planning!$B$11)),\"\",Planning!$B$11)","v":""},null,{"$f":"IF(ISBLANK(INDEX(Planning!$B$16:$FZ$16,ROW(A75))),\"\",INDEX(Planning!$B$16:$FZ$16,ROW(A75)))","v":""},{"$f":"IF(ISBLANK(INDEX(Planning!$B$17:$FZ$17,ROW(A75))),\"\",INDEX(Planning!$B$17:$FZ$17,ROW(A75)))","v":""},{"$f":"IF(ISBLANK(INDEX(Reporting!$B$9:$FZ$9,ROW(A75))),\"\",INDEX(Reporting!$B$9:$FZ$9,ROW(A75)))","v":""},{"$f":"IF(ISBLANK(INDEX(Reporting!$B$11:$FZ$11,ROW(A75))),\"\",INDEX(Reporting!$B$11:$FZ$11,ROW(A75)))","v":""},{"$f":"IF(ISBLANK(INDEX(Reporting!$B$18:$FZ$18,ROW(A75))),\"\",IF(INDEX(Reporting!$B$18:$FZ$18,ROW(A75))=\"No Failures Observed\",NA(),INDEX(Reporting!$B$18:$FZ$18,ROW(A75))))","v":""},{"$f":"IF(ISBLANK(INDEX('Optional Reporting'!$B$11:$FZ$11,ROW(A75))),NA(),INDEX('Optional Reporting'!$B$11:$FZ$11,ROW(A75)))","v":{"$error":"#N/A"}},{"$f":"IF((INDEX('Optional Reporting'!$B$17:$FZ$17,ROW(A75)))=\"\",NA(),INDEX('Optional Reporting'!$B$17:$FZ$17,ROW(A75)))","v":{"$error":"#N/A"}},{"$f":"IF(ISBLANK(INDEX(Reporting!$B$12:$FZ$12,ROW(A74))),\"\",INDEX(Reporting!$B$12:$FZ$12,ROW(A74)))","v":""}]
[null,null,{"$f":"IF(ISBLANK(INDEX(Planning!$B$16:$FZ$16,ROW(A77))),\"\",INDEX(Planning!$B$16:$FZ$16,ROW(A77)))","v":""},{"$f":"IF(ISBLANK(INDEX(Reporting!$B$9:$FZ$9,ROW(A77))),\"\",INDEX(Reporting!$B$9:$FZ$9,ROW(A77)))","v":""},{"$f":"IF(OR(IF(ISBLANK(A78),TRUE,FALSE),ISBLANK(Planning!$B$11)),\"\",Planning!$B$11)","v":""},null,{"$f":"IF(ISBLANK(INDEX(Planning!$B$16:$FZ$16,ROW(A76))),\"\",INDEX(Planning!$B$16:$FZ$16,ROW(A76)))","v":""},{"$f":"IF(ISBLANK(INDEX(Planning!$B$17:$FZ$17,ROW(A76))),\"\",INDEX(Planning!$B$17:$FZ$17,ROW(A76)))","v":""},{"$f":"IF(ISBLANK(INDEX(Reporting!$B$9:$FZ$9,ROW(A76))),\"\",INDEX(Reporting!$B$9:$FZ$9,ROW(A76)))","v":""},{"$f":"IF(ISBLANK(INDEX(Reporting!$B$11:$FZ$11,ROW(A76))),\"\",INDEX(Reporting!$B$11:$FZ$11,ROW(A76)))","v":""},{"$f":"IF(ISBLANK(INDEX(Reporting!$B$18:$FZ$18,ROW(A76))),\"\",IF(INDEX(Reporting!$B$18:$FZ$18,ROW(A76))=\"No Failures Observed\",NA(),INDEX(Reporting!$B$18:$FZ$18,ROW(A76))))","v":""},{"$f":"IF(ISBLANK(INDEX('Optional Reporting'!$B$11:$FZ$11,ROW(A76))),NA(),INDEX('Optional Reporting'!$B$11:$FZ$11,ROW(A76)))","v":{"$error":"#N/A"}},{"$f":"IF((INDEX('Optional Reporting'!$B$17:$FZ$17,ROW(A76)))=\"\",NA(),INDEX('Optional Reporting'!$B$17:$FZ$17,ROW(A76)))","v":{"$error":"#N/A"}},{"$f":"IF(ISBLANK(INDEX(Reporting!$B$12:$FZ$12,ROW(A75))),\"\",INDEX(Reporting!$B$12:$FZ$12,ROW(A75)))","v":""}]
[null,null,{"$f":"IF(ISBLANK(INDEX(Planning!$B$16:$FZ$16,ROW(A78))),\"\",INDEX(Planning!$B$16:$FZ$16,ROW(A78)))","v":""},{"$f":"IF(ISBLANK(INDEX(Reporting!$B$9:$FZ$9,ROW(A78))),\"\",INDEX(Reporting!$B$9:$FZ$9,ROW(A78)))","v":""},{"$f":"IF(OR(IF(ISBLANK(A79),TRUE,FALSE),ISBLANK(Planning!$B$11)),\"\",Planning!$B$11)","v":""},null,{"$f":"IF(ISBLANK(INDEX(Planning!$B$16:$FZ$16,ROW(A77))),\"\",INDEX(Planning!$B$16:$FZ$16,ROW(A77)))","v":""},{"$f":"IF(ISBLANK(INDEX(Planning!$B$17:$FZ$17,ROW(A77))),\"\",INDEX(Planning!$B$17:$FZ$17,ROW(A77)))","v":""},{"$f":"IF(ISBLANK(INDEX(Reporting!$B$9:$FZ$9,ROW(A77))),\"\",INDEX(Reporting!$B$9:$FZ$9,ROW(A77)))","v":""},{"$f":"IF(ISBLANK(INDEX(Reporting!$B$11:$FZ$11,ROW(A77))),\"\",INDEX(Reporting!$B$11:$FZ$11,ROW(A77)))","v":""},{"$f":"IF(ISBLANK(INDEX(Reporting!$B$18:$FZ$18,ROW(A77))),\"\",IF(INDEX(Reporting!$B$18:$FZ$18,ROW(A77))=\"No Failures Observed\",NA(),INDEX(Reporting!$B$18:$FZ$18,ROW(A77))))","v":""},{"$f":"IF(ISBLANK(INDEX('Optional Reporting'!$B$11:$FZ$11,ROW(A77))),NA(),INDEX('Optional Reporting'!$B$11:$FZ$11,ROW(A77)))","v":{"$error":"#N/A"}},{"$f":"IF((INDEX('Optional Reporting'!$B$17:$FZ$17,ROW(A77)))=\"\",NA(),INDEX('Optional Reporting'!$B$17:$FZ$17,ROW(A77)))","v":{"$error":"#N/A"}},{"$f":"IF(ISBLANK(INDEX(Reporting!$B$12:$FZ$12,ROW(A76))),\"\",INDEX(Reporting!$B$12:$FZ$12,ROW(A76)))","v":""}]
[null,null,{"$f":"IF(ISBLANK(INDEX(Planning!$B$16:$FZ$16,ROW(A79))),\"\",INDEX(Planning!$B$16:$FZ$16,ROW(A79)))","v":""},{"$f":"IF(ISBLANK(INDEX(Reporting!$B$9:$FZ$9,ROW(A79))),\"\",INDEX(Reporting!$B$9:$FZ$9,ROW(A79)))","v":""},{"$f":"IF(OR(IF(ISBLANK(A80),TRUE,FALSE),ISBLANK(Planning!$B$11)),\"\",Planning!$B$11)","v":""},null,{"$f":"IF(ISBLANK(INDEX(Planning!$B$16:$FZ$16,ROW(A78))),\"\",INDEX(Planning!$B$16:$FZ$16,ROW(A78)))","v":""},{"$f":"IF(ISBLANK(INDEX(Planning!$B$17:$FZ$17,ROW(A78))),\"\",INDEX(Planning!$B$17:$FZ$17,ROW(A78)))","v":""},{"$f":"IF(ISBLANK(INDEX(Reporting!$B$9:$FZ$9,ROW(A78))),\"\",INDEX(Reporting!$B$9:$FZ$9,ROW(A78)))","v":""},{"$f":"IF(ISBLANK(INDEX(Reporting!$B$11:$FZ$11,ROW(A78))),\"\",INDEX(Reporting!$B$11:$FZ$11,ROW(A78)))","v":""},{"$f":"IF(ISBLANK(INDEX(Reporting!$B$18:$FZ$18,ROW(A78))),\"\",IF(INDEX(Reporting!$B$18:$FZ$18,ROW(A78))=\"No Failures Observed\",NA(),INDEX(Reporting!$B$18:$FZ$18,ROW(A78))))","v":""},{"$f":"IF(ISBLANK(INDEX('Optional Reporting'!$B$11:$FZ$11,ROW(A78))),NA(),INDEX('Optional Reporting'!$B$11:$FZ$11,ROW(A78)))","v":{"$error":"#N/A"}},{"$f":"IF((INDEX('Optional Reporting'!$B$17:$FZ$17,ROW(A78)))=\"\",NA(),INDEX('Optional Reporting'!$B$17:$FZ$17,ROW(A78)))","v":{"$error":"#N/A"}},{"$f":"IF(ISBLANK(INDEX(Reporting!$B$12:$FZ$12,ROW(A77))),\"\",INDEX(Reporting!$B$12:$FZ$12,ROW(A77)))","v":""}]
[null,null,{"$f":"IF(ISBLANK(INDEX(Planning!$B$16:$FZ$16,ROW(A80))),\"\",INDEX(Planning!$B$16:$FZ$16,ROW(A80)))","v":""},{"$f":"IF(ISBLANK(INDEX(Reporting!$B$9:$FZ$9,ROW(A80))),\"\",INDEX(Reporting!$B$9:$FZ$9,ROW(A80)))","v":""},{"$f":"IF(OR(IF(ISBLANK(A81),TRUE,FALSE),ISBLANK(Planning!$B$11)),\"\",Planning!$B$11)","v":""},null,{"$f":"IF(ISBLANK(INDEX(Planning!$B$16:$FZ$16,ROW(A79))),\"\",INDEX(Planning!$B$16:$FZ$16,ROW(A79)))","v":""},{"$f":"IF(ISBLANK(INDEX(Planning!$B$17:$FZ$17,ROW(A79))),\"\",INDEX(Planning!$B$17:$FZ$17,ROW(A79)))","v":""},{"$f":"IF(ISBLANK(INDEX(Reporting!$B$9:$FZ$9,ROW(A79))),\"\",INDEX(Reporting!$B$9:$FZ$9,ROW(A79)))","v":""},{"$f":"IF(ISBLANK(INDEX(Reporting!$B$11:$FZ$11,ROW(A79))),\"\",INDEX(Reporting!$B$11:$FZ$11,ROW(A79)))","v":""},{"$f":"IF(ISBLANK(INDEX(Reporting!$B$18:$FZ$18,ROW(A79))),\"\",IF(INDEX(Reporting!$B$18:$FZ$18,ROW(A79))=\"No Failures Observed\",NA(),INDEX(Reporting!$B$18:$FZ$18,ROW(A79))))","v":""},{"$f":"IF(ISBLANK(INDEX('Optional Reporting'!$B$11:$FZ$11,ROW(A79))),NA(),INDEX('Optional Reporting'!$B$11:$FZ$11,ROW(A79)))","v":{"$error":"#N/A"}},{"$f":"IF((INDEX('Optional Reporting'!$B$17:$FZ$17,ROW(A79)))=\"\",NA(),INDEX('Optional Reporting'!$B$17:$FZ$17,ROW(A79)))","v":{"$error":"#N/A"}},{"$f":"IF(ISBLANK(INDEX(Reporting!$B$12:$FZ$12,ROW(A78))),\"\",INDEX(Reporting!$B$12:$FZ$12,ROW(A78)))","v":""}]
[null,null,{"$f":"IF(ISBLANK(INDEX(Planning!$B$16:$FZ$16,ROW(A81))),\"\",INDEX(Planning!$B$16:$FZ$16,ROW(A81)))","v":""},{"$f":"IF(ISBLANK(INDEX(Reporting!$B$9:$FZ$9,ROW(A81))),\"\",INDEX(Reporting!$B$9:$FZ$9,ROW(A81)))","v":""},{"$f":"IF(OR(IF(ISBLANK(A82),TRUE,FALSE),ISBLANK(Planning!$B$11)),\"\",Planning!$B$11)","v":""},null,{"$f":"IF(ISBLANK(INDEX(Planning!$B$16:$FZ$16,ROW(A80))),\"\",INDEX(Planning!$B$16:$FZ$16,ROW(A80)))","v":""},{"$f":"IF(ISBLANK(INDEX(Planning!$B$17:$FZ$17,ROW(A80))),\"\",INDEX(Planning!$B$17:$FZ$17,ROW(A80)))","v":""},{"$f":"IF(ISBLANK(INDEX(Reporting!$B$9:$FZ$9,ROW(A80))),\"\",INDEX(Reporting!$B$9:$FZ$9,ROW(A80)))","v":""},{"$f":"IF(ISBLANK(INDEX(Reporting!$B$11:$FZ$11,ROW(A80))),\"\",INDEX(Reporting!$B$11:$FZ$11,ROW(A80)))","v":""},{"$f":"IF(ISBLANK(INDEX(Reporting!$B$18:$FZ$18,ROW(A80))),\"\",IF(INDEX(Reporting!$B$18:$FZ$18,ROW(A80))=\"No Failures Observed\",NA(),INDEX(Reporting!$B$18:$FZ$18,ROW(A80))))","v":""},{"$f":"IF(ISBLANK(INDEX('Optional Reporting'!$B$11:$FZ$11,ROW(A80))),NA(),INDEX('Optional Reporting'!$B$11:$FZ$11,ROW(A80)))","v":{"$error":"#N/A"}},{"$f":"IF((INDEX('Optional Reporting'!$B$17:$FZ$17,ROW(A80)))=\"\",NA(),INDEX('Optional Reporting'!$B$17:$FZ$17,ROW(A80)))","v":{"$error":"#N/A"}},{"$f":"IF(ISBLANK(INDEX(Reporting!$B$12:$FZ$12,ROW(A79))),\"\",INDEX(Reporting!$B$12:$FZ$12,ROW(A79)))","v":""}]
[null,null,{"$f":"IF(ISBLANK(INDEX(Planning!$B$16:$FZ$16,ROW(A82))),\"\",INDEX(Planning!$B$16:$FZ$16,ROW(A82)))","v":""},{"$f":"IF(ISBLANK(INDEX(Reporting!$B$9:$FZ$9,ROW(A82))),\"\",INDEX(Reporting!$B$9:$FZ$9,ROW(A82)))","v":""},{"$f":"IF(OR(IF(ISBLANK(A83),TRUE,FALSE),ISBLANK(Planning!$B$11)),\"\",Planning!$B$11)","v":""},null,{"$f":"IF(ISBLANK(INDEX(Planning!$B$16:$FZ$16,ROW(A81))),\"\",INDEX(Planning!$B$16:$FZ$16,ROW(A81)))","v":""},{"$f":"IF(ISBLANK(INDEX(Planning!$B$17:$FZ$17,ROW(A81))),\"\",INDEX(Planning!$B$17:$FZ$17,ROW(A81)))","v":""},{"$f":"IF(ISBLANK(INDEX(Reporting!$B$9:$FZ$9,ROW(A81))),\"\",INDEX(Reporting!$B$9:$FZ$9,ROW(A81)))","v":""},{"$f":"IF(ISBLANK(INDEX(Reporting!$B$11:$FZ$11,ROW(A81))),\"\",INDEX(Reporting!$B$11:$FZ$11,ROW(A81)))","v":""},{"$f":"IF(ISBLANK(INDEX(Reporting!$B$18:$FZ$18,ROW(A81))),\"\",IF(INDEX(Reporting!$B$18:$FZ$18,ROW(A81))=\"No Failures Observed\",NA(),INDEX(Reporting!$B$18:$FZ$18,ROW(A81))))","v":""},{"$f":"IF(ISBLANK(INDEX('Optional Reporting'!$B$11:$FZ$11,ROW(A81))),NA(),INDEX('Optional Reporting'!$B$11:$FZ$11,ROW(A81)))","v":{"$error":"#N/A"}},{"$f":"IF((INDEX('Optional Reporting'!$B$17:$FZ$17,ROW(A81)))=\"\",NA(),INDEX('Optional Reporting'!$B$17:$FZ$17,ROW(A81)))","v":{"$error":"#N/A"}},{"$f":"IF(ISBLANK(INDEX(Reporting!$B$12:$FZ$12,ROW(A80))),\"\",INDEX(Reporting!$B$12:$FZ$12,ROW(A80)))","v":""}]
[null,null,{"$f":"IF(ISBLANK(INDEX(Planning!$B$16:$FZ$16,ROW(A83))),\"\",INDEX(Planning!$B$16:$FZ$16,ROW(A83)))","v":""},{"$f":"IF(ISBLANK(INDEX(Reporting!$B$9:$FZ$9,ROW(A83))),\"\",INDEX(Reporting!$B$9:$FZ$9,ROW(A83)))","v":""},{"$f":"IF(OR(IF(ISBLANK(A84),TRUE,FALSE),ISBLANK(Planning!$B$11)),\"\",Planning!$B$11)","v":""},null,{"$f":"IF(ISBLANK(INDEX(Planning!$B$16:$FZ$16,ROW(A82))),\"\",INDEX(Planning!$B$16:$FZ$16,ROW(A82)))","v":""},{"$f":"IF(ISBLANK(INDEX(Planning!$B$17:$FZ$17,ROW(A82))),\"\",INDEX(Planning!$B$17:$FZ$17,ROW(A82)))","v":""},{"$f":"IF(ISBLANK(INDEX(Reporting!$B$9:$FZ$9,ROW(A82))),\"\",INDEX(Reporting!$B$9:$FZ$9,ROW(A82)))","v":""},{"$f":"IF(ISBLANK(INDEX(Reporting!$B$11:$FZ$11,ROW(A82))),\"\",INDEX(Reporting!$B$11:$FZ$11,ROW(A82)))","v":""},{"$f":"IF(ISBLANK(INDEX(Reporting!$B$18:$FZ$18,ROW(A82))),\"\",IF(INDEX(Reporting!$B$18:$FZ$18,ROW(A82))=\"No Failures Observed\",NA(),INDEX(Reporting!$B$18:$FZ$18,ROW(A82))))","v":""},{"$f":"IF(ISBLANK(INDEX('Optional Reporting'!$B$11:$FZ$11,ROW(A82))),NA(),INDEX('Optional Reporting'!$B$11:$FZ$11,ROW(A82)))","v":{"$error":"#N/A"}},{"$f":"IF((INDEX('Optional Reporting'!$B$17:$FZ$17,ROW(A82)))=\"\",NA(),INDEX('Optional Reporting'!$B$17:$FZ$17,ROW(A82)))","v":{"$error":"#N/A"}},{"$f":"IF(ISBLANK(INDEX(Reporting!$B$12:$FZ$12,ROW(A81))),\"\",INDEX(Reporting!$B$12:$FZ$12,ROW(A81)))","v":""}]
[null,null,{"$f":"IF(ISBLANK(INDEX(Planning!$B$16:$FZ$16,ROW(A84))),\"\",INDEX(Planning!$B$16:$FZ$16,ROW(A84)))","v":""},{"$f":"IF(ISBLANK(INDEX(Reporting!$B$9:$FZ$9,ROW(A84))),\"\",INDEX(Reporting!$B$9:$FZ$9,ROW(A84)))","v":""},{"$f":"IF(OR(IF(ISBLANK(A85),TRUE,FALSE),ISBLANK(Planning!$B$11)),\"\",Planning!$B$11)","v":""},null,{"$f":"IF(ISBLANK(INDEX(Planning!$B$16:$FZ$16,ROW(A83))),\"\",INDEX(Planning!$B$16:$FZ$16,ROW(A83)))","v":""},{"$f":"IF(ISBLANK(INDEX(Planning!$B$17:$FZ$17,ROW(A83))),\"\",INDEX(Planning!$B$17:$FZ$17,ROW(A83)))","v":""},{"$f":"IF(ISBLANK(INDEX(Reporting!$B$9:$FZ$9,ROW(A83))),\"\",INDEX(Reporting!$B$9:$FZ$9,ROW(A83)))","v":""},{"$f":"IF(ISBLANK(INDEX(Reporting!$B$11:$FZ$11,ROW(A83))),\"\",INDEX(Reporting!$B$11:$FZ$11,ROW(A83)))","v":""},{"$f":"IF(ISBLANK(INDEX(Reporting!$B$18:$FZ$18,ROW(A83))),\"\",IF(INDEX(Reporting!$B$18:$FZ$18,ROW(A83))=\"No Failures Observed\",NA(),INDEX(Reporting!$B$18:$FZ$18,ROW(A83))))","v":""},{"$f":"IF(ISBLANK(INDEX('Optional Reporting'!$B$11:$FZ$11,ROW(A83))),NA(),INDEX('Optional Reporting'!$B$11:$FZ$11,ROW(A83)))","v":{"$error":"#N/A"}},{"$f":"IF((INDEX('Optional Reporting'!$B$17:$FZ$17,ROW(A83)))=\"\",NA(),INDEX('Optional Reporting'!$B$17:$FZ$17,ROW(A83)))","v":{"$error":"#N/A"}},{"$f":"IF(ISBLANK(INDEX(Reporting!$B$12:$FZ$12,ROW(A82))),\"\",INDEX(Reporting!$B$12:$FZ$12,ROW(A82)))","v":""}]
[null,null,{"$f":"IF(ISBLANK(INDEX(Planning!$B$16:$FZ$16,ROW(A85))),\"\",INDEX(Planning!$B$16:$FZ$16,ROW(A85)))","v":""},{"$f":"IF(ISBLANK(INDEX(Reporting!$B$9:$FZ$9,ROW(A85))),\"\",INDEX(Reporting!$B$9:$FZ$9,ROW(A85)))","v":""},{"$f":"IF(OR(IF(ISBLANK(A86),TRUE,FALSE),ISBLANK(Planning!$B$11)),\"\",Planning!$B$11)","v":""},null,{"$f":"IF(ISBLANK(INDEX(Planning!$B$16:$FZ$16,ROW(A84))),\"\",INDEX(Planning!$B$16:$FZ$16,ROW(A84)))","v":""},{"$f":"IF(ISBLANK(INDEX(Planning!$B$17:$FZ$17,ROW(A84))),\"\",INDEX(Planning!$B$17:$FZ$17,ROW(A84)))","v":""},{"$f":"IF(ISBLANK(INDEX(Reporting!$B$9:$FZ$9,ROW(A84))),\"\",INDEX(Reporting!$B$9:$FZ$9,ROW(A84)))","v":""},{"$f":"IF(ISBLANK(INDEX(Reporting!$B$11:$FZ$11,ROW(A84))),\"\",INDEX(Reporting!$B$11:$FZ$11,ROW(A84)))","v":""},{"$f":"IF(ISBLANK(INDEX(Reporting!$B$18:$FZ$18,ROW(A84))),\"\",IF(INDEX(Reporting!$B$18:$FZ$18,ROW(A84))=\"No Failures Observed\",NA(),INDEX(Reporting!$B$18:$FZ$18,ROW(A84))))","v":""},{"$f":"IF(ISBLANK(INDEX('Optional Reporting'!$B$11:$FZ$11,ROW(A84))),NA(),INDEX('Optional Reporting'!$B$11:$FZ$11,ROW(A84)))","v":{"$error":"#N/A"}},{"$f":"IF((INDEX('Optional Reporting'!$B$17:$FZ$17,ROW(A84)))=\"\",NA(),INDEX('Optional Reporting'!$B$17:$FZ$17,ROW(A84)))","v":{"$error":"#N/A"}},{"$f":"IF(ISBLANK(INDEX(Reporting!$B$12:$FZ$12,ROW(A83))),\"\",INDEX(Reporting!$B$12:$FZ$12,ROW(A83)))","v":""}]
[null,null,{"$f":"IF(ISBLANK(INDEX(Planning!$B$16:$FZ$16,ROW(A86))),\"\",INDEX(Planning!$B$16:$FZ$16,ROW(A86)))","v":""},{"$f":"IF(ISBLANK(INDEX(Reporting!$B$9:$FZ$9,ROW(A86))),\"\",INDEX(Reporting!$B$9:$FZ$9,ROW(A86)))","v":""},{"$f":"IF(OR(IF(ISBLANK(A87),TRUE,FALSE),ISBLANK(Planning!$B$11)),\"\",Planning!$B$11)","v":""},null,{"$f":"IF(ISBLANK(INDEX(Planning!$B$16:$FZ$16,ROW(A85))),\"\",INDEX(Planning!$B$16:$FZ$16,ROW(A85)))","v":""},{"$f":"IF(ISBLANK(INDEX(Planning!$B$17:$FZ$17,ROW(A85))),\"\",INDEX(Planning!$B$17:$FZ$17,ROW(A85)))","v":""},{"$f":"IF(ISBLANK(INDEX(Reporting!$B$9:$FZ$9,ROW(A85))),\"\",INDEX(Reporting!$B$9:$FZ$9,ROW(A85)))","v":""},{"$f":"IF(ISBLANK(INDEX(Reporting!$B$11:$FZ$11,ROW(A85))),\"\",INDEX(Reporting!$B$11:$FZ$11,ROW(A85)))","v":""},{"$f":"IF(ISBLANK(INDEX(Reporting!$B$18:$FZ$18,ROW(A85))),\"\",IF(INDEX(Reporting!$B$18:$FZ$18,ROW(A85))=\"No Failures Observed\",NA(),INDEX(Reporting!$B$18:$FZ$18,ROW(A85))))","v":""},{"$f":"IF(ISBLANK(INDEX('Optional Reporting'!$B$11:$FZ$11,ROW(A85))),NA(),INDEX('Optional Reporting'!$B$11:$FZ$11,ROW(A85)))","v":{"$error":"#N/A"}},{"$f":"IF((INDEX('Optional Reporting'!$B$17:$FZ$17,ROW(A85)))=\"\",NA(),INDEX('Optional Reporting'!$B$17:$FZ$17,ROW(A85)))","v":{"$error":"#N/A"}},{"$f":"IF(ISBLANK(INDEX(Reporting!$B$12:$FZ$12,ROW(A84))),\"\",INDEX(Reporting!$B$12:$FZ$12,ROW(A84)))","v":""}]
[null,null,{"$f":"IF(ISBLANK(INDEX(Planning!$B$16:$FZ$16,ROW(A87))),\"\",INDEX(Planning!$B$16:$FZ$16,ROW(A87)))","v":""},{"$f":"IF(ISBLANK(INDEX(Reporting!$B$9:$FZ$9,ROW(A87))),\"\",INDEX(Reporting!$B$9:$FZ$9,ROW(A87)))","v":""},{"$f":"IF(OR(IF(ISBLANK(A88),TRUE,FALSE),ISBLANK(Planning!$B$11)),\"\",Planning!$B$11)","v":""},null,{"$f":"IF(ISBLANK(INDEX(Planning!$B$16:$FZ$16,ROW(A86))),\"\",INDEX(Planning!$B$16:$FZ$16,ROW(A86)))","v":""},{"$f":"IF(ISBLANK(INDEX(Planning!$B$17:$FZ$17,ROW(A86))),\"\",INDEX(Planning!$B$17:$FZ$17,ROW(A86)))","v":""},{"$f":"IF(ISBLANK(INDEX(Reporting!$B$9:$FZ$9,ROW(A86))),\"\",INDEX(Reporting!$B$9:$FZ$9,ROW(A86)))","v":""},{"$f":"IF(ISBLANK(INDEX(Reporting!$B$11:$FZ$11,ROW(A86))),\"\",INDEX(Reporting!$B$11:$FZ$11,ROW(A86)))","v":""},{"$f":"IF(ISBLANK(INDEX(Reporting!$B$18:$FZ$18,ROW(A86))),\"\",IF(INDEX(Reporting!$B$18:$FZ$18,ROW(A86))=\"No Failures Observed\",NA(),INDEX(Reporting!$B$18:$FZ$18,ROW(A86))))","v":""},{"$f":"IF(ISBLANK(INDEX('Optional Reporting'!$B$11:$FZ$11,ROW(A86))),NA(),INDEX('Optional Reporting'!$B$11:$FZ$11,ROW(A86)))","v":{"$error":"#N/A"}},{"$f":"IF((INDEX('Optional Reporting'!$B$17:$FZ$17,ROW(A86)))=\"\",NA(),INDEX('Optional Reporting'!$B$17:$FZ$17,ROW(A86)))","v":{"$error":"#N/A"}},{"$f":"IF(ISBLANK(INDEX(Reporting!$B$12:$FZ$12,ROW(A85))),\"\",INDEX(Reporting!$B$12:$FZ$12,ROW(A85)))","v":""}]
[null,null,{"$f":"IF(ISBLANK(INDEX(Planning!$B$16:$FZ$16,ROW(A88))),\"\",INDEX(Planning!$B$16:$FZ$16,ROW(A88)))","v":""},{"$f":"IF(ISBLANK(INDEX(Reporting!$B$9:$FZ$9,ROW(A88))),\"\",INDEX(Reporting!$B$9:$FZ$9,ROW(A88)))","v":""},{"$f":"IF(OR(IF(ISBLANK(A89),TRUE,FALSE),ISBLANK(Planning!$B$11)),\"\",Planning!$B$11)","v":""},null,{"$f":"IF(ISBLANK(INDEX(Planning!$B$16:$FZ$16,ROW(A87))),\"\",INDEX(Planning!$B$16:$FZ$16,ROW(A87)))","v":""},{"$f":"IF(ISBLANK(INDEX(Planning!$B$17:$FZ$17,ROW(A87))),\"\",INDEX(Planning!$B$17:$FZ$17,ROW(A87)))","v":""},{"$f":"IF(ISBLANK(INDEX(Reporting!$B$9:$FZ$9,ROW(A87))),\"\",INDEX(Reporting!$B$9:$FZ$9,ROW(A87)))","v":""},{"$f":"IF(ISBLANK(INDEX(Reporting!$B$11:$FZ$11,ROW(A87))),\"\",INDEX(Reporting!$B$11:$FZ$11,ROW(A87)))","v":""},{"$f":"IF(ISBLANK(INDEX(Reporting!$B$18:$FZ$18,ROW(A87))),\"\",IF(INDEX(Reporting!$B$18:$FZ$18,ROW(A87))=\"No Failures Observed\",NA(),INDEX(Reporting!$B$18:$FZ$18,ROW(A87))))","v":""},{"$f":"IF(ISBLANK(INDEX('Optional Reporting'!$B$11:$FZ$11,ROW(A87))),NA(),INDEX('Optional Reporting'!$B$11:$FZ$11,ROW(A87)))","v":{"$error":"#N/A"}},{"$f":"IF((INDEX('Optional Reporting'!$B$17:$FZ$17,ROW(A87)))=\"\",NA(),INDEX('Optional Reporting'!$B$17:$FZ$17,ROW(A87)))","v":{"$error":"#N/A"}},{"$f":"IF(ISBLANK(INDEX(Reporting!$B$12:$FZ$12,ROW(A86))),\"\",INDEX(Reporting!$B$12:$FZ$12,ROW(A86)))","v":""}]
[null,null,{"$f":"IF(ISBLANK(INDEX(Planning!$B$16:$FZ$16,ROW(A89))),\"\",INDEX(Planning!$B$16:$FZ$16,ROW(A89)))","v":""},{"$f":"IF(ISBLANK(INDEX(Reporting!$B$9:$FZ$9,ROW(A89))),\"\",INDEX(Reporting!$B$9:$FZ$9,ROW(A89)))","v":""},{"$f":"IF(OR(IF(ISBLANK(A90),TRUE,FALSE),ISBLANK(Planning!$B$11)),\"\",Planning!$B$11)","v":""},null,{"$f":"IF(ISBLANK(INDEX(Planning!$B$16:$FZ$16,ROW(A88))),\"\",INDEX(Planning!$B$16:$FZ$16,ROW(A88)))","v":""},{"$f":"IF(ISBLANK(INDEX(Planning!$B$17:$FZ$17,ROW(A88))),\"\",INDEX(Planning!$B$17:$FZ$17,ROW(A88)))","v":""},{"$f":"IF(ISBLANK(INDEX(Reporting!$B$9:$FZ$9,ROW(A88))),\"\",INDEX(Reporting!$B$9:$FZ$9,ROW(A88)))","v":""},{"$f":"IF(ISBLANK(INDEX(Reporting!$B$11:$FZ$11,ROW(A88))),\"\",INDEX(Reporting!$B$11:$FZ$11,ROW(A88)))","v":""},{"$f":"IF(ISBLANK(INDEX(Reporting!$B$18:$FZ$18,ROW(A88))),\"\",IF(INDEX(Reporting!$B$18:$FZ$18,ROW(A88))=\"No Failures Observed\",NA(),INDEX(Reporting!$B$18:$FZ$18,ROW(A88))))","v":""},{"$f":"IF(ISBLANK(INDEX('Optional Reporting'!$B$11:$FZ$11,ROW(A88))),NA(),INDEX('Optional Reporting'!$B$11:$FZ$11,ROW(A88)))","v":{"$error":"#N/A"}},{"$f":"IF((INDEX('Optional Reporting'!$B$17:$FZ$17,ROW(A88)))=\"\",NA(),INDEX('Optional Reporting'!$B$17:$FZ$17,ROW(A88)))","v":{"$error":"#N/A"}},{"$f":"IF(ISBLANK(INDEX(Reporting!$B$12:$FZ$12,ROW(A87))),\"\",INDEX(Reporting!$B$12:$FZ$12,ROW(A87)))","v":""}]
[null,null,{"$f":"IF(ISBLANK(INDEX(Planning!$B$16:$FZ$16,ROW(A90))),\"\",INDEX(Planning!$B$16:$FZ$16,ROW(A90)))","v":""},{"$f":"IF(ISBLANK(INDEX(Reporting!$B$9:$FZ$9,ROW(A90))),\"\",INDEX(Reporting!$B$9:$FZ$9,ROW(A90)))","v":""},{"$f":"IF(OR(IF(ISBLANK(A91),TRUE,FALSE),ISBLANK(Planning!$B$11)),\"\",Planning!$B$11)","v":""},null,{"$f":"IF(ISBLANK(INDEX(Planning!$B$16:$FZ$16,ROW(A89))),\"\",INDEX(Planning!$B$16:$FZ$16,ROW(A89)))","v":""},{"$f":"IF(ISBLANK(INDEX(Planning!$B$17:$FZ$17,ROW(A89))),\"\",INDEX(Planning!$B$17:$FZ$17,ROW(A89)))","v":""},{"$f":"IF(ISBLANK(INDEX(Reporting!$B$9:$FZ$9,ROW(A89))),\"\",INDEX(Reporting!$B$9:$FZ$9,ROW(A89)))","v":""},{"$f":"IF(ISBLANK(INDEX(Reporting!$B$11:$FZ$11,ROW(A89))),\"\",INDEX(Reporting!$B$11:$FZ$11,ROW(A89)))","v":""},{"$f":"IF(ISBLANK(INDEX(Reporting!$B$18:$FZ$18,ROW(A89))),\"\",IF(INDEX(Reporting!$B$18:$FZ$18,ROW(A89))=\"No Failures Observed\",NA(),INDEX(Reporting!$B$18:$FZ$18,ROW(A89))))","v":""},{"$f":"IF(ISBLANK(INDEX('Optional Reporting'!$B$11:$FZ$11,ROW(A89))),NA(),INDEX('Optional Reporting'!$B$11:$FZ$11,ROW(A89)))","v":{"$error":"#N/A"}},{"$f":"IF((INDEX('Optional Reporting'!$B$17:$FZ$17,ROW(A89)))=\"\",NA(),INDEX('Optional Reporting'!$B$17:$FZ$17,ROW(A89)))","v":{"$error":"#N/A"}},{"$f":"IF(ISBLANK(INDEX(Reporting!$B$12:$FZ$12,ROW(A88))),\"\",INDEX(Reporting!$B$12:$FZ$12,ROW(A88)))","v":""}]
[null,null,{"$f":"IF(ISBLANK(INDEX(Planning!$B$16:$FZ$16,ROW(A91))),\"\",INDEX(Planning!$B$16:$FZ$16,ROW(A91)))","v":""},{"$f":"IF(ISBLANK(INDEX(Reporting!$B$9:$FZ$9,ROW(A91))),\"\",INDEX(Reporting!$B$9:$FZ$9,ROW(A91)))","v":""},{"$f":"IF(OR(IF(ISBLANK(A92),TRUE,FALSE),ISBLANK(Planning!$B$11)),\"\",Planning!$B$11)","v":""},null,{"$f":"IF(ISBLANK(INDEX(Planning!$B$16:$FZ$16,ROW(A90))),\"\",INDEX(Planning!$B$16:$FZ$16,ROW(A90)))","v":""},{"$f":"IF(ISBLANK(INDEX(Planning!$B$17:$FZ$17,ROW(A90))),\"\",INDEX(Planning!$B$17:$FZ$17,ROW(A90)))","v":""},{"$f":"IF(ISBLANK(INDEX(Reporting!$B$9:$FZ$9,ROW(A90))),\"\",INDEX(Reporting!$B$9:$FZ$9,ROW(A90)))","v":""},{"$f":"IF(ISBLANK(INDEX(Reporting!$B$11:$FZ$11,ROW(A90))),\"\",INDEX(Reporting!$B$11:$FZ$11,ROW(A90)))","v":""},{"$f":"IF(ISBLANK(INDEX(Reporting!$B$18:$FZ$18,ROW(A90))),\"\",IF(INDEX(Reporting!$B$18:$FZ$18,ROW(A90))=\"No Failures Observed\",NA(),INDEX(Reporting!$B$18:$FZ$18,ROW(A90))))","v":""},{"$f":"IF(ISBLANK(INDEX('Optional Reporting'!$B$11:$FZ$11,ROW(A90))),NA(),INDEX('Optional Reporting'!$B$11:$FZ$11,ROW(A90)))","v":{"$error":"#N/A"}},{"$f":"IF((INDEX('Optional Reporting'!$B$17:$FZ$17,ROW(A90)))=\"\",NA(),INDEX('Optional Reporting'!$B$17:$FZ$17,ROW(A90)))","v":{"$error":"#N/A"}},{"$f":"IF(ISBLANK(INDEX(Reporting!$B$12:$FZ$12,ROW(A89))),\"\",INDEX(Reporting!$B$12:$FZ$12,ROW(A89)))","v":""}]
[null,null,{"$f":"IF(ISBLANK(INDEX(Planning!$B$16:$FZ$16,ROW(A92))),\"\",INDEX(Planning!$B$16:$FZ$16,ROW(A92)))","v":""},{"$f":"IF(ISBLANK(INDEX(Reporting!$B$9:$FZ$9,ROW(A92))),\"\",INDEX(Reporting!$B$9:$FZ$9,ROW(A92)))","v":""},{"$f":"IF(OR(IF(ISBLANK(A93),TRUE,FALSE),ISBLANK(Planning!$B$11)),\"\",Planning!$B$11)","v":""},null,{"$f":"IF(ISBLANK(INDEX(Planning!$B$16:$FZ$16,ROW(A91))),\"\",INDEX(Planning!$B$16:$FZ$16,ROW(A91)))","v":""},{"$f":"IF(ISBLANK(INDEX(Planning!$B$17:$FZ$17,ROW(A91))),\"\",INDEX(Planning!$B$17:$FZ$17,ROW(A91)))","v":""},{"$f":"IF(ISBLANK(INDEX(Reporting!$B$9:$FZ$9,ROW(A91))),\"\",INDEX(Reporting!$B$9:$FZ$9,ROW(A91)))","v":""},{"$f":"IF(ISBLANK(INDEX(Reporting!$B$11:$FZ$11,ROW(A91))),\"\",INDEX(Reporting!$B$11:$FZ$11,ROW(A91)))","v":""},{"$f":"IF(ISBLANK(INDEX(Reporting!$B$18:$FZ$18,ROW(A91))),\"\",IF(INDEX(Reporting!$B$18:$FZ$18,ROW(A91))=\"No Failures Observed\",NA(),INDEX(Reporting!$B$18:$FZ$18,ROW(A91))))","v":""},{"$f":"IF(ISBLANK(INDEX('Optional Reporting'!$B$11:$FZ$11,ROW(A91))),NA(),INDEX('Optional Reporting'!$B$11:$FZ$11,ROW(A91)))","v":{"$error":"#N/A"}},{"$f":"IF((INDEX('Optional Reporting'!$B$17:$FZ$17,ROW(A91)))=\"\",NA(),INDEX('Optional Reporting'!$B$17:$FZ$17,ROW(A91)))","v":{"$error":"#N/A"}},{"$f":"IF(ISBLANK(INDEX(Reporting!$B$12:$FZ$12,ROW(A90))),\"\",INDEX(Reporting!$B$12:$FZ$12,ROW(A90)))","v":""}]
[null,null,{"$f":"IF(ISBLANK(INDEX(Planning!$B$16:$FZ$16,ROW(A93))),\"\",INDEX(Planning!$B$16:$FZ$16,ROW(A93)))","v":""},{"$f":"IF(ISBLANK(INDEX(Reporting!$B$9:$FZ$9,ROW(A93))),\"\",INDEX(Reporting!$B$9:$FZ$9,ROW(A93)))","v":""},{"$f":"IF(OR(IF(ISBLANK(A94),TRUE,FALSE),ISBLANK(Planning!$B$11)),\"\",Planning!$B$11)","v":""},null,{"$f":"IF(ISBLANK(INDEX(Planning!$B$16:$FZ$16,ROW(A92))),\"\",INDEX(Planning!$B$16:$FZ$16,ROW(A92)))","v":""},{"$f":"IF(ISBLANK(INDEX(Planning!$B$17:$FZ$17,ROW(A92))),\"\",INDEX(Planning!$B$17:$FZ$17,ROW(A92)))","v":""},{"$f":"IF(ISBLANK(INDEX(Reporting!$B$9:$FZ$9,ROW(A92))),\"\",INDEX(Reporting!$B$9:$FZ$9,ROW(A92)))","v":""},{"$f":"IF(ISBLANK(INDEX(Reporting!$B$11:$FZ$11,ROW(A92))),\"\",INDEX(Reporting!$B$11:$FZ$11,ROW(A92)))","v":""},{"$f":"IF(ISBLANK(INDEX(Reporting!$B$18:$FZ$18,ROW(A92))),\"\",IF(INDEX(Reporting!$B$18:$FZ$18,ROW(A92))=\"No Failures Observed\",NA(),INDEX(Reporting!$B$18:$FZ$18,ROW(A92))))","v":""},{"$f":"IF(ISBLANK(INDEX('Optional Reporting'!$B$11:$FZ$11,ROW(A92))),NA(),INDEX('Optional Reporting'!$B$11:$FZ$11,ROW(A92)))","v":{"$error":"#N/A"}},{"$f":"IF((INDEX('Optional Reporting'!$B$17:$FZ$17,ROW(A92)))=\"\",NA(),INDEX('Optional Reporting'!$B$17:$FZ$17,ROW(A92)))","v":{"$error":"#N/A"}},{"$f":"IF(ISBLANK(INDEX(Reporting!$B$12:$FZ$12,ROW(A91))),\"\",INDEX(Reporting!$B$12:$FZ$12,ROW(A91)))","v":""}]
[null,null,{"$f":"IF(ISBLANK(INDEX(Planning!$B$16:$FZ$16,ROW(A94))),\"\",INDEX(Planning!$B$16:$FZ$16,ROW(A94)))","v":""},{"$f":"IF(ISBLANK(INDEX(Reporting!$B$9:$FZ$9,ROW(A94))),\"\",INDEX(Reporting!$B$9:$FZ$9,ROW(A94)))","v":""},{"$f":"IF(OR(IF(ISBLANK(A95),TRUE,FALSE),ISBLANK(Planning!$B$11)),\"\",Planning!$B$11)","v":""},null,{"$f":"IF(ISBLANK(INDEX(Planning!$B$16:$FZ$16,ROW(A93))),\"\",INDEX(Planning!$B$16:$FZ$16,ROW(A93)))","v":""},{"$f":"IF(ISBLANK(INDEX(Planning!$B$17:$FZ$17,ROW(A93))),\"\",INDEX(Planning!$B$17:$FZ$17,ROW(A93)))","v":""},{"$f":"IF(ISBLANK(INDEX(Reporting!$B$9:$FZ$9,ROW(A93))),\"\",INDEX(Reporting!$B$9:$FZ$9,ROW(A93)))","v":""},{"$f":"IF(ISBLANK(INDEX(Reporting!$B$11:$FZ$11,ROW(A93))),\"\",INDEX(Reporting!$B$11:$FZ$11,ROW(A93)))","v":""},{"$f":"IF(ISBLANK(INDEX(Reporting!$B$18:$FZ$18,ROW(A93))),\"\",IF(INDEX(Reporting!$B$18:$FZ$18,ROW(A93))=\"No Failures Observed\",NA(),INDEX(Reporting!$B$18:$FZ$18,ROW(A93))))","v":""},{"$f":"IF(ISBLANK(INDEX('Optional Reporting'!$B$11:$FZ$11,ROW(A93))),NA(),INDEX('Optional Reporting'!$B$11:$FZ$11,ROW(A93)))","v":{"$error":"#N/A"}},{"$f":"IF((INDEX('Optional Reporting'!$B$17:$FZ$17,ROW(A93)))=\"\",NA(),INDEX('Optional Reporting'!$B$17:$FZ$17,ROW(A93)))","v":{"$error":"#N/A"}},{"$f":"IF(ISBLANK(INDEX(Reporting!$B$12:$FZ$12,ROW(A92))),\"\",INDEX(Reporting!$B$12:$FZ$12,ROW(A92)))","v":""}]
[null,null,{"$f":"IF(ISBLANK(INDEX(Planning!$B$16:$FZ$16,ROW(A95))),\"\",INDEX(Planning!$B$16:$FZ$16,ROW(A95)))","v":""},{"$f":"IF(ISBLANK(INDEX(Reporting!$B$9:$FZ$9,ROW(A95))),\"\",INDEX(Reporting!$B$9:$FZ$9,ROW(A95)))","v":""},{"$f":"IF(OR(IF(ISBLANK(A96),TRUE,FALSE),ISBLANK(Planning!$B$11)),\"\",Planning!$B$11)","v":""},null,{"$f":"IF(ISBLANK(INDEX(Planning!$B$16:$FZ$16,ROW(A94))),\"\",INDEX(Planning!$B$16:$FZ$16,ROW(A94)))","v":""},{"$f":"IF(ISBLANK(INDEX(Planning!$B$17:$FZ$17,ROW(A94))),\"\",INDEX(Planning!$B$17:$FZ$17,ROW(A94)))","v":""},{"$f":"IF(ISBLANK(INDEX(Reporting!$B$9:$FZ$9,ROW(A94))),\"\",INDEX(Reporting!$B$9:$FZ$9,ROW(A94)))","v":""},{"$f":"IF(ISBLANK(INDEX(Reporting!$B$11:$FZ$11,ROW(A94))),\"\",INDEX(Reporting!$B$11:$FZ$11,ROW(A94)))","v":""},{"$f":"IF(ISBLANK(INDEX(Reporting!$B$18:$FZ$18,ROW(A94))),\"\",IF(INDEX(Reporting!$B$18:$FZ$18,ROW(A94))=\"No Failures Observed\",NA(),INDEX(Reporting!$B$18:$FZ$18,ROW(A94))))","v":""},{"$f":"IF(ISBLANK(INDEX('Optional Reporting'!$B$11:$FZ$11,ROW(A94))),NA(),INDEX('Optional Reporting'!$B$11:$FZ$11,ROW(A94)))","v":{"$error":"#N/A"}},{"$f":"IF((INDEX('Optional Reporting'!$B$17:$FZ$17,ROW(A94)))=\"\",NA(),INDEX('Optional Reporting'!$B$17:$FZ$17,ROW(A94)))","v":{"$error":"#N/A"}},{"$f":"IF(ISBLANK(INDEX(Reporting!$B$12:$FZ$12,ROW(A93))),\"\",INDEX(Reporting!$B$12:$FZ$12,ROW(A93)))","v":""}]
[null,null,{"$f":"IF(ISBLANK(INDEX(Planning!$B$16:$FZ$16,ROW(A96))),\"\",INDEX(Planning!$B$16:$FZ$16,ROW(A96)))","v":""},{"$f":"IF(ISBLANK(INDEX(Reporting!$B$9:$FZ$9,ROW(A96))),\"\",INDEX(Reporting!$B$9:$FZ$9,ROW(A96)))","v":""},{"$f":"IF(OR(IF(ISBLANK(A97),TRUE,FALSE),ISBLANK(Planning!$B$11)),\"\",Planning!$B$11)","v":""},null,{"$f":"IF(ISBLANK(INDEX(Planning!$B$16:$FZ$16,ROW(A95))),\"\",INDEX(Planning!$B$16:$FZ$16,ROW(A95)))","v":""},{"$f":"IF(ISBLANK(INDEX(Planning!$B$17:$FZ$17,ROW(A95))),\"\",INDEX(Planning!$B$17:$FZ$17,ROW(A95)))","v":""},{"$f":"IF(ISBLANK(INDEX(Reporting!$B$9:$FZ$9,ROW(A95))),\"\",INDEX(Reporting!$B$9:$FZ$9,ROW(A95)))","v":""},{"$f":"IF(ISBLANK(INDEX(Reporting!$B$11:$FZ$11,ROW(A95))),\"\",INDEX(Reporting!$B$11:$FZ$11,ROW(A95)))","v":""},{"$f":"IF(ISBLANK(INDEX(Reporting!$B$18:$FZ$18,ROW(A95))),\"\",IF(INDEX(Reporting!$B$18:$FZ$18,ROW(A95))=\"No Failures Observed\",NA(),INDEX(Reporting!$B$18:$FZ$18,ROW(A95))))","v":""},{"$f":"IF(ISBLANK(INDEX('Optional Reporting'!$B$11:$FZ$11,ROW(A95))),NA(),INDEX('Optional Reporting'!$B$11:$FZ$11,ROW(A95)))","v":{"$error":"#N/A"}},{"$f":"IF((INDEX('Optional Reporting'!$B$17:$FZ$17,ROW(A95)))=\"\",NA(),INDEX('Optional Reporting'!$B$17:$FZ$17,ROW(A95)))","v":{"$error":"#N/A"}},{"$f":"IF(ISBLANK(INDEX(Reporting!$B$12:$FZ$12,ROW(A94))),\"\",INDEX(Reporting!$B$12:$FZ$12,ROW(A94)))","v":""}]
[null,null,{"$f":"IF(ISBLANK(INDEX(Planning!$B$16:$FZ$16,ROW(A97))),\"\",INDEX(Planning!$B$16:$FZ$16,ROW(A97)))","v":""},{"$f":"IF(ISBLANK(INDEX(Reporting!$B$9:$FZ$9,ROW(A97))),\"\",INDEX(Reporting!$B$9:$FZ$9,ROW(A97)))","v":""},{"$f":"IF(OR(IF(ISBLANK(A98),TRUE,FALSE),ISBLANK(Planning!$B$11)),\"\",Planning!$B$11)","v":""},null,{"$f":"IF(ISBLANK(INDEX(Planning!$B$16:$FZ$16,ROW(A96))),\"\",INDEX(Planning!$B$16:$FZ$16,ROW(A96)))","v":""},{"$f":"IF(ISBLANK(INDEX(Planning!$B$17:$FZ$17,ROW(A96))),\"\",INDEX(Planning!$B$17:$FZ$17,ROW(A96)))","v":""},{"$f":"IF(ISBLANK(INDEX(Reporting!$B$9:$FZ$9,ROW(A96))),\"\",INDEX(Reporting!$B$9:$FZ$9,ROW(A96)))","v":""},{"$f":"IF(ISBLANK(INDEX(Reporting!$B$11:$FZ$11,ROW(A96))),\"\",INDEX(Reporting!$B$11:$FZ$11,ROW(A96)))","v":""},{"$f":"IF(ISBLANK(INDEX(Reporting!$B$18:$FZ$18,ROW(A96))),\"\",IF(INDEX(Reporting!$B$18:$FZ$18,ROW(A96))=\"No Failures Observed\",NA(),INDEX(Reporting!$B$18:$FZ$18,ROW(A96))))","v":""},{"$f":"IF(ISBLANK(INDEX('Optional Reporting'!$B$11:$FZ$11,ROW(A96))),NA(),INDEX('Optional Reporting'!$B$11:$FZ$11,ROW(A96)))","v":{"$error":"#N/A"}},{"$f":"IF((INDEX('Optional Reporting'!$B$17:$FZ$17,ROW(A96)))=\"\",NA(),INDEX('Optional Reporting'!$B$17:$FZ$17,ROW(A96)))","v":{"$error":"#N/A"}},{"$f":"IF(ISBLANK(INDEX(Reporting!$B$12:$FZ$12,ROW(A95))),\"\",INDEX(Reporting!$B$12:$FZ$12,ROW(A95)))","v":""}]
[null,null,{"$f":"IF(ISBLANK(INDEX(Planning!$B$16:$FZ$16,ROW(A98))),\"\",INDEX(Planning!$B$16:$FZ$16,ROW(A98)))","v":""},{"$f":"IF(ISBLANK(INDEX(Reporting!$B$9:$FZ$9,ROW(A98))),\"\",INDEX(Reporting!$B$9:$FZ$9,ROW(A98)))","v":""},{"$f":"IF(OR(IF(ISBLANK(A99),TRUE,FALSE),ISBLANK(Planning!$B$11)),\"\",Planning!$B$11)","v":""},null,{"$f":"IF(ISBLANK(INDEX(Planning!$B$16:$FZ$16,ROW(A97))),\"\",INDEX(Planning!$B$16:$FZ$16,ROW(A97)))","v":""},{"$f":"IF(ISBLANK(INDEX(Planning!$B$17:$FZ$17,ROW(A97))),\"\",INDEX(Planning!$B$17:$FZ$17,ROW(A97)))","v":""},{"$f":"IF(ISBLANK(INDEX(Reporting!$B$9:$FZ$9,ROW(A97))),\"\",INDEX(Reporting!$B$9:$FZ$9,ROW(A97)))","v":""},{"$f":"IF(ISBLANK(INDEX(Reporting!$B$11:$FZ$11,ROW(A97))),\"\",INDEX(Reporting!$B$11:$FZ$11,ROW(A97)))","v":""},{"$f":"IF(ISBLANK(INDEX(Reporting!$B$18:$FZ$18,ROW(A97))),\"\",IF(INDEX(Reporting!$B$18:$FZ$18,ROW(A97))=\"No Failures Observed\",NA(),INDEX(Reporting!$B$18:$FZ$18,ROW(A97))))","v":""},{"$f":"IF(ISBLANK(INDEX('Optional Reporting'!$B$11:$FZ$11,ROW(A97))),NA(),INDEX('Optional Reporting'!$B$11:$FZ$11,ROW(A97)))","v":{"$error":"#N/A"}},{"$f":"IF((INDEX('Optional Reporting'!$B$17:$FZ$17,ROW(A97)))=\"\",NA(),INDEX('Optional Reporting'!$B$17:$FZ$17,ROW(A97)))","v":{"$error":"#N/A"}},{"$f":"IF(ISBLANK(INDEX(Reporting!$B$12:$FZ$12,ROW(A96))),\"\",INDEX(Reporting!$B$12:$FZ$12,ROW(A96)))","v":""}]
[null,null,{"$f":"IF(ISBLANK(INDEX(Planning!$B$16:$FZ$16,ROW(A99))),\"\",INDEX(Planning!$B$16:$FZ$16,ROW(A99)))","v":""},{"$f":"IF(ISBLANK(INDEX(Reporting!$B$9:$FZ$9,ROW(A99))),\"\",INDEX(Reporting!$B$9:$FZ$9,ROW(A99)))","v":""},{"$f":"IF(OR(IF(ISBLANK(A100),TRUE,FALSE),ISBLANK(Planning!$B$11)),\"\",Planning!$B$11)","v":""},null,{"$f":"IF(ISBLANK(INDEX(Planning!$B$16:$FZ$16,ROW(A98))),\"\",INDEX(Planning!$B$16:$FZ$16,ROW(A98)))","v":""},{"$f":"IF(ISBLANK(INDEX(Planning!$B$17:$FZ$17,ROW(A98))),\"\",INDEX(Planning!$B$17:$FZ$17,ROW(A98)))","v":""},{"$f":"IF(ISBLANK(INDEX(Reporting!$B$9:$FZ$9,ROW(A98))),\"\",INDEX(Reporting!$B$9:$FZ$9,ROW(A98)))","v":""},{"$f":"IF(ISBLANK(INDEX(Reporting!$B$11:$FZ$11,ROW(A98))),\"\",INDEX(Reporting!$B$11:$FZ$11,ROW(A98)))","v":""},{"$f":"IF(ISBLANK(INDEX(Reporting!$B$18:$FZ$18,ROW(A98))),\"\",IF(INDEX(Reporting!$B$18:$FZ$18,ROW(A98))=\"No Failures Observed\",NA(),INDEX(Reporting!$B$18:$FZ$18,ROW(A98))))","v":""},{"$f":"IF(ISBLANK(INDEX('Optional Reporting'!$B$11:$FZ$11,ROW(A98))),NA(),INDEX('Optional Reporting'!$B$11:$FZ$11,ROW(A98)))","v":{"$error":"#N/A"}},{"$f":"IF((INDEX('Optional Reporting'!$B$17:$FZ$17,ROW(A98)))=\"\",NA(),INDEX('Optional Reporting'!$B$17:$FZ$17,ROW(A98)))","v":{"$error":"#N/A"}},{"$f":"IF(ISBLANK(INDEX(Reporting!$B$12:$FZ$12,ROW(A97))),\"\",INDEX(Reporting!$B$12:$FZ$12,ROW(A97)))","v":""}]
[null,null,{"$f":"IF(ISBLANK(INDEX(Planning!$B$16:$FZ$16,ROW(A100))),\"\",INDEX(Planning!$B$16:$FZ$16,ROW(A100)))","v":""},{"$f":"IF(ISBLANK(INDEX(Reporting!$B$9:$FZ$9,ROW(A100))),\"\",INDEX(Reporting!$B$9:$FZ$9,ROW(A100)))","v":""},{"$f":"IF(OR(IF(ISBLANK(A101),TRUE,FALSE),ISBLANK(Planning!$B$11)),\"\",Planning!$B$11)","v":""},null,{"$f":"IF(ISBLANK(INDEX(Planning!$B$16:$FZ$16,ROW(A99))),\"\",INDEX(Planning!$B$16:$FZ$16,ROW(A99)))","v":""},{"$f":"IF(ISBLANK(INDEX(Planning!$B$17:$FZ$17,ROW(A99))),\"\",INDEX(Planning!$B$17:$FZ$17,ROW(A99)))","v":""},{"$f":"IF(ISBLANK(INDEX(Reporting!$B$9:$FZ$9,ROW(A99))),\"\",INDEX(Reporting!$B$9:$FZ$9,ROW(A99)))","v":""},{"$f":"IF(ISBLANK(INDEX(Reporting!$B$11:$FZ$11,ROW(A99))),\"\",INDEX(Reporting!$B$11:$FZ$11,ROW(A99)))","v":""},{"$f":"IF(ISBLANK(INDEX(Reporting!$B$18:$FZ$18,ROW(A99))),\"\",IF(INDEX(Reporting!$B$18:$FZ$18,ROW(A99))=\"No Failures Observed\",NA(),INDEX(Reporting!$B$18:$FZ$18,ROW(A99))))","v":""},{"$f":"IF(ISBLANK(INDEX('Optional Reporting'!$B$11:$FZ$11,ROW(A99))),NA(),INDEX('Optional Reporting'!$B$11:$FZ$11,ROW(A99)))","v":{"$error":"#N/A"}},{"$f":"IF((INDEX('Optional Reporting'!$B$17:$FZ$17,ROW(A99)))=\"\",NA(),INDEX('Optional Reporting'!$B$17:$FZ$17,ROW(A99)))","v":{"$error":"#N/A"}},{"$f":"IF(ISBLANK(INDEX(Reporting!$B$12:$FZ$12,ROW(A98))),\"\",INDEX(Reporting!$B$12:$FZ$12,ROW(A98)))","v":""}]
[null,null,{"$f":"IF(ISBLANK(INDEX(Planning!$B$16:$FZ$16,ROW(A101))),\"\",INDEX(Planning!$B$16:$FZ$16,ROW(A101)))","v":""},{"$f":"IF(ISBLANK(INDEX(Reporting!$B$9:$FZ$9,ROW(A101))),\"\",INDEX(Reporting!$B$9:$FZ$9,ROW(A101)))","v":""},{"$f":"IF(OR(IF(ISBLANK(A102),TRUE,FALSE),ISBLANK(Planning!$B$11)),\"\",Planning!$B$11)","v":""},null,{"$f":"IF(ISBLANK(INDEX(Planning!$B$16:$FZ$16,ROW(A100))),\"\",INDEX(Planning!$B$16:$FZ$16,ROW(A100)))","v":""},{"$f":"IF(ISBLANK(INDEX(Planning!$B$17:$FZ$17,ROW(A100))),\"\",INDEX(Planning!$B$17:$FZ$17,ROW(A100)))","v":""},{"$f":"IF(ISBLANK(INDEX(Reporting!$B$9:$FZ$9,ROW(A100))),\"\",INDEX(Reporting!$B$9:$FZ$9,ROW(A100)))","v":""},{"$f":"IF(ISBLANK(INDEX(Reporting!$B$11:$FZ$11,ROW(A100))),\"\",INDEX(Reporting!$B$11:$FZ$11,ROW(A100)))","v":""},{"$f":"IF(ISBLANK(INDEX(Reporting!$B$18:$FZ$18,ROW(A100))),\"\",IF(INDEX(Reporting!$B$18:$FZ$18,ROW(A100))=\"No Failures Observed\",NA(),INDEX(Reporting!$B$18:$FZ$18,ROW(A100))))","v":""},{"$f":"IF(ISBLANK(INDEX('Optional Reporting'!$B$11:$FZ$11,ROW(A100))),NA(),INDEX('Optional Reporting'!$B$11:$FZ$11,ROW(A100)))","v":{"$error":"#N/A"}},{"$f":"IF((INDEX('Optional Reporting'!$B$17:$FZ$17,ROW(A100)))=\"\",NA(),INDEX('Optional Reporting'!$B$17:$FZ$17,ROW(A100)))","v":{"$error":"#N/A"}},{"$f":"IF(ISBLANK(INDEX(Reporting!$B$12:$FZ$12,ROW(A99))),\"\",INDEX(Reporting!$B$12:$FZ$12,ROW(A99)))","v":""}]
[null,null,{"$f":"IF(ISBLANK(INDEX(Planning!$B$16:$FZ$16,ROW(A102))),\"\",INDEX(Planning!$B$16:$FZ$16,ROW(A102)))","v":""},{"$f":"IF(ISBLANK(INDEX(Reporting!$B$9:$FZ$9,ROW(A102))),\"\",INDEX(Reporting!$B$9:$FZ$9,ROW(A102)))","v":""},{"$f":"IF(OR(IF(ISBLANK(A103),TRUE,FALSE),ISBLANK(Planning!$B$11)),\"\",Planning!$B$11)","v":""},null,{"$f":"IF(ISBLANK(INDEX(Planning!$B$16:$FZ$16,ROW(A101))),\"\",INDEX(Planning!$B$16:$FZ$16,ROW(A101)))","v":""},{"$f":"IF(ISBLANK(INDEX(Planning!$B$17:$FZ$17,ROW(A101))),\"\",INDEX(Planning!$B$17:$FZ$17,ROW(A101)))","v":""},{"$f":"IF(ISBLANK(INDEX(Reporting!$B$9:$FZ$9,ROW(A101))),\"\",INDEX(Reporting!$B$9:$FZ$9,ROW(A101)))","v":""},{"$f":"IF(ISBLANK(INDEX(Reporting!$B$11:$FZ$11,ROW(A101))),\"\",INDEX(Reporting!$B$11:$FZ$11,ROW(A101)))","v":""},{"$f":"IF(ISBLANK(INDEX(Reporting!$B$18:$FZ$18,ROW(A101))),\"\",IF(INDEX(Reporting!$B$18:$FZ$18,ROW(A101))=\"No Failures Observed\",NA(),INDEX(Reporting!$B$18:$FZ$18,ROW(A101))))","v":""},{"$f":"IF(ISBLANK(INDEX('Optional Reporting'!$B$11:$FZ$11,ROW(A101))),NA(),INDEX('Optional Reporting'!$B$11:$FZ$11,ROW(A101)))","v":{"$error":"#N/A"}},{"$f":"IF((INDEX('Optional Reporting'!$B$17:$FZ$17,ROW(A101)))=\"\",NA(),INDEX('Optional Reporting'!$B$17:$FZ$17,ROW(A101)))","v":{"$error":"#N/A"}},{"$f":"IF(ISBLANK(INDEX(Reporting!$B$12:$FZ$12,ROW(A100))),\"\",INDEX(Reporting!$B$12:$FZ$12,ROW(A100)))","v":""}]
[null,null,{"$f":"IF(ISBLANK(INDEX(Planning!$B$16:$FZ$16,ROW(A103))),\"\",INDEX(Planning!$B$16:$FZ$16,ROW(A103)))","v":""},{"$f":"IF(ISBLANK(INDEX(Reporting!$B$9:$FZ$9,ROW(A103))),\"\",INDEX(Reporting!$B$9:$FZ$9,ROW(A103)))","v":""},{"$f":"IF(OR(IF(ISBLANK(A104),TRUE,FALSE),ISBLANK(Planning!$B$11)),\"\",Planning!$B$11)","v":""},null,{"$f":"IF(ISBLANK(INDEX(Planning!$B$16:$FZ$16,ROW(A102))),\"\",INDEX(Planning!$B$16:$FZ$16,ROW(A102)))","v":""},{"$f":"IF(ISBLANK(INDEX(Planning!$B$17:$FZ$17,ROW(A102))),\"\",INDEX(Planning!$B$17:$FZ$17,ROW(A102)))","v":""},{"$f":"IF(ISBLANK(INDEX(Reporting!$B$9:$FZ$9,ROW(A102))),\"\",INDEX(Reporting!$B$9:$FZ$9,ROW(A102)))","v":""},{"$f":"IF(ISBLANK(INDEX(Reporting!$B$11:$FZ$11,ROW(A102))),\"\",INDEX(Reporting!$B$11:$FZ$11,ROW(A102)))","v":""},{"$f":"IF(ISBLANK(INDEX(Reporting!$B$18:$FZ$18,ROW(A102))),\"\",IF(INDEX(Reporting!$B$18:$FZ$18,ROW(A102))=\"No Failures Observed\",NA(),INDEX(Reporting!$B$18:$FZ$18,ROW(A102))))","v":""},{"$f":"IF(ISBLANK(INDEX('Optional Reporting'!$B$11:$FZ$11,ROW(A102))),NA(),INDEX('Optional Reporting'!$B$11:$FZ$11,ROW(A102)))","v":{"$error":"#N/A"}},{"$f":"IF((INDEX('Optional Reporting'!$B$17:$FZ$17,ROW(A102)))=\"\",NA(),INDEX('Optional Reporting'!$B$17:$FZ$17,ROW(A102)))","v":{"$error":"#N/A"}},{"$f":"IF(ISBLANK(INDEX(Reporting!$B$12:$FZ$12,ROW(A101))),\"\",INDEX(Reporting!$B$12:$FZ$12,ROW(A101)))","v":""}]
[null,null,{"$f":"IF(ISBLANK(INDEX(Planning!$B$16:$FZ$16,ROW(A104))),\"\",INDEX(Planning!$B$16:$FZ$16,ROW(A104)))","v":""},{"$f":"IF(ISBLANK(INDEX(Reporting!$B$9:$FZ$9,ROW(A104))),\"\",INDEX(Reporting!$B$9:$FZ$9,ROW(A104)))","v":""},{"$f":"IF(OR(IF(ISBLANK(A105),TRUE,FALSE),ISBLANK(Planning!$B$11)),\"\",Planning!$B$11)","v":""},null,{"$f":"IF(ISBLANK(INDEX(Planning!$B$16:$FZ$16,ROW(A103))),\"\",INDEX(Planning!$B$16:$FZ$16,ROW(A103)))","v":""},{"$f":"IF(ISBLANK(INDEX(Planning!$B$17:$FZ$17,ROW(A103))),\"\",INDEX(Planning!$B$17:$FZ$17,ROW(A103)))","v":""},{"$f":"IF(ISBLANK(INDEX(Reporting!$B$9:$FZ$9,ROW(A103))),\"\",INDEX(Reporting!$B$9:$FZ$9,ROW(A103)))","v":""},{"$f":"IF(ISBLANK(INDEX(Reporting!$B$11:$FZ$11,ROW(A103))),\"\",INDEX(Reporting!$B$11:$FZ$11,ROW(A103)))","v":""},{"$f":"IF(ISBLANK(INDEX(Reporting!$B$18:$FZ$18,ROW(A103))),\"\",IF(INDEX(Reporting!$B$18:$FZ$18,ROW(A103))=\"No Failures Observed\",NA(),INDEX(Reporting!$B$18:$FZ$18,ROW(A103))))","v":""},{"$f":"IF(ISBLANK(INDEX('Optional Reporting'!$B$11:$FZ$11,ROW(A103))),NA(),INDEX('Optional Reporting'!$B$11:$FZ$11,ROW(A103)))","v":{"$error":"#N/A"}},{"$f":"IF((INDEX('Optional Reporting'!$B$17:$FZ$17,ROW(A103)))=\"\",NA(),INDEX('Optional Reporting'!$B$17:$FZ$17,ROW(A103)))","v":{"$error":"#N/A"}},{"$f":"IF(ISBLANK(INDEX(Reporting!$B$12:$FZ$12,ROW(A102))),\"\",INDEX(Reporting!$B$12:$FZ$12,ROW(A102)))","v":""}]
[null,null,{"$f":"IF(ISBLANK(INDEX(Planning!$B$16:$FZ$16,ROW(A105))),\"\",INDEX(Planning!$B$16:$FZ$16,ROW(A105)))","v":""},{"$f":"IF(ISBLANK(INDEX(Reporting!$B$9:$FZ$9,ROW(A105))),\"\",INDEX(Reporting!$B$9:$FZ$9,ROW(A105)))","v":""},{"$f":"IF(OR(IF(ISBLANK(A106),TRUE,FALSE),ISBLANK(Planning!$B$11)),\"\",Planning!$B$11)","v":""},null,{"$f":"IF(ISBLANK(INDEX(Planning!$B$16:$FZ$16,ROW(A104))),\"\",INDEX(Planning!$B$16:$FZ$16,ROW(A104)))","v":""},{"$f":"IF(ISBLANK(INDEX(Planning!$B$17:$FZ$17,ROW(A104))),\"\",INDEX(Planning!$B$17:$FZ$17,ROW(A104)))","v":""},{"$f":"IF(ISBLANK(INDEX(Reporting!$B$9:$FZ$9,ROW(A104))),\"\",INDEX(Reporting!$B$9:$FZ$9,ROW(A104)))","v":""},{"$f":"IF(ISBLANK(INDEX(Reporting!$B$11:$FZ$11,ROW(A104))),\"\",INDEX(Reporting!$B$11:$FZ$11,ROW(A104)))","v":""},{"$f":"IF(ISBLANK(INDEX(Reporting!$B$18:$FZ$18,ROW(A104))),\"\",IF(INDEX(Reporting!$B$18:$FZ$18,ROW(A104))=\"No Failures Observed\",NA(),INDEX(Reporting!$B$18:$FZ$18,ROW(A104))))","v":""},{"$f":"IF(ISBLANK(INDEX('Optional Reporting'!$B$11:$FZ$11,ROW(A104))),NA(),INDEX('Optional Reporting'!$B$11:$FZ$11,ROW(A104)))","v":{"$error":"#N/A"}},{"$f":"IF((INDEX('Optional Reporting'!$B$17:$FZ$17,ROW(A104)))=\"\",NA(),INDEX('Optional Reporting'!$B$17:$FZ$17,ROW(A104)))","v":{"$error":"#N/A"}},{"$f":"IF(ISBLANK(INDEX(Reporting!$B$12:$FZ$12,ROW(A103))),\"\",INDEX(Reporting!$B$12:$FZ$12,ROW(A103)))","v":""}]
[null,null,{"$f":"IF(ISBLANK(INDEX(Planning!$B$16:$FZ$16,ROW(A106))),\"\",INDEX(Planning!$B$16:$FZ$16,ROW(A106)))","v":""},{"$f":"IF(ISBLANK(INDEX(Reporting!$B$9:$FZ$9,ROW(A106))),\"\",INDEX(Reporting!$B$9:$FZ$9,ROW(A106)))","v":""},{"$f":"IF(OR(IF(ISBLANK(A107),TRUE,FALSE),ISBLANK(Planning!$B$11)),\"\",Planning!$B$11)","v":""},null,{"$f":"IF(ISBLANK(INDEX(Planning!$B$16:$FZ$16,ROW(A105))),\"\",INDEX(Planning!$B$16:$FZ$16,ROW(A105)))","v":""},{"$f":"IF(ISBLANK(INDEX(Planning!$B$17:$FZ$17,ROW(A105))),\"\",INDEX(Planning!$B$17:$FZ$17,ROW(A105)))","v":""},{"$f":"IF(ISBLANK(INDEX(Reporting!$B$9:$FZ$9,ROW(A105))),\"\",INDEX(Reporting!$B$9:$FZ$9,ROW(A105)))","v":""},{"$f":"IF(ISBLANK(INDEX(Reporting!$B$11:$FZ$11,ROW(A105))),\"\",INDEX(Reporting!$B$11:$FZ$11,ROW(A105)))","v":""},{"$f":"IF(ISBLANK(INDEX(Reporting!$B$18:$FZ$18,ROW(A105))),\"\",IF(INDEX(Reporting!$B$18:$FZ$18,ROW(A105))=\"No Failures Observed\",NA(),INDEX(Reporting!$B$18:$FZ$18,ROW(A105))))","v":""},{"$f":"IF(ISBLANK(INDEX('Optional Reporting'!$B$11:$FZ$11,ROW(A105))),NA(),INDEX('Optional Reporting'!$B$11:$FZ$11,ROW(A105)))","v":{"$error":"#N/A"}},{"$f":"IF((INDEX('Optional Reporting'!$B$17:$FZ$17,ROW(A105)))=\"\",NA(),INDEX('Optional Reporting'!$B$17:$FZ$17,ROW(A105)))","v":{"$error":"#N/A"}},{"$f":"IF(ISBLANK(INDEX(Reporting!$B$12:$FZ$12,ROW(A104))),\"\",INDEX(Reporting!$B$12:$FZ$12,ROW(A104)))","v":""}]
[null,null,{"$f":"IF(ISBLANK(INDEX(Planning!$B$16:$FZ$16,ROW(A107))),\"\",INDEX(Planning!$B$16:$FZ$16,ROW(A107)))","v":""},{"$f":"IF(ISBLANK(INDEX(Reporting!$B$9:$FZ$9,ROW(A107))),\"\",INDEX(Reporting!$B$9:$FZ$9,ROW(A107)))","v":""},{"$f":"IF(OR(IF(ISBLANK(A108),TRUE,FALSE),ISBLANK(Planning!$B$11)),\"\",Planning!$B$11)","v":""},null,{"$f":"IF(ISBLANK(INDEX(Planning!$B$16:$FZ$16,ROW(A106))),\"\",INDEX(Planning!$B$16:$FZ$16,ROW(A106)))","v":""},{"$f":"IF(ISBLANK(INDEX(Planning!$B$17:$FZ$17,ROW(A106))),\"\",INDEX(Planning!$B$17:$FZ$17,ROW(A106)))","v":""},{"$f":"IF(ISBLANK(INDEX(Reporting!$B$9:$FZ$9,ROW(A106))),\"\",INDEX(Reporting!$B$9:$FZ$9,ROW(A106)))","v":""},{"$f":"IF(ISBLANK(INDEX(Reporting!$B$11:$FZ$11,ROW(A106))),\"\",INDEX(Reporting!$B$11:$FZ$11,ROW(A106)))","v":""},{"$f":"IF(ISBLANK(INDEX(Reporting!$B$18:$FZ$18,ROW(A106))),\"\",IF(INDEX(Reporting!$B$18:$FZ$18,ROW(A106))=\"No Failures Observed\",NA(),INDEX(Reporting!$B$18:$FZ$18,ROW(A106))))","v":""},{"$f":"IF(ISBLANK(INDEX('Optional Reporting'!$B$11:$FZ$11,ROW(A106))),NA(),INDEX('Optional Reporting'!$B$11:$FZ$11,ROW(A106)))","v":{"$error":"#N/A"}},{"$f":"IF((INDEX('Optional Reporting'!$B$17:$FZ$17,ROW(A106)))=\"\",NA(),INDEX('Optional Reporting'!$B$17:$FZ$17,ROW(A106)))","v":{"$error":"#N/A"}},{"$f":"IF(ISBLANK(INDEX(Reporting!$B$12:$FZ$12,ROW(A105))),\"\",INDEX(Reporting!$B$12:$FZ$12,ROW(A105)))","v":""}]
[null,null,{"$f":"IF(ISBLANK(INDEX(Planning!$B$16:$FZ$16,ROW(A108))),\"\",INDEX(Planning!$B$16:$FZ$16,ROW(A108)))","v":""},{"$f":"IF(ISBLANK(INDEX(Reporting!$B$9:$FZ$9,ROW(A108))),\"\",INDEX(Reporting!$B$9:$FZ$9,ROW(A108)))","v":""},{"$f":"IF(OR(IF(ISBLANK(A109),TRUE,FALSE),ISBLANK(Planning!$B$11)),\"\",Planning!$B$11)","v":""},null,{"$f":"IF(ISBLANK(INDEX(Planning!$B$16:$FZ$16,ROW(A107))),\"\",INDEX(Planning!$B$16:$FZ$16,ROW(A107)))","v":""},{"$f":"IF(ISBLANK(INDEX(Planning!$B$17:$FZ$17,ROW(A107))),\"\",INDEX(Planning!$B$17:$FZ$17,ROW(A107)))","v":""},{"$f":"IF(ISBLANK(INDEX(Reporting!$B$9:$FZ$9,ROW(A107))),\"\",INDEX(Reporting!$B$9:$FZ$9,ROW(A107)))","v":""},{"$f":"IF(ISBLANK(INDEX(Reporting!$B$11:$FZ$11,ROW(A107))),\"\",INDEX(Reporting!$B$11:$FZ$11,ROW(A107)))","v":""},{"$f":"IF(ISBLANK(INDEX(Reporting!$B$18:$FZ$18,ROW(A107))),\"\",IF(INDEX(Reporting!$B$18:$FZ$18,ROW(A107))=\"No Failures Observed\",NA(),INDEX(Reporting!$B$18:$FZ$18,ROW(A107))))","v":""},{"$f":"IF(ISBLANK(INDEX('Optional Reporting'!$B$11:$FZ$11,ROW(A107))),NA(),INDEX('Optional Reporting'!$B$11:$FZ$11,ROW(A107)))","v":{"$error":"#N/A"}},{"$f":"IF((INDEX('Optional Reporting'!$B$17:$FZ$17,ROW(A107)))=\"\",NA(),INDEX('Optional Reporting'!$B$17:$FZ$17,ROW(A107)))","v":{"$error":"#N/A"}},{"$f":"IF(ISBLANK(INDEX(Reporting!$B$12:$FZ$12,ROW(A106))),\"\",INDEX(Reporting!$B$12:$FZ$12,ROW(A106)))","v":""}]
[null,null,{"$f":"IF(ISBLANK(INDEX(Planning!$B$16:$FZ$16,ROW(A109))),\"\",INDEX(Planning!$B$16:$FZ$16,ROW(A109)))","v":""},{"$f":"IF(ISBLANK(INDEX(Reporting!$B$9:$FZ$9,ROW(A109))),\"\",INDEX(Reporting!$B$9:$FZ$9,ROW(A109)))","v":""},{"$f":"IF(OR(IF(ISBLANK(A110),TRUE,FALSE),ISBLANK(Planning!$B$11)),\"\",Planning!$B$11)","v":""},null,{"$f":"IF(ISBLANK(INDEX(Planning!$B$16:$FZ$16,ROW(A108))),\"\",INDEX(Planning!$B$16:$FZ$16,ROW(A108)))","v":""},{"$f":"IF(ISBLANK(INDEX(Planning!$B$17:$FZ$17,ROW(A108))),\"\",INDEX(Planning!$B$17:$FZ$17,ROW(A108)))","v":""},{"$f":"IF(ISBLANK(INDEX(Reporting!$B$9:$FZ$9,ROW(A108))),\"\",INDEX(Reporting!$B$9:$FZ$9,ROW(A108)))","v":""},{"$f":"IF(ISBLANK(INDEX(Reporting!$B$11:$FZ$11,ROW(A108))),\"\",INDEX(Reporting!$B$11:$FZ$11,ROW(A108)))","v":""},{"$f":"IF(ISBLANK(INDEX(Reporting!$B$18:$FZ$18,ROW(A108))),\"\",IF(INDEX(Reporting!$B$18:$FZ$18,ROW(A108))=\"No Failures Observed\",NA(),INDEX(Reporting!$B$18:$FZ$18,ROW(A108))))","v":""},{"$f":"IF(ISBLANK(INDEX('Optional Reporting'!$B$11:$FZ$11,ROW(A108))),NA(),INDEX('Optional Reporting'!$B$11:$FZ$11,ROW(A108)))","v":{"$error":"#N/A"}},{"$f":"IF((INDEX('Optional Reporting'!$B$17:$FZ$17,ROW(A108)))=\"\",NA(),INDEX('Optional Reporting'!$B$17:$FZ$17,ROW(A108)))","v":{"$error":"#N/A"}},{"$f":"IF(ISBLANK(INDEX(Reporting!$B$12:$FZ$12,ROW(A107))),\"\",INDEX(Reporting!$B$12:$FZ$12,ROW(A107)))","v":""}]
[null,null,{"$f":"IF(ISBLANK(INDEX(Planning!$B$16:$FZ$16,ROW(A110))),\"\",INDEX(Planning!$B$16:$FZ$16,ROW(A110)))","v":""},{"$f":"IF(ISBLANK(INDEX(Reporting!$B$9:$FZ$9,ROW(A110))),\"\",INDEX(Reporting!$B$9:$FZ$9,ROW(A110)))","v":""},{"$f":"IF(OR(IF(ISBLANK(A111),TRUE,FALSE),ISBLANK(Planning!$B$11)),\"\",Planning!$B$11)","v":""},null,{"$f":"IF(ISBLANK(INDEX(Planning!$B$16:$FZ$16,ROW(A109))),\"\",INDEX(Planning!$B$16:$FZ$16,ROW(A109)))","v":""},{"$f":"IF(ISBLANK(INDEX(Planning!$B$17:$FZ$17,ROW(A109))),\"\",INDEX(Planning!$B$17:$FZ$17,ROW(A109)))","v":""},{"$f":"IF(ISBLANK(INDEX(Reporting!$B$9:$FZ$9,ROW(A109))),\"\",INDEX(Reporting!$B$9:$FZ$9,ROW(A109)))","v":""},{"$f":"IF(ISBLANK(INDEX(Reporting!$B$11:$FZ$11,ROW(A109))),\"\",INDEX(Reporting!$B$11:$FZ$11,ROW(A109)))","v":""},{"$f":"IF(ISBLANK(INDEX(Reporting!$B$18:$FZ$18,ROW(A109))),\"\",IF(INDEX(Reporting!$B$18:$FZ$18,ROW(A109))=\"No Failures Observed\",NA(),INDEX(Reporting!$B$18:$FZ$18,ROW(A109))))","v":""},{"$f":"IF(ISBLANK(INDEX('Optional Reporting'!$B$11:$FZ$11,ROW(A109))),NA(),INDEX('Optional Reporting'!$B$11:$FZ$11,ROW(A109)))","v":{"$error":"#N/A"}},{"$f":"IF((INDEX('Optional Reporting'!$B$17:$FZ$17,ROW(A109)))=\"\",NA(),INDEX('Optional Reporting'!$B$17:$FZ$17,ROW(A109)))","v":{"$error":"#N/A"}},{"$f":"IF(ISBLANK(INDEX(Reporting!$B$12:$FZ$12,ROW(A108))),\"\",INDEX(Reporting!$B$12:$FZ$12,ROW(A108)))","v":""}]
[null,null,{"$f":"IF(ISBLANK(INDEX(Planning!$B$16:$FZ$16,ROW(A111))),\"\",INDEX(Planning!$B$16:$FZ$16,ROW(A111)))","v":""},{"$f":"IF(ISBLANK(INDEX(Reporting!$B$9:$FZ$9,ROW(A111))),\"\",INDEX(Reporting!$B$9:$FZ$9,ROW(A111)))","v":""},{"$f":"IF(OR(IF(ISBLANK(A112),TRUE,FALSE),ISBLANK(Planning!$B$11)),\"\",Planning!$B$11)","v":""},null,{"$f":"IF(ISBLANK(INDEX(Planning!$B$16:$FZ$16,ROW(A110))),\"\",INDEX(Planning!$B$16:$FZ$16,ROW(A110)))","v":""},{"$f":"IF(ISBLANK(INDEX(Planning!$B$17:$FZ$17,ROW(A110))),\"\",INDEX(Planning!$B$17:$FZ$17,ROW(A110)))","v":""},{"$f":"IF(ISBLANK(INDEX(Reporting!$B$9:$FZ$9,ROW(A110))),\"\",INDEX(Reporting!$B$9:$FZ$9,ROW(A110)))","v":""},{"$f":"IF(ISBLANK(INDEX(Reporting!$B$11:$FZ$11,ROW(A110))),\"\",INDEX(Reporting!$B$11:$FZ$11,ROW(A110)))","v":""},{"$f":"IF(ISBLANK(INDEX(Reporting!$B$18:$FZ$18,ROW(A110))),\"\",IF(INDEX(Reporting!$B$18:$FZ$18,ROW(A110))=\"No Failures Observed\",NA(),INDEX(Reporting!$B$18:$FZ$18,ROW(A110))))","v":""},{"$f":"IF(ISBLANK(INDEX('Optional Reporting'!$B$11:$FZ$11,ROW(A110))),NA(),INDEX('Optional Reporting'!$B$11:$FZ$11,ROW(A110)))","v":{"$error":"#N/A"}},{"$f":"IF((INDEX('Optional Reporting'!$B$17:$FZ$17,ROW(A110)))=\"\",NA(),INDEX('Optional Reporting'!$B$17:$FZ$17,ROW(A110)))","v":{"$error":"#N/A"}},{"$f":"IF(ISBLANK(INDEX(Reporting!$B$12:$FZ$12,ROW(A109))),\"\",INDEX(Reporting!$B$12:$FZ$12,ROW(A109)))","v":""}]
[null,null,{"$f":"IF(ISBLANK(INDEX(Planning!$B$16:$FZ$16,ROW(A112))),\"\",INDEX(Planning!$B$16:$FZ$16,ROW(A112)))","v":""},{"$f":"IF(ISBLANK(INDEX(Reporting!$B$9:$FZ$9,ROW(A112))),\"\",INDEX(Reporting!$B$9:$FZ$9,ROW(A112)))","v":""},{"$f":"IF(OR(IF(ISBLANK(A113),TRUE,FALSE),ISBLANK(Planning!$B$11)),\"\",Planning!$B$11)","v":""},null,{"$f":"IF(ISBLANK(INDEX(Planning!$B$16:$FZ$16,ROW(A111))),\"\",INDEX(Planning!$B$16:$FZ$16,ROW(A111)))","v":""},{"$f":"IF(ISBLANK(INDEX(Planning!$B$17:$FZ$17,ROW(A111))),\"\",INDEX(Planning!$B$17:$FZ$17,ROW(A111)))","v":""},{"$f":"IF(ISBLANK(INDEX(Reporting!$B$9:$FZ$9,ROW(A111))),\"\",INDEX(Reporting!$B$9:$FZ$9,ROW(A111)))","v":""},{"$f":"IF(ISBLANK(INDEX(Reporting!$B$11:$FZ$11,ROW(A111))),\"\",INDEX(Reporting!$B$11:$FZ$11,ROW(A111)))","v":""},{"$f":"IF(ISBLANK(INDEX(Reporting!$B$18:$FZ$18,ROW(A111))),\"\",IF(INDEX(Reporting!$B$18:$FZ$18,ROW(A111))=\"No Failures Observed\",NA(),INDEX(Reporting!$B$18:$FZ$18,ROW(A111))))","v":""},{"$f":"IF(ISBLANK(INDEX('Optional Reporting'!$B$11:$FZ$11,ROW(A111))),NA(),INDEX('Optional Reporting'!$B$11:$FZ$11,ROW(A111)))","v":{"$error":"#N/A"}},{"$f":"IF((INDEX('Optional Reporting'!$B$17:$FZ$17,ROW(A111)))=\"\",NA(),INDEX('Optional Reporting'!$B$17:$FZ$17,ROW(A111)))","v":{"$error":"#N/A"}},{"$f":"IF(ISBLANK(INDEX(Reporting!$B$12:$FZ$12,ROW(A110))),\"\",INDEX(Reporting!$B$12:$FZ$12,ROW(A110)))","v":""}]
[null,null,{"$f":"IF(ISBLANK(INDEX(Planning!$B$16:$FZ$16,ROW(A113))),\"\",INDEX(Planning!$B$16:$FZ$16,ROW(A113)))","v":""},{"$f":"IF(ISBLANK(INDEX(Reporting!$B$9:$FZ$9,ROW(A113))),\"\",INDEX(Reporting!$B$9:$FZ$9,ROW(A113)))","v":""},{"$f":"IF(OR(IF(ISBLANK(A114),TRUE,FALSE),ISBLANK(Planning!$B$11)),\"\",Planning!$B$11)","v":""},null,{"$f":"IF(ISBLANK(INDEX(Planning!$B$16:$FZ$16,ROW(A112))),\"\",INDEX(Planning!$B$16:$FZ$16,ROW(A112)))","v":""},{"$f":"IF(ISBLANK(INDEX(Planning!$B$17:$FZ$17,ROW(A112))),\"\",INDEX(Planning!$B$17:$FZ$17,ROW(A112)))","v":""},{"$f":"IF(ISBLANK(INDEX(Reporting!$B$9:$FZ$9,ROW(A112))),\"\",INDEX(Reporting!$B$9:$FZ$9,ROW(A112)))","v":""},{"$f":"IF(ISBLANK(INDEX(Reporting!$B$11:$FZ$11,ROW(A112))),\"\",INDEX(Reporting!$B$11:$FZ$11,ROW(A112)))","v":""},{"$f":"IF(ISBLANK(INDEX(Reporting!$B$18:$FZ$18,ROW(A112))),\"\",IF(INDEX(Reporting!$B$18:$FZ$18,ROW(A112))=\"No Failures Observed\",NA(),INDEX(Reporting!$B$18:$FZ$18,ROW(A112))))","v":""},{"$f":"IF(ISBLANK(INDEX('Optional Reporting'!$B$11:$FZ$11,ROW(A112))),NA(),INDEX('Optional Reporting'!$B$11:$FZ$11,ROW(A112)))","v":{"$error":"#N/A"}},{"$f":"IF((INDEX('Optional Reporting'!$B$17:$FZ$17,ROW(A112)))=\"\",NA(),INDEX('Optional Reporting'!$B$17:$FZ$17,ROW(A112)))","v":{"$error":"#N/A"}},{"$f":"IF(ISBLANK(INDEX(Reporting!$B$12:$FZ$12,ROW(A111))),\"\",INDEX(Reporting!$B$12:$FZ$12,ROW(A111)))","v":""}]
[null,null,{"$f":"IF(ISBLANK(INDEX(Planning!$B$16:$FZ$16,ROW(A114))),\"\",INDEX(Planning!$B$16:$FZ$16,ROW(A114)))","v":""},{"$f":"IF(ISBLANK(INDEX(Reporting!$B$9:$FZ$9,ROW(A114))),\"\",INDEX(Reporting!$B$9:$FZ$9,ROW(A114)))","v":""},{"$f":"IF(OR(IF(ISBLANK(A115),TRUE,FALSE),ISBLANK(Planning!$B$11)),\"\",Planning!$B$11)","v":""},null,{"$f":"IF(ISBLANK(INDEX(Planning!$B$16:$FZ$16,ROW(A113))),\"\",INDEX(Planning!$B$16:$FZ$16,ROW(A113)))","v":""},{"$f":"IF(ISBLANK(INDEX(Planning!$B$17:$FZ$17,ROW(A113))),\"\",INDEX(Planning!$B$17:$FZ$17,ROW(A113)))","v":""},{"$f":"IF(ISBLANK(INDEX(Reporting!$B$9:$FZ$9,ROW(A113))),\"\",INDEX(Reporting!$B$9:$FZ$9,ROW(A113)))","v":""},{"$f":"IF(ISBLANK(INDEX(Reporting!$B$11:$FZ$11,ROW(A113))),\"\",INDEX(Reporting!$B$11:$FZ$11,ROW(A113)))","v":""},{"$f":"IF(ISBLANK(INDEX(Reporting!$B$18:$FZ$18,ROW(A113))),\"\",IF(INDEX(Reporting!$B$18:$FZ$18,ROW(A113))=\"No Failures Observed\",NA(),INDEX(Reporting!$B$18:$FZ$18,ROW(A113))))","v":""},{"$f":"IF(ISBLANK(INDEX('Optional Reporting'!$B$11:$FZ$11,ROW(A113))),NA(),INDEX('Optional Reporting'!$B$11:$FZ$11,ROW(A113)))","v":{"$error":"#N/A"}},{"$f":"IF((INDEX('Optional Reporting'!$B$17:$FZ$17,ROW(A113)))=\"\",NA(),INDEX('Optional Reporting'!$B$17:$FZ$17,ROW(A113)))","v":{"$error":"#N/A"}},{"$f":"IF(ISBLANK(INDEX(Reporting!$B$12:$FZ$12,ROW(A112))),\"\",INDEX(Reporting!$B$12:$FZ$12,ROW(A112)))","v":""}]
[null,null,{"$f":"IF(ISBLANK(INDEX(Planning!$B$16:$FZ$16,ROW(A115))),\"\",INDEX(Planning!$B$16:$FZ$16,ROW(A115)))","v":""},{"$f":"IF(ISBLANK(INDEX(Reporting!$B$9:$FZ$9,ROW(A115))),\"\",INDEX(Reporting!$B$9:$FZ$9,ROW(A115)))","v":""},{"$f":"IF(OR(IF(ISBLANK(A116),TRUE,FALSE),ISBLANK(Planning!$B$11)),\"\",Planning!$B$11)","v":""},null,{"$f":"IF(ISBLANK(INDEX(Planning!$B$16:$FZ$16,ROW(A114))),\"\",INDEX(Planning!$B$16:$FZ$16,ROW(A114)))","v":""},{"$f":"IF(ISBLANK(INDEX(Planning!$B$17:$FZ$17,ROW(A114))),\"\",INDEX(Planning!$B$17:$FZ$17,ROW(A114)))","v":""},{"$f":"IF(ISBLANK(INDEX(Reporting!$B$9:$FZ$9,ROW(A114))),\"\",INDEX(Reporting!$B$9:$FZ$9,ROW(A114)))","v":""},{"$f":"IF(ISBLANK(INDEX(Reporting!$B$11:$FZ$11,ROW(A114))),\"\",INDEX(Reporting!$B$11:$FZ$11,ROW(A114)))","v":""},{"$f":"IF(ISBLANK(INDEX(Reporting!$B$18:$FZ$18,ROW(A114))),\"\",IF(INDEX(Reporting!$B$18:$FZ$18,ROW(A114))=\"No Failures Observed\",NA(),INDEX(Reporting!$B$18:$FZ$18,ROW(A114))))","v":""},{"$f":"IF(ISBLANK(INDEX('Optional Reporting'!$B$11:$FZ$11,ROW(A114))),NA(),INDEX('Optional Reporting'!$B$11:$FZ$11,ROW(A114)))","v":{"$error":"#N/A"}},{"$f":"IF((INDEX('Optional Reporting'!$B$17:$FZ$17,ROW(A114)))=\"\",NA(),INDEX('Optional Reporting'!$B$17:$FZ$17,ROW(A114)))","v":{"$error":"#N/A"}},{"$f":"IF(ISBLANK(INDEX(Reporting!$B$12:$FZ$12,ROW(A113))),\"\",INDEX(Reporting!$B$12:$FZ$12,ROW(A113)))","v":""}]
[null,null,{"$f":"IF(ISBLANK(INDEX(Planning!$B$16:$FZ$16,ROW(A116))),\"\",INDEX(Planning!$B$16:$FZ$16,ROW(A116)))","v":""},{"$f":"IF(ISBLANK(INDEX(Reporting!$B$9:$FZ$9,ROW(A116))),\"\",INDEX(Reporting!$B$9:$FZ$9,ROW(A116)))","v":""},{"$f":"IF(OR(IF(ISBLANK(A117),TRUE,FALSE),ISBLANK(Planning!$B$11)),\"\",Planning!$B$11)","v":""},null,{"$f":"IF(ISBLANK(INDEX(Planning!$B$16:$FZ$16,ROW(A115))),\"\",INDEX(Planning!$B$16:$FZ$16,ROW(A115)))","v":""},{"$f":"IF(ISBLANK(INDEX(Planning!$B$17:$FZ$17,ROW(A115))),\"\",INDEX(Planning!$B$17:$FZ$17,ROW(A115)))","v":""},{"$f":"IF(ISBLANK(INDEX(Reporting!$B$9:$FZ$9,ROW(A115))),\"\",INDEX(Reporting!$B$9:$FZ$9,ROW(A115)))","v":""},{"$f":"IF(ISBLANK(INDEX(Reporting!$B$11:$FZ$11,ROW(A115))),\"\",INDEX(Reporting!$B$11:$FZ$11,ROW(A115)))","v":""},{"$f":"IF(ISBLANK(INDEX(Reporting!$B$18:$FZ$18,ROW(A115))),\"\",IF(INDEX(Reporting!$B$18:$FZ$18,ROW(A115))=\"No Failures Observed\",NA(),INDEX(Reporting!$B$18:$FZ$18,ROW(A115))))","v":""},{"$f":"IF(ISBLANK(INDEX('Optional Reporting'!$B$11:$FZ$11,ROW(A115))),NA(),INDEX('Optional Reporting'!$B$11:$FZ$11,ROW(A115)))","v":{"$error":"#N/A"}},{"$f":"IF((INDEX('Optional Reporting'!$B$17:$FZ$17,ROW(A115)))=\"\",NA(),INDEX('Optional Reporting'!$B$17:$FZ$17,ROW(A115)))","v":{"$error":"#N/A"}},{"$f":"IF(ISBLANK(INDEX(Reporting!$B$12:$FZ$12,ROW(A114))),\"\",INDEX(Reporting!$B$12:$FZ$12,ROW(A114)))","v":""}]
[null,null,{"$f":"IF(ISBLANK(INDEX(Planning!$B$16:$FZ$16,ROW(A117))),\"\",INDEX(Planning!$B$16:$FZ$16,ROW(A117)))","v":""},{"$f":"IF(ISBLANK(INDEX(Reporting!$B$9:$FZ$9,ROW(A117))),\"\",INDEX(Reporting!$B$9:$FZ$9,ROW(A117)))","v":""},{"$f":"IF(OR(IF(ISBLANK(A118),TRUE,FALSE),ISBLANK(Planning!$B$11)),\"\",Planning!$B$11)","v":""},null,{"$f":"IF(ISBLANK(INDEX(Planning!$B$16:$FZ$16,ROW(A116))),\"\",INDEX(Planning!$B$16:$FZ$16,ROW(A116)))","v":""},{"$f":"IF(ISBLANK(INDEX(Planning!$B$17:$FZ$17,ROW(A116))),\"\",INDEX(Planning!$B$17:$FZ$17,ROW(A116)))","v":""},{"$f":"IF(ISBLANK(INDEX(Reporting!$B$9:$FZ$9,ROW(A116))),\"\",INDEX(Reporting!$B$9:$FZ$9,ROW(A116)))","v":""},{"$f":"IF(ISBLANK(INDEX(Reporting!$B$11:$FZ$11,ROW(A116))),\"\",INDEX(Reporting!$B$11:$FZ$11,ROW(A116)))","v":""},{"$f":"IF(ISBLANK(INDEX(Reporting!$B$18:$FZ$18,ROW(A116))),\"\",IF(INDEX(Reporting!$B$18:$FZ$18,ROW(A116))=\"No Failures Observed\",NA(),INDEX(Reporting!$B$18:$FZ$18,ROW(A116))))","v":""},{"$f":"IF(ISBLANK(INDEX('Optional Reporting'!$B$11:$FZ$11,ROW(A116))),NA(),INDEX('Optional Reporting'!$B$11:$FZ$11,ROW(A116)))","v":{"$error":"#N/A"}},{"$f":"IF((INDEX('Optional Reporting'!$B$17:$FZ$17,ROW(A116)))=\"\",NA(),INDEX('Optional Reporting'!$B$17:$FZ$17,ROW(A116)))","v":{"$error":"#N/A"}},{"$f":"IF(ISBLANK(INDEX(Reporting!$B$12:$FZ$12,ROW(A115))),\"\",INDEX(Reporting!$B$12:$FZ$12,ROW(A115)))","v":""}]
[null,null,{"$f":"IF(ISBLANK(INDEX(Planning!$B$16:$FZ$16,ROW(A118))),\"\",INDEX(Planning!$B$16:$FZ$16,ROW(A118)))","v":""},{"$f":"IF(ISBLANK(INDEX(Reporting!$B$9:$FZ$9,ROW(A118))),\"\",INDEX(Reporting!$B$9:$FZ$9,ROW(A118)))","v":""},{"$f":"IF(OR(IF(ISBLANK(A119),TRUE,FALSE),ISBLANK(Planning!$B$11)),\"\",Planning!$B$11)","v":""},null,{"$f":"IF(ISBLANK(INDEX(Planning!$B$16:$FZ$16,ROW(A117))),\"\",INDEX(Planning!$B$16:$FZ$16,ROW(A117)))","v":""},{"$f":"IF(ISBLANK(INDEX(Planning!$B$17:$FZ$17,ROW(A117))),\"\",INDEX(Planning!$B$17:$FZ$17,ROW(A117)))","v":""},{"$f":"IF(ISBLANK(INDEX(Reporting!$B$9:$FZ$9,ROW(A117))),\"\",INDEX(Reporting!$B$9:$FZ$9,ROW(A117)))","v":""},{"$f":"IF(ISBLANK(INDEX(Reporting!$B$11:$FZ$11,ROW(A117))),\"\",INDEX(Reporting!$B$11:$FZ$11,ROW(A117)))","v":""},{"$f":"IF(ISBLANK(INDEX(Reporting!$B$18:$FZ$18,ROW(A117))),\"\",IF(INDEX(Reporting!$B$18:$FZ$18,ROW(A117))=\"No Failures Observed\",NA(),INDEX(Reporting!$B$18:$FZ$18,ROW(A117))))","v":""},{"$f":"IF(ISBLANK(INDEX('Optional Reporting'!$B$11:$FZ$11,ROW(A117))),NA(),INDEX('Optional Reporting'!$B$11:$FZ$11,ROW(A117)))","v":{"$error":"#N/A"}},{"$f":"IF((INDEX('Optional Reporting'!$B$17:$FZ$17,ROW(A117)))=\"\",NA(),INDEX('Optional Reporting'!$B$17:$FZ$17,ROW(A117)))","v":{"$error":"#N/A"}},{"$f":"IF(ISBLANK(INDEX(Reporting!$B$12:$FZ$12,ROW(A116))),\"\",INDEX(Reporting!$B$12:$FZ$12,ROW(A116)))","v":""}]
[null,null,{"$f":"IF(ISBLANK(INDEX(Planning!$B$16:$FZ$16,ROW(A119))),\"\",INDEX(Planning!$B$16:$FZ$16,ROW(A119)))","v":""},{"$f":"IF(ISBLANK(INDEX(Reporting!$B$9:$FZ$9,ROW(A119))),\"\",INDEX(Reporting!$B$9:$FZ$9,ROW(A119)))","v":""},{"$f":"IF(OR(IF(ISBLANK(A120),TRUE,FALSE),ISBLANK(Planning!$B$11)),\"\",Planning!$B$11)","v":""},null,{"$f":"IF(ISBLANK(INDEX(Planning!$B$16:$FZ$16,ROW(A118))),\"\",INDEX(Planning!$B$16:$FZ$16,ROW(A118)))","v":""},{"$f":"IF(ISBLANK(INDEX(Planning!$B$17:$FZ$17,ROW(A118))),\"\",INDEX(Planning!$B$17:$FZ$17,ROW(A118)))","v":""},{"$f":"IF(ISBLANK(INDEX(Reporting!$B$9:$FZ$9,ROW(A118))),\"\",INDEX(Reporting!$B$9:$FZ$9,ROW(A118)))","v":""},{"$f":"IF(ISBLANK(INDEX(Reporting!$B$11:$FZ$11,ROW(A118))),\"\",INDEX(Reporting!$B$11:$FZ$11,ROW(A118)))","v":""},{"$f":"IF(ISBLANK(INDEX(Reporting!$B$18:$FZ$18,ROW(A118))),\"\",IF(INDEX(Reporting!$B$18:$FZ$18,ROW(A118))=\"No Failures Observed\",NA(),INDEX(Reporting!$B$18:$FZ$18,ROW(A118))))","v":""},{"$f":"IF(ISBLANK(INDEX('Optional Reporting'!$B$11:$FZ$11,ROW(A118))),NA(),INDEX('Optional Reporting'!$B$11:$FZ$11,ROW(A118)))","v":{"$error":"#N/A"}},{"$f":"IF((INDEX('Optional Reporting'!$B$17:$FZ$17,ROW(A118)))=\"\",NA(),INDEX('Optional Reporting'!$B$17:$FZ$17,ROW(A118)))","v":{"$error":"#N/A"}},{"$f":"IF(ISBLANK(INDEX(Reporting!$B$12:$FZ$12,ROW(A117))),\"\",INDEX(Reporting!$B$12:$FZ$12,ROW(A117)))","v":""}]
[null,null,{"$f":"IF(ISBLANK(INDEX(Planning!$B$16:$FZ$16,ROW(A120))),\"\",INDEX(Planning!$B$16:$FZ$16,ROW(A120)))","v":""},{"$f":"IF(ISBLANK(INDEX(Reporting!$B$9:$FZ$9,ROW(A120))),\"\",INDEX(Reporting!$B$9:$FZ$9,ROW(A120)))","v":""},{"$f":"IF(OR(IF(ISBLANK(A121),TRUE,FALSE),ISBLANK(Planning!$B$11)),\"\",Planning!$B$11)","v":""},null,{"$f":"IF(ISBLANK(INDEX(Planning!$B$16:$FZ$16,ROW(A119))),\"\",INDEX(Planning!$B$16:$FZ$16,ROW(A119)))","v":""},{"$f":"IF(ISBLANK(INDEX(Planning!$B$17:$FZ$17,ROW(A119))),\"\",INDEX(Planning!$B$17:$FZ$17,ROW(A119)))","v":""},{"$f":"IF(ISBLANK(INDEX(Reporting!$B$9:$FZ$9,ROW(A119))),\"\",INDEX(Reporting!$B$9:$FZ$9,ROW(A119)))","v":""},{"$f":"IF(ISBLANK(INDEX(Reporting!$B$11:$FZ$11,ROW(A119))),\"\",INDEX(Reporting!$B$11:$FZ$11,ROW(A119)))","v":""},{"$f":"IF(ISBLANK(INDEX(Reporting!$B$18:$FZ$18,ROW(A119))),\"\",IF(INDEX(Reporting!$B$18:$FZ$18,ROW(A119))=\"No Failures Observed\",NA(),INDEX(Reporting!$B$18:$FZ$18,ROW(A119))))","v":""},{"$f":"IF(ISBLANK(INDEX('Optional Reporting'!$B$11:$FZ$11,ROW(A119))),NA(),INDEX('Optional Reporting'!$B$11:$FZ$11,ROW(A119)))","v":{"$error":"#N/A"}},{"$f":"IF((INDEX('Optional Reporting'!$B$17:$FZ$17,ROW(A119)))=\"\",NA(),INDEX('Optional Reporting'!$B$17:$FZ$17,ROW(A119)))","v":{"$error":"#N/A"}},{"$f":"IF(ISBLANK(INDEX(Reporting!$B$12:$FZ$12,ROW(A118))),\"\",INDEX(Reporting!$B$12:$FZ$12,ROW(A118)))","v":""}]
[null,null,{"$f":"IF(ISBLANK(INDEX(Planning!$B$16:$FZ$16,ROW(A121))),\"\",INDEX(Planning!$B$16:$FZ$16,ROW(A121)))","v":""},{"$f":"IF(ISBLANK(INDEX(Reporting!$B$9:$FZ$9,ROW(A121))),\"\",INDEX(Reporting!$B$9:$FZ$9,ROW(A121)))","v":""},{"$f":"IF(OR(IF(ISBLANK(A122),TRUE,FALSE),ISBLANK(Planning!$B$11)),\"\",Planning!$B$11)","v":""},null,{"$f":"IF(ISBLANK(INDEX(Planning!$B$16:$FZ$16,ROW(A120))),\"\",INDEX(Planning!$B$16:$FZ$16,ROW(A120)))","v":""},{"$f":"IF(ISBLANK(INDEX(Planning!$B$17:$FZ$17,ROW(A120))),\"\",INDEX(Planning!$B$17:$FZ$17,ROW(A120)))","v":""},{"$f":"IF(ISBLANK(INDEX(Reporting!$B$9:$FZ$9,ROW(A120))),\"\",INDEX(Reporting!$B$9:$FZ$9,ROW(A120)))","v":""},{"$f":"IF(ISBLANK(INDEX(Reporting!$B$11:$FZ$11,ROW(A120))),\"\",INDEX(Reporting!$B$11:$FZ$11,ROW(A120)))","v":""},{"$f":"IF(ISBLANK(INDEX(Reporting!$B$18:$FZ$18,ROW(A120))),\"\",IF(INDEX(Reporting!$B$18:$FZ$18,ROW(A120))=\"No Failures Observed\",NA(),INDEX(Reporting!$B$18:$FZ$18,ROW(A120))))","v":""},{"$f":"IF(ISBLANK(INDEX('Optional Reporting'!$B$11:$FZ$11,ROW(A120))),NA(),INDEX('Optional Reporting'!$B$11:$FZ$11,ROW(A120)))","v":{"$error":"#N/A"}},{"$f":"IF((INDEX('Optional Reporting'!$B$17:$FZ$17,ROW(A120)))=\"\",NA(),INDEX('Optional Reporting'!$B$17:$FZ$17,ROW(A120)))","v":{"$error":"#N/A"}},{"$f":"IF(ISBLANK(INDEX(Reporting!$B$12:$FZ$12,ROW(A119))),\"\",INDEX(Reporting!$B$12:$FZ$12,ROW(A119)))","v":""}]
[null,null,{"$f":"IF(ISBLANK(INDEX(Planning!$B$16:$FZ$16,ROW(A122))),\"\",INDEX(Planning!$B$16:$FZ$16,ROW(A122)))","v":""},{"$f":"IF(ISBLANK(INDEX(Reporting!$B$9:$FZ$9,ROW(A122))),\"\",INDEX(Reporting!$B$9:$FZ$9,ROW(A122)))","v":""},{"$f":"IF(OR(IF(ISBLANK(A123),TRUE,FALSE),ISBLANK(Planning!$B$11)),\"\",Planning!$B$11)","v":""},null,{"$f":"IF(ISBLANK(INDEX(Planning!$B$16:$FZ$16,ROW(A121))),\"\",INDEX(Planning!$B$16:$FZ$16,ROW(A121)))","v":""},{"$f":"IF(ISBLANK(INDEX(Planning!$B$17:$FZ$17,ROW(A121))),\"\",INDEX(Planning!$B$17:$FZ$17,ROW(A121)))","v":""},{"$f":"IF(ISBLANK(INDEX(Reporting!$B$9:$FZ$9,ROW(A121))),\"\",INDEX(Reporting!$B$9:$FZ$9,ROW(A121)))","v":""},{"$f":"IF(ISBLANK(INDEX(Reporting!$B$11:$FZ$11,ROW(A121))),\"\",INDEX(Reporting!$B$11:$FZ$11,ROW(A121)))","v":""},{"$f":"IF(ISBLANK(INDEX(Reporting!$B$18:$FZ$18,ROW(A121))),\"\",IF(INDEX(Reporting!$B$18:$FZ$18,ROW(A121))=\"No Failures Observed\",NA(),INDEX(Reporting!$B$18:$FZ$18,ROW(A121))))","v":""},{"$f":"IF(ISBLANK(INDEX('Optional Reporting'!$B$11:$FZ$11,ROW(A121))),NA(),INDEX('Optional Reporting'!$B$11:$FZ$11,ROW(A121)))","v":{"$error":"#N/A"}},{"$f":"IF((INDEX('Optional Reporting'!$B$17:$FZ$17,ROW(A121)))=\"\",NA(),INDEX('Optional Reporting'!$B$17:$FZ$17,ROW(A121)))","v":{"$error":"#N/A"}},{"$f":"IF(ISBLANK(INDEX(Reporting!$B$12:$FZ$12,ROW(A120))),\"\",INDEX(Reporting!$B$12:$FZ$12,ROW(A120)))","v":""}]
[null,null,{"$f":"IF(ISBLANK(INDEX(Planning!$B$16:$FZ$16,ROW(A123))),\"\",INDEX(Planning!$B$16:$FZ$16,ROW(A123)))","v":""},{"$f":"IF(ISBLANK(INDEX(Reporting!$B$9:$FZ$9,ROW(A123))),\"\",INDEX(Reporting!$B$9:$FZ$9,ROW(A123)))","v":""},{"$f":"IF(OR(IF(ISBLANK(A124),TRUE,FALSE),ISBLANK(Planning!$B$11)),\"\",Planning!$B$11)","v":""},null,{"$f":"IF(ISBLANK(INDEX(Planning!$B$16:$FZ$16,ROW(A122))),\"\",INDEX(Planning!$B$16:$FZ$16,ROW(A122)))","v":""},{"$f":"IF(ISBLANK(INDEX(Planning!$B$17:$FZ$17,ROW(A122))),\"\",INDEX(Planning!$B$17:$FZ$17,ROW(A122)))","v":""},{"$f":"IF(ISBLANK(INDEX(Reporting!$B$9:$FZ$9,ROW(A122))),\"\",INDEX(Reporting!$B$9:$FZ$9,ROW(A122)))","v":""},{"$f":"IF(ISBLANK(INDEX(Reporting!$B$11:$FZ$11,ROW(A122))),\"\",INDEX(Reporting!$B$11:$FZ$11,ROW(A122)))","v":""},{"$f":"IF(ISBLANK(INDEX(Reporting!$B$18:$FZ$18,ROW(A122))),\"\",IF(INDEX(Reporting!$B$18:$FZ$18,ROW(A122))=\"No Failures Observed\",NA(),INDEX(Reporting!$B$18:$FZ$18,ROW(A122))))","v":""},{"$f":"IF(ISBLANK(INDEX('Optional Reporting'!$B$11:$FZ$11,ROW(A122))),NA(),INDEX('Optional Reporting'!$B$11:$FZ$11,ROW(A122)))","v":{"$error":"#N/A"}},{"$f":"IF((INDEX('Optional Reporting'!$B$17:$FZ$17,ROW(A122)))=\"\",NA(),INDEX('Optional Reporting'!$B$17:$FZ$17,ROW(A122)))","v":{"$error":"#N/A"}},{"$f":"IF(ISBLANK(INDEX(Reporting!$B$12:$FZ$12,ROW(A121))),\"\",INDEX(Reporting!$B$12:$FZ$12,ROW(A121)))","v":""}]
[null,null,{"$f":"IF(ISBLANK(INDEX(Planning!$B$16:$FZ$16,ROW(A124))),\"\",INDEX(Planning!$B$16:$FZ$16,ROW(A124)))","v":""},{"$f":"IF(ISBLANK(INDEX(Reporting!$B$9:$FZ$9,ROW(A124))),\"\",INDEX(Reporting!$B$9:$FZ$9,ROW(A124)))","v":""},{"$f":"IF(OR(IF(ISBLANK(A125),TRUE,FALSE),ISBLANK(Planning!$B$11)),\"\",Planning!$B$11)","v":""},null,{"$f":"IF(ISBLANK(INDEX(Planning!$B$16:$FZ$16,ROW(A123))),\"\",INDEX(Planning!$B$16:$FZ$16,ROW(A123)))","v":""},{"$f":"IF(ISBLANK(INDEX(Planning!$B$17:$FZ$17,ROW(A123))),\"\",INDEX(Planning!$B$17:$FZ$17,ROW(A123)))","v":""},{"$f":"IF(ISBLANK(INDEX(Reporting!$B$9:$FZ$9,ROW(A123))),\"\",INDEX(Reporting!$B$9:$FZ$9,ROW(A123)))","v":""},{"$f":"IF(ISBLANK(INDEX(Reporting!$B$11:$FZ$11,ROW(A123))),\"\",INDEX(Reporting!$B$11:$FZ$11,ROW(A123)))","v":""},{"$f":"IF(ISBLANK(INDEX(Reporting!$B$18:$FZ$18,ROW(A123))),\"\",IF(INDEX(Reporting!$B$18:$FZ$18,ROW(A123))=\"No Failures Observed\",NA(),INDEX(Reporting!$B$18:$FZ$18,ROW(A123))))","v":""},{"$f":"IF(ISBLANK(INDEX('Optional Reporting'!$B$11:$FZ$11,ROW(A123))),NA(),INDEX('Optional Reporting'!$B$11:$FZ$11,ROW(A123)))","v":{"$error":"#N/A"}},{"$f":"IF((INDEX('Optional Reporting'!$B$17:$FZ$17,ROW(A123)))=\"\",NA(),INDEX('Optional Reporting'!$B$17:$FZ$17,ROW(A123)))","v":{"$error":"#N/A"}},{"$f":"IF(ISBLANK(INDEX(Reporting!$B$12:$FZ$12,ROW(A122))),\"\",INDEX(Reporting!$B$12:$FZ$12,ROW(A122)))","v":""}]
[null,null,{"$f":"IF(ISBLANK(INDEX(Planning!$B$16:$FZ$16,ROW(A125))),\"\",INDEX(Planning!$B$16:$FZ$16,ROW(A125)))","v":""},{"$f":"IF(ISBLANK(INDEX(Reporting!$B$9:$FZ$9,ROW(A125))),\"\",INDEX(Reporting!$B$9:$FZ$9,ROW(A125)))","v":""},{"$f":"IF(OR(IF(ISBLANK(A126),TRUE,FALSE),ISBLANK(Planning!$B$11)),\"\",Planning!$B$11)","v":""},null,{"$f":"IF(ISBLANK(INDEX(Planning!$B$16:$FZ$16,ROW(A124))),\"\",INDEX(Planning!$B$16:$FZ$16,ROW(A124)))","v":""},{"$f":"IF(ISBLANK(INDEX(Planning!$B$17:$FZ$17,ROW(A124))),\"\",INDEX(Planning!$B$17:$FZ$17,ROW(A124)))","v":""},{"$f":"IF(ISBLANK(INDEX(Reporting!$B$9:$FZ$9,ROW(A124))),\"\",INDEX(Reporting!$B$9:$FZ$9,ROW(A124)))","v":""},{"$f":"IF(ISBLANK(INDEX(Reporting!$B$11:$FZ$11,ROW(A124))),\"\",INDEX(Reporting!$B$11:$FZ$11,ROW(A124)))","v":""},{"$f":"IF(ISBLANK(INDEX(Reporting!$B$18:$FZ$18,ROW(A124))),\"\",IF(INDEX(Reporting!$B$18:$FZ$18,ROW(A124))=\"No Failures Observed\",NA(),INDEX(Reporting!$B$18:$FZ$18,ROW(A124))))","v":""},{"$f":"IF(ISBLANK(INDEX('Optional Reporting'!$B$11:$FZ$11,ROW(A124))),NA(),INDEX('Optional Reporting'!$B$11:$FZ$11,ROW(A124)))","v":{"$error":"#N/A"}},{"$f":"IF((INDEX('Optional Reporting'!$B$17:$FZ$17,ROW(A124)))=\"\",NA(),INDEX('Optional Reporting'!$B$17:$FZ$17,ROW(A124)))","v":{"$error":"#N/A"}},{"$f":"IF(ISBLANK(INDEX(Reporting!$B$12:$FZ$12,ROW(A123))),\"\",INDEX(Reporting!$B$12:$FZ$12,ROW(A123)))","v":""}]
[null,null,{"$f":"IF(ISBLANK(INDEX(Planning!$B$16:$FZ$16,ROW(A126))),\"\",INDEX(Planning!$B$16:$FZ$16,ROW(A126)))","v":""},{"$f":"IF(ISBLANK(INDEX(Reporting!$B$9:$FZ$9,ROW(A126))),\"\",INDEX(Reporting!$B$9:$FZ$9,ROW(A126)))","v":""},{"$f":"IF(OR(IF(ISBLANK(A127),TRUE,FALSE),ISBLANK(Planning!$B$11)),\"\",Planning!$B$11)","v":""},null,{"$f":"IF(ISBLANK(INDEX(Planning!$B$16:$FZ$16,ROW(A125))),\"\",INDEX(Planning!$B$16:$FZ$16,ROW(A125)))","v":""},{"$f":"IF(ISBLANK(INDEX(Planning!$B$17:$FZ$17,ROW(A125))),\"\",INDEX(Planning!$B$17:$FZ$17,ROW(A125)))","v":""},{"$f":"IF(ISBLANK(INDEX(Reporting!$B$9:$FZ$9,ROW(A125))),\"\",INDEX(Reporting!$B$9:$FZ$9,ROW(A125)))","v":""},{"$f":"IF(ISBLANK(INDEX(Reporting!$B$11:$FZ$11,ROW(A125))),\"\",INDEX(Reporting!$B$11:$FZ$11,ROW(A125)))","v":""},{"$f":"IF(ISBLANK(INDEX(Reporting!$B$18:$FZ$18,ROW(A125))),\"\",IF(INDEX(Reporting!$B$18:$FZ$18,ROW(A125))=\"No Failures Observed\",NA(),INDEX(Reporting!$B$18:$FZ$18,ROW(A125))))","v":""},{"$f":"IF(ISBLANK(INDEX('Optional Reporting'!$B$11:$FZ$11,ROW(A125))),NA(),INDEX('Optional Reporting'!$B$11:$FZ$11,ROW(A125)))","v":{"$error":"#N/A"}},{"$f":"IF((INDEX('Optional Reporting'!$B$17:$FZ$17,ROW(A125)))=\"\",NA(),INDEX('Optional Reporting'!$B$17:$FZ$17,ROW(A125)))","v":{"$error":"#N/A"}},{"$f":"IF(ISBLANK(INDEX(Reporting!$B$12:$FZ$12,ROW(A124))),\"\",INDEX(Reporting!$B$12:$FZ$12,ROW(A124)))","v":""}]
[null,null,{"$f":"IF(ISBLANK(INDEX(Planning!$B$16:$FZ$16,ROW(A127))),\"\",INDEX(Planning!$B$16:$FZ$16,ROW(A127)))","v":""},{"$f":"IF(ISBLANK(INDEX(Reporting!$B$9:$FZ$9,ROW(A127))),\"\",INDEX(Reporting!$B$9:$FZ$9,ROW(A127)))","v":""},{"$f":"IF(OR(IF(ISBLANK(A128),TRUE,FALSE),ISBLANK(Planning!$B$11)),\"\",Planning!$B$11)","v":""},null,{"$f":"IF(ISBLANK(INDEX(Planning!$B$16:$FZ$16,ROW(A126))),\"\",INDEX(Planning!$B$16:$FZ$16,ROW(A126)))","v":""},{"$f":"IF(ISBLANK(INDEX(Planning!$B$17:$FZ$17,ROW(A126))),\"\",INDEX(Planning!$B$17:$FZ$17,ROW(A126)))","v":""},{"$f":"IF(ISBLANK(INDEX(Reporting!$B$9:$FZ$9,ROW(A126))),\"\",INDEX(Reporting!$B$9:$FZ$9,ROW(A126)))","v":""},{"$f":"IF(ISBLANK(INDEX(Reporting!$B$11:$FZ$11,ROW(A126))),\"\",INDEX(Reporting!$B$11:$FZ$11,ROW(A126)))","v":""},{"$f":"IF(ISBLANK(INDEX(Reporting!$B$18:$FZ$18,ROW(A126))),\"\",IF(INDEX(Reporting!$B$18:$FZ$18,ROW(A126))=\"No Failures Observed\",NA(),INDEX(Reporting!$B$18:$FZ$18,ROW(A126))))","v":""},{"$f":"IF(ISBLANK(INDEX('Optional Reporting'!$B$11:$FZ$11,ROW(A126))),NA(),INDEX('Optional Reporting'!$B$11:$FZ$11,ROW(A126)))","v":{"$error":"#N/A"}},{"$f":"IF((INDEX('Optional Reporting'!$B$17:$FZ$17,ROW(A126)))=\"\",NA(),INDEX('Optional Reporting'!$B$17:$FZ$17,ROW(A126)))","v":{"$error":"#N/A"}},{"$f":"IF(ISBLANK(INDEX(Reporting!$B$12:$FZ$12,ROW(A125))),\"\",INDEX(Reporting!$B$12:$FZ$12,ROW(A125)))","v":""}]
[null,null,{"$f":"IF(ISBLANK(INDEX(Planning!$B$16:$FZ$16,ROW(A128))),\"\",INDEX(Planning!$B$16:$FZ$16,ROW(A128)))","v":""},{"$f":"IF(ISBLANK(INDEX(Reporting!$B$9:$FZ$9,ROW(A128))),\"\",INDEX(Reporting!$B$9:$FZ$9,ROW(A128)))","v":""},{"$f":"IF(OR(IF(ISBLANK(A129),TRUE,FALSE),ISBLANK(Planning!$B$11)),\"\",Planning!$B$11)","v":""},null,{"$f":"IF(ISBLANK(INDEX(Planning!$B$16:$FZ$16,ROW(A127))),\"\",INDEX(Planning!$B$16:$FZ$16,ROW(A127)))","v":""},{"$f":"IF(ISBLANK(INDEX(Planning!$B$17:$FZ$17,ROW(A127))),\"\",INDEX(Planning!$B$17:$FZ$17,ROW(A127)))","v":""},{"$f":"IF(ISBLANK(INDEX(Reporting!$B$9:$FZ$9,ROW(A127))),\"\",INDEX(Reporting!$B$9:$FZ$9,ROW(A127)))","v":""},{"$f":"IF(ISBLANK(INDEX(Reporting!$B$11:$FZ$11,ROW(A127))),\"\",INDEX(Reporting!$B$11:$FZ$11,ROW(A127)))","v":""},{"$f":"IF(ISBLANK(INDEX(Reporting!$B$18:$FZ$18,ROW(A127))),\"\",IF(INDEX(Reporting!$B$18:$FZ$18,ROW(A127))=\"No Failures Observed\",NA(),INDEX(Reporting!$B$18:$FZ$18,ROW(A127))))","v":""},{"$f":"IF(ISBLANK(INDEX('Optional Reporting'!$B$11:$FZ$11,ROW(A127))),NA(),INDEX('Optional Reporting'!$B$11:$FZ$11,ROW(A127)))","v":{"$error":"#N/A"}},{"$f":"IF((INDEX('Optional Reporting'!$B$17:$FZ$17,ROW(A127)))=\"\",NA(),INDEX('Optional Reporting'!$B$17:$FZ$17,ROW(A127)))","v":{"$error":"#N/A"}},{"$f":"IF(ISBLANK(INDEX(Reporting!$B$12:$FZ$12,ROW(A126))),\"\",INDEX(Reporting!$B$12:$FZ$12,ROW(A126)))","v":""}]
[null,null,{"$f":"IF(ISBLANK(INDEX(Planning!$B$16:$FZ$16,ROW(A129))),\"\",INDEX(Planning!$B$16:$FZ$16,ROW(A129)))","v":""},{"$f":"IF(ISBLANK(INDEX(Reporting!$B$9:$FZ$9,ROW(A129))),\"\",INDEX(Reporting!$B$9:$FZ$9,ROW(A129)))","v":""},{"$f":"IF(OR(IF(ISBLANK(A130),TRUE,FALSE),ISBLANK(Planning!$B$11)),\"\",Planning!$B$11)","v":""},null,{"$f":"IF(ISBLANK(INDEX(Planning!$B$16:$FZ$16,ROW(A128))),\"\",INDEX(Planning!$B$16:$FZ$16,ROW(A128)))","v":""},{"$f":"IF(ISBLANK(INDEX(Planning!$B$17:$FZ$17,ROW(A128))),\"\",INDEX(Planning!$B$17:$FZ$17,ROW(A128)))","v":""},{"$f":"IF(ISBLANK(INDEX(Reporting!$B$9:$FZ$9,ROW(A128))),\"\",INDEX(Reporting!$B$9:$FZ$9,ROW(A128)))","v":""},{"$f":"IF(ISBLANK(INDEX(Reporting!$B$11:$FZ$11,ROW(A128))),\"\",INDEX(Reporting!$B$11:$FZ$11,ROW(A128)))","v":""},{"$f":"IF(ISBLANK(INDEX(Reporting!$B$18:$FZ$18,ROW(A128))),\"\",IF(INDEX(Reporting!$B$18:$FZ$18,ROW(A128))=\"No Failures Observed\",NA(),INDEX(Reporting!$B$18:$FZ$18,ROW(A128))))","v":""},{"$f":"IF(ISBLANK(INDEX('Optional Reporting'!$B$11:$FZ$11,ROW(A128))),NA(),INDEX('Optional Reporting'!$B$11:$FZ$11,ROW(A128)))","v":{"$error":"#N/A"}},{"$f":"IF((INDEX('Optional Reporting'!$B$17:$FZ$17,ROW(A128)))=\"\",NA(),INDEX('Optional Reporting'!$B$17:$FZ$17,ROW(A128)))","v":{"$error":"#N/A"}},{"$f":"IF(ISBLANK(INDEX(Reporting!$B$12:$FZ$12,ROW(A127))),\"\",INDEX(Reporting!$B$12:$FZ$12,ROW(A127)))","v":""}]
[null,null,{"$f":"IF(ISBLANK(INDEX(Planning!$B$16:$FZ$16,ROW(A130))),\"\",INDEX(Planning!$B$16:$FZ$16,ROW(A130)))","v":""},{"$f":"IF(ISBLANK(INDEX(Reporting!$B$9:$FZ$9,ROW(A130))),\"\",INDEX(Reporting!$B$9:$FZ$9,ROW(A130)))","v":""},{"$f":"IF(OR(IF(ISBLANK(A131),TRUE,FALSE),ISBLANK(Planning!$B$11)),\"\",Planning!$B$11)","v":""},null,{"$f":"IF(ISBLANK(INDEX(Planning!$B$16:$FZ$16,ROW(A129))),\"\",INDEX(Planning!$B$16:$FZ$16,ROW(A129)))","v":""},{"$f":"IF(ISBLANK(INDEX(Planning!$B$17:$FZ$17,ROW(A129))),\"\",INDEX(Planning!$B$17:$FZ$17,ROW(A129)))","v":""},{"$f":"IF(ISBLANK(INDEX(Reporting!$B$9:$FZ$9,ROW(A129))),\"\",INDEX(Reporting!$B$9:$FZ$9,ROW(A129)))","v":""},{"$f":"IF(ISBLANK(INDEX(Reporting!$B$11:$FZ$11,ROW(A129))),\"\",INDEX(Reporting!$B$11:$FZ$11,ROW(A129)))","v":""},{"$f":"IF(ISBLANK(INDEX(Reporting!$B$18:$FZ$18,ROW(A129))),\"\",IF(INDEX(Reporting!$B$18:$FZ$18,ROW(A129))=\"No Failures Observed\",NA(),INDEX(Reporting!$B$18:$FZ$18,ROW(A129))))","v":""},{"$f":"IF(ISBLANK(INDEX('Optional Reporting'!$B$11:$FZ$11,ROW(A129))),NA(),INDEX('Optional Reporting'!$B$11:$FZ$11,ROW(A129)))","v":{"$error":"#N/A"}},{"$f":"IF((INDEX('Optional Reporting'!$B$17:$FZ$17,ROW(A129)))=\"\",NA(),INDEX('Optional Reporting'!$B$17:$FZ$17,ROW(A129)))","v":{"$error":"#N/A"}},{"$f":"IF(ISBLANK(INDEX(Reporting!$B$12:$FZ$12,ROW(A128))),\"\",INDEX(Reporting!$B$12:$FZ$12,ROW(A128)))","v":""}]
[null,null,{"$f":"IF(ISBLANK(INDEX(Planning!$B$16:$FZ$16,ROW(A131))),\"\",INDEX(Planning!$B$16:$FZ$16,ROW(A131)))","v":""},{"$f":"IF(ISBLANK(INDEX(Reporting!$B$9:$FZ$9,ROW(A131))),\"\",INDEX(Reporting!$B$9:$FZ$9,ROW(A131)))","v":""},{"$f":"IF(OR(IF(ISBLANK(A132),TRUE,FALSE),ISBLANK(Planning!$B$11)),\"\",Planning!$B$11)","v":""},null,{"$f":"IF(ISBLANK(INDEX(Planning!$B$16:$FZ$16,ROW(A130))),\"\",INDEX(Planning!$B$16:$FZ$16,ROW(A130)))","v":""},{"$f":"IF(ISBLANK(INDEX(Planning!$B$17:$FZ$17,ROW(A130))),\"\",INDEX(Planning!$B$17:$FZ$17,ROW(A130)))","v":""},{"$f":"IF(ISBLANK(INDEX(Reporting!$B$9:$FZ$9,ROW(A130))),\"\",INDEX(Reporting!$B$9:$FZ$9,ROW(A130)))","v":""},{"$f":"IF(ISBLANK(INDEX(Reporting!$B$11:$FZ$11,ROW(A130))),\"\",INDEX(Reporting!$B$11:$FZ$11,ROW(A130)))","v":""},{"$f":"IF(ISBLANK(INDEX(Reporting!$B$18:$FZ$18,ROW(A130))),\"\",IF(INDEX(Reporting!$B$18:$FZ$18,ROW(A130))=\"No Failures Observed\",NA(),INDEX(Reporting!$B$18:$FZ$18,ROW(A130))))","v":""},{"$f":"IF(ISBLANK(INDEX('Optional Reporting'!$B$11:$FZ$11,ROW(A130))),NA(),INDEX('Optional Reporting'!$B$11:$FZ$11,ROW(A130)))","v":{"$error":"#N/A"}},{"$f":"IF((INDEX('Optional Reporting'!$B$17:$FZ$17,ROW(A130)))=\"\",NA(),INDEX('Optional Reporting'!$B$17:$FZ$17,ROW(A130)))","v":{"$error":"#N/A"}},{"$f":"IF(ISBLANK(INDEX(Reporting!$B$12:$FZ$12,ROW(A129))),\"\",INDEX(Reporting!$B$12:$FZ$12,ROW(A129)))","v":""}]
[null,null,{"$f":"IF(ISBLANK(INDEX(Planning!$B$16:$FZ$16,ROW(A132))),\"\",INDEX(Planning!$B$16:$FZ$16,ROW(A132)))","v":""},{"$f":"IF(ISBLANK(INDEX(Reporting!$B$9:$FZ$9,ROW(A132))),\"\",INDEX(Reporting!$B$9:$FZ$9,ROW(A132)))","v":""},{"$f":"IF(OR(IF(ISBLANK(A133),TRUE,FALSE),ISBLANK(Planning!$B$11)),\"\",Planning!$B$11)","v":""},null,{"$f":"IF(ISBLANK(INDEX(Planning!$B$16:$FZ$16,ROW(A131))),\"\",INDEX(Planning!$B$16:$FZ$16,ROW(A131)))","v":""},{"$f":"IF(ISBLANK(INDEX(Planning!$B$17:$FZ$17,ROW(A131))),\"\",INDEX(Planning!$B$17:$FZ$17,ROW(A131)))","v":""},{"$f":"IF(ISBLANK(INDEX(Reporting!$B$9:$FZ$9,ROW(A131))),\"\",INDEX(Reporting!$B$9:$FZ$9,ROW(A131)))","v":""},{"$f":"IF(ISBLANK(INDEX(Reporting!$B$11:$FZ$11,ROW(A131))),\"\",INDEX(Reporting!$B$11:$FZ$11,ROW(A131)))","v":""},{"$f":"IF(ISBLANK(INDEX(Reporting!$B$18:$FZ$18,ROW(A131))),\"\",IF(INDEX(Reporting!$B$18:$FZ$18,ROW(A131))=\"No Failures Observed\",NA(),INDEX(Reporting!$B$18:$FZ$18,ROW(A131))))","v":""},{"$f":"IF(ISBLANK(INDEX('Optional Reporting'!$B$11:$FZ$11,ROW(A131))),NA(),INDEX('Optional Reporting'!$B$11:$FZ$11,ROW(A131)))","v":{"$error":"#N/A"}},{"$f":"IF((INDEX('Optional Reporting'!$B$17:$FZ$17,ROW(A131)))=\"\",NA(),INDEX('Optional Reporting'!$B$17:$FZ$17,ROW(A131)))","v":{"$error":"#N/A"}},{"$f":"IF(ISBLANK(INDEX(Reporting!$B$12:$FZ$12,ROW(A130))),\"\",INDEX(Reporting!$B$12:$FZ$12,ROW(A130)))","v":""}]
[null,null,{"$f":"IF(ISBLANK(INDEX(Planning!$B$16:$FZ$16,ROW(A133))),\"\",INDEX(Planning!$B$16:$FZ$16,ROW(A133)))","v":""},{"$f":"IF(ISBLANK(INDEX(Reporting!$B$9:$FZ$9,ROW(A133))),\"\",INDEX(Reporting!$B$9:$FZ$9,ROW(A133)))","v":""},{"$f":"IF(OR(IF(ISBLANK(A134),TRUE,FALSE),ISBLANK(Planning!$B$11)),\"\",Planning!$B$11)","v":""},null,{"$f":"IF(ISBLANK(INDEX(Planning!$B$16:$FZ$16,ROW(A132))),\"\",INDEX(Planning!$B$16:$FZ$16,ROW(A132)))","v":""},{"$f":"IF(ISBLANK(INDEX(Planning!$B$17:$FZ$17,ROW(A132))),\"\",INDEX(Planning!$B$17:$FZ$17,ROW(A132)))","v":""},{"$f":"IF(ISBLANK(INDEX(Reporting!$B$9:$FZ$9,ROW(A132))),\"\",INDEX(Reporting!$B$9:$FZ$9,ROW(A132)))","v":""},{"$f":"IF(ISBLANK(INDEX(Reporting!$B$11:$FZ$11,ROW(A132))),\"\",INDEX(Reporting!$B$11:$FZ$11,ROW(A132)))","v":""},{"$f":"IF(ISBLANK(INDEX(Reporting!$B$18:$FZ$18,ROW(A132))),\"\",IF(INDEX(Reporting!$B$18:$FZ$18,ROW(A132))=\"No Failures Observed\",NA(),INDEX(Reporting!$B$18:$FZ$18,ROW(A132))))","v":""},{"$f":"IF(ISBLANK(INDEX('Optional Reporting'!$B$11:$FZ$11,ROW(A132))),NA(),INDEX('Optional Reporting'!$B$11:$FZ$11,ROW(A132)))","v":{"$error":"#N/A"}},{"$f":"IF((INDEX('Optional Reporting'!$B$17:$FZ$17,ROW(A132)))=\"\",NA(),INDEX('Optional Reporting'!$B$17:$FZ$17,ROW(A132)))","v":{"$error":"#N/A"}},{"$f":"IF(ISBLANK(INDEX(Reporting!$B$12:$FZ$12,ROW(A131))),\"\",INDEX(Reporting!$B$12:$FZ$12,ROW(A131)))","v":""}]
[null,null,{"$f":"IF(ISBLANK(INDEX(Planning!$B$16:$FZ$16,ROW(A134))),\"\",INDEX(Planning!$B$16:$FZ$16,ROW(A134)))","v":""},{"$f":"IF(ISBLANK(INDEX(Reporting!$B$9:$FZ$9,ROW(A134))),\"\",INDEX(Reporting!$B$9:$FZ$9,ROW(A134)))","v":""},{"$f":"IF(OR(IF(ISBLANK(A135),TRUE,FALSE),ISBLANK(Planning!$B$11)),\"\",Planning!$B$11)","v":""},null,{"$f":"IF(ISBLANK(INDEX(Planning!$B$16:$FZ$16,ROW(A133))),\"\",INDEX(Planning!$B$16:$FZ$16,ROW(A133)))","v":""},{"$f":"IF(ISBLANK(INDEX(Planning!$B$17:$FZ$17,ROW(A133))),\"\",INDEX(Planning!$B$17:$FZ$17,ROW(A133)))","v":""},{"$f":"IF(ISBLANK(INDEX(Reporting!$B$9:$FZ$9,ROW(A133))),\"\",INDEX(Reporting!$B$9:$FZ$9,ROW(A133)))","v":""},{"$f":"IF(ISBLANK(INDEX(Reporting!$B$11:$FZ$11,ROW(A133))),\"\",INDEX(Reporting!$B$11:$FZ$11,ROW(A133)))","v":""},{"$f":"IF(ISBLANK(INDEX(Reporting!$B$18:$FZ$18,ROW(A133))),\"\",IF(INDEX(Reporting!$B$18:$FZ$18,ROW(A133))=\"No Failures Observed\",NA(),INDEX(Reporting!$B$18:$FZ$18,ROW(A133))))","v":""},{"$f":"IF(ISBLANK(INDEX('Optional Reporting'!$B$11:$FZ$11,ROW(A133))),NA(),INDEX('Optional Reporting'!$B$11:$FZ$11,ROW(A133)))","v":{"$error":"#N/A"}},{"$f":"IF((INDEX('Optional Reporting'!$B$17:$FZ$17,ROW(A133)))=\"\",NA(),INDEX('Optional Reporting'!$B$17:$FZ$17,ROW(A133)))","v":{"$error":"#N/A"}},{"$f":"IF(ISBLANK(INDEX(Reporting!$B$12:$FZ$12,ROW(A132))),\"\",INDEX(Reporting!$B$12:$FZ$12,ROW(A132)))","v":""}]
[null,null,{"$f":"IF(ISBLANK(INDEX(Planning!$B$16:$FZ$16,ROW(A135))),\"\",INDEX(Planning!$B$16:$FZ$16,ROW(A135)))","v":""},{"$f":"IF(ISBLANK(INDEX(Reporting!$B$9:$FZ$9,ROW(A135))),\"\",INDEX(Reporting!$B$9:$FZ$9,ROW(A135)))","v":""},{"$f":"IF(OR(IF(ISBLANK(A136),TRUE,FALSE),ISBLANK(Planning!$B$11)),\"\",Planning!$B$11)","v":""},null,{"$f":"IF(ISBLANK(INDEX(Planning!$B$16:$FZ$16,ROW(A134))),\"\",INDEX(Planning!$B$16:$FZ$16,ROW(A134)))","v":""},{"$f":"IF(ISBLANK(INDEX(Planning!$B$17:$FZ$17,ROW(A134))),\"\",INDEX(Planning!$B$17:$FZ$17,ROW(A134)))","v":""},{"$f":"IF(ISBLANK(INDEX(Reporting!$B$9:$FZ$9,ROW(A134))),\"\",INDEX(Reporting!$B$9:$FZ$9,ROW(A134)))","v":""},{"$f":"IF(ISBLANK(INDEX(Reporting!$B$11:$FZ$11,ROW(A134))),\"\",INDEX(Reporting!$B$11:$FZ$11,ROW(A134)))","v":""},{"$f":"IF(ISBLANK(INDEX(Reporting!$B$18:$FZ$18,ROW(A134))),\"\",IF(INDEX(Reporting!$B$18:$FZ$18,ROW(A134))=\"No Failures Observed\",NA(),INDEX(Reporting!$B$18:$FZ$18,ROW(A134))))","v":""},{"$f":"IF(ISBLANK(INDEX('Optional Reporting'!$B$11:$FZ$11,ROW(A134))),NA(),INDEX('Optional Reporting'!$B$11:$FZ$11,ROW(A134)))","v":{"$error":"#N/A"}},{"$f":"IF((INDEX('Optional Reporting'!$B$17:$FZ$17,ROW(A134)))=\"\",NA(),INDEX('Optional Reporting'!$B$17:$FZ$17,ROW(A134)))","v":{"$error":"#N/A"}},{"$f":"IF(ISBLANK(INDEX(Reporting!$B$12:$FZ$12,ROW(A133))),\"\",INDEX(Reporting!$B$12:$FZ$12,ROW(A133)))","v":""}]
[null,null,{"$f":"IF(ISBLANK(INDEX(Planning!$B$16:$FZ$16,ROW(A136))),\"\",INDEX(Planning!$B$16:$FZ$16,ROW(A136)))","v":""},{"$f":"IF(ISBLANK(INDEX(Reporting!$B$9:$FZ$9,ROW(A136))),\"\",INDEX(Reporting!$B$9:$FZ$9,ROW(A136)))","v":""},{"$f":"IF(OR(IF(ISBLANK(A137),TRUE,FALSE),ISBLANK(Planning!$B$11)),\"\",Planning!$B$11)","v":""},null,{"$f":"IF(ISBLANK(INDEX(Planning!$B$16:$FZ$16,ROW(A135))),\"\",INDEX(Planning!$B$16:$FZ$16,ROW(A135)))","v":""},{"$f":"IF(ISBLANK(INDEX(Planning!$B$17:$FZ$17,ROW(A135))),\"\",INDEX(Planning!$B$17:$FZ$17,ROW(A135)))","v":""},{"$f":"IF(ISBLANK(INDEX(Reporting!$B$9:$FZ$9,ROW(A135))),\"\",INDEX(Reporting!$B$9:$FZ$9,ROW(A135)))","v":""},{"$f":"IF(ISBLANK(INDEX(Reporting!$B$11:$FZ$11,ROW(A135))),\"\",INDEX(Reporting!$B$11:$FZ$11,ROW(A135)))","v":""},{"$f":"IF(ISBLANK(INDEX(Reporting!$B$18:$FZ$18,ROW(A135))),\"\",IF(INDEX(Reporting!$B$18:$FZ$18,ROW(A135))=\"No Failures Observed\",NA(),INDEX(Reporting!$B$18:$FZ$18,ROW(A135))))","v":""},{"$f":"IF(ISBLANK(INDEX('Optional Reporting'!$B$11:$FZ$11,ROW(A135))),NA(),INDEX('Optional Reporting'!$B$11:$FZ$11,ROW(A135)))","v":{"$error":"#N/A"}},{"$f":"IF((INDEX('Optional Reporting'!$B$17:$FZ$17,ROW(A135)))=\"\",NA(),INDEX('Optional Reporting'!$B$17:$FZ$17,ROW(A135)))","v":{"$error":"#N/A"}},{"$f":"IF(ISBLANK(INDEX(Reporting!$B$12:$FZ$12,ROW(A134))),\"\",INDEX(Reporting!$B$12:$FZ$12,ROW(A134)))","v":""}]
[null,null,{"$f":"IF(ISBLANK(INDEX(Planning!$B$16:$FZ$16,ROW(A137))),\"\",INDEX(Planning!$B$16:$FZ$16,ROW(A137)))","v":""},{"$f":"IF(ISBLANK(INDEX(Reporting!$B$9:$FZ$9,ROW(A137))),\"\",INDEX(Reporting!$B$9:$FZ$9,ROW(A137)))","v":""},{"$f":"IF(OR(IF(ISBLANK(A138),TRUE,FALSE),ISBLANK(Planning!$B$11)),\"\",Planning!$B$11)","v":""},null,{"$f":"IF(ISBLANK(INDEX(Planning!$B$16:$FZ$16,ROW(A136))),\"\",INDEX(Planning!$B$16:$FZ$16,ROW(A136)))","v":""},{"$f":"IF(ISBLANK(INDEX(Planning!$B$17:$FZ$17,ROW(A136))),\"\",INDEX(Planning!$B$17:$FZ$17,ROW(A136)))","v":""},{"$f":"IF(ISBLANK(INDEX(Reporting!$B$9:$FZ$9,ROW(A136))),\"\",INDEX(Reporting!$B$9:$FZ$9,ROW(A136)))","v":""},{"$f":"IF(ISBLANK(INDEX(Reporting!$B$11:$FZ$11,ROW(A136))),\"\",INDEX(Reporting!$B$11:$FZ$11,ROW(A136)))","v":""},{"$f":"IF(ISBLANK(INDEX(Reporting!$B$18:$FZ$18,ROW(A136))),\"\",IF(INDEX(Reporting!$B$18:$FZ$18,ROW(A136))=\"No Failures Observed\",NA(),INDEX(Reporting!$B$18:$FZ$18,ROW(A136))))","v":""},{"$f":"IF(ISBLANK(INDEX('Optional Reporting'!$B$11:$FZ$11,ROW(A136))),NA(),INDEX('Optional Reporting'!$B$11:$FZ$11,ROW(A136)))","v":{"$error":"#N/A"}},{"$f":"IF((INDEX('Optional Reporting'!$B$17:$FZ$17,ROW(A136)))=\"\",NA(),INDEX('Optional Reporting'!$B$17:$FZ$17,ROW(A136)))","v":{"$error":"#N/A"}},{"$f":"IF(ISBLANK(INDEX(Reporting!$B$12:$FZ$12,ROW(A135))),\"\",INDEX(Reporting!$B$12:$FZ$12,ROW(A135)))","v":""}]
[null,null,{"$f":"IF(ISBLANK(INDEX(Planning!$B$16:$FZ$16,ROW(A138))),\"\",INDEX(Planning!$B$16:$FZ$16,ROW(A138)))","v":""},{"$f":"IF(ISBLANK(INDEX(Reporting!$B$9:$FZ$9,ROW(A138))),\"\",INDEX(Reporting!$B$9:$FZ$9,ROW(A138)))","v":""},{"$f":"IF(OR(IF(ISBLANK(A139),TRUE,FALSE),ISBLANK(Planning!$B$11)),\"\",Planning!$B$11)","v":""},null,{"$f":"IF(ISBLANK(INDEX(Planning!$B$16:$FZ$16,ROW(A137))),\"\",INDEX(Planning!$B$16:$FZ$16,ROW(A137)))","v":""},{"$f":"IF(ISBLANK(INDEX(Planning!$B$17:$FZ$17,ROW(A137))),\"\",INDEX(Planning!$B$17:$FZ$17,ROW(A137)))","v":""},{"$f":"IF(ISBLANK(INDEX(Reporting!$B$9:$FZ$9,ROW(A137))),\"\",INDEX(Reporting!$B$9:$FZ$9,ROW(A137)))","v":""},{"$f":"IF(ISBLANK(INDEX(Reporting!$B$11:$FZ$11,ROW(A137))),\"\",INDEX(Reporting!$B$11:$FZ$11,ROW(A137)))","v":""},{"$f":"IF(ISBLANK(INDEX(Reporting!$B$18:$FZ$18,ROW(A137))),\"\",IF(INDEX(Reporting!$B$18:$FZ$18,ROW(A137))=\"No Failures Observed\",NA(),INDEX(Reporting!$B$18:$FZ$18,ROW(A137))))","v":""},{"$f":"IF(ISBLANK(INDEX('Optional Reporting'!$B$11:$FZ$11,ROW(A137))),NA(),INDEX('Optional Reporting'!$B$11:$FZ$11,ROW(A137)))","v":{"$error":"#N/A"}},{"$f":"IF((INDEX('Optional Reporting'!$B$17:$FZ$17,ROW(A137)))=\"\",NA(),INDEX('Optional Reporting'!$B$17:$FZ$17,ROW(A137)))","v":{"$error":"#N/A"}},{"$f":"IF(ISBLANK(INDEX(Reporting!$B$12:$FZ$12,ROW(A136))),\"\",INDEX(Reporting!$B$12:$FZ$12,ROW(A136)))","v":""}]
[null,null,{"$f":"IF(ISBLANK(INDEX(Planning!$B$16:$FZ$16,ROW(A139))),\"\",INDEX(Planning!$B$16:$FZ$16,ROW(A139)))","v":""},{"$f":"IF(ISBLANK(INDEX(Reporting!$B$9:$FZ$9,ROW(A139))),\"\",INDEX(Reporting!$B$9:$FZ$9,ROW(A139)))","v":""},{"$f":"IF(OR(IF(ISBLANK(A140),TRUE,FALSE),ISBLANK(Planning!$B$11)),\"\",Planning!$B$11)","v":""},null,{"$f":"IF(ISBLANK(INDEX(Planning!$B$16:$FZ$16,ROW(A138))),\"\",INDEX(Planning!$B$16:$FZ$16,ROW(A138)))","v":""},{"$f":"IF(ISBLANK(INDEX(Planning!$B$17:$FZ$17,ROW(A138))),\"\",INDEX(Planning!$B$17:$FZ$17,ROW(A138)))","v":""},{"$f":"IF(ISBLANK(INDEX(Reporting!$B$9:$FZ$9,ROW(A138))),\"\",INDEX(Reporting!$B$9:$FZ$9,ROW(A138)))","v":""},{"$f":"IF(ISBLANK(INDEX(Reporting!$B$11:$FZ$11,ROW(A138))),\"\",INDEX(Reporting!$B$11:$FZ$11,ROW(A138)))","v":""},{"$f":"IF(ISBLANK(INDEX(Reporting!$B$18:$FZ$18,ROW(A138))),\"\",IF(INDEX(Reporting!$B$18:$FZ$18,ROW(A138))=\"No Failures Observed\",NA(),INDEX(Reporting!$B$18:$FZ$18,ROW(A138))))","v":""},{"$f":"IF(ISBLANK(INDEX('Optional Reporting'!$B$11:$FZ$11,ROW(A138))),NA(),INDEX('Optional Reporting'!$B$11:$FZ$11,ROW(A138)))","v":{"$error":"#N/A"}},{"$f":"IF((INDEX('Optional Reporting'!$B$17:$FZ$17,ROW(A138)))=\"\",NA(),INDEX('Optional Reporting'!$B$17:$FZ$17,ROW(A138)))","v":{"$error":"#N/A"}},{"$f":"IF(ISBLANK(INDEX(Reporting!$B$12:$FZ$12,ROW(A137))),\"\",INDEX(Reporting!$B$12:$FZ$12,ROW(A137)))","v":""}]
[null,null,{"$f":"IF(ISBLANK(INDEX(Planning!$B$16:$FZ$16,ROW(A140))),\"\",INDEX(Planning!$B$16:$FZ$16,ROW(A140)))","v":""},{"$f":"IF(ISBLANK(INDEX(Reporting!$B$9:$FZ$9,ROW(A140))),\"\",INDEX(Reporting!$B$9:$FZ$9,ROW(A140)))","v":""},{"$f":"IF(OR(IF(ISBLANK(A141),TRUE,FALSE),ISBLANK(Planning!$B$11)),\"\",Planning!$B$11)","v":""},null,{"$f":"IF(ISBLANK(INDEX(Planning!$B$16:$FZ$16,ROW(A139))),\"\",INDEX(Planning!$B$16:$FZ$16,ROW(A139)))","v":""},{"$f":"IF(ISBLANK(INDEX(Planning!$B$17:$FZ$17,ROW(A139))),\"\",INDEX(Planning!$B$17:$FZ$17,ROW(A139)))","v":""},{"$f":"IF(ISBLANK(INDEX(Reporting!$B$9:$FZ$9,ROW(A139))),\"\",INDEX(Reporting!$B$9:$FZ$9,ROW(A139)))","v":""},{"$f":"IF(ISBLANK(INDEX(Reporting!$B$11:$FZ$11,ROW(A139))),\"\",INDEX(Reporting!$B$11:$FZ$11,ROW(A139)))","v":""},{"$f":"IF(ISBLANK(INDEX(Reporting!$B$18:$FZ$18,ROW(A139))),\"\",IF(INDEX(Reporting!$B$18:$FZ$18,ROW(A139))=\"No Failures Observed\",NA(),INDEX(Reporting!$B$18:$FZ$18,ROW(A139))))","v":""},{"$f":"IF(ISBLANK(INDEX('Optional Reporting'!$B$11:$FZ$11,ROW(A139))),NA(),INDEX('Optional Reporting'!$B$11:$FZ$11,ROW(A139)))","v":{"$error":"#N/A"}},{"$f":"IF((INDEX('Optional Reporting'!$B$17:$FZ$17,ROW(A139)))=\"\",NA(),INDEX('Optional Reporting'!$B$17:$FZ$17,ROW(A139)))","v":{"$error":"#N/A"}},{"$f":"IF(ISBLANK(INDEX(Reporting!$B$12:$FZ$12,ROW(A138))),\"\",INDEX(Reporting!$B$12:$FZ$12,ROW(A138)))","v":""}]
[null,null,{"$f":"IF(ISBLANK(INDEX(Planning!$B$16:$FZ$16,ROW(A141))),\"\",INDEX(Planning!$B$16:$FZ$16,ROW(A141)))","v":""},{"$f":"IF(ISBLANK(INDEX(Reporting!$B$9:$FZ$9,ROW(A141))),\"\",INDEX(Reporting!$B$9:$FZ$9,ROW(A141)))","v":""},{"$f":"IF(OR(IF(ISBLANK(A142),TRUE,FALSE),ISBLANK(Planning!$B$11)),\"\",Planning!$B$11)","v":""},null,{"$f":"IF(ISBLANK(INDEX(Planning!$B$16:$FZ$16,ROW(A140))),\"\",INDEX(Planning!$B$16:$FZ$16,ROW(A140)))","v":""},{"$f":"IF(ISBLANK(INDEX(Planning!$B$17:$FZ$17,ROW(A140))),\"\",INDEX(Planning!$B$17:$FZ$17,ROW(A140)))","v":""},{"$f":"IF(ISBLANK(INDEX(Reporting!$B$9:$FZ$9,ROW(A140))),\"\",INDEX(Reporting!$B$9:$FZ$9,ROW(A140)))","v":""},{"$f":"IF(ISBLANK(INDEX(Reporting!$B$11:$FZ$11,ROW(A140))),\"\",INDEX(Reporting!$B$11:$FZ$11,ROW(A140)))","v":""},{"$f":"IF(ISBLANK(INDEX(Reporting!$B$18:$FZ$18,ROW(A140))),\"\",IF(INDEX(Reporting!$B$18:$FZ$18,ROW(A140))=\"No Failures Observed\",NA(),INDEX(Reporting!$B$18:$FZ$18,ROW(A140))))","v":""},{"$f":"IF(ISBLANK(INDEX('Optional Reporting'!$B$11:$FZ$11,ROW(A140))),NA(),INDEX('Optional Reporting'!$B$11:$FZ$11,ROW(A140)))","v":{"$error":"#N/A"}},{"$f":"IF((INDEX('Optional Reporting'!$B$17:$FZ$17,ROW(A140)))=\"\",NA(),INDEX('Optional Reporting'!$B$17:$FZ$17,ROW(A140)))","v":{"$error":"#N/A"}},{"$f":"IF(ISBLANK(INDEX(Reporting!$B$12:$FZ$12,ROW(A139))),\"\",INDEX(Reporting!$B$12:$FZ$12,ROW(A139)))","v":""}]
[null,null,{"$f":"IF(ISBLANK(INDEX(Planning!$B$16:$FZ$16,ROW(A142))),\"\",INDEX(Planning!$B$16:$FZ$16,ROW(A142)))","v":""},{"$f":"IF(ISBLANK(INDEX(Reporting!$B$9:$FZ$9,ROW(A142))),\"\",INDEX(Reporting!$B$9:$FZ$9,ROW(A142)))","v":""},{"$f":"IF(OR(IF(ISBLANK(A143),TRUE,FALSE),ISBLANK(Planning!$B$11)),\"\",Planning!$B$11)","v":""},null,{"$f":"IF(ISBLANK(INDEX(Planning!$B$16:$FZ$16,ROW(A141))),\"\",INDEX(Planning!$B$16:$FZ$16,ROW(A141)))","v":""},{"$f":"IF(ISBLANK(INDEX(Planning!$B$17:$FZ$17,ROW(A141))),\"\",INDEX(Planning!$B$17:$FZ$17,ROW(A141)))","v":""},{"$f":"IF(ISBLANK(INDEX(Reporting!$B$9:$FZ$9,ROW(A141))),\"\",INDEX(Reporting!$B$9:$FZ$9,ROW(A141)))","v":""},{"$f":"IF(ISBLANK(INDEX(Reporting!$B$11:$FZ$11,ROW(A141))),\"\",INDEX(Reporting!$B$11:$FZ$11,ROW(A141)))","v":""},{"$f":"IF(ISBLANK(INDEX(Reporting!$B$18:$FZ$18,ROW(A141))),\"\",IF(INDEX(Reporting!$B$18:$FZ$18,ROW(A141))=\"No Failures Observed\",NA(),INDEX(Reporting!$B$18:$FZ$18,ROW(A141))))","v":""},{"$f":"IF(ISBLANK(INDEX('Optional Reporting'!$B$11:$FZ$11,ROW(A141))),NA(),INDEX('Optional Reporting'!$B$11:$FZ$11,ROW(A141)))","v":{"$error":"#N/A"}},{"$f":"IF((INDEX('Optional Reporting'!$B$17:$FZ$17,ROW(A141)))=\"\",NA(),INDEX('Optional Reporting'!$B$17:$FZ$17,ROW(A141)))","v":{"$error":"#N/A"}},{"$f":"IF(ISBLANK(INDEX(Reporting!$B$12:$FZ$12,ROW(A140))),\"\",INDEX(Reporting!$B$12:$FZ$12,ROW(A140)))","v":""}]
[null,null,{"$f":"IF(ISBLANK(INDEX(Planning!$B$16:$FZ$16,ROW(A143))),\"\",INDEX(Planning!$B$16:$FZ$16,ROW(A143)))","v":""},{"$f":"IF(ISBLANK(INDEX(Reporting!$B$9:$FZ$9,ROW(A143))),\"\",INDEX(Reporting!$B$9:$FZ$9,ROW(A143)))","v":""},{"$f":"IF(OR(IF(ISBLANK(A144),TRUE,FALSE),ISBLANK(Planning!$B$11)),\"\",Planning!$B$11)","v":""},null,{"$f":"IF(ISBLANK(INDEX(Planning!$B$16:$FZ$16,ROW(A142))),\"\",INDEX(Planning!$B$16:$FZ$16,ROW(A142)))","v":""},{"$f":"IF(ISBLANK(INDEX(Planning!$B$17:$FZ$17,ROW(A142))),\"\",INDEX(Planning!$B$17:$FZ$17,ROW(A142)))","v":""},{"$f":"IF(ISBLANK(INDEX(Reporting!$B$9:$FZ$9,ROW(A142))),\"\",INDEX(Reporting!$B$9:$FZ$9,ROW(A142)))","v":""},{"$f":"IF(ISBLANK(INDEX(Reporting!$B$11:$FZ$11,ROW(A142))),\"\",INDEX(Reporting!$B$11:$FZ$11,ROW(A142)))","v":""},{"$f":"IF(ISBLANK(INDEX(Reporting!$B$18:$FZ$18,ROW(A142))),\"\",IF(INDEX(Reporting!$B$18:$FZ$18,ROW(A142))=\"No Failures Observed\",NA(),INDEX(Reporting!$B$18:$FZ$18,ROW(A142))))","v":""},{"$f":"IF(ISBLANK(INDEX('Optional Reporting'!$B$11:$FZ$11,ROW(A142))),NA(),INDEX('Optional Reporting'!$B$11:$FZ$11,ROW(A142)))","v":{"$error":"#N/A"}},{"$f":"IF((INDEX('Optional Reporting'!$B$17:$FZ$17,ROW(A142)))=\"\",NA(),INDEX('Optional Reporting'!$B$17:$FZ$17,ROW(A142)))","v":{"$error":"#N/A"}},{"$f":"IF(ISBLANK(INDEX(Reporting!$B$12:$FZ$12,ROW(A141))),\"\",INDEX(Reporting!$B$12:$FZ$12,ROW(A141)))","v":""}]
[null,null,{"$f":"IF(ISBLANK(INDEX(Planning!$B$16:$FZ$16,ROW(A144))),\"\",INDEX(Planning!$B$16:$FZ$16,ROW(A144)))","v":""},{"$f":"IF(ISBLANK(INDEX(Reporting!$B$9:$FZ$9,ROW(A144))),\"\",INDEX(Reporting!$B$9:$FZ$9,ROW(A144)))","v":""},{"$f":"IF(OR(IF(ISBLANK(A145),TRUE,FALSE),ISBLANK(Planning!$B$11)),\"\",Planning!$B$11)","v":""},null,{"$f":"IF(ISBLANK(INDEX(Planning!$B$16:$FZ$16,ROW(A143))),\"\",INDEX(Planning!$B$16:$FZ$16,ROW(A143)))","v":""},{"$f":"IF(ISBLANK(INDEX(Planning!$B$17:$FZ$17,ROW(A143))),\"\",INDEX(Planning!$B$17:$FZ$17,ROW(A143)))","v":""},{"$f":"IF(ISBLANK(INDEX(Reporting!$B$9:$FZ$9,ROW(A143))),\"\",INDEX(Reporting!$B$9:$FZ$9,ROW(A143)))","v":""},{"$f":"IF(ISBLANK(INDEX(Reporting!$B$11:$FZ$11,ROW(A143))),\"\",INDEX(Reporting!$B$11:$FZ$11,ROW(A143)))","v":""},{"$f":"IF(ISBLANK(INDEX(Reporting!$B$18:$FZ$18,ROW(A143))),\"\",IF(INDEX(Reporting!$B$18:$FZ$18,ROW(A143))=\"No Failures Observed\",NA(),INDEX(Reporting!$B$18:$FZ$18,ROW(A143))))","v":""},{"$f":"IF(ISBLANK(INDEX('Optional Reporting'!$B$11:$FZ$11,ROW(A143))),NA(),INDEX('Optional Reporting'!$B$11:$FZ$11,ROW(A143)))","v":{"$error":"#N/A"}},{"$f":"IF((INDEX('Optional Reporting'!$B$17:$FZ$17,ROW(A143)))=\"\",NA(),INDEX('Optional Reporting'!$B$17:$FZ$17,ROW(A143)))","v":{"$error":"#N/A"}},{"$f":"IF(ISBLANK(INDEX(Reporting!$B$12:$FZ$12,ROW(A142))),\"\",INDEX(Reporting!$B$12:$FZ$12,ROW(A142)))","v":""}]
[null,null,{"$f":"IF(ISBLANK(INDEX(Planning!$B$16:$FZ$16,ROW(A145))),\"\",INDEX(Planning!$B$16:$FZ$16,ROW(A145)))","v":""},{"$f":"IF(ISBLANK(INDEX(Reporting!$B$9:$FZ$9,ROW(A145))),\"\",INDEX(Reporting!$B$9:$FZ$9,ROW(A145)))","v":""},{"$f":"IF(OR(IF(ISBLANK(A146),TRUE,FALSE),ISBLANK(Planning!$B$11)),\"\",Planning!$B$11)","v":""},null,{"$f":"IF(ISBLANK(INDEX(Planning!$B$16:$FZ$16,ROW(A144))),\"\",INDEX(Planning!$B$16:$FZ$16,ROW(A144)))","v":""},{"$f":"IF(ISBLANK(INDEX(Planning!$B$17:$FZ$17,ROW(A144))),\"\",INDEX(Planning!$B$17:$FZ$17,ROW(A144)))","v":""},{"$f":"IF(ISBLANK(INDEX(Reporting!$B$9:$FZ$9,ROW(A144))),\"\",INDEX(Reporting!$B$9:$FZ$9,ROW(A144)))","v":""},{"$f":"IF(ISBLANK(INDEX(Reporting!$B$11:$FZ$11,ROW(A144))),\"\",INDEX(Reporting!$B$11:$FZ$11,ROW(A144)))","v":""},{"$f":"IF(ISBLANK(INDEX(Reporting!$B$18:$FZ$18,ROW(A144))),\"\",IF(INDEX(Reporting!$B$18:$FZ$18,ROW(A144))=\"No Failures Observed\",NA(),INDEX(Reporting!$B$18:$FZ$18,ROW(A144))))","v":""},{"$f":"IF(ISBLANK(INDEX('Optional Reporting'!$B$11:$FZ$11,ROW(A144))),NA(),INDEX('Optional Reporting'!$B$11:$FZ$11,ROW(A144)))","v":{"$error":"#N/A"}},{"$f":"IF((INDEX('Optional Reporting'!$B$17:$FZ$17,ROW(A144)))=\"\",NA(),INDEX('Optional Reporting'!$B$17:$FZ$17,ROW(A144)))","v":{"$error":"#N/A"}},{"$f":"IF(ISBLANK(INDEX(Reporting!$B$12:$FZ$12,ROW(A143))),\"\",INDEX(Reporting!$B$12:$FZ$12,ROW(A143)))","v":""}]
[null,null,{"$f":"IF(ISBLANK(INDEX(Planning!$B$16:$FZ$16,ROW(A146))),\"\",INDEX(Planning!$B$16:$FZ$16,ROW(A146)))","v":""},{"$f":"IF(ISBLANK(INDEX(Reporting!$B$9:$FZ$9,ROW(A146))),\"\",INDEX(Reporting!$B$9:$FZ$9,ROW(A146)))","v":""},{"$f":"IF(OR(IF(ISBLANK(A147),TRUE,FALSE),ISBLANK(Planning!$B$11)),\"\",Planning!$B$11)","v":""},null,{"$f":"IF(ISBLANK(INDEX(Planning!$B$16:$FZ$16,ROW(A145))),\"\",INDEX(Planning!$B$16:$FZ$16,ROW(A145)))","v":""},{"$f":"IF(ISBLANK(INDEX(Planning!$B$17:$FZ$17,ROW(A145))),\"\",INDEX(Planning!$B$17:$FZ$17,ROW(A145)))","v":""},{"$f":"IF(ISBLANK(INDEX(Reporting!$B$9:$FZ$9,ROW(A145))),\"\",INDEX(Reporting!$B$9:$FZ$9,ROW(A145)))","v":""},{"$f":"IF(ISBLANK(INDEX(Reporting!$B$11:$FZ$11,ROW(A145))),\"\",INDEX(Reporting!$B$11:$FZ$11,ROW(A145)))","v":""},{"$f":"IF(ISBLANK(INDEX(Reporting!$B$18:$FZ$18,ROW(A145))),\"\",IF(INDEX(Reporting!$B$18:$FZ$18,ROW(A145))=\"No Failures Observed\",NA(),INDEX(Reporting!$B$18:$FZ$18,ROW(A145))))","v":""},{"$f":"IF(ISBLANK(INDEX('Optional Reporting'!$B$11:$FZ$11,ROW(A145))),NA(),INDEX('Optional Reporting'!$B$11:$FZ$11,ROW(A145)))","v":{"$error":"#N/A"}},{"$f":"IF((INDEX('Optional Reporting'!$B$17:$FZ$17,ROW(A145)))=\"\",NA(),INDEX('Optional Reporting'!$B$17:$FZ$17,ROW(A145)))","v":{"$error":"#N/A"}},{"$f":"IF(ISBLANK(INDEX(Reporting!$B$12:$FZ$12,ROW(A144))),\"\",INDEX(Reporting!$B$12:$FZ$12,ROW(A144)))","v":""}]
[null,null,{"$f":"IF(ISBLANK(INDEX(Planning!$B$16:$FZ$16,ROW(A147))),\"\",INDEX(Planning!$B$16:$FZ$16,ROW(A147)))","v":""},{"$f":"IF(ISBLANK(INDEX(Reporting!$B$9:$FZ$9,ROW(A147))),\"\",INDEX(Reporting!$B$9:$FZ$9,ROW(A147)))","v":""},{"$f":"IF(OR(IF(ISBLANK(A148),TRUE,FALSE),ISBLANK(Planning!$B$11)),\"\",Planning!$B$11)","v":""},null,{"$f":"IF(ISBLANK(INDEX(Planning!$B$16:$FZ$16,ROW(A146))),\"\",INDEX(Planning!$B$16:$FZ$16,ROW(A146)))","v":""},{"$f":"IF(ISBLANK(INDEX(Planning!$B$17:$FZ$17,ROW(A146))),\"\",INDEX(Planning!$B$17:$FZ$17,ROW(A146)))","v":""},{"$f":"IF(ISBLANK(INDEX(Reporting!$B$9:$FZ$9,ROW(A146))),\"\",INDEX(Reporting!$B$9:$FZ$9,ROW(A146)))","v":""},{"$f":"IF(ISBLANK(INDEX(Reporting!$B$11:$FZ$11,ROW(A146))),\"\",INDEX(Reporting!$B$11:$FZ$11,ROW(A146)))","v":""},{"$f":"IF(ISBLANK(INDEX(Reporting!$B$18:$FZ$18,ROW(A146))),\"\",IF(INDEX(Reporting!$B$18:$FZ$18,ROW(A146))=\"No Failures Observed\",NA(),INDEX(Reporting!$B$18:$FZ$18,ROW(A146))))","v":""},{"$f":"IF(ISBLANK(INDEX('Optional Reporting'!$B$11:$FZ$11,ROW(A146))),NA(),INDEX('Optional Reporting'!$B$11:$FZ$11,ROW(A146)))","v":{"$error":"#N/A"}},{"$f":"IF((INDEX('Optional Reporting'!$B$17:$FZ$17,ROW(A146)))=\"\",NA(),INDEX('Optional Reporting'!$B$17:$FZ$17,ROW(A146)))","v":{"$error":"#N/A"}},{"$f":"IF(ISBLANK(INDEX(Reporting!$B$12:$FZ$12,ROW(A145))),\"\",INDEX(Reporting!$B$12:$FZ$12,ROW(A145)))","v":""}]
[null,null,{"$f":"IF(ISBLANK(INDEX(Planning!$B$16:$FZ$16,ROW(A148))),\"\",INDEX(Planning!$B$16:$FZ$16,ROW(A148)))","v":""},{"$f":"IF(ISBLANK(INDEX(Reporting!$B$9:$FZ$9,ROW(A148))),\"\",INDEX(Reporting!$B$9:$FZ$9,ROW(A148)))","v":""},{"$f":"IF(OR(IF(ISBLANK(A149),TRUE,FALSE),ISBLANK(Planning!$B$11)),\"\",Planning!$B$11)","v":""},null,{"$f":"IF(ISBLANK(INDEX(Planning!$B$16:$FZ$16,ROW(A147))),\"\",INDEX(Planning!$B$16:$FZ$16,ROW(A147)))","v":""},{"$f":"IF(ISBLANK(INDEX(Planning!$B$17:$FZ$17,ROW(A147))),\"\",INDEX(Planning!$B$17:$FZ$17,ROW(A147)))","v":""},{"$f":"IF(ISBLANK(INDEX(Reporting!$B$9:$FZ$9,ROW(A147))),\"\",INDEX(Reporting!$B$9:$FZ$9,ROW(A147)))","v":""},{"$f":"IF(ISBLANK(INDEX(Reporting!$B$11:$FZ$11,ROW(A147))),\"\",INDEX(Reporting!$B$11:$FZ$11,ROW(A147)))","v":""},{"$f":"IF(ISBLANK(INDEX(Reporting!$B$18:$FZ$18,ROW(A147))),\"\",IF(INDEX(Reporting!$B$18:$FZ$18,ROW(A147))=\"No Failures Observed\",NA(),INDEX(Reporting!$B$18:$FZ$18,ROW(A147))))","v":""},{"$f":"IF(ISBLANK(INDEX('Optional Reporting'!$B$11:$FZ$11,ROW(A147))),NA(),INDEX('Optional Reporting'!$B$11:$FZ$11,ROW(A147)))","v":{"$error":"#N/A"}},{"$f":"IF((INDEX('Optional Reporting'!$B$17:$FZ$17,ROW(A147)))=\"\",NA(),INDEX('Optional Reporting'!$B$17:$FZ$17,ROW(A147)))","v":{"$error":"#N/A"}},{"$f":"IF(ISBLANK(INDEX(Reporting!$B$12:$FZ$12,ROW(A146))),\"\",INDEX(Reporting!$B$12:$FZ$12,ROW(A146)))","v":""}]
[null,null,{"$f":"IF(ISBLANK(INDEX(Planning!$B$16:$FZ$16,ROW(A149))),\"\",INDEX(Planning!$B$16:$FZ$16,ROW(A149)))","v":""},{"$f":"IF(ISBLANK(INDEX(Reporting!$B$9:$FZ$9,ROW(A149))),\"\",INDEX(Reporting!$B$9:$FZ$9,ROW(A149)))","v":""},{"$f":"IF(OR(IF(ISBLANK(A150),TRUE,FALSE),ISBLANK(Planning!$B$11)),\"\",Planning!$B$11)","v":""},null,{"$f":"IF(ISBLANK(INDEX(Planning!$B$16:$FZ$16,ROW(A148))),\"\",INDEX(Planning!$B$16:$FZ$16,ROW(A148)))","v":""},{"$f":"IF(ISBLANK(INDEX(Planning!$B$17:$FZ$17,ROW(A148))),\"\",INDEX(Planning!$B$17:$FZ$17,ROW(A148)))","v":""},{"$f":"IF(ISBLANK(INDEX(Reporting!$B$9:$FZ$9,ROW(A148))),\"\",INDEX(Reporting!$B$9:$FZ$9,ROW(A148)))","v":""},{"$f":"IF(ISBLANK(INDEX(Reporting!$B$11:$FZ$11,ROW(A148))),\"\",INDEX(Reporting!$B$11:$FZ$11,ROW(A148)))","v":""},{"$f":"IF(ISBLANK(INDEX(Reporting!$B$18:$FZ$18,ROW(A148))),\"\",IF(INDEX(Reporting!$B$18:$FZ$18,ROW(A148))=\"No Failures Observed\",NA(),INDEX(Reporting!$B$18:$FZ$18,ROW(A148))))","v":""},{"$f":"IF(ISBLANK(INDEX('Optional Reporting'!$B$11:$FZ$11,ROW(A148))),NA(),INDEX('Optional Reporting'!$B$11:$FZ$11,ROW(A148)))","v":{"$error":"#N/A"}},{"$f":"IF((INDEX('Optional Reporting'!$B$17:$FZ$17,ROW(A148)))=\"\",NA(),INDEX('Optional Reporting'!$B$17:$FZ$17,ROW(A148)))","v":{"$error":"#N/A"}},{"$f":"IF(ISBLANK(INDEX(Reporting!$B$12:$FZ$12,ROW(A147))),\"\",INDEX(Reporting!$B$12:$FZ$12,ROW(A147)))","v":""}]
[null,null,{"$f":"IF(ISBLANK(INDEX(Planning!$B$16:$FZ$16,ROW(A150))),\"\",INDEX(Planning!$B$16:$FZ$16,ROW(A150)))","v":""},{"$f":"IF(ISBLANK(INDEX(Reporting!$B$9:$FZ$9,ROW(A150))),\"\",INDEX(Reporting!$B$9:$FZ$9,ROW(A150)))","v":""},{"$f":"IF(OR(IF(ISBLANK(A151),TRUE,FALSE),ISBLANK(Planning!$B$11)),\"\",Planning!$B$11)","v":""},null,{"$f":"IF(ISBLANK(INDEX(Planning!$B$16:$FZ$16,ROW(A149))),\"\",INDEX(Planning!$B$16:$FZ$16,ROW(A149)))","v":""},{"$f":"IF(ISBLANK(INDEX(Planning!$B$17:$FZ$17,ROW(A149))),\"\",INDEX(Planning!$B$17:$FZ$17,ROW(A149)))","v":""},{"$f":"IF(ISBLANK(INDEX(Reporting!$B$9:$FZ$9,ROW(A149))),\"\",INDEX(Reporting!$B$9:$FZ$9,ROW(A149)))","v":""},{"$f":"IF(ISBLANK(INDEX(Reporting!$B$11:$FZ$11,ROW(A149))),\"\",INDEX(Reporting!$B$11:$FZ$11,ROW(A149)))","v":""},{"$f":"IF(ISBLANK(INDEX(Reporting!$B$18:$FZ$18,ROW(A149))),\"\",IF(INDEX(Reporting!$B$18:$FZ$18,ROW(A149))=\"No Failures Observed\",NA(),INDEX(Reporting!$B$18:$FZ$18,ROW(A149))))","v":""},{"$f":"IF(ISBLANK(INDEX('Optional Reporting'!$B$11:$FZ$11,ROW(A149))),NA(),INDEX('Optional Reporting'!$B$11:$FZ$11,ROW(A149)))","v":{"$error":"#N/A"}},{"$f":"IF((INDEX('Optional Reporting'!$B$17:$FZ$17,ROW(A149)))=\"\",NA(),INDEX('Optional Reporting'!$B$17:$FZ$17,ROW(A149)))","v":{"$error":"#N/A"}},{"$f":"IF(ISBLANK(INDEX(Reporting!$B$12:$FZ$12,ROW(A148))),\"\",INDEX(Reporting!$B$12:$FZ$12,ROW(A148)))","v":""}]
[null,null,{"$f":"IF(ISBLANK(INDEX(Planning!$B$16:$FZ$16,ROW(A151))),\"\",INDEX(Planning!$B$16:$FZ$16,ROW(A151)))","v":""},{"$f":"IF(ISBLANK(INDEX(Reporting!$B$9:$FZ$9,ROW(A151))),\"\",INDEX(Reporting!$B$9:$FZ$9,ROW(A151)))","v":""},{"$f":"IF(OR(IF(ISBLANK(A152),TRUE,FALSE),ISBLANK(Planning!$B$11)),\"\",Planning!$B$11)","v":""},null,{"$f":"IF(ISBLANK(INDEX(Planning!$B$16:$FZ$16,ROW(A150))),\"\",INDEX(Planning!$B$16:$FZ$16,ROW(A150)))","v":""},{"$f":"IF(ISBLANK(INDEX(Planning!$B$17:$FZ$17,ROW(A150))),\"\",INDEX(Planning!$B$17:$FZ$17,ROW(A150)))","v":""},{"$f":"IF(ISBLANK(INDEX(Reporting!$B$9:$FZ$9,ROW(A150))),\"\",INDEX(Reporting!$B$9:$FZ$9,ROW(A150)))","v":""},{"$f":"IF(ISBLANK(INDEX(Reporting!$B$11:$FZ$11,ROW(A150))),\"\",INDEX(Reporting!$B$11:$FZ$11,ROW(A150)))","v":""},{"$f":"IF(ISBLANK(INDEX(Reporting!$B$18:$FZ$18,ROW(A150))),\"\",IF(INDEX(Reporting!$B$18:$FZ$18,ROW(A150))=\"No Failures Observed\",NA(),INDEX(Reporting!$B$18:$FZ$18,ROW(A150))))","v":""},{"$f":"IF(ISBLANK(INDEX('Optional Reporting'!$B$11:$FZ$11,ROW(A150))),NA(),INDEX('Optional Reporting'!$B$11:$FZ$11,ROW(A150)))","v":{"$error":"#N/A"}},{"$f":"IF((INDEX('Optional Reporting'!$B$17:$FZ$17,ROW(A150)))=\"\",NA(),INDEX('Optional Reporting'!$B$17:$FZ$17,ROW(A150)))","v":{"$error":"#N/A"}},{"$f":"IF(ISBLANK(INDEX(Reporting!$B$12:$FZ$12,ROW(A149))),\"\",INDEX(Reporting!$B$12:$FZ$12,ROW(A149)))","v":""}]
[null,null,{"$f":"IF(ISBLANK(INDEX(Planning!$B$16:$FZ$16,ROW(A152))),\"\",INDEX(Planning!$B$16:$FZ$16,ROW(A152)))","v":""},{"$f":"IF(ISBLANK(INDEX(Reporting!$B$9:$FZ$9,ROW(A152))),\"\",INDEX(Reporting!$B$9:$FZ$9,ROW(A152)))","v":""},{"$f":"IF(OR(IF(ISBLANK(A153),TRUE,FALSE),ISBLANK(Planning!$B$11)),\"\",Planning!$B$11)","v":""},null,{"$f":"IF(ISBLANK(INDEX(Planning!$B$16:$FZ$16,ROW(A151))),\"\",INDEX(Planning!$B$16:$FZ$16,ROW(A151)))","v":""},{"$f":"IF(ISBLANK(INDEX(Planning!$B$17:$FZ$17,ROW(A151))),\"\",INDEX(Planning!$B$17:$FZ$17,ROW(A151)))","v":""},{"$f":"IF(ISBLANK(INDEX(Reporting!$B$9:$FZ$9,ROW(A151))),\"\",INDEX(Reporting!$B$9:$FZ$9,ROW(A151)))","v":""},{"$f":"IF(ISBLANK(INDEX(Reporting!$B$11:$FZ$11,ROW(A151))),\"\",INDEX(Reporting!$B$11:$FZ$11,ROW(A151)))","v":""},{"$f":"IF(ISBLANK(INDEX(Reporting!$B$18:$FZ$18,ROW(A151))),\"\",IF(INDEX(Reporting!$B$18:$FZ$18,ROW(A151))=\"No Failures Observed\",NA(),INDEX(Reporting!$B$18:$FZ$18,ROW(A151))))","v":""},{"$f":"IF(ISBLANK(INDEX('Optional Reporting'!$B$11:$FZ$11,ROW(A151))),NA(),INDEX('Optional Reporting'!$B$11:$FZ$11,ROW(A151)))","v":{"$error":"#N/A"}},{"$f":"IF((INDEX('Optional Reporting'!$B$17:$FZ$17,ROW(A151)))=\"\",NA(),INDEX('Optional Reporting'!$B$17:$FZ$17,ROW(A151)))","v":{"$error":"#N/A"}},{"$f":"IF(ISBLANK(INDEX(Reporting!$B$12:$FZ$12,ROW(A150))),\"\",INDEX(Reporting!$B$12:$FZ$12,ROW(A150)))","v":""}]
[null,null,{"$f":"IF(ISBLANK(INDEX(Planning!$B$16:$FZ$16,ROW(A153))),\"\",INDEX(Planning!$B$16:$FZ$16,ROW(A153)))","v":""},{"$f":"IF(ISBLANK(INDEX(Reporting!$B$9:$FZ$9,ROW(A153))),\"\",INDEX(Reporting!$B$9:$FZ$9,ROW(A153)))","v":""},{"$f":"IF(OR(IF(ISBLANK(A154),TRUE,FALSE),ISBLANK(Planning!$B$11)),\"\",Planning!$B$11)","v":""},null,{"$f":"IF(ISBLANK(INDEX(Planning!$B$16:$FZ$16,ROW(A152))),\"\",INDEX(Planning!$B$16:$FZ$16,ROW(A152)))","v":""},{"$f":"IF(ISBLANK(INDEX(Planning!$B$17:$FZ$17,ROW(A152))),\"\",INDEX(Planning!$B$17:$FZ$17,ROW(A152)))","v":""},{"$f":"IF(ISBLANK(INDEX(Reporting!$B$9:$FZ$9,ROW(A152))),\"\",INDEX(Reporting!$B$9:$FZ$9,ROW(A152)))","v":""},{"$f":"IF(ISBLANK(INDEX(Reporting!$B$11:$FZ$11,ROW(A152))),\"\",INDEX(Reporting!$B$11:$FZ$11,ROW(A152)))","v":""},{"$f":"IF(ISBLANK(INDEX(Reporting!$B$18:$FZ$18,ROW(A152))),\"\",IF(INDEX(Reporting!$B$18:$FZ$18,ROW(A152))=\"No Failures Observed\",NA(),INDEX(Reporting!$B$18:$FZ$18,ROW(A152))))","v":""},{"$f":"IF(ISBLANK(INDEX('Optional Reporting'!$B$11:$FZ$11,ROW(A152))),NA(),INDEX('Optional Reporting'!$B$11:$FZ$11,ROW(A152)))","v":{"$error":"#N/A"}},{"$f":"IF((INDEX('Optional Reporting'!$B$17:$FZ$17,ROW(A152)))=\"\",NA(),INDEX('Optional Reporting'!$B$17:$FZ$17,ROW(A152)))","v":{"$error":"#N/A"}},{"$f":"IF(ISBLANK(INDEX(Reporting!$B$12:$FZ$12,ROW(A151))),\"\",INDEX(Reporting!$B$12:$FZ$12,ROW(A151)))","v":""}]
[null,null,{"$f":"IF(ISBLANK(INDEX(Planning!$B$16:$FZ$16,ROW(A154))),\"\",INDEX(Planning!$B$16:$FZ$16,ROW(A154)))","v":""},{"$f":"IF(ISBLANK(INDEX(Reporting!$B$9:$FZ$9,ROW(A154))),\"\",INDEX(Reporting!$B$9:$FZ$9,ROW(A154)))","v":""},{"$f":"IF(OR(IF(ISBLANK(A155),TRUE,FALSE),ISBLANK(Planning!$B$11)),\"\",Planning!$B$11)","v":""},null,{"$f":"IF(ISBLANK(INDEX(Planning!$B$16:$FZ$16,ROW(A153))),\"\",INDEX(Planning!$B$16:$FZ$16,ROW(A153)))","v":""},{"$f":"IF(ISBLANK(INDEX(Planning!$B$17:$FZ$17,ROW(A153))),\"\",INDEX(Planning!$B$17:$FZ$17,ROW(A153)))","v":""},{"$f":"IF(ISBLANK(INDEX(Reporting!$B$9:$FZ$9,ROW(A153))),\"\",INDEX(Reporting!$B$9:$FZ$9,ROW(A153)))","v":""},{"$f":"IF(ISBLANK(INDEX(Reporting!$B$11:$FZ$11,ROW(A153))),\"\",INDEX(Reporting!$B$11:$FZ$11,ROW(A153)))","v":""},{"$f":"IF(ISBLANK(INDEX(Reporting!$B$18:$FZ$18,ROW(A153))),\"\",IF(INDEX(Reporting!$B$18:$FZ$18,ROW(A153))=\"No Failures Observed\",NA(),INDEX(Reporting!$B$18:$FZ$18,ROW(A153))))","v":""},{"$f":"IF(ISBLANK(INDEX('Optional Reporting'!$B$11:$FZ$11,ROW(A153))),NA(),INDEX('Optional Reporting'!$B$11:$FZ$11,ROW(A153)))","v":{"$error":"#N/A"}},{"$f":"IF((INDEX('Optional Reporting'!$B$17:$FZ$17,ROW(A153)))=\"\",NA(),INDEX('Optional Reporting'!$B$17:$FZ$17,ROW(A153)))","v":{"$error":"#N/A"}},{"$f":"IF(ISBLANK(INDEX(Reporting!$B$12:$FZ$12,ROW(A152))),\"\",INDEX(Reporting!$B$12:$FZ$12,ROW(A152)))","v":""}]
[null,null,{"$f":"IF(ISBLANK(INDEX(Planning!$B$16:$FZ$16,ROW(A155))),\"\",INDEX(Planning!$B$16:$FZ$16,ROW(A155)))","v":""},{"$f":"IF(ISBLANK(INDEX(Reporting!$B$9:$FZ$9,ROW(A155))),\"\",INDEX(Reporting!$B$9:$FZ$9,ROW(A155)))","v":""},{"$f":"IF(OR(IF(ISBLANK(A156),TRUE,FALSE),ISBLANK(Planning!$B$11)),\"\",Planning!$B$11)","v":""},null,{"$f":"IF(ISBLANK(INDEX(Planning!$B$16:$FZ$16,ROW(A154))),\"\",INDEX(Planning!$B$16:$FZ$16,ROW(A154)))","v":""},{"$f":"IF(ISBLANK(INDEX(Planning!$B$17:$FZ$17,ROW(A154))),\"\",INDEX(Planning!$B$17:$FZ$17,ROW(A154)))","v":""},{"$f":"IF(ISBLANK(INDEX(Reporting!$B$9:$FZ$9,ROW(A154))),\"\",INDEX(Reporting!$B$9:$FZ$9,ROW(A154)))","v":""},{"$f":"IF(ISBLANK(INDEX(Reporting!$B$11:$FZ$11,ROW(A154))),\"\",INDEX(Reporting!$B$11:$FZ$11,ROW(A154)))","v":""},{"$f":"IF(ISBLANK(INDEX(Reporting!$B$18:$FZ$18,ROW(A154))),\"\",IF(INDEX(Reporting!$B$18:$FZ$18,ROW(A154))=\"No Failures Observed\",NA(),INDEX(Reporting!$B$18:$FZ$18,ROW(A154))))","v":""},{"$f":"IF(ISBLANK(INDEX('Optional Reporting'!$B$11:$FZ$11,ROW(A154))),NA(),INDEX('Optional Reporting'!$B$11:$FZ$11,ROW(A154)))","v":{"$error":"#N/A"}},{"$f":"IF((INDEX('Optional Reporting'!$B$17:$FZ$17,ROW(A154)))=\"\",NA(),INDEX('Optional Reporting'!$B$17:$FZ$17,ROW(A154)))","v":{"$error":"#N/A"}},{"$f":"IF(ISBLANK(INDEX(Reporting!$B$12:$FZ$12,ROW(A153))),\"\",INDEX(Reporting!$B$12:$FZ$12,ROW(A153)))","v":""}]
[null,null,{"$f":"IF(ISBLANK(INDEX(Planning!$B$16:$FZ$16,ROW(A156))),\"\",INDEX(Planning!$B$16:$FZ$16,ROW(A156)))","v":""},{"$f":"IF(ISBLANK(INDEX(Reporting!$B$9:$FZ$9,ROW(A156))),\"\",INDEX(Reporting!$B$9:$FZ$9,ROW(A156)))","v":""},{"$f":"IF(OR(IF(ISBLANK(A157),TRUE,FALSE),ISBLANK(Planning!$B$11)),\"\",Planning!$B$11)","v":""},null,{"$f":"IF(ISBLANK(INDEX(Planning!$B$16:$FZ$16,ROW(A155))),\"\",INDEX(Planning!$B$16:$FZ$16,ROW(A155)))","v":""},{"$f":"IF(ISBLANK(INDEX(Planning!$B$17:$FZ$17,ROW(A155))),\"\",INDEX(Planning!$B$17:$FZ$17,ROW(A155)))","v":""},{"$f":"IF(ISBLANK(INDEX(Reporting!$B$9:$FZ$9,ROW(A155))),\"\",INDEX(Reporting!$B$9:$FZ$9,ROW(A155)))","v":""},{"$f":"IF(ISBLANK(INDEX(Reporting!$B$11:$FZ$11,ROW(A155))),\"\",INDEX(Reporting!$B$11:$FZ$11,ROW(A155)))","v":""},{"$f":"IF(ISBLANK(INDEX(Reporting!$B$18:$FZ$18,ROW(A155))),\"\",IF(INDEX(Reporting!$B$18:$FZ$18,ROW(A155))=\"No Failures Observed\",NA(),INDEX(Reporting!$B$18:$FZ$18,ROW(A155))))","v":""},{"$f":"IF(ISBLANK(INDEX('Optional Reporting'!$B$11:$FZ$11,ROW(A155))),NA(),INDEX('Optional Reporting'!$B$11:$FZ$11,ROW(A155)))","v":{"$error":"#N/A"}},{"$f":"IF((INDEX('Optional Reporting'!$B$17:$FZ$17,ROW(A155)))=\"\",NA(),INDEX('Optional Reporting'!$B$17:$FZ$17,ROW(A155)))","v":{"$error":"#N/A"}},{"$f":"IF(ISBLANK(INDEX(Reporting!$B$12:$FZ$12,ROW(A154))),\"\",INDEX(Reporting!$B$12:$FZ$12,ROW(A154)))","v":""}]
[null,null,{"$f":"IF(ISBLANK(INDEX(Planning!$B$16:$FZ$16,ROW(A157))),\"\",INDEX(Planning!$B$16:$FZ$16,ROW(A157)))","v":""},{"$f":"IF(ISBLANK(INDEX(Reporting!$B$9:$FZ$9,ROW(A157))),\"\",INDEX(Reporting!$B$9:$FZ$9,ROW(A157)))","v":""},{"$f":"IF(OR(IF(ISBLANK(A158),TRUE,FALSE),ISBLANK(Planning!$B$11)),\"\",Planning!$B$11)","v":""},null,{"$f":"IF(ISBLANK(INDEX(Planning!$B$16:$FZ$16,ROW(A156))),\"\",INDEX(Planning!$B$16:$FZ$16,ROW(A156)))","v":""},{"$f":"IF(ISBLANK(INDEX(Planning!$B$17:$FZ$17,ROW(A156))),\"\",INDEX(Planning!$B$17:$FZ$17,ROW(A156)))","v":""},{"$f":"IF(ISBLANK(INDEX(Reporting!$B$9:$FZ$9,ROW(A156))),\"\",INDEX(Reporting!$B$9:$FZ$9,ROW(A156)))","v":""},{"$f":"IF(ISBLANK(INDEX(Reporting!$B$11:$FZ$11,ROW(A156))),\"\",INDEX(Reporting!$B$11:$FZ$11,ROW(A156)))","v":""},{"$f":"IF(ISBLANK(INDEX(Reporting!$B$18:$FZ$18,ROW(A156))),\"\",IF(INDEX(Reporting!$B$18:$FZ$18,ROW(A156))=\"No Failures Observed\",NA(),INDEX(Reporting!$B$18:$FZ$18,ROW(A156))))","v":""},{"$f":"IF(ISBLANK(INDEX('Optional Reporting'!$B$11:$FZ$11,ROW(A156))),NA(),INDEX('Optional Reporting'!$B$11:$FZ$11,ROW(A156)))","v":{"$error":"#N/A"}},{"$f":"IF((INDEX('Optional Reporting'!$B$17:$FZ$17,ROW(A156)))=\"\",NA(),INDEX('Optional Reporting'!$B$17:$FZ$17,ROW(A156)))","v":{"$error":"#N/A"}},{"$f":"IF(ISBLANK(INDEX(Reporting!$B$12:$FZ$12,ROW(A155))),\"\",INDEX(Reporting!$B$12:$FZ$12,ROW(A155)))","v":""}]
[null,null,{"$f":"IF(ISBLANK(INDEX(Planning!$B$16:$FZ$16,ROW(A158))),\"\",INDEX(Planning!$B$16:$FZ$16,ROW(A158)))","v":""},{"$f":"IF(ISBLANK(INDEX(Reporting!$B$9:$FZ$9,ROW(A158))),\"\",INDEX(Reporting!$B$9:$FZ$9,ROW(A158)))","v":""},{"$f":"IF(OR(IF(ISBLANK(A159),TRUE,FALSE),ISBLANK(Planning!$B$11)),\"\",Planning!$B$11)","v":""},null,{"$f":"IF(ISBLANK(INDEX(Planning!$B$16:$FZ$16,ROW(A157))),\"\",INDEX(Planning!$B$16:$FZ$16,ROW(A157)))","v":""},{"$f":"IF(ISBLANK(INDEX(Planning!$B$17:$FZ$17,ROW(A157))),\"\",INDEX(Planning!$B$17:$FZ$17,ROW(A157)))","v":""},{"$f":"IF(ISBLANK(INDEX(Reporting!$B$9:$FZ$9,ROW(A157))),\"\",INDEX(Reporting!$B$9:$FZ$9,ROW(A157)))","v":""},{"$f":"IF(ISBLANK(INDEX(Reporting!$B$11:$FZ$11,ROW(A157))),\"\",INDEX(Reporting!$B$11:$FZ$11,ROW(A157)))","v":""},{"$f":"IF(ISBLANK(INDEX(Reporting!$B$18:$FZ$18,ROW(A157))),\"\",IF(INDEX(Reporting!$B$18:$FZ$18,ROW(A157))=\"No Failures Observed\",NA(),INDEX(Reporting!$B$18:$FZ$18,ROW(A157))))","v":""},{"$f":"IF(ISBLANK(INDEX('Optional Reporting'!$B$11:$FZ$11,ROW(A157))),NA(),INDEX('Optional Reporting'!$B$11:$FZ$11,ROW(A157)))","v":{"$error":"#N/A"}},{"$f":"IF((INDEX('Optional Reporting'!$B$17:$FZ$17,ROW(A157)))=\"\",NA(),INDEX('Optional Reporting'!$B$17:$FZ$17,ROW(A157)))","v":{"$error":"#N/A"}},{"$f":"IF(ISBLANK(INDEX(Reporting!$B$12:$FZ$12,ROW(A156))),\"\",INDEX(Reporting!$B$12:$FZ$12,ROW(A156)))","v":""}]
[null,null,{"$f":"IF(ISBLANK(INDEX(Planning!$B$16:$FZ$16,ROW(A159))),\"\",INDEX(Planning!$B$16:$FZ$16,ROW(A159)))","v":""},{"$f":"IF(ISBLANK(INDEX(Reporting!$B$9:$FZ$9,ROW(A159))),\"\",INDEX(Reporting!$B$9:$FZ$9,ROW(A159)))","v":""},{"$f":"IF(OR(IF(ISBLANK(A160),TRUE,FALSE),ISBLANK(Planning!$B$11)),\"\",Planning!$B$11)","v":""},null,{"$f":"IF(ISBLANK(INDEX(Planning!$B$16:$FZ$16,ROW(A158))),\"\",INDEX(Planning!$B$16:$FZ$16,ROW(A158)))","v":""},{"$f":"IF(ISBLANK(INDEX(Planning!$B$17:$FZ$17,ROW(A158))),\"\",INDEX(Planning!$B$17:$FZ$17,ROW(A158)))","v":""},{"$f":"IF(ISBLANK(INDEX(Reporting!$B$9:$FZ$9,ROW(A158))),\"\",INDEX(Reporting!$B$9:$FZ$9,ROW(A158)))","v":""},{"$f":"IF(ISBLANK(INDEX(Reporting!$B$11:$FZ$11,ROW(A158))),\"\",INDEX(Reporting!$B$11:$FZ$11,ROW(A158)))","v":""},{"$f":"IF(ISBLANK(INDEX(Reporting!$B$18:$FZ$18,ROW(A158))),\"\",IF(INDEX(Reporting!$B$18:$FZ$18,ROW(A158))=\"No Failures Observed\",NA(),INDEX(Reporting!$B$18:$FZ$18,ROW(A158))))","v":""},{"$f":"IF(ISBLANK(INDEX('Optional Reporting'!$B$11:$FZ$11,ROW(A158))),NA(),INDEX('Optional Reporting'!$B$11:$FZ$11,ROW(A158)))","v":{"$error":"#N/A"}},{"$f":"IF((INDEX('Optional Reporting'!$B$17:$FZ$17,ROW(A158)))=\"\",NA(),INDEX('Optional Reporting'!$B$17:$FZ$17,ROW(A158)))","v":{"$error":"#N/A"}},{"$f":"IF(ISBLANK(INDEX(Reporting!$B$12:$FZ$12,ROW(A157))),\"\",INDEX(Reporting!$B$12:$FZ$12,ROW(A157)))","v":""}]
[null,null,{"$f":"IF(ISBLANK(INDEX(Planning!$B$16:$FZ$16,ROW(A160))),\"\",INDEX(Planning!$B$16:$FZ$16,ROW(A160)))","v":""},{"$f":"IF(ISBLANK(INDEX(Reporting!$B$9:$FZ$9,ROW(A160))),\"\",INDEX(Reporting!$B$9:$FZ$9,ROW(A160)))","v":""},{"$f":"IF(OR(IF(ISBLANK(A161),TRUE,FALSE),ISBLANK(Planning!$B$11)),\"\",Planning!$B$11)","v":""},null,null,null,null,null,null,{"$f":"IF(ISBLANK(INDEX('Optional Reporting'!$B$11:$FZ$11,ROW(A159))),NA(),INDEX('Optional Reporting'!$B$11:$FZ$11,ROW(A159)))","v":{"$error":"#N/A"}},{"$f":"IF((INDEX('Optional Reporting'!$B$17:$FZ$17,ROW(A159)))=\"\",NA(),INDEX('Optional Reporting'!$B$17:$FZ$17,ROW(A159)))","v":{"$error":"#N/A"}},{"$f":"IF(ISBLANK(INDEX(Reporting!$B$12:$FZ$12,ROW(A158))),\"\",INDEX(Reporting!$B$12:$FZ$12,ROW(A158)))","v":""}]
[null,null,{"$f":"IF(ISBLANK(INDEX(Planning!$B$16:$FZ$16,ROW(A161))),\"\",INDEX(Planning!$B$16:$FZ$16,ROW(A161)))","v":""},{"$f":"IF(ISBLANK(INDEX(Reporting!$B$9:$FZ$9,ROW(A161))),\"\",INDEX(Reporting!$B$9:$FZ$9,ROW(A161)))","v":""},{"$f":"IF(OR(IF(ISBLANK(A162),TRUE,FALSE),ISBLANK(Planning!$B$11)),\"\",Planning!$B$11)","v":""},null,null,null,null,null,null,{"$f":"IF(ISBLANK(INDEX('Optional Reporting'!$B$11:$FZ$11,ROW(A160))),NA(),INDEX('Optional Reporting'!$B$11:$FZ$11,ROW(A160)))","v":{"$error":"#N/A"}},{"$f":"IF((INDEX('Optional Reporting'!$B$17:$FZ$17,ROW(A160)))=\"\",NA(),INDEX('Optional Reporting'!$B$17:$FZ$17,ROW(A160)))","v":{"$error":"#N/A"}},{"$f":"IF(ISBLANK(INDEX(Reporting!$B$12:$FZ$12,ROW(A159))),\"\",INDEX(Reporting!$B$12:$FZ$12,ROW(A159)))","v":""}]
[null,null,{"$f":"IF(ISBLANK(INDEX(Planning!$B$16:$FZ$16,ROW(A162))),\"\",INDEX(Planning!$B$16:$FZ$16,ROW(A162)))","v":""},{"$f":"IF(ISBLANK(INDEX(Reporting!$B$9:$FZ$9,ROW(A162))),\"\",INDEX(Reporting!$B$9:$FZ$9,ROW(A162)))","v":""},{"$f":"IF(OR(IF(ISBLANK(A163),TRUE,FALSE),ISBLANK(Planning!$B$11)),\"\",Planning!$B$11)","v":""},null,null,null,null,null,null,{"$f":"IF(ISBLANK(INDEX('Optional Reporting'!$B$11:$FZ$11,ROW(A161))),NA(),INDEX('Optional Reporting'!$B$11:$FZ$11,ROW(A161)))","v":{"$error":"#N/A"}},{"$f":"IF((INDEX('Optional Reporting'!$B$17:$FZ$17,ROW(A161)))=\"\",NA(),INDEX('Optional Reporting'!$B$17:$FZ$17,ROW(A161)))","v":{"$error":"#N/A"}},{"$f":"IF(ISBLANK(INDEX(Reporting!$B$12:$FZ$12,ROW(A160))),\"\",INDEX(Reporting!$B$12:$FZ$12,ROW(A160)))","v":""}]
[null,null,{"$f":"IF(ISBLANK(INDEX(Planning!$B$16:$FZ$16,ROW(A163))),\"\",INDEX(Planning!$B$16:$FZ$16,ROW(A163)))","v":""},{"$f":"IF(ISBLANK(INDEX(Reporting!$B$9:$FZ$9,ROW(A163))),\"\",INDEX(Reporting!$B$9:$FZ$9,ROW(A163)))","v":""},{"$f":"IF(OR(IF(ISBLANK(A164),TRUE,FALSE),ISBLANK(Planning!$B$11)),\"\",Planning!$B$11)","v":""},null,null,null,null,null,null,{"$f":"IF(ISBLANK(INDEX('Optional Reporting'!$B$11:$FZ$11,ROW(A162))),NA(),INDEX('Optional Reporting'!$B$11:$FZ$11,ROW(A162)))","v":{"$error":"#N/A"}},{"$f":"IF((INDEX('Optional Reporting'!$B$17:$FZ$17,ROW(A162)))=\"\",NA(),INDEX('Optional Reporting'!$B$17:$FZ$17,ROW(A162)))","v":{"$error":"#N/A"}},{"$f":"IF(ISBLANK(INDEX(Reporting!$B$12:$FZ$12,ROW(A161))),\"\",INDEX(Reporting!$B$12:$FZ$12,ROW(A161)))","v":""}]
[null,null,{"$f":"IF(ISBLANK(INDEX(Planning!$B$16:$FZ$16,ROW(A164))),\"\",INDEX(Planning!$B$16:$FZ$16,ROW(A164)))","v":""},{"$f":"IF(ISBLANK(INDEX(Reporting!$B$9:$FZ$9,ROW(A164))),\"\",INDEX(Reporting!$B$9:$FZ$9,ROW(A164)))","v":""},{"$f":"IF(OR(IF(ISBLANK(A165),TRUE,FALSE),ISBLANK(Planning!$B$11)),\"\",Planning!$B$11)","v":""},null,null,null,null,null,null,{"$f":"IF(ISBLANK(INDEX('Optional Reporting'!$B$11:$FZ$11,ROW(A163))),NA(),INDEX('Optional Reporting'!$B$11:$FZ$11,ROW(A163)))","v":{"$error":"#N/A"}},{"$f":"IF((INDEX('Optional Reporting'!$B$17:$FZ$17,ROW(A163)))=\"\",NA(),INDEX('Optional Reporting'!$B$17:$FZ$17,ROW(A163)))","v":{"$error":"#N/A"}},{"$f":"IF(ISBLANK(INDEX(Reporting!$B$12:$FZ$12,ROW(A162))),\"\",INDEX(Reporting!$B$12:$FZ$12,ROW(A162)))","v":""}]
[null,null,{"$f":"IF(ISBLANK(INDEX(Planning!$B$16:$FZ$16,ROW(A165))),\"\",INDEX(Planning!$B$16:$FZ$16,ROW(A165)))","v":""},{"$f":"IF(ISBLANK(INDEX(Reporting!$B$9:$FZ$9,ROW(A165))),\"\",INDEX(Reporting!$B$9:$FZ$9,ROW(A165)))","v":""},{"$f":"IF(OR(IF(ISBLANK(A166),TRUE,FALSE),ISBLANK(Planning!$B$11)),\"\",Planning!$B$11)","v":""},null,null,null,null,null,null,{"$f":"IF(ISBLANK(INDEX('Optional Reporting'!$B$11:$FZ$11,ROW(A164))),NA(),INDEX('Optional Reporting'!$B$11:$FZ$11,ROW(A164)))","v":{"$error":"#N/A"}},{"$f":"IF((INDEX('Optional Reporting'!$B$17:$FZ$17,ROW(A164)))=\"\",NA(),INDEX('Optional Reporting'!$B$17:$FZ$17,ROW(A164)))","v":{"$error":"#N/A"}},{"$f":"IF(ISBLANK(INDEX(Reporting!$B$12:$FZ$12,ROW(A163))),\"\",INDEX(Reporting!$B$12:$FZ$12,ROW(A163)))","v":""}]
[null,null,{"$f":"IF(ISBLANK(INDEX(Planning!$B$16:$FZ$16,ROW(A166))),\"\",INDEX(Planning!$B$16:$FZ$16,ROW(A166)))","v":""},{"$f":"IF(ISBLANK(INDEX(Reporting!$B$9:$FZ$9,ROW(A166))),\"\",INDEX(Reporting!$B$9:$FZ$9,ROW(A166)))","v":""},{"$f":"IF(OR(IF(ISBLANK(A167),TRUE,FALSE),ISBLANK(Planning!$B$11)),\"\",Planning!$B$11)","v":""},null,null,null,null,null,null,{"$f":"IF(ISBLANK(INDEX('Optional Reporting'!$B$11:$FZ$11,ROW(A165))),NA(),INDEX('Optional Reporting'!$B$11:$FZ$11,ROW(A165)))","v":{"$error":"#N/A"}},{"$f":"IF((INDEX('Optional Reporting'!$B$17:$FZ$17,ROW(A165)))=\"\",NA(),INDEX('Optional Reporting'!$B$17:$FZ$17,ROW(A165)))","v":{"$error":"#N/A"}},{"$f":"IF(ISBLANK(INDEX(Reporting!$B$12:$FZ$12,ROW(A164))),\"\",INDEX(Reporting!$B$12:$FZ$12,ROW(A164)))","v":""}]
[null,null,{"$f":"IF(ISBLANK(INDEX(Planning!$B$16:$FZ$16,ROW(A167))),\"\",INDEX(Planning!$B$16:$FZ$16,ROW(A167)))","v":""},{"$f":"IF(ISBLANK(INDEX(Reporting!$B$9:$FZ$9,ROW(A167))),\"\",INDEX(Reporting!$B$9:$FZ$9,ROW(A167)))","v":""},{"$f":"IF(OR(IF(ISBLANK(A168),TRUE,FALSE),ISBLANK(Planning!$B$11)),\"\",Planning!$B$11)","v":""},null,null,null,null,null,null,{"$f":"IF(ISBLANK(INDEX('Optional Reporting'!$B$11:$FZ$11,ROW(A166))),NA(),INDEX('Optional Reporting'!$B$11:$FZ$11,ROW(A166)))","v":{"$error":"#N/A"}},{"$f":"IF((INDEX('Optional Reporting'!$B$17:$FZ$17,ROW(A166)))=\"\",NA(),INDEX('Optional Reporting'!$B$17:$FZ$17,ROW(A166)))","v":{"$error":"#N/A"}},{"$f":"IF(ISBLANK(INDEX(Reporting!$B$12:$FZ$12,ROW(A165))),\"\",INDEX(Reporting!$B$12:$FZ$12,ROW(A165)))","v":""}]
[null,null,{"$f":"IF(ISBLANK(INDEX(Planning!$B$16:$FZ$16,ROW(A168))),\"\",INDEX(Planning!$B$16:$FZ$16,ROW(A168)))","v":""},{"$f":"IF(ISBLANK(INDEX(Reporting!$B$9:$FZ$9,ROW(A168))),\"\",INDEX(Reporting!$B$9:$FZ$9,ROW(A168)))","v":""},{"$f":"IF(OR(IF(ISBLANK(A169),TRUE,FALSE),ISBLANK(Planning!$B$11)),\"\",Planning!$B$11)","v":""},null,null,null,null,null,null,{"$f":"IF(ISBLANK(INDEX('Optional Reporting'!$B$11:$FZ$11,ROW(A167))),NA(),INDEX('Optional Reporting'!$B$11:$FZ$11,ROW(A167)))","v":{"$error":"#N/A"}},{"$f":"IF((INDEX('Optional Reporting'!$B$17:$FZ$17,ROW(A167)))=\"\",NA(),INDEX('Optional Reporting'!$B$17:$FZ$17,ROW(A167)))","v":{"$error":"#N/A"}},{"$f":"IF(ISBLANK(INDEX(Reporting!$B$12:$FZ$12,ROW(A166))),\"\",INDEX(Reporting!$B$12:$FZ$12,ROW(A166)))","v":""}]
[null,null,{"$f":"IF(ISBLANK(INDEX(Planning!$B$16:$FZ$16,ROW(A169))),\"\",INDEX(Planning!$B$16:$FZ$16,ROW(A169)))","v":""},{"$f":"IF(ISBLANK(INDEX(Reporting!$B$9:$FZ$9,ROW(A169))),\"\",INDEX(Reporting!$B$9:$FZ$9,ROW(A169)))","v":""},{"$f":"IF(OR(IF(ISBLANK(A170),TRUE,FALSE),ISBLANK(Planning!$B$11)),\"\",Planning!$B$11)","v":""},null,null,null,null,null,null,{"$f":"IF(ISBLANK(INDEX('Optional Reporting'!$B$11:$FZ$11,ROW(A168))),NA(),INDEX('Optional Reporting'!$B$11:$FZ$11,ROW(A168)))","v":{"$error":"#N/A"}},{"$f":"IF((INDEX('Optional Reporting'!$B$17:$FZ$17,ROW(A168)))=\"\",NA(),INDEX('Optional Reporting'!$B$17:$FZ$17,ROW(A168)))","v":{"$error":"#N/A"}},{"$f":"IF(ISBLANK(INDEX(Reporting!$B$12:$FZ$12,ROW(A167))),\"\",INDEX(Reporting!$B$12:$FZ$12,ROW(A167)))","v":""}]
[null,null,{"$f":"IF(ISBLANK(INDEX(Planning!$B$16:$FZ$16,ROW(A170))),\"\",INDEX(Planning!$B$16:$FZ$16,ROW(A170)))","v":""},{"$f":"IF(ISBLANK(INDEX(Reporting!$B$9:$FZ$9,ROW(A170))),\"\",INDEX(Reporting!$B$9:$FZ$9,ROW(A170)))","v":""},{"$f":"IF(OR(IF(ISBLANK(A171),TRUE,FALSE),ISBLANK(Planning!$B$11)),\"\",Planning!$B$11)","v":""},null,null,null,null,null,null,{"$f":"IF(ISBLANK(INDEX('Optional Reporting'!$B$11:$FZ$11,ROW(A169))),NA(),INDEX('Optional Reporting'!$B$11:$FZ$11,ROW(A169)))","v":{"$error":"#N/A"}},{"$f":"IF((INDEX('Optional Reporting'!$B$17:$FZ$17,ROW(A169)))=\"\",NA(),INDEX('Optional Reporting'!$B$17:$FZ$17,ROW(A169)))","v":{"$error":"#N/A"}},{"$f":"IF(ISBLANK(INDEX(Reporting!$B$12:$FZ$12,ROW(A168))),\"\",INDEX(Reporting!$B$12:$FZ$12,ROW(A168)))","v":""}]
[null,null,{"$f":"IF(ISBLANK(INDEX(Planning!$B$16:$FZ$16,ROW(A171))),\"\",INDEX(Planning!$B$16:$FZ$16,ROW(A171)))","v":""},{"$f":"IF(ISBLANK(INDEX(Reporting!$B$9:$FZ$9,ROW(A171))),\"\",INDEX(Reporting!$B$9:$FZ$9,ROW(A171)))","v":""},{"$f":"IF(OR(IF(ISBLANK(A172),TRUE,FALSE),ISBLANK(Planning!$B$11)),\"\",Planning!$B$11)","v":""},null,null,null,null,null,null,{"$f":"IF(ISBLANK(INDEX('Optional Reporting'!$B$11:$FZ$11,ROW(A170))),NA(),INDEX('Optional Reporting'!$B$11:$FZ$11,ROW(A170)))","v":{"$error":"#N/A"}},{"$f":"IF((INDEX('Optional Reporting'!$B$17:$FZ$17,ROW(A170)))=\"\",NA(),INDEX('Optional Reporting'!$B$17:$FZ$17,ROW(A170)))","v":{"$error":"#N/A"}},{"$f":"IF(ISBLANK(INDEX(Reporting!$B$12:$FZ$12,ROW(A169))),\"\",INDEX(Reporting!$B$12:$FZ$12,ROW(A169)))","v":""}]
[null,null,{"$f":"IF(ISBLANK(INDEX(Planning!$B$16:$FZ$16,ROW(A172))),\"\",INDEX(Planning!$B$16:$FZ$16,ROW(A172)))","v":""},{"$f":"IF(ISBLANK(INDEX(Reporting!$B$9:$FZ$9,ROW(A172))),\"\",INDEX(Reporting!$B$9:$FZ$9,ROW(A172)))","v":""},{"$f":"IF(OR(IF(ISBLANK(A173),TRUE,FALSE),ISBLANK(Planning!$B$11)),\"\",Planning!$B$11)","v":""},null,null,null,null,null,null,{"$f":"IF(ISBLANK(INDEX('Optional Reporting'!$B$11:$FZ$11,ROW(A171))),NA(),INDEX('Optional Reporting'!$B$11:$FZ$11,ROW(A171)))","v":{"$error":"#N/A"}},{"$f":"IF((INDEX('Optional Reporting'!$B$17:$FZ$17,ROW(A171)))=\"\",NA(),INDEX('Optional Reporting'!$B$17:$FZ$17,ROW(A171)))","v":{"$error":"#N/A"}},{"$f":"IF(ISBLANK(INDEX(Reporting!$B$12:$FZ$12,ROW(A170))),\"\",INDEX(Reporting!$B$12:$FZ$12,ROW(A170)))","v":""}]
[null,null,{"$f":"IF(ISBLANK(INDEX(Planning!$B$16:$FZ$16,ROW(A173))),\"\",INDEX(Planning!$B$16:$FZ$16,ROW(A173)))","v":""},{"$f":"IF(ISBLANK(INDEX(Reporting!$B$9:$FZ$9,ROW(A173))),\"\",INDEX(Reporting!$B$9:$FZ$9,ROW(A173)))","v":""},{"$f":"IF(OR(IF(ISBLANK(A174),TRUE,FALSE),ISBLANK(Planning!$B$11)),\"\",Planning!$B$11)","v":""},null,null,null,null,null,null,{"$f":"IF(ISBLANK(INDEX('Optional Reporting'!$B$11:$FZ$11,ROW(A172))),NA(),INDEX('Optional Reporting'!$B$11:$FZ$11,ROW(A172)))","v":{"$error":"#N/A"}},{"$f":"IF((INDEX('Optional Reporting'!$B$17:$FZ$17,ROW(A172)))=\"\",NA(),INDEX('Optional Reporting'!$B$17:$FZ$17,ROW(A172)))","v":{"$error":"#N/A"}},{"$f":"IF(ISBLANK(INDEX(Reporting!$B$12:$FZ$12,ROW(A171))),\"\",INDEX(Reporting!$B$12:$FZ$12,ROW(A171)))","v":""}]
[null,null,{"$f":"IF(ISBLANK(INDEX(Planning!$B$16:$FZ$16,ROW(A174))),\"\",INDEX(Planning!$B$16:$FZ$16,ROW(A174)))","v":""},{"$f":"IF(ISBLANK(INDEX(Reporting!$B$9:$FZ$9,ROW(A174))),\"\",INDEX(Reporting!$B$9:$FZ$9,ROW(A174)))","v":""},{"$f":"IF(OR(IF(ISBLANK(A175),TRUE,FALSE),ISBLANK(Planning!$B$11)),\"\",Planning!$B$11)","v":""},null,null,null,null,null,null,{"$f":"IF(ISBLANK(INDEX('Optional Reporting'!$B$11:$FZ$11,ROW(A173))),NA(),INDEX('Optional Reporting'!$B$11:$FZ$11,ROW(A173)))","v":{"$error":"#N/A"}},{"$f":"IF((INDEX('Optional Reporting'!$B$17:$FZ$17,ROW(A173)))=\"\",NA(),INDEX('Optional Reporting'!$B$17:$FZ$17,ROW(A173)))","v":{"$error":"#N/A"}},{"$f":"IF(ISBLANK(INDEX(Reporting!$B$12:$FZ$12,ROW(A172))),\"\",INDEX(Reporting!$B$12:$FZ$12,ROW(A172)))","v":""}]
[null,null,null,{"$f":"IF(ISBLANK(INDEX(Reporting!$B$9:$FZ$9,ROW(A175))),\"\",INDEX(Reporting!$B$9:$FZ$9,ROW(A175)))","v":""},{"$f":"IF(OR(IF(ISBLANK(A176),TRUE,FALSE),ISBLANK(Planning!$B$11)),\"\",Planning!$B$11)","v":""},null,null,null,null,null,null,{"$f":"IF(ISBLANK(INDEX('Optional Reporting'!$B$11:$FZ$11,ROW(A174))),NA(),INDEX('Optional Reporting'!$B$11:$FZ$11,ROW(A174)))","v":{"$error":"#N/A"}},{"$f":"IF((INDEX('Optional Reporting'!$B$17:$FZ$17,ROW(A174)))=\"\",NA(),INDEX('Optional Reporting'!$B$17:$FZ$17,ROW(A174)))","v":{"$error":"#N/A"}},{"$f":"IF(ISBLANK(INDEX(Reporting!$B$12:$FZ$12,ROW(A173))),\"\",INDEX(Reporting!$B$12:$FZ$12,ROW(A173)))","v":""}]
[null,null,null,{"$f":"IF(ISBLANK(INDEX(Reporting!$B$9:$FZ$9,ROW(A176))),\"\",INDEX(Reporting!$B$9:$FZ$9,ROW(A176)))","v":""},{"$f":"IF(OR(IF(ISBLANK(A177),TRUE,FALSE),ISBLANK(Planning!$B$11)),\"\",Planning!$B$11)","v":""},null,null,null,null,null,null,null,null,{"$f":"IF(ISBLANK(INDEX(Reporting!$B$12:$FZ$12,ROW(A174))),\"\",INDEX(Reporting!$B$12:$FZ$12,ROW(A174)))","v":""}]
[null,null,null,{"$f":"IF(ISBLANK(INDEX(Reporting!$B$9:$FZ$9,ROW(A177))),\"\",INDEX(Reporting!$B$9:$FZ$9,ROW(A177)))","v":""},{"$f":"IF(OR(IF(ISBLANK(A178),TRUE,FALSE),ISBLANK(Planning!$B$11)),\"\",Planning!$B$11)","v":""},null,null,null,null,null,null,null,null,{"$f":"IF(ISBLANK(INDEX(Reporting!$B$12:$FZ$12,ROW(A175))),\"\",INDEX(Reporting!$B$12:$FZ$12,ROW(A175)))","v":""}]
[null,null,null,{"$f":"IF(ISBLANK(INDEX(Reporting!$B$9:$FZ$9,ROW(A178))),\"\",INDEX(Reporting!$B$9:$FZ$9,ROW(A178)))","v":""},{"$f":"IF(OR(IF(ISBLANK(A179),TRUE,FALSE),ISBLANK(Planning!$B$11)),\"\",Planning!$B$11)","v":""},null,null,null,null,null,null,null,null,{"$f":"IF(ISBLANK(INDEX(Reporting!$B$12:$FZ$12,ROW(A176))),\"\",INDEX(Reporting!$B$12:$FZ$12,ROW(A176)))","v":""}]
[null,null,null,{"$f":"IF(ISBLANK(INDEX(Reporting!$B$9:$FZ$9,ROW(A179))),\"\",INDEX(Reporting!$B$9:$FZ$9,ROW(A179)))","v":""},{"$f":"IF(OR(IF(ISBLANK(A180),TRUE,FALSE),ISBLANK(Planning!$B$11)),\"\",Planning!$B$11)","v":""},null,null,null,null,null,null,null,null,{"$f":"IF(ISBLANK(INDEX(Reporting!$B$12:$FZ$12,ROW(A177))),\"\",INDEX(Reporting!$B$12:$FZ$12,ROW(A177)))","v":""}]
[null,null,null,{"$f":"IF(ISBLANK(INDEX(Reporting!$B$9:$FZ$9,ROW(A180))),\"\",INDEX(Reporting!$B$9:$FZ$9,ROW(A180)))","v":""},{"$f":"IF(OR(IF(ISBLANK(A181),TRUE,FALSE),ISBLANK(Planning!$B$11)),\"\",Planning!$B$11)","v":""},null,null,null,null,null,null,null,null,{"$f":"IF(ISBLANK(INDEX(Reporting!$B$12:$FZ$12,ROW(A178))),\"\",INDEX(Reporting!$B$12:$FZ$12,ROW(A178)))","v":""}]
[null,null,null,{"$f":"IF(ISBLANK(INDEX(Reporting!$B$9:$FZ$9,ROW(A181))),\"\",INDEX(Reporting!$B$9:$FZ$9,ROW(A181)))","v":""},{"$f":"IF(OR(IF(ISBLANK(A182),TRUE,FALSE),ISBLANK(Planning!$B$11)),\"\",Planning!$B$11)","v":""},null,null,null,null,null,null,null,null,{"$f":"IF(ISBLANK(INDEX(Reporting!$B$12:$FZ$12,ROW(A179))),\"\",INDEX(Reporting!$B$12:$FZ$12,ROW(A179)))","v":""}]
[null,null,null,null,{"$f":"IF(OR(IF(ISBLANK(A183),TRUE,FALSE),ISBLANK(Planning!$B$11)),\"\",Planning!$B$11)","v":""},null,null,null,null,null,null,null,null,{"$f":"IF(ISBLANK(INDEX(Reporting!$B$12:$FZ$12,ROW(A180))),\"\",INDEX(Reporting!$B$12:$FZ$12,ROW(A180)))","v":""}]
[null,null,null,null,{"$f":"IF(OR(IF(ISBLANK(A184),TRUE,FALSE),ISBLANK(Planning!$B$11)),\"\",Planning!$B$11)","v":""},null,null,null,null,null,null,null,null,{"$f":"IF(ISBLANK(INDEX(Reporting!$B$12:$FZ$12,ROW(A181))),\"\",INDEX(Reporting!$B$12:$FZ$12,ROW(A181)))","v":""}]
[null,null,null,null,{"$f":"IF(OR(IF(ISBLANK(A185),TRUE,FALSE),ISBLANK(Planning!$B$11)),\"\",Planning!$B$11)","v":""}]
[null,null,null,null,{"$f":"IF(OR(IF(ISBLANK(A186),TRUE,FALSE),ISBLANK(Planning!$B$11)),\"\",Planning!$B$11)","v":""}]
[null,null,null,null,{"$f":"IF(OR(IF(ISBLANK(A187),TRUE,FALSE),ISBLANK(Planning!$B$11)),\"\",Planning!$B$11)","v":""}]
[null,null,null,null,{"$f":"IF(OR(IF(ISBLANK(A188),TRUE,FALSE),ISBLANK(Planning!$B$11)),\"\",Planning!$B$11)","v":""}]
[null,null,null,null,{"$f":"IF(OR(IF(ISBLANK(A189),TRUE,FALSE),ISBLANK(Planning!$B$11)),\"\",Planning!$B$11)","v":""}]
[null,null,null,null,{"$f":"IF(OR(IF(ISBLANK(A190),TRUE,FALSE),ISBLANK(Planning!$B$11)),\"\",Planning!$B$11)","v":""}]
[null,null,null,null,{"$f":"IF(OR(IF(ISBLANK(A191),TRUE,FALSE),ISBLANK(Planning!$B$11)),\"\",Planning!$B$11)","v":""}]
[null,null,null,null,{"$f":"IF(OR(IF(ISBLANK(A192),TRUE,FALSE),ISBLANK(Planning!$B$11)),\"\",Planning!$B$11)","v":""}]
[null,null,null,null,{"$f":"IF(OR(IF(ISBLANK(A193),TRUE,FALSE),ISBLANK(Planning!$B$11)),\"\",Planning!$B$11)","v":""}]
[null,null,null,null,{"$f":"IF(OR(IF(ISBLANK(A194),TRUE,FALSE),ISBLANK(Planning!$B$11)),\"\",Planning!$B$11)","v":""}]
[null,null,null,null,{"$f":"IF(OR(IF(ISBLANK(A195),TRUE,FALSE),ISBLANK(Planning!$B$11)),\"\",Planning!$B$11)","v":""}]
[null,null,null,null,{"$f":"IF(OR(IF(ISBLANK(A196),TRUE,FALSE),ISBLANK(Planning!$B$11)),\"\",Planning!$B$11)","v":""}]
[null,null,null,null,{"$f":"IF(OR(IF(ISBLANK(A197),TRUE,FALSE),ISBLANK(Planning!$B$11)),\"\",Planning!$B$11)","v":""}]
[null,null,null,null,{"$f":"IF(OR(IF(ISBLANK(A198),TRUE,FALSE),ISBLANK(Planning!$B$11)),\"\",Planning!$B$11)","v":""}]
[null,null,null,null,{"$f":"IF(OR(IF(ISBLANK(A199),TRUE,FALSE),ISBLANK(Planning!$B$11)),\"\",Planning!$B$11)","v":""}]

{"sheet":"Program Period","index":9,"n_rows":37,"n_cols":2,"rows_kept":37,"cut":false,"hidden":true,"merged":[]}
["FY","Q"]
[10,1]
[{"$f":"A2+1","v":11},2]
[{"$f":"A3+1","v":12},3]
[13,4]
[14]
[15]
[16]
[17]
[18]
[19]
[20]
[21]
[22]
[23]
[24]
[25]
[26]
[27]
[28]
[29]
[30]
[31]
[32]
[33]
[34]
[35]
[36]
[37]
[38]
[39]
[40]
[41]
[42]
[43]
[44]
[{"$f":"A36+1","v":45}]

{"sheet":"Consolidation old","index":10,"n_rows":27,"n_cols":22,"rows_kept":27,"cut":false,"hidden":true,"merged":[]}
[{"$f":"Planning!A15","v":"Fiscal Year Quarter"},"Planned","FY12Q1","FY12Q2","FY12Q3","FY12Q4","FY13Q1","FY13Q2","FY13Q3","FY13Q4","FY14Q1","FY14Q2","FY14Q3","FY14Q4","FY15Q1","FY15Q2","FY15Q3","FY15Q4","FY16Q1","FY16Q2","FY16Q3","FY16Q4"]
[{"$f":"Planning!A13","v":"Planned Initial Reliability:"},{"$f":"Planning!B13","v":0},{"$f":"NA()","v":{"$error":"#N/A"}},{"$f":"NA()","v":{"$error":"#N/A"}},{"$f":"NA()","v":{"$error":"#N/A"}},{"$f":"NA()","v":{"$error":"#N/A"}},{"$f":"NA()","v":{"$error":"#N/A"}},{"$f":"NA()","v":{"$error":"#N/A"}},{"$f":"NA()","v":{"$error":"#N/A"}},{"$f":"NA()","v":{"$error":"#N/A"}},{"$f":"NA()","v":{"$error":"#N/A"}},{"$f":"NA()","v":{"$error":"#N/A"}},{"$f":"NA()","v":{"$error":"#N/A"}},{"$f":"NA()","v":{"$error":"#N/A"}},{"$f":"NA()","v":{"$error":"#N/A"}},{"$f":"NA()","v":{"$error":"#N/A"}},{"$f":"NA()","v":{"$error":"#N/A"}},{"$f":"NA()","v":{"$error":"#N/A"}},{"$f":"NA()","v":{"$error":"#N/A"}},{"$f":"NA()","v":{"$error":"#N/A"}},{"$f":"NA()","v":{"$error":"#N/A"}},{"$f":"NA()","v":{"$error":"#N/A"}}]
[{"$f":"Planning!A17","v":"Planned Cumulative Reliability"},null,{"$f":"IF(ISBLANK(Planning!B17),NA(),Planning!B17)","v":{"$error":"#N/A"}},{"$f":"IF(ISBLANK(Planning!C17),NA(),Planning!C17)","v":{"$error":"#N/A"}},{"$f":"IF(ISBLANK(Planning!D17),NA(),Planning!D17)","v":{"$error":"#N/A"}},{"$f":"IF(ISBLANK(Planning!E17),NA(),Planning!E17)","v":{"$error":"#N/A"}},{"$f":"IF(ISBLANK(Planning!F17),NA(),Planning!F17)","v":{"$error":"#N/A"}},{"$f":"IF(ISBLANK(Planning!G17),NA(),Planning!G17)","v":{"$error":"#N/A"}},{"$f":"IF(ISBLANK(Planning!H17),NA(),Planning!H17)","v":{"$error":"#N/A"}},{"$f":"IF(ISBLANK(Planning!I17),NA(),Planning!I17)","v":{"$error":"#N/A"}},{"$f":"IF(ISBLANK(Planning!J17),NA(),Planning!J17)","v":{"$error":"#N/A"}},{"$f":"IF(ISBLANK(Planning!K17),NA(),Planning!K17)","v":{"$error":"#N/A"}},{"$f":"IF(ISBLANK(Planning!L17),NA(),Planning!L17)","v":{"$error":"#N/A"}},{"$f":"IF(ISBLANK(Planning!M17),NA(),Planning!M17)","v":{"$error":"#N/A"}},{"$f":"IF(ISBLANK(Planning!N17),NA(),Planning!N17)","v":{"$error":"#N/A"}},{"$f":"IF(ISBLANK(Planning!O17),NA(),Planning!O17)","v":{"$error":"#N/A"}},{"$f":"IF(ISBLANK(Planning!P17),NA(),Planning!P17)","v":{"$error":"#N/A"}},{"$f":"IF(ISBLANK(Planning!Q17),NA(),Planning!Q17)","v":{"$error":"#N/A"}},{"$f":"IF(ISBLANK(Planning!R17),NA(),Planning!R17)","v":{"$error":"#N/A"}},{"$f":"IF(ISBLANK(Planning!S17),NA(),Planning!S17)","v":{"$error":"#N/A"}},{"$f":"IF(ISBLANK(Planning!T17),NA(),Planning!T17)","v":{"$error":"#N/A"}},{"$f":"IF(ISBLANK(Planning!U17),NA(),Planning!U17)","v":{"$error":"#N/A"}}]
[{"$f":"Reporting!A18","v":"Quarterly Demonstrated Reliabilty"},null,{"$f":"IF(OR(ISBLANK(Reporting!B18),Reporting!B18=\"\"),NA(),Reporting!B18)","v":{"$error":"#N/A"}},{"$f":"IF(OR(ISBLANK(Reporting!C18),Reporting!C18=\"\"),NA(),Reporting!C18)","v":{"$error":"#N/A"}},{"$f":"IF(OR(ISBLANK(Reporting!D18),Reporting!D18=\"\"),NA(),Reporting!D18)","v":{"$error":"#N/A"}},{"$f":"IF(OR(ISBLANK(Reporting!E18),Reporting!E18=\"\"),NA(),Reporting!E18)","v":{"$error":"#N/A"}},{"$f":"IF(OR(ISBLANK(Reporting!F18),Reporting!F18=\"\"),NA(),Reporting!F18)","v":{"$error":"#N/A"}},{"$f":"IF(OR(ISBLANK(Reporting!G18),Reporting!G18=\"\"),NA(),Reporting!G18)","v":{"$error":"#N/A"}},{"$f":"IF(OR(ISBLANK(Reporting!H18),Reporting!H18=\"\"),NA(),Reporting!H18)","v":{"$error":"#N/A"}},{"$f":"IF(OR(ISBLANK(Reporting!I18),Reporting!I18=\"\"),NA(),Reporting!I18)","v":{"$error":"#N/A"}},{"$f":"IF(OR(ISBLANK(Reporting!J18),Reporting!J18=\"\"),NA(),Reporting!J18)","v":{"$error":"#N/A"}},{"$f":"IF(OR(ISBLANK(Reporting!K18),Reporting!K18=\"\"),NA(),Reporting!K18)","v":{"$error":"#N/A"}},{"$f":"IF(OR(ISBLANK(Reporting!L18),Reporting!L18=\"\"),NA(),Reporting!L18)","v":{"$error":"#N/A"}},{"$f":"IF(OR(ISBLANK(Reporting!M18),Reporting!M18=\"\"),NA(),Reporting!M18)","v":{"$error":"#N/A"}},{"$f":"IF(OR(ISBLANK(Reporting!N18),Reporting!N18=\"\"),NA(),Reporting!N18)","v":{"$error":"#N/A"}},{"$f":"IF(OR(ISBLANK(Reporting!O18),Reporting!O18=\"\"),NA(),Reporting!O18)","v":{"$error":"#N/A"}},{"$f":"IF(OR(ISBLANK(Reporting!P18),Reporting!P18=\"\"),NA(),Reporting!P18)","v":{"$error":"#N/A"}},{"$f":"IF(OR(ISBLANK(Reporting!Q18),Reporting!Q18=\"\"),NA(),Reporting!Q18)","v":{"$error":"#N/A"}},{"$f":"IF(OR(ISBLANK(Reporting!R18),Reporting!R18=\"\"),NA(),Reporting!R18)","v":{"$error":"#N/A"}},{"$f":"IF(OR(ISBLANK(Reporting!S18),Reporting!S18=\"\"),NA(),Reporting!S18)","v":{"$error":"#N/A"}},{"$f":"IF(OR(ISBLANK(Reporting!T18),Reporting!T18=\"\"),NA(),Reporting!T18)","v":{"$error":"#N/A"}},{"$f":"IF(OR(ISBLANK(Reporting!U18),Reporting!U18=\"\"),NA(),Reporting!U18)","v":{"$error":"#N/A"}}]
[{"$f":"Reporting!A11","v":"Cumulative Demonstrated Reliability Value"},null,{"$f":"IF(ISBLANK(Reporting!B11),NA(),Reporting!B11)","v":{"$error":"#N/A"}},{"$f":"IF(ISBLANK(Reporting!C11),NA(),Reporting!C11)","v":{"$error":"#N/A"}},{"$f":"IF(ISBLANK(Reporting!D11),NA(),Reporting!D11)","v":{"$error":"#N/A"}},{"$f":"IF(ISBLANK(Reporting!E11),NA(),Reporting!E11)","v":{"$error":"#N/A"}},{"$f":"IF(ISBLANK(Reporting!F11),NA(),Reporting!F11)","v":{"$error":"#N/A"}},{"$f":"IF(ISBLANK(Reporting!G11),NA(),Reporting!G11)","v":{"$error":"#N/A"}},{"$f":"IF(ISBLANK(Reporting!H11),NA(),Reporting!H11)","v":{"$error":"#N/A"}},{"$f":"IF(ISBLANK(Reporting!I11),NA(),Reporting!I11)","v":{"$error":"#N/A"}},{"$f":"IF(ISBLANK(Reporting!J11),NA(),Reporting!J11)","v":{"$error":"#N/A"}},{"$f":"IF(ISBLANK(Reporting!K11),NA(),Reporting!K11)","v":{"$error":"#N/A"}},{"$f":"IF(ISBLANK(Reporting!L11),NA(),Reporting!L11)","v":{"$error":"#N/A"}},{"$f":"IF(ISBLANK(Reporting!M11),NA(),Reporting!M11)","v":{"$error":"#N/A"}},{"$f":"IF(ISBLANK(Reporting!N11),NA(),Reporting!N11)","v":{"$error":"#N/A"}},{"$f":"IF(ISBLANK(Reporting!O11),NA(),Reporting!O11)","v":{"$error":"#N/A"}},{"$f":"IF(ISBLANK(Reporting!P11),NA(),Reporting!P11)","v":{"$error":"#N/A"}},{"$f":"IF(ISBLANK(Reporting!Q11),NA(),Reporting!Q11)","v":{"$error":"#N/A"}},{"$f":"IF(ISBLANK(Reporting!R11),NA(),Reporting!R11)","v":{"$error":"#N/A"}},{"$f":"IF(ISBLANK(Reporting!S11),NA(),Reporting!S11)","v":{"$error":"#N/A"}},{"$f":"IF(ISBLANK(Reporting!T11),NA(),Reporting!T11)","v":{"$error":"#N/A"}},{"$f":"IF(ISBLANK(Reporting!U11),NA(),Reporting!U11)","v":{"$error":"#N/A"}}]
[{"$f":"'Optional Reporting'!A11","v":"Current Test Phase - Cumulative Demonstrated Reliability Value"},null,{"$f":"IF(ISBLANK('Optional Reporting'!B11),NA(),'Optional Reporting'!B11)","v":{"$error":"#N/A"}},{"$f":"IF(ISBLANK('Optional Reporting'!C11),NA(),'Optional Reporting'!C11)","v":{"$error":"#N/A"}},{"$f":"IF(ISBLANK('Optional Reporting'!D11),NA(),'Optional Reporting'!D11)","v":{"$error":"#N/A"}},{"$f":"IF(ISBLANK('Optional Reporting'!E11),NA(),'Optional Reporting'!E11)","v":{"$error":"#N/A"}},{"$f":"IF(ISBLANK('Optional Reporting'!F11),NA(),'Optional Reporting'!F11)","v":{"$error":"#N/A"}},{"$f":"IF(ISBLANK('Optional Reporting'!G11),NA(),'Optional Reporting'!G11)","v":{"$error":"#N/A"}},{"$f":"IF(ISBLANK('Optional Reporting'!H11),NA(),'Optional Reporting'!H11)","v":{"$error":"#N/A"}},{"$f":"IF(ISBLANK('Optional Reporting'!I11),NA(),'Optional Reporting'!I11)","v":{"$error":"#N/A"}},{"$f":"IF(ISBLANK('Optional Reporting'!J11),NA(),'Optional Reporting'!J11)","v":{"$error":"#N/A"}},{"$f":"IF(ISBLANK('Optional Reporting'!K11),NA(),'Optional Reporting'!K11)","v":{"$error":"#N/A"}},{"$f":"IF(ISBLANK('Optional Reporting'!L11),NA(),'Optional Reporting'!L11)","v":{"$error":"#N/A"}},{"$f":"IF(ISBLANK('Optional Reporting'!M11),NA(),'Optional Reporting'!M11)","v":{"$error":"#N/A"}},{"$f":"IF(ISBLANK('Optional Reporting'!N11),NA(),'Optional Reporting'!N11)","v":{"$error":"#N/A"}},{"$f":"IF(ISBLANK('Optional Reporting'!O11),NA(),'Optional Reporting'!O11)","v":{"$error":"#N/A"}},{"$f":"IF(ISBLANK('Optional Reporting'!P11),NA(),'Optional Reporting'!P11)","v":{"$error":"#N/A"}},{"$f":"IF(ISBLANK('Optional Reporting'!Q11),NA(),'Optional Reporting'!Q11)","v":{"$error":"#N/A"}},{"$f":"IF(ISBLANK('Optional Reporting'!R11),NA(),'Optional Reporting'!R11)","v":{"$error":"#N/A"}},{"$f":"IF(ISBLANK('Optional Reporting'!S11),NA(),'Optional Reporting'!S11)","v":{"$error":"#N/A"}},{"$f":"IF(ISBLANK('Optional Reporting'!T11),NA(),'Optional Reporting'!T11)","v":{"$error":"#N/A"}},{"$f":"IF(ISBLANK('Optional Reporting'!U11),NA(),'Optional Reporting'!U11)","v":{"$error":"#N/A"}}]
[{"$f":"'Optional Reporting'!A17","v":"Current Test Phase - Quarterly Demonstrated Reliabilty"},null,{"$f":"IF(OR(ISBLANK('Optional Reporting'!B17),'Optional Reporting'!B17=\"\"),NA(),'Optional Reporting'!B17)","v":{"$error":"#N/A"}},{"$f":"IF(OR(ISBLANK('Optional Reporting'!C17),'Optional Reporting'!C17=\"\"),NA(),'Optional Reporting'!C17)","v":{"$error":"#N/A"}},{"$f":"IF(OR(ISBLANK('Optional Reporting'!D17),'Optional Reporting'!D17=\"\"),NA(),'Optional Reporting'!D17)","v":{"$error":"#N/A"}},{"$f":"IF(OR(ISBLANK('Optional Reporting'!E17),'Optional Reporting'!E17=\"\"),NA(),'Optional Reporting'!E17)","v":{"$error":"#N/A"}},{"$f":"IF(OR(ISBLANK('Optional Reporting'!F17),'Optional Reporting'!F17=\"\"),NA(),'Optional Reporting'!F17)","v":{"$error":"#N/A"}},{"$f":"IF(OR(ISBLANK('Optional Reporting'!G17),'Optional Reporting'!G17=\"\"),NA(),'Optional Reporting'!G17)","v":{"$error":"#N/A"}},{"$f":"IF(OR(ISBLANK('Optional Reporting'!H17),'Optional Reporting'!H17=\"\"),NA(),'Optional Reporting'!H17)","v":{"$error":"#N/A"}},{"$f":"IF(OR(ISBLANK('Optional Reporting'!I17),'Optional Reporting'!I17=\"\"),NA(),'Optional Reporting'!I17)","v":{"$error":"#N/A"}},{"$f":"IF(OR(ISBLANK('Optional Reporting'!J17),'Optional Reporting'!J17=\"\"),NA(),'Optional Reporting'!J17)","v":{"$error":"#N/A"}},{"$f":"IF(OR(ISBLANK('Optional Reporting'!K17),'Optional Reporting'!K17=\"\"),NA(),'Optional Reporting'!K17)","v":{"$error":"#N/A"}},{"$f":"IF(OR(ISBLANK('Optional Reporting'!L17),'Optional Reporting'!L17=\"\"),NA(),'Optional Reporting'!L17)","v":{"$error":"#N/A"}},{"$f":"IF(OR(ISBLANK('Optional Reporting'!M17),'Optional Reporting'!M17=\"\"),NA(),'Optional Reporting'!M17)","v":{"$error":"#N/A"}},{"$f":"IF(OR(ISBLANK('Optional Reporting'!N17),'Optional Reporting'!N17=\"\"),NA(),'Optional Reporting'!N17)","v":{"$error":"#N/A"}},{"$f":"IF(OR(ISBLANK('Optional Reporting'!O17),'Optional Reporting'!O17=\"\"),NA(),'Optional Reporting'!O17)","v":{"$error":"#N/A"}},{"$f":"IF(OR(ISBLANK('Optional Reporting'!P17),'Optional Reporting'!P17=\"\"),NA(),'Optional Reporting'!P17)","v":{"$error":"#N/A"}},{"$f":"IF(OR(ISBLANK('Optional Reporting'!Q17),'Optional Reporting'!Q17=\"\"),NA(),'Optional Reporting'!Q17)","v":{"$error":"#N/A"}},{"$f":"IF(OR(ISBLANK('Optional Reporting'!R17),'Optional Reporting'!R17=\"\"),NA(),'Optional Reporting'!R17)","v":{"$error":"#N/A"}},{"$f":"IF(OR(ISBLANK('Optional Reporting'!S17),'Optional Reporting'!S17=\"\"),NA(),'Optional Reporting'!S17)","v":{"$error":"#N/A"}},{"$f":"IF(OR(ISBLANK('Optional Reporting'!T17),'Optional Reporting'!T17=\"\"),NA(),'Optional Reporting'!T17)","v":{"$error":"#N/A"}},{"$f":"IF(OR(ISBLANK('Optional Reporting'!U17),'Optional Reporting'!U17=\"\"),NA(),'Optional Reporting'!U17)","v":{"$error":"#N/A"}}]
[{"$f":"Planning!A11","v":"Reliability Threshold Value:"},{"$f":"NA()","v":{"$error":"#N/A"}},{"$f":"IF(ISBLANK(Planning!B11),NA(),Planning!B11)","v":{"$error":"#N/A"}},{"$f":"C8","v":{"$error":"#N/A"}},{"$f":"D8","v":{"$error":"#N/A"}},{"$error":"#N/A"},{"$error":"#N/A"},{"$error":"#N/A"},{"$error":"#N/A"},{"$error":"#N/A"},{"$error":"#N/A"},{"$error":"#N/A"},{"$error":"#N/A"},{"$error":"#N/A"},{"$error":"#N/A"},{"$error":"#N/A"},{"$error":"#N/A"},{"$error":"#N/A"},{"$error":"#N/A"},{"$error":"#N/A"},{"$error":"#N/A"},{"$error":"#N/A"}]
[{"$f":"Reporting!A12","v":"Projected Reliability for next quarter"},null,{"$f":"NA()","v":{"$error":"#N/A"}},{"$f":"IF(OR(ISBLANK(Reporting!C12),Reporting!C12=\"\"),NA(),Reporting!B12)","v":{"$error":"#N/A"}},{"$f":"IF(OR(ISBLANK(Reporting!D12),Reporting!D12=\"\"),NA(),Reporting!C12)","v":{"$error":"#N/A"}},{"$f":"IF(OR(ISBLANK(Reporting!E12),Reporting!E12=\"\"),NA(),Reporting!D12)","v":{"$error":"#N/A"}},{"$f":"IF(OR(ISBLANK(Reporting!F12),Reporting!F12=\"\"),NA(),Reporting!E12)","v":{"$error":"#N/A"}},{"$f":"IF(OR(ISBLANK(Reporting!G12),Reporting!G12=\"\"),NA(),Reporting!F12)","v":{"$error":"#N/A"}},{"$f":"IF(OR(ISBLANK(Reporting!H12),Reporting!H12=\"\"),NA(),Reporting!G12)","v":{"$error":"#N/A"}},{"$f":"IF(OR(ISBLANK(Reporting!I12),Reporting!I12=\"\"),NA(),Reporting!H12)","v":{"$error":"#N/A"}},{"$f":"IF(OR(ISBLANK(Reporting!J12),Reporting!J12=\"\"),NA(),Reporting!I12)","v":{"$error":"#N/A"}},{"$f":"IF(OR(ISBLANK(Reporting!K12),Reporting!K12=\"\"),NA(),Reporting!J12)","v":{"$error":"#N/A"}},{"$f":"IF(OR(ISBLANK(Reporting!L12),Reporting!L12=\"\"),NA(),Reporting!K12)","v":{"$error":"#N/A"}},{"$f":"IF(OR(ISBLANK(Reporting!M12),Reporting!M12=\"\"),NA(),Reporting!L12)","v":{"$error":"#N/A"}},{"$f":"IF(OR(ISBLANK(Reporting!N12),Reporting!N12=\"\"),NA(),Reporting!M12)","v":{"$error":"#N/A"}},{"$f":"IF(OR(ISBLANK(Reporting!O12),Reporting!O12=\"\"),NA(),Reporting!N12)","v":{"$error":"#N/A"}},{"$f":"IF(OR(ISBLANK(Reporting!P12),Reporting!P12=\"\"),NA(),Reporting!O12)","v":{"$error":"#N/A"}},{"$f":"IF(OR(ISBLANK(Reporting!Q12),Reporting!Q12=\"\"),NA(),Reporting!P12)","v":{"$error":"#N/A"}},{"$f":"IF(OR(ISBLANK(Reporting!R12),Reporting!R12=\"\"),NA(),Reporting!Q12)","v":{"$error":"#N/A"}},{"$f":"IF(OR(ISBLANK(Reporting!S12),Reporting!S12=\"\"),NA(),Reporting!R12)","v":{"$error":"#N/A"}},{"$f":"IF(OR(ISBLANK(Reporting!T12),Reporting!T12=\"\"),NA(),Reporting!S12)","v":{"$error":"#N/A"}},{"$f":"IF(OR(ISBLANK(Reporting!U12),Reporting!U12=\"\"),NA(),Reporting!T12)","v":{"$error":"#N/A"}}]
[{"$f":"Reporting!A8","v":"Planned Cumulative Test Length"},null,{"$f":"IF(ISBLANK(Planning!B16),NA(),Planning!B16)","v":{"$error":"#N/A"}},{"$f":"IF(ISBLANK(Planning!C16),NA(),Planning!C16)","v":{"$error":"#N/A"}},{"$f":"IF(ISBLANK(Planning!D16),NA(),Planning!D16)","v":{"$error":"#N/A"}},{"$f":"IF(ISBLANK(Planning!E16),NA(),Planning!E16)","v":{"$error":"#N/A"}},{"$f":"IF(ISBLANK(Planning!F16),NA(),Planning!F16)","v":{"$error":"#N/A"}},{"$f":"IF(ISBLANK(Planning!G16),NA(),Planning!G16)","v":{"$error":"#N/A"}},{"$f":"IF(ISBLANK(Planning!H16),NA(),Planning!H16)","v":{"$error":"#N/A"}},{"$f":"IF(ISBLANK(Planning!I16),NA(),Planning!I16)","v":{"$error":"#N/A"}},{"$f":"IF(ISBLANK(Planning!J16),NA(),Planning!J16)","v":{"$error":"#N/A"}},{"$f":"IF(ISBLANK(Planning!K16),NA(),Planning!K16)","v":{"$error":"#N/A"}},{"$f":"IF(ISBLANK(Planning!L16),NA(),Planning!L16)","v":{"$error":"#N/A"}},{"$f":"IF(ISBLANK(Planning!M16),NA(),Planning!M16)","v":{"$error":"#N/A"}},{"$f":"IF(ISBLANK(Planning!N16),NA(),Planning!N16)","v":{"$error":"#N/A"}},{"$f":"IF(ISBLANK(Planning!O16),NA(),Planning!O16)","v":{"$error":"#N/A"}},{"$f":"IF(ISBLANK(Planning!P16),NA(),Planning!P16)","v":{"$error":"#N/A"}},{"$f":"IF(ISBLANK(Planning!Q16),NA(),Planning!Q16)","v":{"$error":"#N/A"}},{"$f":"IF(ISBLANK(Planning!R16),NA(),Planning!R16)","v":{"$error":"#N/A"}},{"$f":"IF(ISBLANK(Planning!S16),NA(),Planning!S16)","v":{"$error":"#N/A"}},{"$f":"IF(ISBLANK(Planning!T16),NA(),Planning!T16)","v":{"$error":"#N/A"}},{"$f":"IF(ISBLANK(Planning!U16),NA(),Planning!U16)","v":{"$error":"#N/A"}}]
[{"$f":"Reporting!A9","v":"Actual Cumulative Test Length"},null,{"$f":"IF(ISBLANK(Reporting!B9),NA(),Reporting!B9)","v":{"$error":"#N/A"}},{"$f":"IF(ISBLANK(Reporting!C9),NA(),Reporting!C9)","v":{"$error":"#N/A"}},{"$f":"IF(ISBLANK(Reporting!D9),NA(),Reporting!D9)","v":{"$error":"#N/A"}},{"$f":"IF(ISBLANK(Reporting!E9),NA(),Reporting!E9)","v":{"$error":"#N/A"}},{"$f":"IF(ISBLANK(Reporting!F9),NA(),Reporting!F9)","v":{"$error":"#N/A"}},{"$f":"IF(ISBLANK(Reporting!G9),NA(),Reporting!G9)","v":{"$error":"#N/A"}},{"$f":"IF(ISBLANK(Reporting!H9),NA(),Reporting!H9)","v":{"$error":"#N/A"}},{"$f":"IF(ISBLANK(Reporting!I9),NA(),Reporting!I9)","v":{"$error":"#N/A"}},{"$f":"IF(ISBLANK(Reporting!J9),NA(),Reporting!J9)","v":{"$error":"#N/A"}},{"$f":"IF(ISBLANK(Reporting!K9),NA(),Reporting!K9)","v":{"$error":"#N/A"}},{"$f":"IF(ISBLANK(Reporting!L9),NA(),Reporting!L9)","v":{"$error":"#N/A"}},{"$f":"IF(ISBLANK(Reporting!M9),NA(),Reporting!M9)","v":{"$error":"#N/A"}},{"$f":"IF(ISBLANK(Reporting!N9),NA(),Reporting!N9)","v":{"$error":"#N/A"}},{"$f":"IF(ISBLANK(Reporting!O9),NA(),Reporting!O9)","v":{"$error":"#N/A"}},{"$f":"IF(ISBLANK(Reporting!P9),NA(),Reporting!P9)","v":{"$error":"#N/A"}},{"$f":"IF(ISBLANK(Reporting!Q9),NA(),Reporting!Q9)","v":{"$error":"#N/A"}},{"$f":"IF(ISBLANK(Reporting!R9),NA(),Reporting!R9)","v":{"$error":"#N/A"}},{"$f":"IF(ISBLANK(Reporting!S9),NA(),Reporting!S9)","v":{"$error":"#N/A"}},{"$f":"IF(ISBLANK(Reporting!T9),NA(),Reporting!T9)","v":{"$error":"#N/A"}},{"$f":"IF(ISBLANK(Reporting!U9),NA(),Reporting!U9)","v":{"$error":"#N/A"}}]
[{"$f":"Planning!A13","v":"Planned Initial Reliability:"},{"$f":"NA()","v":{"$error":"#N/A"}},{"$f":"Planning!B13","v":0},{"$f":"NA()","v":{"$error":"#N/A"}},{"$f":"NA()","v":{"$error":"#N/A"}},{"$f":"NA()","v":{"$error":"#N/A"}},{"$f":"NA()","v":{"$error":"#N/A"}},{"$f":"NA()","v":{"$error":"#N/A"}},{"$f":"NA()","v":{"$error":"#N/A"}},{"$f":"NA()","v":{"$error":"#N/A"}},{"$f":"NA()","v":{"$error":"#N/A"}},{"$f":"NA()","v":{"$error":"#N/A"}},{"$f":"NA()","v":{"$error":"#N/A"}},{"$f":"NA()","v":{"$error":"#N/A"}},{"$f":"NA()","v":{"$error":"#N/A"}},{"$f":"NA()","v":{"$error":"#N/A"}},{"$f":"NA()","v":{"$error":"#N/A"}},{"$f":"NA()","v":{"$error":"#N/A"}},{"$f":"NA()","v":{"$error":"#N/A"}},{"$f":"NA()","v":{"$error":"#N/A"}},{"$f":"NA()","v":{"$error":"#N/A"}},{"$f":"NA()","v":{"$error":"#N/A"}}]
[]
["x-axis title for test length vs reliability life unit"]
[{"$f":"CONCATENATE(Planning!B9)","v":""}]
[]
["plot title for test length vs reliability life unit"]
[{"$f":"CONCATENATE(Planning!B8,\" vs \",Planning!B9)","v":" vs "}]
[]
[]
[]
[{"$f":"CONCATENATE(A3, \" vs \", A10)","v":"Planned Cumulative Reliability vs Planned Cumulative Test Length"}]
[{"$f":"CONCATENATE(A4, \" vs \",A11)","v":"Quarterly Demonstrated Reliabilty vs Actual Cumulative Test Length"}]
[{"$f":"CONCATENATE(A5, \" vs \", A11)","v":"Cumulative Demonstrated Reliability Value vs Actual Cumulative Test Length"}]
[]
[]
["x-axis value for chart 3 on planned initial reliability and threshold",0]